Workbook

Sheet Introduction
C4: Joint Monitoring Programme for Water Supply, Sanitation and Hygiene
C6: Estimates on household water, sanitation and hygiene by wealth quintile and sub-national region in
C7: =+Water!B5 -> Mexico
C9: Updated May 2021
C11: Follow the links below to find the following information:
C13: JMP Estimates
C14: WASH status and trends by wealth quintile (customized quintiles made without water and sanitation assets)
C15: Water
C16: Sanitation
C17: Hygiene
C19: Data inputs
C20: customized wealth quintiles and subnational data:
C21: =IF(INDIRECT(CONCATENATE("Water","!B105"))=0,"",INDIRECT(CONCATENATE("Water","!B105"))) -> WHS03
C22: =IF(INDIRECT(CONCATENATE("Water","!B106"))=0,"",INDIRECT(CONCATENATE("Water","!B106"))) -> ENG12
C23: =IF(INDIRECT(CONCATENATE("Water","!B107"))=0,"",INDIRECT(CONCATENATE("Water","!B107"))) -> MICS15
C24: =IF(INDIRECT(CONCATENATE("Water","!B108"))=0,"",INDIRECT(CONCATENATE("Water","!B108"))) -> 
C25: =IF(INDIRECT(CONCATENATE("Water","!B109"))=0,"",INDIRECT(CONCATENATE("Water","!B109"))) -> 
C26: =IF(INDIRECT(CONCATENATE("Water","!B110"))=0,"",INDIRECT(CONCATENATE("Water","!B110"))) -> 
C27: =IF(INDIRECT(CONCATENATE("Water","!B111"))=0,"",INDIRECT(CONCATENATE("Water","!B111"))) -> 
C28: =IF(INDIRECT(CONCATENATE("Water","!B112"))=0,"",INDIRECT(CONCATENATE("Water","!B112"))) -> 
C29: =IF(INDIRECT(CONCATENATE("Water","!B113"))=0,"",INDIRECT(CONCATENATE("Water","!B113"))) -> 
C30: =IF(INDIRECT(CONCATENATE("Water","!B114"))=0,"",INDIRECT(CONCATENATE("Water","!B114"))) -> 
C31: =IF(INDIRECT(CONCATENATE("Water","!B115"))=0,"",INDIRECT(CONCATENATE("Water","!B115"))) -> 
C32: =IF(INDIRECT(CONCATENATE("Water","!B116"))=0,"",INDIRECT(CONCATENATE("Water","!B116"))) -> 
L55: =+IF(ISNUMBER(M48), "", "Insufficient data to estimate safely managed sanitation services at national level") -> Insufficient data to estimate safely managed sanitation services at national level

Sheet Water
A1: BGD
B4: Summary of trends in use of drinking water by wealth quintile (%)
B5: =IF(ISERROR(INDIRECT(CONCATENATE($B105,"!A2"))),"",INDIRECT(CONCATENATE($B105,"!A2"))) -> Mexico
B7: =B118 -> National use of drinking water sources, 2000–2020 | J7: =B218 -> Urban use of drinking water sources, 2000–2020 | R7: =B318 -> Rural use of drinking water sources, 2000–2020
B31: =IF(ISERROR(INDIRECT(CONCATENATE($B105,"!A2"))),"",INDIRECT(CONCATENATE($B105,"!A2"))) -> Mexico | F31: Poorest | J31: Poor | N31: Middle | R31: Rich | V31: Richest
F32: Basic | G32: Limited | H32: Unimproved | I32: Surface water | J32: Basic | K32: Limited | L32: Unimproved | M32: Surface water | N32: Basic | O32: Limited | P32: Unimproved | Q32: Surface water | R32: Basic | S32: Limited | T32: Unimproved | U32: Surface water | V32: Basic | W32: Limited | X32: Unimproved | Y32: Surface water
B33: NATIONAL | D33: Estimate | E33: =C99 -> 2000 | F33: =E99 -> 83.6615353 | G33: =F99 -> 1.43353875 | H33: 3.710596746 | I33: 11.1943292 | J33: =J99 -> 98.46071092 | K33: =K99 -> 0.1195874203 | L33: 0.6714913607 | M33: 0.7482102952 | N33: =O99 -> 99.50938057 | O33: =P99 -> 0.1147943627 | P33: 0.3046399644 | Q33: 0.07118509786 | R33: =T99 -> 99.80593817 | S33: =U99 -> 0 | T33: 0.1940618265 | U33: 0 | V33: =Y99 -> 99.9594968 | W33: =Z99 -> 0 | X33: 0.01633229543 | Y33: 0.02417090956
E34: =C100 -> 2020 | F34: =E100 -> 96.52933191 | G34: 1.654028189 | H34: 1.816639903 | I34: 0 | J34: =J100 -> 99.25603436 | K34: 0.1205533962 | L34: 0.6234122417 | M34: 0 | N34: =O100 -> 99.80955235 | O34: 0.1151406419 | P34: 0 | Q34: 0.07530700582 | R34: =T100 -> 99.75765084 | S34: 0 | T34: 0 | U34: 0.2423491625 | V34: =Y100 -> 99.74256662 | W34: 0 | X34: 0.2574333812 | Y34: 0
B36: URBAN | D36: Estimate | E36: =C199 -> 2000 | F36: =E199 -> 98.27778311 | G36: =F199 -> 0.1251236561 | H36: 1.100118718 | I36: 0.4969745203 | J36: =J199 -> 99.54053685 | K36: =K199 -> 0.06876955028 | L36: 0.2792186798 | M36: 0.1114749174 | N36: =O199 -> 99.59991347 | O36: =P199 -> 0.0668318673 | P36: 0.3310321458 | Q36: 0.00222252162 | R36: =T199 -> 99.85366458 | S36: =U199 -> 0 | T36: 0.1463354229 | U36: 0 | V36: =Y199 -> 99.99009849 | W36: =Z199 -> 0 | X36: 0 | Y36: 0.009901510762
E37: =C200 -> 2020 | F37: =E200 -> 98.97052304 | G37: 0.1260056271 | H37: 0.8261348042 | I37: 0.07733652931 | J37: =J200 -> 99.70071682 | K37: 0.06888021378 | L37: 0.1878227599 | M37: 0.04258020381 | N37: =O200 -> 99.90598401 | O37: 0.06703724164 | P37: 0 | Q37: 0.02697874632 | R37: =T200 -> 99.96094036 | S37: 0 | T37: 0.0390596448 | U37: 0 | V37: =Y200 -> 99.70430634 | W37: 0 | X37: 0.2956936644 | Y37: 0
B39: RURAL | D39: Estimate | E39: =C299 -> 2000 | F39: =E299 -> 66.67978119 | G39: =F299 -> 3.530325044 | H39: 8.334451241 | I39: 21.45544253 | J39: =J299 -> 77.93616673 | K39: =K299 -> 0.6004231884 | L39: 3.639904673 | M39: 17.82350541 | N39: =O299 -> 87.06548979 | O39: =P299 -> 1.259875659 | P39: 1.901351769 | Q39: 9.773282783 | R39: =T299 -> 96.06501256 | S39: =U299 -> 0.4941746151 | T39: 0.87783558 | U39: 2.562977241 | V39: =Y299 -> 99.33998688 | W39: =Z299 -> 0.04680574398 | X39: 0.4051185454 | Y39: 0.2080888348
E40: =C300 -> 2020 | F40: =E300 -> 87.69575541 | G40: 4.643004462 | H40: 7.661240131 | I40: 0 | J40: =J300 -> 96.84846187 | K40: 0.7461242285 | L40: 2.405413902 | M40: 0 | N40: =O300 -> 98.22584352 | O40: 1.421370851 | P40: 0.3527856311 | Q40: 0 | R40: =T300 -> 99.48821585 | S40: 0.5117841497 | T40: 0 | U40: 0 | V40: =Y300 -> 99.04736776 | W40: 0.04666787145 | X40: 0.09548063402 | Y40: 0.8104837303
A97: NATIONAL | D97: Poorest | I97: Poor | N97: Middle | S97: Rich | X97: Richest
D98: Improved | E98: Basic | F98: Limited | G98: Unimproved | H98: Surface water | I98: Improved | J98: Basic | K98: Limited | L98: Unimproved | M98: Surface water | N98: Improved | O98: Basic | P98: Limited | Q98: Unimproved | R98: Surface water | S98: Improved | T98: Basic | U98: Limited | V98: Unimproved | W98: Surface water | X98: Improved | Y98: Basic | Z98: Limited | AA98: Unimproved | AB98: Surface water
A99: Forecast period: | C99: 2000 | D99: =IF((D101+H101)>100,D101*100/(D101+H101),D101) -> 85.09507405 | E99: =D99*AVERAGEIF(E105:E116,">0")/100 -> 83.6615353 | F99: =D99*(100-AVERAGEIF(E105:E116,">0"))/100 -> 1.43353875 | G99: =100-(E99+F99+H99) -> 3.710596746 | H99: =IF((D101+H101)>100,H101*100/(D101+H101),H101) -> 11.1943292 | I99: =IF((I101+M101)>100,I101*100/(I101+M101),I101) -> 98.58029834 | J99: =I99*AVERAGEIF(J105:J116,">0")/100 -> 98.46071092 | K99: =I99*(100-AVERAGEIF(J105:J116,">0"))/100 -> 0.1195874203 | L99: =100-(J99+K99+M99) -> 0.6714913607 | M99: =IF((I101+M101)>100,M101*100/(I101+M101),M101) -> 0.7482102952 | N99: =IF((N101+R101)>100,N101*100/(N101+R101),N101) -> 99.62417494 | O99: =N99*AVERAGEIF(O105:O116,">0")/100 -> 99.50938057 | P99: =N99*(100-AVERAGEIF(O105:O116,">0"))/100 -> 0.1147943627 | Q99: =100-(O99+P99+R99) -> 0.3046399644 | R99: =IF((N101+R101)>100,R101*100/(N101+R101),R101) -> 0.07118509786 | S99: =IF((S101+W101)>100,S101*100/(S101+W101),S101) -> 99.80593817 | T99: =S99*AVERAGEIF(T105:T116,">0")/100 -> 99.80593817 | U99: =S99*(100-AVERAGEIF(T105:T116,">0"))/100 -> 0 | V99: =100-(T99+U99+W99) -> 0.1940618265 | W99: =IF((S101+W101)>100,W101*100/(S101+W101),W101) -> 0 | X99: =IF((X101+AB101)>100,X101*100/(X101+AB101),X101) -> 99.9594968 | Y99: =X99*AVERAGEIF(Y105:Y116,">0")/100 -> 99.9594968 | Z99: =X99*(100-AVERAGEIF(Y105:Y116,">0"))/100 -> 0 | AA99: =100-(Y99+Z99+AB99) -> 0.01633229543 | AB99: =IF((X101+AB101)>100,AB101*100/(X101+AB101),AB101) -> 0.02417090956
C100: 2020 | D100: =IF((D102+H102)>100,D102*100/(D102+H102),D102) -> 98.1833601 | E100: =D100*AVERAGEIF(E105:E116,">0")/100 -> 96.52933191 | F100: =D100*(100-AVERAGEIF(E105:E116,">0"))/100 -> 1.654028189 | G100: =100-(E100+F100+H100) -> 1.816639903 | H100: =IF((D102+H102)>100,H102*100/(D102+H102),H102) -> 0 | I100: =IF((I102+M102)>100,I102*100/(I102+M102),I102) -> 99.37658776 | J100: =I100*AVERAGEIF(J105:J116,">0")/100 -> 99.25603436 | K100: =I100*(100-AVERAGEIF(J105:J116,">0"))/100 -> 0.1205533962 | L100: =100-(J100+K100+M100) -> 0.6234122417 | M100: =IF((I102+M102)>100,M102*100/(I102+M102),M102) -> 0 | N100: =IF((N102+R102)>100,N102*100/(N102+R102),N102) -> 99.92469299 | O100: =N100*AVERAGEIF(O105:O116,">0")/100 -> 99.80955235 | P100: =N100*(100-AVERAGEIF(O105:O116,">0"))/100 -> 0.1151406419 | Q100: =100-(O100+P100+R100) -> 0 | R100: =IF((N102+R102)>100,R102*100/(N102+R102),R102) -> 0.07530700582 | S100: =IF((S102+W102)>100,S102*100/(S102+W102),S102) -> 99.75765084 | T100: =S100*AVERAGEIF(T105:T116,">0")/100 -> 99.75765084 | U100: =S100*(100-AVERAGEIF(T105:T116,">0"))/100 -> 0 | V100: =100-(T100+U100+W100) -> 0 | W100: =IF((S102+W102)>100,W102*100/(S102+W102),W102) -> 0.2423491625 | X100: =IF((X102+AB102)>100,X102*100/(X102+AB102),X102) -> 99.74256662 | Y100: =X100*AVERAGEIF(Y105:Y116,">0")/100 -> 99.74256662 | Z100: =X100*(100-AVERAGEIF(Y105:Y116,">0"))/100 -> 0 | AA100: =100-(Y100+Z100+AB100) -> 0.2574333812 | AB100: =IF((X102+AB102)>100,AB102*100/(X102+AB102),AB102) -> 0
A101: Regression period: | C101: =MinRegYear(C99,C105:C116) -> 2001 | D101: =IF(MAX(C105:C116)-MIN(C105:C116)<5,AVERAGEIF(C105:C116,">0",D105:D116), IF(FORECAST($C101,D$105:D$116,$C$105:$C$116)<0,0, IF(FORECAST($C101,D$105:D$116,$C$105:$C$116)>100,100, FORECAST($C101,D$105:D$116,$C$105:$C$116)))) -> 85.09507405 | H101: =IF(MAX(C105:C116)-MIN(C105:C116)<5,AVERAGEIF(C105:C116,">0",H105:H116), IF(FORECAST($C101,H$105:H$116,$C$105:$C$116)<0,0, IF(FORECAST($C101,H$105:H$116,$C$105:$C$116)>100,100, FORECAST($C101,H$105:H$116,$C$105:$C$116)))) -> 11.1943292 | I101: =IF(MAX(C105:C116)-MIN(C105:C116)<5,AVERAGEIF(C105:C116,">0",I105:I116), IF(FORECAST($C101,I$105:I$116,$C$105:$C$116)<0,0, IF(FORECAST($C101,I$105:I$116,$C$105:$C$116)>100,100, FORECAST($C101,I$105:I$116,$C$105:$C$116)))) -> 98.58029834 | M101: =IF(MAX(C105:C116)-MIN(C105:C116)<5,AVERAGEIF(C105:C116,">0",M105:M116), IF(FORECAST($C101,M$105:M$116,$C$105:$C$116)<0,0, IF(FORECAST($C101,M$105:M$116,$C$105:$C$116)>100,100, FORECAST($C101,M$105:M$116,$C$105:$C$116)))) -> 0.7482102952 | N101: =IF(MAX(C105:C116)-MIN(C105:C116)<5,AVERAGEIF(C105:C116,">0",N105:N116), IF(FORECAST($C101,N$105:N$116,$C$105:$C$116)<0,0, IF(FORECAST($C101,N$105:N$116,$C$105:$C$116)>100,100, FORECAST($C101,N$105:N$116,$C$105:$C$116)))) -> 99.62417494 | R101: =IF(MAX(C105:C116)-MIN(C105:C116)<5,AVERAGEIF(C105:C116,">0",R105:R116), IF(FORECAST($C101,R$105:R$116,$C$105:$C$116)<0,0, IF(FORECAST($C101,R$105:R$116,$C$105:$C$116)>100,100, FORECAST($C101,R$105:R$116,$C$105:$C$116)))) -> 0.07118509786 | S101: =IF(MAX(C105:C116)-MIN(C105:C116)<5,AVERAGEIF(C105:C116,">0",S105:S116), IF(FORECAST($C101,S$105:S$116,$C$105:$C$116)<0,0, IF(FORECAST($C101,S$105:S$116,$C$105:$C$116)>100,100, FORECAST($C101,S$105:S$116,$C$105:$C$116)))) -> 99.80593817 | W101: =IF(MAX(C105:C116)-MIN(C105:C116)<5,AVERAGEIF(C105:C116,">0",W105:W116), IF(FORECAST($C101,W$105:W$116,$C$105:$C$116)<0,0, IF(FORECAST($C101,W$105:W$116,$C$105:$C$116)>100,100, FORECAST($C101,W$105:W$116,$C$105:$C$116)))) -> 0 | X101: =IF(MAX(C105:C116)-MIN(C105:C116)<5,AVERAGEIF(C105:C116,">0",X105:X116), IF(FORECAST($C101,X$105:X$116,$C$105:$C$116)<0,0, IF(FORECAST($C101,X$105:X$116,$C$105:$C$116)>100,100, FORECAST($C101,X$105:X$116,$C$105:$C$116)))) -> 99.9594968 | AB101: =IF(MAX(C105:C116)-MIN(C105:C116)<5,AVERAGEIF(C105:C116,">0",AB105:AB116), IF(FORECAST($C101,AB$105:AB$116,$C$105:$C$116)<0,0, IF(FORECAST($C101,AB$105:AB$116,$C$105:$C$116)>100,100, FORECAST($C101,AB$105:AB$116,$C$105:$C$116)))) -> 0.02417090956
C102: =MaxRegYear(C100,C105:C116) -> 2017 | D102: =IF(MAX(C105:C116)-MIN(C105:C116)<5,AVERAGEIF(C105:C116,">0",D105:D116), IF(FORECAST($C102,D$105:D$116,$C$105:$C$116)<0,0, IF(FORECAST($C102,D$105:D$116,$C$105:$C$116)>100,100, FORECAST($C102,D$105:D$116,$C$105:$C$116)))) -> 98.1833601 | H102: =IF(MAX(C105:C116)-MIN(C105:C116)<5,AVERAGEIF(C105:C116,">0",H105:H116), IF(FORECAST($C102,H$105:H$116,$C$105:$C$116)<0,0, IF(FORECAST($C102,H$105:H$116,$C$105:$C$116)>100,100, FORECAST($C102,H$105:H$116,$C$105:$C$116)))) -> 0 | I102: =IF(MAX(C105:C116)-MIN(C105:C116)<5,AVERAGEIF(C105:C116,">0",I105:I116), IF(FORECAST($C102,I$105:I$116,$C$105:$C$116)<0,0, IF(FORECAST($C102,I$105:I$116,$C$105:$C$116)>100,100, FORECAST($C102,I$105:I$116,$C$105:$C$116)))) -> 99.37658776 | M102: =IF(MAX(C105:C116)-MIN(C105:C116)<5,AVERAGEIF(C105:C116,">0",M105:M116), IF(FORECAST($C102,M$105:M$116,$C$105:$C$116)<0,0, IF(FORECAST($C102,M$105:M$116,$C$105:$C$116)>100,100, FORECAST($C102,M$105:M$116,$C$105:$C$116)))) -> 0 | N102: =IF(MAX(C105:C116)-MIN(C105:C116)<5,AVERAGEIF(C105:C116,">0",N105:N116), IF(FORECAST($C102,N$105:N$116,$C$105:$C$116)<0,0, IF(FORECAST($C102,N$105:N$116,$C$105:$C$116)>100,100, FORECAST($C102,N$105:N$116,$C$105:$C$116)))) -> 99.94965912 | R102: =IF(MAX(C105:C116)-MIN(C105:C116)<5,AVERAGEIF(C105:C116,">0",R105:R116), IF(FORECAST($C102,R$105:R$116,$C$105:$C$116)<0,0, IF(FORECAST($C102,R$105:R$116,$C$105:$C$116)>100,100, FORECAST($C102,R$105:R$116,$C$105:$C$116)))) -> 0.07532582123 | S102: =IF(MAX(C105:C116)-MIN(C105:C116)<5,AVERAGEIF(C105:C116,">0",S105:S116), IF(FORECAST($C102,S$105:S$116,$C$105:$C$116)<0,0, IF(FORECAST($C102,S$105:S$116,$C$105:$C$116)>100,100, FORECAST($C102,S$105:S$116,$C$105:$C$116)))) -> 99.86688058 | W102: =IF(MAX(C105:C116)-MIN(C105:C116)<5,AVERAGEIF(C105:C116,">0",W105:W116), IF(FORECAST($C102,W$105:W$116,$C$105:$C$116)<0,0, IF(FORECAST($C102,W$105:W$116,$C$105:$C$116)>100,100, FORECAST($C102,W$105:W$116,$C$105:$C$116)))) -> 0.2426145229 | X102: =IF(MAX(C105:C116)-MIN(C105:C116)<5,AVERAGEIF(C105:C116,">0",X105:X116), IF(FORECAST($C102,X$105:X$116,$C$105:$C$116)<0,0, IF(FORECAST($C102,X$105:X$116,$C$105:$C$116)>100,100, FORECAST($C102,X$105:X$116,$C$105:$C$116)))) -> 99.74256662 | AB102: =IF(MAX(C105:C116)-MIN(C105:C116)<5,AVERAGEIF(C105:C116,">0",AB105:AB116), IF(FORECAST($C102,AB$105:AB$116,$C$105:$C$116)<0,0, IF(FORECAST($C102,AB$105:AB$116,$C$105:$C$116)>100,100, FORECAST($C102,AB$105:AB$116,$C$105:$C$116)))) -> 0
B104: Survey | C104: Year | D104: Improved | E104: % Improved < = 30min | H104: Surface water | I104: Improved | J104: % Improved < = 30min | M104: Surface water | N104: Improved | O104: % Improved < = 30min | R104: Surface water | S104: Improved | T104: % Improved < = 30min | W104: Surface water | X104: Improved | Y104: % Improved < = 30min | AB104: Surface water
B105: WHS03 | C105: 2003 | D105: =IF(ISERROR(INDIRECT(CONCATENATE($B105,"!C16"))),"",INDIRECT(CONCATENATE($B105,"!C16"))) -> 86.43952576 | E105: =IF(ISERROR(INDIRECT(CONCATENATE($B105,"!C23"))),"",INDIRECT(CONCATENATE($B105,"!C23"))) -> N/A | H105: =IF(ISERROR(INDIRECT(CONCATENATE($B105,"!C21"))),"",INDIRECT(CONCATENATE($B105,"!C21"))) -> 9.851986497 | I105: =IF(ISERROR(INDIRECT(CONCATENATE($B105,"!D16"))),"",INDIRECT(CONCATENATE($B105,"!D16"))) -> 98.73929127 | J105: =IF(ISERROR(INDIRECT(CONCATENATE($B105,"!D23"))),"",INDIRECT(CONCATENATE($B105,"!D23"))) -> N/A | M105: =IF(ISERROR(INDIRECT(CONCATENATE($B105,"!D21"))),"",INDIRECT(CONCATENATE($B105,"!D21"))) -> 0.663357533 | N105: =IF(ISERROR(INDIRECT(CONCATENATE($B105,"!E16"))),"",INDIRECT(CONCATENATE($B105,"!E16"))) -> 99.65798337 | O105: =IF(ISERROR(INDIRECT(CONCATENATE($B105,"!E23"))),"",INDIRECT(CONCATENATE($B105,"!E23"))) -> N/A | R105: =IF(ISERROR(INDIRECT(CONCATENATE($B105,"!E21"))),"",INDIRECT(CONCATENATE($B105,"!E21"))) -> 0.07159177605 | S105: =IF(ISERROR(INDIRECT(CONCATENATE($B105,"!F16"))),"",INDIRECT(CONCATENATE($B105,"!F16"))) -> 99.7819708 | T105: =IF(ISERROR(INDIRECT(CONCATENATE($B105,"!F23"))),"",INDIRECT(CONCATENATE($B105,"!F23"))) -> N/A | W105: =IF(ISERROR(INDIRECT(CONCATENATE($B105,"!F21"))),"",INDIRECT(CONCATENATE($B105,"!F21"))) -> 0.004170089043 | X105: =IF(ISERROR(INDIRECT(CONCATENATE($B105,"!G16"))),"",INDIRECT(CONCATENATE($B105,"!G16"))) -> 99.94398735 | Y105: =IF(ISERROR(INDIRECT(CONCATENATE($B105,"!G23"))),"",INDIRECT(CONCATENATE($B105,"!G23"))) -> N/A | AB105: =IF(ISERROR(INDIRECT(CONCATENATE($B105,"!G221"))),"",INDIRECT(CONCATENATE($B105,"!G21"))) -> 0.02118349377
B106: ENG12 | C106: 2012 | D106: 95.25960691 | E106: N/A | H106: 0.3335564189 | I106: 98.8899203 | J106: N/A | M106: 0.06167430971 | N106: 99.87545367 | O106: N/A | R106: 0.07447549411 | S106: 99.9741768 | T106: N/A | W106: 0.1883152954 | X106: 99.76393 | Y106: N/A | AB106: 0
B107: MICS15 | C107: 2015 | D107: 95.67257219 | E107: 98.31536812 | H107: 0.3335564189 | I107: 99.45542184 | J107: 99.87869034 | M107: 0.06167430971 | N107: 99.88834232 | O107: 99.88477258 | R107: 0.07447549411 | S107: 99.76450724 | T107: 100 | W107: 0.1883152954 | X107: 99.80450337 | Y107: 100 | AB107: 0
D111: =IF(ISERROR(INDIRECT(CONCATENATE($B111,"!C16"))),"",INDIRECT(CONCATENATE($B111,"!C16"))) ->  | E111: =IF(ISERROR(INDIRECT(CONCATENATE($B111,"!C23"))),"",INDIRECT(CONCATENATE($B111,"!C23"))) ->  | H111: =IF(ISERROR(INDIRECT(CONCATENATE($B111,"!C21"))),"",INDIRECT(CONCATENATE($B111,"!C21"))) ->  | I111: =IF(ISERROR(INDIRECT(CONCATENATE($B111,"!D16"))),"",INDIRECT(CONCATENATE($B111,"!D16"))) ->  | J111: =IF(ISERROR(INDIRECT(CONCATENATE($B111,"!D23"))),"",INDIRECT(CONCATENATE($B111,"!D23"))) ->  | M111: =IF(ISERROR(INDIRECT(CONCATENATE($B111,"!D21"))),"",INDIRECT(CONCATENATE($B111,"!D21"))) ->  | N111: =IF(ISERROR(INDIRECT(CONCATENATE($B111,"!E16"))),"",INDIRECT(CONCATENATE($B111,"!E16"))) ->  | O111: =IF(ISERROR(INDIRECT(CONCATENATE($B111,"!E23"))),"",INDIRECT(CONCATENATE($B111,"!E23"))) ->  | R111: =IF(ISERROR(INDIRECT(CONCATENATE($B111,"!E21"))),"",INDIRECT(CONCATENATE($B111,"!E21"))) ->  | S111: =IF(ISERROR(INDIRECT(CONCATENATE($B111,"!F16"))),"",INDIRECT(CONCATENATE($B111,"!F16"))) ->  | T111: =IF(ISERROR(INDIRECT(CONCATENATE($B111,"!F23"))),"",INDIRECT(CONCATENATE($B111,"!F23"))) ->  | W111: =IF(ISERROR(INDIRECT(CONCATENATE($B111,"!F21"))),"",INDIRECT(CONCATENATE($B111,"!F21"))) ->  | X111: =IF(ISERROR(INDIRECT(CONCATENATE($B111,"!G16"))),"",INDIRECT(CONCATENATE($B111,"!G16"))) ->  | Y111: =IF(ISERROR(INDIRECT(CONCATENATE($B111,"!G23"))),"",INDIRECT(CONCATENATE($B111,"!G23"))) ->  | AB111: =IF(ISERROR(INDIRECT(CONCATENATE($B111,"!G221"))),"",INDIRECT(CONCATENATE($B111,"!G21"))) -> 
D112: =IF(ISERROR(INDIRECT(CONCATENATE($B112,"!C16"))),"",INDIRECT(CONCATENATE($B112,"!C16"))) ->  | E112: =IF(ISERROR(INDIRECT(CONCATENATE($B112,"!C23"))),"",INDIRECT(CONCATENATE($B112,"!C23"))) ->  | H112: =IF(ISERROR(INDIRECT(CONCATENATE($B112,"!C21"))),"",INDIRECT(CONCATENATE($B112,"!C21"))) ->  | I112: =IF(ISERROR(INDIRECT(CONCATENATE($B112,"!D16"))),"",INDIRECT(CONCATENATE($B112,"!D16"))) ->  | J112: =IF(ISERROR(INDIRECT(CONCATENATE($B112,"!D23"))),"",INDIRECT(CONCATENATE($B112,"!D23"))) ->  | M112: =IF(ISERROR(INDIRECT(CONCATENATE($B112,"!D21"))),"",INDIRECT(CONCATENATE($B112,"!D21"))) ->  | N112: =IF(ISERROR(INDIRECT(CONCATENATE($B112,"!E16"))),"",INDIRECT(CONCATENATE($B112,"!E16"))) ->  | O112: =IF(ISERROR(INDIRECT(CONCATENATE($B112,"!E23"))),"",INDIRECT(CONCATENATE($B112,"!E23"))) ->  | R112: =IF(ISERROR(INDIRECT(CONCATENATE($B112,"!E21"))),"",INDIRECT(CONCATENATE($B112,"!E21"))) ->  | S112: =IF(ISERROR(INDIRECT(CONCATENATE($B112,"!F16"))),"",INDIRECT(CONCATENATE($B112,"!F16"))) ->  | T112: =IF(ISERROR(INDIRECT(CONCATENATE($B112,"!F23"))),"",INDIRECT(CONCATENATE($B112,"!F23"))) ->  | W112: =IF(ISERROR(INDIRECT(CONCATENATE($B112,"!F21"))),"",INDIRECT(CONCATENATE($B112,"!F21"))) ->  | X112: =IF(ISERROR(INDIRECT(CONCATENATE($B112,"!G16"))),"",INDIRECT(CONCATENATE($B112,"!G16"))) ->  | Y112: =IF(ISERROR(INDIRECT(CONCATENATE($B112,"!G23"))),"",INDIRECT(CONCATENATE($B112,"!G23"))) ->  | AB112: =IF(ISERROR(INDIRECT(CONCATENATE($B112,"!G221"))),"",INDIRECT(CONCATENATE($B112,"!G21"))) -> 
B118: =CONCATENATE("National use of drinking water sources, ",C99,"–",C100) -> National use of drinking water sources, 2000–2020 | S118: Data points used for regression
E153: =IF(ISERROR(INDIRECT(CONCATENATE($B153,"!M18"))),"",INDIRECT(CONCATENATE($B153,"!M18"))) ->  | F153: =IF(ISERROR(INDIRECT(CONCATENATE($B153,"!M19"))),"",INDIRECT(CONCATENATE($B153,"!M19"))) ->  | G153: =IF(ISERROR(INDIRECT(CONCATENATE($B153,"!M20"))),"",INDIRECT(CONCATENATE($B153,"!M20"))) ->  | H153: =IF(ISERROR(INDIRECT(CONCATENATE($B153,"!M21"))),"",INDIRECT(CONCATENATE($B153,"!M21"))) ->  | J153: =IF(ISERROR(INDIRECT(CONCATENATE($B153,"!N18"))),"",INDIRECT(CONCATENATE($B153,"!N18"))) ->  | K153: =IF(ISERROR(INDIRECT(CONCATENATE($B153,"!N19"))),"",INDIRECT(CONCATENATE($B153,"!N19"))) ->  | L153: =IF(ISERROR(INDIRECT(CONCATENATE($B153,"!N20"))),"",INDIRECT(CONCATENATE($B153,"!N20"))) ->  | M153: =IF(ISERROR(INDIRECT(CONCATENATE($B153,"!N21"))),"",INDIRECT(CONCATENATE($B153,"!N21"))) ->  | O153: =IF(ISERROR(INDIRECT(CONCATENATE($B153,"!O18"))),"",INDIRECT(CONCATENATE($B153,"!O18"))) ->  | P153: =IF(ISERROR(INDIRECT(CONCATENATE($B153,"!O19"))),"",INDIRECT(CONCATENATE($B153,"!O19"))) ->  | Q153: =IF(ISERROR(INDIRECT(CONCATENATE($B153,"!O20"))),"",INDIRECT(CONCATENATE($B153,"!O20"))) ->  | R153: =IF(ISERROR(INDIRECT(CONCATENATE($B153,"!O21"))),"",INDIRECT(CONCATENATE($B153,"!O21"))) ->  | T153: =IF(ISERROR(INDIRECT(CONCATENATE($B153,"!P18"))),"",INDIRECT(CONCATENATE($B153,"!P18"))) ->  | U153: =IF(ISERROR(INDIRECT(CONCATENATE($B153,"!P19"))),"",INDIRECT(CONCATENATE($B153,"!P19"))) ->  | V153: =IF(ISERROR(INDIRECT(CONCATENATE($B153,"!P20"))),"",INDIRECT(CONCATENATE($B153,"!P20"))) ->  | W153: =IF(ISERROR(INDIRECT(CONCATENATE($B153,"!P21"))),"",INDIRECT(CONCATENATE($B153,"!P21"))) ->  | Y153: =IF(ISERROR(INDIRECT(CONCATENATE($B153,"!Q18"))),"",INDIRECT(CONCATENATE($B153,"!Q18"))) ->  | Z153: =IF(ISERROR(INDIRECT(CONCATENATE($B153,"!Q19"))),"",INDIRECT(CONCATENATE($B153,"!Q19"))) ->  | AA153: =IF(ISERROR(INDIRECT(CONCATENATE($B153,"!Q20"))),"",INDIRECT(CONCATENATE($B153,"!Q20"))) ->  | AB153: =IF(ISERROR(INDIRECT(CONCATENATE($B153,"!Q21"))),"",INDIRECT(CONCATENATE($B153,"!Q1"))) -> 
A197: URBAN | D197: Poorest | I197: Poor | N197: Middle | S197: Rich | X197: Richest
D198: Improved | E198: Basic | F198: Limited | G198: Unimproved | H198: Surface water | I198: Improved | J198: Basic | K198: Limited | L198: Unimproved | M198: Surface water | N198: Improved | O198: Basic | P198: Limited | Q198: Unimproved | R198: Surface water | S198: Improved | T198: Basic | U198: Limited | V198: Unimproved | W198: Surface water | X198: Improved | Y198: Basic | Z198: Limited | AA198: Unimproved | AB198: Surface water
A199: Forecast period: | C199: =MinBase(C205:C216) -> 2000 | D199: =IF((D201+H201)>100,D201*100/(D201+H201),D201) -> 98.40290676 | E199: =D199*AVERAGEIF(E205:E216,">0")/100 -> 98.27778311 | F199: =D199*(100-AVERAGEIF(E205:E216,">0"))/100 -> 0.1251236561 | G199: =100-(E199+F199+H199) -> 1.100118718 | H199: =IF((D201+H201)>100,H201*100/(D201+H201),H201) -> 0.4969745203 | I199: =IF((I201+M201)>100,I201*100/(I201+M201),I201) -> 99.6093064 | J199: =I199*AVERAGEIF(J205:J216,">0")/100 -> 99.54053685 | K199: =I199*(100-AVERAGEIF(J205:J216,">0"))/100 -> 0.06876955028 | L199: =100-(J199+K199+M199) -> 0.2792186798 | M199: =IF((I201+M201)>100,M201*100/(I201+M201),M201) -> 0.1114749174 | N199: =IF((N201+R201)>100,N201*100/(N201+R201),N201) -> 99.66674533 | O199: =N199*AVERAGEIF(O205:O216,">0")/100 -> 99.59991347 | P199: =N199*(100-AVERAGEIF(O205:O216,">0"))/100 -> 0.0668318673 | Q199: =100-(O199+P199+R199) -> 0.3310321458 | R199: =IF((N201+R201)>100,R201*100/(N201+R201),R201) -> 0.00222252162 | S199: =IF((S201+W201)>100,S201*100/(S201+W201),S201) -> 99.85366458 | T199: =S199*AVERAGEIF(T205:T216,">0")/100 -> 99.85366458 | U199: =S199*(100-AVERAGEIF(T205:T216,">0"))/100 -> 0 | V199: =100-(T199+U199+W199) -> 0.1463354229 | W199: =IF((S201+W201)>100,W201*100/(S201+W201),W201) -> 0 | X199: =IF((X201+AB201)>100,X201*100/(X201+AB201),X201) -> 99.99009849 | Y199: =X199*AVERAGEIF(Y205:Y216,">0")/100 -> 99.99009849 | Z199: =X199*(100-AVERAGEIF(Y205:Y216,">0"))/100 -> 0 | AA199: =100-(Y199+Z199+AB199) -> 0 | AB199: =IF((X201+AB201)>100,AB201*100/(X201+AB201),AB201) -> 0.009901510762
C200: =MaxTarget(C205:C216) -> 2020 | D200: =IF((D202+H202)>100,D202*100/(D202+H202),D202) -> 99.09652867 | E200: =D200*AVERAGEIF(E205:E216,">0")/100 -> 98.97052304 | F200: =D200*(100-AVERAGEIF(E205:E216,">0"))/100 -> 0.1260056271 | G200: =100-(E200+F200+H200) -> 0.8261348042 | H200: =IF((D202+H202)>100,H202*100/(D202+H202),H202) -> 0.07733652931 | I200: =IF((I202+M202)>100,I202*100/(I202+M202),I202) -> 99.76959704 | J200: =I200*AVERAGEIF(J205:J216,">0")/100 -> 99.70071682 | K200: =I200*(100-AVERAGEIF(J205:J216,">0"))/100 -> 0.06888021378 | L200: =100-(J200+K200+M200) -> 0.1878227599 | M200: =IF((I202+M202)>100,M202*100/(I202+M202),M202) -> 0.04258020381 | N200: =IF((N202+R202)>100,N202*100/(N202+R202),N202) -> 99.97302125 | O200: =N200*AVERAGEIF(O205:O216,">0")/100 -> 99.90598401 | P200: =N200*(100-AVERAGEIF(O205:O216,">0"))/100 -> 0.06703724164 | Q200: =100-(O200+P200+R200) -> 0 | R200: =IF((N202+R202)>100,R202*100/(N202+R202),R202) -> 0.02697874632 | S200: =IF((S202+W202)>100,S202*100/(S202+W202),S202) -> 99.96094036 | T200: =S200*AVERAGEIF(T205:T216,">0")/100 -> 99.96094036 | U200: =S200*(100-AVERAGEIF(T205:T216,">0"))/100 -> 0 | V200: =100-(T200+U200+W200) -> 0.0390596448 | W200: =IF((S202+W202)>100,W202*100/(S202+W202),W202) -> 0 | X200: =IF((X202+AB202)>100,X202*100/(X202+AB202),X202) -> 99.70430634 | Y200: =X200*AVERAGEIF(Y205:Y216,">0")/100 -> 99.70430634 | Z200: =X200*(100-AVERAGEIF(Y205:Y216,">0"))/100 -> 0 | AA200: =100-(Y200+Z200+AB200) -> 0.2956936644 | AB200: =IF((X202+AB202)>100,AB202*100/(X202+AB202),AB202) -> 0
A201: Regression period: | C201: =MinRegYear(C199,C205:C216) -> 2001 | D201: =IF(MAX(C205:C216)-MIN(C205:C216)<5,AVERAGEIF(C205:C216,">0",D205:D216), IF(FORECAST($C201,D$205:D$216,$C$205:$C$216)<0,0, IF(FORECAST($C201,D$205:D$216,$C$205:$C$216)>100,100, FORECAST($C201,D$205:D$216,$C$205:$C$216)))) -> 98.40290676 | H201: =IF(MAX(C205:C216)-MIN(C205:C216)<5,AVERAGEIF(C205:C216,">0",H205:H216), IF(FORECAST($C201,H$205:H$216,$C$205:$C$216)<0,0, IF(FORECAST($C201,H$205:H$216,$C$205:$C$216)>100,100, FORECAST($C201,H$205:H$216,$C$205:$C$216)))) -> 0.4969745203 | I201: =IF(MAX(C205:C216)-MIN(C205:C216)<5,AVERAGEIF(C205:C216,">0",I205:I216), IF(FORECAST($C201,I$205:I$216,$C$205:$C$216)<0,0, IF(FORECAST($C201,I$205:I$216,$C$205:$C$216)>100,100, FORECAST($C201,I$205:I$216,$C$205:$C$216)))) -> 99.6093064 | M201: =IF(MAX(C205:C216)-MIN(C205:C216)<5,AVERAGEIF(C205:C216,">0",M205:M216), IF(FORECAST($C201,M$205:M$216,$C$205:$C$216)<0,0, IF(FORECAST($C201,M$205:M$216,$C$205:$C$216)>100,100, FORECAST($C201,M$205:M$216,$C$205:$C$216)))) -> 0.1114749174 | N201: =IF(MAX(C205:C216)-MIN(C205:C216)<5,AVERAGEIF(C205:C216,">0",N205:N216), IF(FORECAST($C201,N$205:N$216,$C$205:$C$216)<0,0, IF(FORECAST($C201,N$205:N$216,$C$205:$C$216)>100,100, FORECAST($C201,N$205:N$216,$C$205:$C$216)))) -> 99.66674533 | R201: =IF(MAX(C205:C216)-MIN(C205:C216)<5,AVERAGEIF(C205:C216,">0",R205:R216), IF(FORECAST($C201,R$205:R$216,$C$205:$C$216)<0,0, IF(FORECAST($C201,R$205:R$216,$C$205:$C$216)>100,100, FORECAST($C201,R$205:R$216,$C$205:$C$216)))) -> 0.00222252162 | S201: =IF(MAX(C205:C216)-MIN(C205:C216)<5,AVERAGEIF(C205:C216,">0",S205:S216), IF(FORECAST($C201,S$205:S$216,$C$205:$C$216)<0,0, IF(FORECAST($C201,S$205:S$216,$C$205:$C$216)>100,100, FORECAST($C201,S$205:S$216,$C$205:$C$216)))) -> 99.85366458 | W201: =IF(MAX(C205:C216)-MIN(C205:C216)<5,AVERAGEIF(C205:C216,">0",W205:W216), IF(FORECAST($C201,W$205:W$216,$C$205:$C$216)<0,0, IF(FORECAST($C201,W$205:W$216,$C$205:$C$216)>100,100, FORECAST($C201,W$205:W$216,$C$205:$C$216)))) -> 0 | X201: =IF(MAX(C205:C216)-MIN(C205:C216)<5,AVERAGEIF(C205:C216,">0",X205:X216), IF(FORECAST($C201,X$205:X$216,$C$205:$C$216)<0,0, IF(FORECAST($C201,X$205:X$216,$C$205:$C$216)>100,100, FORECAST($C201,X$205:X$216,$C$205:$C$216)))) -> 100 | AB201: =IF(MAX(C205:C216)-MIN(C205:C216)<5,AVERAGEIF(C205:C216,">0",AB205:AB216), IF(FORECAST($C201,AB$205:AB$216,$C$205:$C$216)<0,0, IF(FORECAST($C201,AB$205:AB$216,$C$205:$C$216)>100,100, FORECAST($C201,AB$205:AB$216,$C$205:$C$216)))) -> 0.009902491258
C202: =MaxRegYear(C200,C205:C216) -> 2017 | D202: =IF(MAX(C205:C216)-MIN(C205:C216)<5,AVERAGEIF(C205:C216,">0",D205:D216), IF(FORECAST($C202,D$205:D$216,$C$205:$C$216)<0,0, IF(FORECAST($C202,D$205:D$216,$C$205:$C$216)>100,100, FORECAST($C202,D$205:D$216,$C$205:$C$216)))) -> 99.09652867 | H202: =IF(MAX(C205:C216)-MIN(C205:C216)<5,AVERAGEIF(C205:C216,">0",H205:H216), IF(FORECAST($C202,H$205:H$216,$C$205:$C$216)<0,0, IF(FORECAST($C202,H$205:H$216,$C$205:$C$216)>100,100, FORECAST($C202,H$205:H$216,$C$205:$C$216)))) -> 0.07733652931 | I202: =IF(MAX(C205:C216)-MIN(C205:C216)<5,AVERAGEIF(C205:C216,">0",I205:I216), IF(FORECAST($C202,I$205:I$216,$C$205:$C$216)<0,0, IF(FORECAST($C202,I$205:I$216,$C$205:$C$216)>100,100, FORECAST($C202,I$205:I$216,$C$205:$C$216)))) -> 99.76959704 | M202: =IF(MAX(C205:C216)-MIN(C205:C216)<5,AVERAGEIF(C205:C216,">0",M205:M216), IF(FORECAST($C202,M$205:M$216,$C$205:$C$216)<0,0, IF(FORECAST($C202,M$205:M$216,$C$205:$C$216)>100,100, FORECAST($C202,M$205:M$216,$C$205:$C$216)))) -> 0.04258020381 | N202: =IF(MAX(C205:C216)-MIN(C205:C216)<5,AVERAGEIF(C205:C216,">0",N205:N216), IF(FORECAST($C202,N$205:N$216,$C$205:$C$216)<0,0, IF(FORECAST($C202,N$205:N$216,$C$205:$C$216)>100,100, FORECAST($C202,N$205:N$216,$C$205:$C$216)))) -> 100 | R202: =IF(MAX(C205:C216)-MIN(C205:C216)<5,AVERAGEIF(C205:C216,">0",R205:R216), IF(FORECAST($C202,R$205:R$216,$C$205:$C$216)<0,0, IF(FORECAST($C202,R$205:R$216,$C$205:$C$216)>100,100, FORECAST($C202,R$205:R$216,$C$205:$C$216)))) -> 0.02698602681 | S202: =IF(MAX(C205:C216)-MIN(C205:C216)<5,AVERAGEIF(C205:C216,">0",S205:S216), IF(FORECAST($C202,S$205:S$216,$C$205:$C$216)<0,0, IF(FORECAST($C202,S$205:S$216,$C$205:$C$216)>100,100, FORECAST($C202,S$205:S$216,$C$205:$C$216)))) -> 99.96094036 | W202: =IF(MAX(C205:C216)-MIN(C205:C216)<5,AVERAGEIF(C205:C216,">0",W205:W216), IF(FORECAST($C202,W$205:W$216,$C$205:$C$216)<0,0, IF(FORECAST($C202,W$205:W$216,$C$205:$C$216)>100,100, FORECAST($C202,W$205:W$216,$C$205:$C$216)))) -> 0 | X202: =IF(MAX(C205:C216)-MIN(C205:C216)<5,AVERAGEIF(C205:C216,">0",X205:X216), IF(FORECAST($C202,X$205:X$216,$C$205:$C$216)<0,0, IF(FORECAST($C202,X$205:X$216,$C$205:$C$216)>100,100, FORECAST($C202,X$205:X$216,$C$205:$C$216)))) -> 99.70430634 | AB202: =IF(MAX(C205:C216)-MIN(C205:C216)<5,AVERAGEIF(C205:C216,">0",AB205:AB216), IF(FORECAST($C202,AB$205:AB$216,$C$205:$C$216)<0,0, IF(FORECAST($C202,AB$205:AB$216,$C$205:$C$216)>100,100, FORECAST($C202,AB$205:AB$216,$C$205:$C$216)))) -> 0
B204: Survey | C204: Year | D204: Improved | E204: % Improved < = 30min | H204: Surface water | I204: Improved | J204: % Improved < = 30min | M204: Surface water | N204: Improved | O204: % Improved < = 30min | R204: Surface water | S204: Improved | T204: % Improved < = 30min | W204: Surface water | X204: Improved | Y204: % Improved < = 30min | AB204: Surface water
B205: WHS03 | C205: 2003 | D205: =IF(ISERROR(INDIRECT(CONCATENATE($B205,"!H16"))),"",INDIRECT(CONCATENATE($B205,"!H16"))) -> 98.4896095 | E205: =IF(ISERROR(INDIRECT(CONCATENATE($B205,"!H23"))),"",INDIRECT(CONCATENATE($B205,"!H23"))) -> N/A | H205: =IF(ISERROR(INDIRECT(CONCATENATE($B205,"!H21"))),"",INDIRECT(CONCATENATE($B205,"!H21"))) -> 0.4445197714 | I205: =IF(ISERROR(INDIRECT(CONCATENATE($B205,"!I16"))),"",INDIRECT(CONCATENATE($B205,"!I16"))) -> 99.62934273 | J205: =IF(ISERROR(INDIRECT(CONCATENATE($B205,"!I23"))),"",INDIRECT(CONCATENATE($B205,"!I23"))) -> N/A | M205: =IF(ISERROR(INDIRECT(CONCATENATE($B205,"!I21"))),"",INDIRECT(CONCATENATE($B205,"!I21"))) -> 0.1028630782 | N205: =IF(ISERROR(INDIRECT(CONCATENATE($B205,"!J16"))),"",INDIRECT(CONCATENATE($B205,"!J16"))) -> 99.71094176 | O205: =IF(ISERROR(INDIRECT(CONCATENATE($B205,"!J23"))),"",INDIRECT(CONCATENATE($B205,"!J23"))) -> N/A | R205: =IF(ISERROR(INDIRECT(CONCATENATE($B205,"!J21"))),"",INDIRECT(CONCATENATE($B205,"!J21"))) -> 0.005317959769 | S205: =IF(ISERROR(INDIRECT(CONCATENATE($B205,"!K16"))),"",INDIRECT(CONCATENATE($B205,"!K16"))) -> 99.86707405 | T205: =IF(ISERROR(INDIRECT(CONCATENATE($B205,"!K23"))),"",INDIRECT(CONCATENATE($B205,"!K23"))) -> N/A | W205: =IF(ISERROR(INDIRECT(CONCATENATE($B205,"!K21"))),"",INDIRECT(CONCATENATE($B205,"!K21"))) -> 0 | X205: =IF(ISERROR(INDIRECT(CONCATENATE($B205,"!L16"))),"",INDIRECT(CONCATENATE($B205,"!L16"))) -> 99.99151215 | Y205: =IF(ISERROR(INDIRECT(CONCATENATE($B205,"!L23"))),"",INDIRECT(CONCATENATE($B205,"!L23"))) -> N/A | AB205: =IF(ISERROR(INDIRECT(CONCATENATE($B205,"!L221"))),"",INDIRECT(CONCATENATE($B205,"!L21"))) -> 0.00848784965
B206: ENG12 | D206: 98.4125954 | E206: N/A | H206: 0.1297912782 | I206: 99.42632574 | J206: N/A | M206: 0.05119204301 | N206: 100 | O206: N/A | R206: 0.02389058866 | S206: 100 | T206: N/A | W206: 0 | X206: 99.67860349 | Y206: N/A | AB206: 0
B207: MICS15 | C207: 2015 | D207: 99.00982593 | E207: 99.87284557 | H207: 0.1297912782 | I207: 99.74956071 | J207: 99.93096072 | M207: 0.05119204301 | N207: 99.97612033 | O207: 99.93294467 | R207: 0.02389058866 | S207: 99.94753088 | T207: 100 | W207: 0 | X207: 99.74533574 | Y207: 100 | AB207: 0
B218: =CONCATENATE("Urban use of drinking water sources, ",C199,"–",C200) -> Urban use of drinking water sources, 2000–2020 | S218: Data points used for regression
E253: =IF(ISERROR(INDIRECT(CONCATENATE($B253,"!M18"))),"",INDIRECT(CONCATENATE($B253,"!M18"))) ->  | F253: =IF(ISERROR(INDIRECT(CONCATENATE($B253,"!M19"))),"",INDIRECT(CONCATENATE($B253,"!M19"))) ->  | G253: =IF(ISERROR(INDIRECT(CONCATENATE($B253,"!M20"))),"",INDIRECT(CONCATENATE($B253,"!M20"))) ->  | H253: =IF(ISERROR(INDIRECT(CONCATENATE($B253,"!M21"))),"",INDIRECT(CONCATENATE($B253,"!M21"))) ->  | J253: =IF(ISERROR(INDIRECT(CONCATENATE($B253,"!N18"))),"",INDIRECT(CONCATENATE($B253,"!N18"))) ->  | K253: =IF(ISERROR(INDIRECT(CONCATENATE($B253,"!N19"))),"",INDIRECT(CONCATENATE($B253,"!N19"))) ->  | L253: =IF(ISERROR(INDIRECT(CONCATENATE($B253,"!N20"))),"",INDIRECT(CONCATENATE($B253,"!N20"))) ->  | M253: =IF(ISERROR(INDIRECT(CONCATENATE($B253,"!N21"))),"",INDIRECT(CONCATENATE($B253,"!N21"))) ->  | O253: =IF(ISERROR(INDIRECT(CONCATENATE($B253,"!O18"))),"",INDIRECT(CONCATENATE($B253,"!O18"))) ->  | P253: =IF(ISERROR(INDIRECT(CONCATENATE($B253,"!O19"))),"",INDIRECT(CONCATENATE($B253,"!O19"))) ->  | Q253: =IF(ISERROR(INDIRECT(CONCATENATE($B253,"!O20"))),"",INDIRECT(CONCATENATE($B253,"!O20"))) ->  | R253: =IF(ISERROR(INDIRECT(CONCATENATE($B253,"!O21"))),"",INDIRECT(CONCATENATE($B253,"!O21"))) ->  | T253: =IF(ISERROR(INDIRECT(CONCATENATE($B253,"!P18"))),"",INDIRECT(CONCATENATE($B253,"!P18"))) ->  | U253: =IF(ISERROR(INDIRECT(CONCATENATE($B253,"!P19"))),"",INDIRECT(CONCATENATE($B253,"!P19"))) ->  | V253: =IF(ISERROR(INDIRECT(CONCATENATE($B253,"!P20"))),"",INDIRECT(CONCATENATE($B253,"!P20"))) ->  | W253: =IF(ISERROR(INDIRECT(CONCATENATE($B253,"!P21"))),"",INDIRECT(CONCATENATE($B253,"!P21"))) ->  | Y253: =IF(ISERROR(INDIRECT(CONCATENATE($B253,"!Q18"))),"",INDIRECT(CONCATENATE($B253,"!Q18"))) ->  | Z253: =IF(ISERROR(INDIRECT(CONCATENATE($B253,"!Q19"))),"",INDIRECT(CONCATENATE($B253,"!Q19"))) ->  | AA253: =IF(ISERROR(INDIRECT(CONCATENATE($B253,"!Q20"))),"",INDIRECT(CONCATENATE($B253,"!Q20"))) ->  | AB253: =IF(ISERROR(INDIRECT(CONCATENATE($B253,"!Q21"))),"",INDIRECT(CONCATENATE($B253,"!Q1"))) -> 
E254: =IF(ISERROR(INDIRECT(CONCATENATE($B254,"!M18"))),"",INDIRECT(CONCATENATE($B254,"!M18"))) ->  | F254: =IF(ISERROR(INDIRECT(CONCATENATE($B254,"!M19"))),"",INDIRECT(CONCATENATE($B254,"!M19"))) ->  | G254: =IF(ISERROR(INDIRECT(CONCATENATE($B254,"!M20"))),"",INDIRECT(CONCATENATE($B254,"!M20"))) ->  | H254: =IF(ISERROR(INDIRECT(CONCATENATE($B254,"!M21"))),"",INDIRECT(CONCATENATE($B254,"!M21"))) ->  | J254: =IF(ISERROR(INDIRECT(CONCATENATE($B254,"!N18"))),"",INDIRECT(CONCATENATE($B254,"!N18"))) ->  | K254: =IF(ISERROR(INDIRECT(CONCATENATE($B254,"!N19"))),"",INDIRECT(CONCATENATE($B254,"!N19"))) ->  | L254: =IF(ISERROR(INDIRECT(CONCATENATE($B254,"!N20"))),"",INDIRECT(CONCATENATE($B254,"!N20"))) ->  | M254: =IF(ISERROR(INDIRECT(CONCATENATE($B254,"!N21"))),"",INDIRECT(CONCATENATE($B254,"!N21"))) ->  | O254: =IF(ISERROR(INDIRECT(CONCATENATE($B254,"!O18"))),"",INDIRECT(CONCATENATE($B254,"!O18"))) ->  | P254: =IF(ISERROR(INDIRECT(CONCATENATE($B254,"!O19"))),"",INDIRECT(CONCATENATE($B254,"!O19"))) ->  | Q254: =IF(ISERROR(INDIRECT(CONCATENATE($B254,"!O20"))),"",INDIRECT(CONCATENATE($B254,"!O20"))) ->  | R254: =IF(ISERROR(INDIRECT(CONCATENATE($B254,"!O21"))),"",INDIRECT(CONCATENATE($B254,"!O21"))) ->  | T254: =IF(ISERROR(INDIRECT(CONCATENATE($B254,"!P18"))),"",INDIRECT(CONCATENATE($B254,"!P18"))) ->  | U254: =IF(ISERROR(INDIRECT(CONCATENATE($B254,"!P19"))),"",INDIRECT(CONCATENATE($B254,"!P19"))) ->  | V254: =IF(ISERROR(INDIRECT(CONCATENATE($B254,"!P20"))),"",INDIRECT(CONCATENATE($B254,"!P20"))) ->  | W254: =IF(ISERROR(INDIRECT(CONCATENATE($B254,"!P21"))),"",INDIRECT(CONCATENATE($B254,"!P21"))) ->  | Y254: =IF(ISERROR(INDIRECT(CONCATENATE($B254,"!Q18"))),"",INDIRECT(CONCATENATE($B254,"!Q18"))) ->  | Z254: =IF(ISERROR(INDIRECT(CONCATENATE($B254,"!Q19"))),"",INDIRECT(CONCATENATE($B254,"!Q19"))) ->  | AA254: =IF(ISERROR(INDIRECT(CONCATENATE($B254,"!Q20"))),"",INDIRECT(CONCATENATE($B254,"!Q20"))) ->  | AB254: =IF(ISERROR(INDIRECT(CONCATENATE($B254,"!Q21"))),"",INDIRECT(CONCATENATE($B254,"!Q1"))) -> 
E255: =IF(ISERROR(INDIRECT(CONCATENATE($B255,"!M18"))),"",INDIRECT(CONCATENATE($B255,"!M18"))) ->  | F255: =IF(ISERROR(INDIRECT(CONCATENATE($B255,"!M19"))),"",INDIRECT(CONCATENATE($B255,"!M19"))) ->  | G255: =IF(ISERROR(INDIRECT(CONCATENATE($B255,"!M20"))),"",INDIRECT(CONCATENATE($B255,"!M20"))) ->  | H255: =IF(ISERROR(INDIRECT(CONCATENATE($B255,"!M21"))),"",INDIRECT(CONCATENATE($B255,"!M21"))) ->  | J255: =IF(ISERROR(INDIRECT(CONCATENATE($B255,"!N18"))),"",INDIRECT(CONCATENATE($B255,"!N18"))) ->  | K255: =IF(ISERROR(INDIRECT(CONCATENATE($B255,"!N19"))),"",INDIRECT(CONCATENATE($B255,"!N19"))) ->  | L255: =IF(ISERROR(INDIRECT(CONCATENATE($B255,"!N20"))),"",INDIRECT(CONCATENATE($B255,"!N20"))) ->  | M255: =IF(ISERROR(INDIRECT(CONCATENATE($B255,"!N21"))),"",INDIRECT(CONCATENATE($B255,"!N21"))) ->  | O255: =IF(ISERROR(INDIRECT(CONCATENATE($B255,"!O18"))),"",INDIRECT(CONCATENATE($B255,"!O18"))) ->  | P255: =IF(ISERROR(INDIRECT(CONCATENATE($B255,"!O19"))),"",INDIRECT(CONCATENATE($B255,"!O19"))) ->  | Q255: =IF(ISERROR(INDIRECT(CONCATENATE($B255,"!O20"))),"",INDIRECT(CONCATENATE($B255,"!O20"))) ->  | R255: =IF(ISERROR(INDIRECT(CONCATENATE($B255,"!O21"))),"",INDIRECT(CONCATENATE($B255,"!O21"))) ->  | T255: =IF(ISERROR(INDIRECT(CONCATENATE($B255,"!P18"))),"",INDIRECT(CONCATENATE($B255,"!P18"))) ->  | U255: =IF(ISERROR(INDIRECT(CONCATENATE($B255,"!P19"))),"",INDIRECT(CONCATENATE($B255,"!P19"))) ->  | V255: =IF(ISERROR(INDIRECT(CONCATENATE($B255,"!P20"))),"",INDIRECT(CONCATENATE($B255,"!P20"))) ->  | W255: =IF(ISERROR(INDIRECT(CONCATENATE($B255,"!P21"))),"",INDIRECT(CONCATENATE($B255,"!P21"))) ->  | Y255: =IF(ISERROR(INDIRECT(CONCATENATE($B255,"!Q18"))),"",INDIRECT(CONCATENATE($B255,"!Q18"))) ->  | Z255: =IF(ISERROR(INDIRECT(CONCATENATE($B255,"!Q19"))),"",INDIRECT(CONCATENATE($B255,"!Q19"))) ->  | AA255: =IF(ISERROR(INDIRECT(CONCATENATE($B255,"!Q20"))),"",INDIRECT(CONCATENATE($B255,"!Q20"))) ->  | AB255: =IF(ISERROR(INDIRECT(CONCATENATE($B255,"!Q21"))),"",INDIRECT(CONCATENATE($B255,"!Q1"))) -> 
E256: =IF(ISERROR(INDIRECT(CONCATENATE($B256,"!M18"))),"",INDIRECT(CONCATENATE($B256,"!M18"))) ->  | F256: =IF(ISERROR(INDIRECT(CONCATENATE($B256,"!M19"))),"",INDIRECT(CONCATENATE($B256,"!M19"))) ->  | G256: =IF(ISERROR(INDIRECT(CONCATENATE($B256,"!M20"))),"",INDIRECT(CONCATENATE($B256,"!M20"))) ->  | H256: =IF(ISERROR(INDIRECT(CONCATENATE($B256,"!M21"))),"",INDIRECT(CONCATENATE($B256,"!M21"))) ->  | J256: =IF(ISERROR(INDIRECT(CONCATENATE($B256,"!N18"))),"",INDIRECT(CONCATENATE($B256,"!N18"))) ->  | K256: =IF(ISERROR(INDIRECT(CONCATENATE($B256,"!N19"))),"",INDIRECT(CONCATENATE($B256,"!N19"))) ->  | L256: =IF(ISERROR(INDIRECT(CONCATENATE($B256,"!N20"))),"",INDIRECT(CONCATENATE($B256,"!N20"))) ->  | M256: =IF(ISERROR(INDIRECT(CONCATENATE($B256,"!N21"))),"",INDIRECT(CONCATENATE($B256,"!N21"))) ->  | O256: =IF(ISERROR(INDIRECT(CONCATENATE($B256,"!O18"))),"",INDIRECT(CONCATENATE($B256,"!O18"))) ->  | P256: =IF(ISERROR(INDIRECT(CONCATENATE($B256,"!O19"))),"",INDIRECT(CONCATENATE($B256,"!O19"))) ->  | Q256: =IF(ISERROR(INDIRECT(CONCATENATE($B256,"!O20"))),"",INDIRECT(CONCATENATE($B256,"!O20"))) ->  | R256: =IF(ISERROR(INDIRECT(CONCATENATE($B256,"!O21"))),"",INDIRECT(CONCATENATE($B256,"!O21"))) ->  | T256: =IF(ISERROR(INDIRECT(CONCATENATE($B256,"!P18"))),"",INDIRECT(CONCATENATE($B256,"!P18"))) ->  | U256: =IF(ISERROR(INDIRECT(CONCATENATE($B256,"!P19"))),"",INDIRECT(CONCATENATE($B256,"!P19"))) ->  | V256: =IF(ISERROR(INDIRECT(CONCATENATE($B256,"!P20"))),"",INDIRECT(CONCATENATE($B256,"!P20"))) ->  | W256: =IF(ISERROR(INDIRECT(CONCATENATE($B256,"!P21"))),"",INDIRECT(CONCATENATE($B256,"!P21"))) ->  | Y256: =IF(ISERROR(INDIRECT(CONCATENATE($B256,"!Q18"))),"",INDIRECT(CONCATENATE($B256,"!Q18"))) ->  | Z256: =IF(ISERROR(INDIRECT(CONCATENATE($B256,"!Q19"))),"",INDIRECT(CONCATENATE($B256,"!Q19"))) ->  | AA256: =IF(ISERROR(INDIRECT(CONCATENATE($B256,"!Q20"))),"",INDIRECT(CONCATENATE($B256,"!Q20"))) ->  | AB256: =IF(ISERROR(INDIRECT(CONCATENATE($B256,"!Q21"))),"",INDIRECT(CONCATENATE($B256,"!Q1"))) -> 
E257: =IF(ISERROR(INDIRECT(CONCATENATE($B257,"!M18"))),"",INDIRECT(CONCATENATE($B257,"!M18"))) ->  | F257: =IF(ISERROR(INDIRECT(CONCATENATE($B257,"!M19"))),"",INDIRECT(CONCATENATE($B257,"!M19"))) ->  | G257: =IF(ISERROR(INDIRECT(CONCATENATE($B257,"!M20"))),"",INDIRECT(CONCATENATE($B257,"!M20"))) ->  | H257: =IF(ISERROR(INDIRECT(CONCATENATE($B257,"!M21"))),"",INDIRECT(CONCATENATE($B257,"!M21"))) ->  | J257: =IF(ISERROR(INDIRECT(CONCATENATE($B257,"!N18"))),"",INDIRECT(CONCATENATE($B257,"!N18"))) ->  | K257: =IF(ISERROR(INDIRECT(CONCATENATE($B257,"!N19"))),"",INDIRECT(CONCATENATE($B257,"!N19"))) ->  | L257: =IF(ISERROR(INDIRECT(CONCATENATE($B257,"!N20"))),"",INDIRECT(CONCATENATE($B257,"!N20"))) ->  | M257: =IF(ISERROR(INDIRECT(CONCATENATE($B257,"!N21"))),"",INDIRECT(CONCATENATE($B257,"!N21"))) ->  | O257: =IF(ISERROR(INDIRECT(CONCATENATE($B257,"!O18"))),"",INDIRECT(CONCATENATE($B257,"!O18"))) ->  | P257: =IF(ISERROR(INDIRECT(CONCATENATE($B257,"!O19"))),"",INDIRECT(CONCATENATE($B257,"!O19"))) ->  | Q257: =IF(ISERROR(INDIRECT(CONCATENATE($B257,"!O20"))),"",INDIRECT(CONCATENATE($B257,"!O20"))) ->  | R257: =IF(ISERROR(INDIRECT(CONCATENATE($B257,"!O21"))),"",INDIRECT(CONCATENATE($B257,"!O21"))) ->  | T257: =IF(ISERROR(INDIRECT(CONCATENATE($B257,"!P18"))),"",INDIRECT(CONCATENATE($B257,"!P18"))) ->  | U257: =IF(ISERROR(INDIRECT(CONCATENATE($B257,"!P19"))),"",INDIRECT(CONCATENATE($B257,"!P19"))) ->  | V257: =IF(ISERROR(INDIRECT(CONCATENATE($B257,"!P20"))),"",INDIRECT(CONCATENATE($B257,"!P20"))) ->  | W257: =IF(ISERROR(INDIRECT(CONCATENATE($B257,"!P21"))),"",INDIRECT(CONCATENATE($B257,"!P21"))) ->  | Y257: =IF(ISERROR(INDIRECT(CONCATENATE($B257,"!Q18"))),"",INDIRECT(CONCATENATE($B257,"!Q18"))) ->  | Z257: =IF(ISERROR(INDIRECT(CONCATENATE($B257,"!Q19"))),"",INDIRECT(CONCATENATE($B257,"!Q19"))) ->  | AA257: =IF(ISERROR(INDIRECT(CONCATENATE($B257,"!Q20"))),"",INDIRECT(CONCATENATE($B257,"!Q20"))) ->  | AB257: =IF(ISERROR(INDIRECT(CONCATENATE($B257,"!Q21"))),"",INDIRECT(CONCATENATE($B257,"!Q1"))) -> 
A297: RURAL | D297: Poorest | I297: Poor | N297: Middle | S297: Rich | X297: Richest
D298: Improved | E298: Basic | F298: Limited | G298: Unimproved | H298: Surface water | I298: Improved | J298: Basic | K298: Limited | L298: Unimproved | M298: Surface water | N298: Improved | O298: Basic | P298: Limited | Q298: Unimproved | R298: Surface water | S298: Improved | T298: Basic | U298: Limited | V298: Unimproved | W298: Surface water | X298: Improved | Y298: Basic | Z298: Limited | AA298: Unimproved | AB298: Surface water
A299: Forecast period: | C299: 2000 | D299: =IF((D301+H301)>100,D301*100/(D301+H301),D301) -> 70.21010623 | E299: =D299*AVERAGEIF(E305:E316,">0")/100 -> 66.67978119 | F299: =D299*(100-AVERAGEIF(E305:E316,">0"))/100 -> 3.530325044 | G299: =100-(E299+F299+H299) -> 8.334451241 | H299: =IF((D301+H301)>100,H301*100/(D301+H301),H301) -> 21.45544253 | I299: =IF((I301+M301)>100,I301*100/(I301+M301),I301) -> 78.53658992 | J299: =I299*AVERAGEIF(J305:J316,">0")/100 -> 77.93616673 | K299: =I299*(100-AVERAGEIF(J305:J316,">0"))/100 -> 0.6004231884 | L299: =100-(J299+K299+M299) -> 3.639904673 | M299: =IF((I301+M301)>100,M301*100/(I301+M301),M301) -> 17.82350541 | N299: =IF((N301+R301)>100,N301*100/(N301+R301),N301) -> 88.32536545 | O299: =N299*AVERAGEIF(O305:O316,">0")/100 -> 87.06548979 | P299: =N299*(100-AVERAGEIF(O305:O316,">0"))/100 -> 1.259875659 | Q299: =100-(O299+P299+R299) -> 1.901351769 | R299: =IF((N301+R301)>100,R301*100/(N301+R301),R301) -> 9.773282783 | S299: =IF((S301+W301)>100,S301*100/(S301+W301),S301) -> 96.55918718 | T299: =S299*AVERAGEIF(T305:T316,">0")/100 -> 96.06501256 | U299: =S299*(100-AVERAGEIF(T305:T316,">0"))/100 -> 0.4941746151 | V299: =100-(T299+U299+W299) -> 0.87783558 | W299: =IF((S301+W301)>100,W301*100/(S301+W301),W301) -> 2.562977241 | X299: =IF((X301+AB301)>100,X301*100/(X301+AB301),X301) -> 99.38679262 | Y299: =X299*AVERAGEIF(Y305:Y316,">0")/100 -> 99.33998688 | Z299: =X299*(100-AVERAGEIF(Y305:Y316,">0"))/100 -> 0.04680574398 | AA299: =100-(Y299+Z299+AB299) -> 0.4051185454 | AB299: =IF((X301+AB301)>100,AB301*100/(X301+AB301),AB301) -> 0.2080888348
C300: 2020 | D300: =IF((D302+H302)>100,D302*100/(D302+H302),D302) -> 92.33875987 | E300: =D300*AVERAGEIF(E305:E316,">0")/100 -> 87.69575541 | F300: =D300*(100-AVERAGEIF(E305:E316,">0"))/100 -> 4.643004462 | G300: =100-(E300+F300+H300) -> 7.661240131 | H300: =IF((D302+H302)>100,H302*100/(D302+H302),H302) -> 0 | I300: =IF((I302+M302)>100,I302*100/(I302+M302),I302) -> 97.5945861 | J300: =I300*AVERAGEIF(J305:J316,">0")/100 -> 96.84846187 | K300: =I300*(100-AVERAGEIF(J305:J316,">0"))/100 -> 0.7461242285 | L300: =100-(J300+K300+M300) -> 2.405413902 | M300: =IF((I302+M302)>100,M302*100/(I302+M302),M302) -> 0 | N300: =IF((N302+R302)>100,N302*100/(N302+R302),N302) -> 99.64721437 | O300: =N300*AVERAGEIF(O305:O316,">0")/100 -> 98.22584352 | P300: =N300*(100-AVERAGEIF(O305:O316,">0"))/100 -> 1.421370851 | Q300: =100-(O300+P300+R300) -> 0.3527856311 | R300: =IF((N302+R302)>100,R302*100/(N302+R302),R302) -> 0 | S300: =IF((S302+W302)>100,S302*100/(S302+W302),S302) -> 100 | T300: =S300*AVERAGEIF(T305:T316,">0")/100 -> 99.48821585 | U300: =S300*(100-AVERAGEIF(T305:T316,">0"))/100 -> 0.5117841497 | V300: =100-(T300+U300+W300) -> 0 | W300: =IF((S302+W302)>100,W302*100/(S302+W302),W302) -> 0 | X300: =IF((X302+AB302)>100,X302*100/(X302+AB302),X302) -> 99.09403564 | Y300: =X300*AVERAGEIF(Y305:Y316,">0")/100 -> 99.04736776 | Z300: =X300*(100-AVERAGEIF(Y305:Y316,">0"))/100 -> 0.04666787145 | AA300: =100-(Y300+Z300+AB300) -> 0.09548063402 | AB300: =IF((X302+AB302)>100,AB302*100/(X302+AB302),AB302) -> 0.8104837303
A301: Regression period: | C301: =MinRegYear(C299,C305:C316) -> 2001 | D301: =IF(MAX(C305:C316)-MIN(C305:C316)<5,AVERAGEIF(C305:C316,">0",D305:D316), IF(FORECAST($C301,D$305:D$316,$C$305:$C$316)<0,0, IF(FORECAST($C301,D$305:D$316,$C$305:$C$316)>100,100, FORECAST($C301,D$305:D$316,$C$305:$C$316)))) -> 70.21010623 | H301: =IF(MAX(C305:C316)-MIN(C305:C316)<5,AVERAGEIF(C305:C316,">0",H305:H316), IF(FORECAST($C301,H$305:H$316,$C$305:$C$316)<0,0, IF(FORECAST($C301,H$305:H$316,$C$305:$C$316)>100,100, FORECAST($C301,H$305:H$316,$C$305:$C$316)))) -> 21.45544253 | I301: =IF(MAX(C305:C316)-MIN(C305:C316)<5,AVERAGEIF(C305:C316,">0",I305:I316), IF(FORECAST($C301,I$305:I$316,$C$305:$C$316)<0,0, IF(FORECAST($C301,I$305:I$316,$C$305:$C$316)>100,100, FORECAST($C301,I$305:I$316,$C$305:$C$316)))) -> 78.53658992 | M301: =IF(MAX(C305:C316)-MIN(C305:C316)<5,AVERAGEIF(C305:C316,">0",M305:M316), IF(FORECAST($C301,M$305:M$316,$C$305:$C$316)<0,0, IF(FORECAST($C301,M$305:M$316,$C$305:$C$316)>100,100, FORECAST($C301,M$305:M$316,$C$305:$C$316)))) -> 17.82350541 | N301: =IF(MAX(C305:C316)-MIN(C305:C316)<5,AVERAGEIF(C305:C316,">0",N305:N316), IF(FORECAST($C301,N$305:N$316,$C$305:$C$316)<0,0, IF(FORECAST($C301,N$305:N$316,$C$305:$C$316)>100,100, FORECAST($C301,N$305:N$316,$C$305:$C$316)))) -> 88.32536545 | R301: =IF(MAX(C305:C316)-MIN(C305:C316)<5,AVERAGEIF(C305:C316,">0",R305:R316), IF(FORECAST($C301,R$305:R$316,$C$305:$C$316)<0,0, IF(FORECAST($C301,R$305:R$316,$C$305:$C$316)>100,100, FORECAST($C301,R$305:R$316,$C$305:$C$316)))) -> 9.773282783 | S301: =IF(MAX(C305:C316)-MIN(C305:C316)<5,AVERAGEIF(C305:C316,">0",S305:S316), IF(FORECAST($C301,S$305:S$316,$C$305:$C$316)<0,0, IF(FORECAST($C301,S$305:S$316,$C$305:$C$316)>100,100, FORECAST($C301,S$305:S$316,$C$305:$C$316)))) -> 96.55918718 | W301: =IF(MAX(C305:C316)-MIN(C305:C316)<5,AVERAGEIF(C305:C316,">0",W305:W316), IF(FORECAST($C301,W$305:W$316,$C$305:$C$316)<0,0, IF(FORECAST($C301,W$305:W$316,$C$305:$C$316)>100,100, FORECAST($C301,W$305:W$316,$C$305:$C$316)))) -> 2.562977241 | X301: =IF(MAX(C305:C316)-MIN(C305:C316)<5,AVERAGEIF(C305:C316,">0",X305:X316), IF(FORECAST($C301,X$305:X$316,$C$305:$C$316)<0,0, IF(FORECAST($C301,X$305:X$316,$C$305:$C$316)>100,100, FORECAST($C301,X$305:X$316,$C$305:$C$316)))) -> 99.38679262 | AB301: =IF(MAX(C305:C316)-MIN(C305:C316)<5,AVERAGEIF(C305:C316,">0",AB305:AB316), IF(FORECAST($C301,AB$305:AB$316,$C$305:$C$316)<0,0, IF(FORECAST($C301,AB$305:AB$316,$C$305:$C$316)>100,100, FORECAST($C301,AB$305:AB$316,$C$305:$C$316)))) -> 0.2080888348
C302: =MaxRegYear(C300,C305:C316) -> 2017 | D302: =IF(MAX(C305:C316)-MIN(C305:C316)<5,AVERAGEIF(C305:C316,">0",D305:D316), IF(FORECAST($C302,D$305:D$316,$C$305:$C$316)<0,0, IF(FORECAST($C302,D$305:D$316,$C$305:$C$316)>100,100, FORECAST($C302,D$305:D$316,$C$305:$C$316)))) -> 92.33875987 | H302: =IF(MAX(C305:C316)-MIN(C305:C316)<5,AVERAGEIF(C305:C316,">0",H305:H316), IF(FORECAST($C302,H$305:H$316,$C$305:$C$316)<0,0, IF(FORECAST($C302,H$305:H$316,$C$305:$C$316)>100,100, FORECAST($C302,H$305:H$316,$C$305:$C$316)))) -> 0 | I302: =IF(MAX(C305:C316)-MIN(C305:C316)<5,AVERAGEIF(C305:C316,">0",I305:I316), IF(FORECAST($C302,I$305:I$316,$C$305:$C$316)<0,0, IF(FORECAST($C302,I$305:I$316,$C$305:$C$316)>100,100, FORECAST($C302,I$305:I$316,$C$305:$C$316)))) -> 97.5945861 | M302: =IF(MAX(C305:C316)-MIN(C305:C316)<5,AVERAGEIF(C305:C316,">0",M305:M316), IF(FORECAST($C302,M$305:M$316,$C$305:$C$316)<0,0, IF(FORECAST($C302,M$305:M$316,$C$305:$C$316)>100,100, FORECAST($C302,M$305:M$316,$C$305:$C$316)))) -> 0 | N302: =IF(MAX(C305:C316)-MIN(C305:C316)<5,AVERAGEIF(C305:C316,">0",N305:N316), IF(FORECAST($C302,N$305:N$316,$C$305:$C$316)<0,0, IF(FORECAST($C302,N$305:N$316,$C$305:$C$316)>100,100, FORECAST($C302,N$305:N$316,$C$305:$C$316)))) -> 99.64721437 | R302: =IF(MAX(C305:C316)-MIN(C305:C316)<5,AVERAGEIF(C305:C316,">0",R305:R316), IF(FORECAST($C302,R$305:R$316,$C$305:$C$316)<0,0, IF(FORECAST($C302,R$305:R$316,$C$305:$C$316)>100,100, FORECAST($C302,R$305:R$316,$C$305:$C$316)))) -> 0 | S302: =IF(MAX(C305:C316)-MIN(C305:C316)<5,AVERAGEIF(C305:C316,">0",S305:S316), IF(FORECAST($C302,S$305:S$316,$C$305:$C$316)<0,0, IF(FORECAST($C302,S$305:S$316,$C$305:$C$316)>100,100, FORECAST($C302,S$305:S$316,$C$305:$C$316)))) -> 100 | W302: =IF(MAX(C305:C316)-MIN(C305:C316)<5,AVERAGEIF(C305:C316,">0",W305:W316), IF(FORECAST($C302,W$305:W$316,$C$305:$C$316)<0,0, IF(FORECAST($C302,W$305:W$316,$C$305:$C$316)>100,100, FORECAST($C302,W$305:W$316,$C$305:$C$316)))) -> 0 | X302: =IF(MAX(C305:C316)-MIN(C305:C316)<5,AVERAGEIF(C305:C316,">0",X305:X316), IF(FORECAST($C302,X$305:X$316,$C$305:$C$316)<0,0, IF(FORECAST($C302,X$305:X$316,$C$305:$C$316)>100,100, FORECAST($C302,X$305:X$316,$C$305:$C$316)))) -> 99.09403564 | AB302: =IF(MAX(C305:C316)-MIN(C305:C316)<5,AVERAGEIF(C305:C316,">0",AB305:AB316), IF(FORECAST($C302,AB$305:AB$316,$C$305:$C$316)<0,0, IF(FORECAST($C302,AB$305:AB$316,$C$305:$C$316)>100,100, FORECAST($C302,AB$305:AB$316,$C$305:$C$316)))) -> 0.8104837303
B304: Survey | C304: Year | D304: Improved | E304: % Improved < = 30min | H304: Surface water | I304: Improved | J304: % Improved < = 30min | M304: Surface water | N304: Improved | O304: % Improved < = 30min | R304: Surface water | S304: Improved | T304: % Improved < = 30min | W304: Surface water | X304: Improved | Y304: % Improved < = 30min | AB304: Surface water
B305: WHS03 | C305: 2003 | D305: =IF(ISERROR(INDIRECT(CONCATENATE($B305,"!M16"))),"",INDIRECT(CONCATENATE($B305,"!M16"))) -> 72.97618794 | E305: =IF(ISERROR(INDIRECT(CONCATENATE($B305,"!M23"))),"",INDIRECT(CONCATENATE($B305,"!M23"))) -> N/A | H305: =IF(ISERROR(INDIRECT(CONCATENATE($B305,"!M21"))),"",INDIRECT(CONCATENATE($B305,"!M21"))) -> 18.53896194 | I305: =IF(ISERROR(INDIRECT(CONCATENATE($B305,"!N16"))),"",INDIRECT(CONCATENATE($B305,"!N16"))) -> 80.91883944 | J305: =IF(ISERROR(INDIRECT(CONCATENATE($B305,"!N23"))),"",INDIRECT(CONCATENATE($B305,"!N23"))) -> N/A | M305: =IF(ISERROR(INDIRECT(CONCATENATE($B305,"!N21"))),"",INDIRECT(CONCATENATE($B305,"!N21"))) -> 15.31394749 | N305: =IF(ISERROR(INDIRECT(CONCATENATE($B305,"!O16"))),"",INDIRECT(CONCATENATE($B305,"!O16"))) -> 89.74059656 | O305: =IF(ISERROR(INDIRECT(CONCATENATE($B305,"!O23"))),"",INDIRECT(CONCATENATE($B305,"!O23"))) -> N/A | R305: =IF(ISERROR(INDIRECT(CONCATENATE($B305,"!O21"))),"",INDIRECT(CONCATENATE($B305,"!O21"))) -> 8.377099528 | S305: =IF(ISERROR(INDIRECT(CONCATENATE($B305,"!P16"))),"",INDIRECT(CONCATENATE($B305,"!P16"))) -> 97.00824301 | T305: =IF(ISERROR(INDIRECT(CONCATENATE($B305,"!P23"))),"",INDIRECT(CONCATENATE($B305,"!P23"))) -> N/A | W305: =IF(ISERROR(INDIRECT(CONCATENATE($B305,"!P21"))),"",INDIRECT(CONCATENATE($B305,"!P21"))) -> 2.2186411 | X305: =IF(ISERROR(INDIRECT(CONCATENATE($B305,"!Q16"))),"",INDIRECT(CONCATENATE($B305,"!Q16"))) -> 99.350198 | Y305: =IF(ISERROR(INDIRECT(CONCATENATE($B305,"!Q23"))),"",INDIRECT(CONCATENATE($B305,"!Q23"))) -> N/A | AB305: =IF(ISERROR(INDIRECT(CONCATENATE($B305,"!Q221"))),"",INDIRECT(CONCATENATE($B305,"!Q21"))) -> 0.2833881967
B306: ENG12 | D306: 89.60091797 | E306: N/A | H306: 1.040078415 | I306: 94.46265109 | J306: N/A | M306: 0.2565999475 | N306: 98.07812744 | O306: N/A | R306: 0 | S306: 99.3075781 | T306: N/A | W306: 0.1526242491 | X306: 99.51525367 | Y306: N/A | AB306: 0.7351843684
B307: MICS15 | C307: 2015 | D307: 89.57267816 | E307: 94.97177083 | H307: 1.040078415 | I307: 95.21233658 | J307: 99.23548605 | M307: 0.2565999475 | N307: 98.23198325 | O307: 98.573597 | R307: 0 | S307: 99.70257797 | T307: 99.48821585 | W307: 0.1526242491 | X307: 99.13063026 | Y307: 99.95290547 | AB307: 0.7351843684
B318: =CONCATENATE("Rural use of drinking water sources, ",C299,"–",C300) -> Rural use of drinking water sources, 2000–2020 | S318: Data points used for regression

Sheet Sanitation
B4: Summary of trends in use of sanitation facilities by wealth quintile (%)
B5: =IF(ISERROR(INDIRECT(CONCATENATE($B105,"!A2"))),"",INDIRECT(CONCATENATE($B105,"!A2"))) -> Mexico
B7: =B118 -> National use of sanitation facilities, 2000–2020 | J7: =B218 -> Urban use of sanitation facilities, 2000–2020 | R7: =B318 -> Rural use of sanitation facilities, 2000–2020
B31: =IF(ISERROR(INDIRECT(CONCATENATE($B105,"!A2"))),"",INDIRECT(CONCATENATE($B105,"!A2"))) -> Mexico | F31: Poorest | J31: Poor | N31: Middle | R31: Rich | V31: Richest
F32: Basic | G32: Limited | H32: Unimproved | I32: Open defecation | J32: Basic | K32: Limited | L32: Unimproved | M32: Open defecation | N32: Basic | O32: Limited | P32: Unimproved | Q32: Open defecation | R32: Basic | S32: Limited | T32: Unimproved | U32: Open defecation | V32: Basic | W32: Limited | X32: Unimproved | Y32: Open defecation
B33: NATIONAL | D33: Estimate | E33: =C99 -> 2000 | F33: =E99 -> 66.8292419 | G33: =F99 -> 9.175077556 | H33: 5.688287439 | I33: 18.30739311 | J33: =J99 -> 89.66742101 | K33: =K99 -> 6.393910849 | L33: 1.077236603 | M33: 2.861431536 | N33: =O99 -> 96.41558264 | O33: =P99 -> 2.743359358 | P33: 0.2671623635 | Q33: 0.5738956359 | R33: =T99 -> 98.01436251 | S33: =U99 -> 1.583172857 | T33: 0.1293185745 | U33: 0.2731460591 | V33: =Y99 -> 99.57171551 | W33: =Z99 -> 0.3206986552 | X33: 0.04468790232 | Y33: 0.06289793657
E34: =C100 -> 2020 | F34: =E100 -> 80.47180133 | G34: 11.0480831 | H34: 4.014949085 | I34: 4.465166483 | J34: =J100 -> 91.01849154 | K34: 6.490251576 | L34: 1.393611315 | M34: 1.09764557 | N34: =O100 -> 96.75316962 | O34: 2.752964884 | P34: 0.4541956406 | Q34: 0.03966985299 | R34: =T100 -> 98.07692248 | S34: 1.584183354 | T34: 0.3388941681 | U34: 0 | V34: =Y100 -> 99.28021836 | W34: 0.3197598068 | X34: 0.4000218336 | Y34: 0
B36: URBAN | D36: Estimate | E36: =C199 -> 2000 | F36: =E199 -> 81.83638163 | G36: =F199 -> 12.04927143 | H36: 1.104483944 | I36: 5.009862994 | J36: =J199 -> 95.29475955 | K36: =K199 -> 3.890084475 | L36: 0.1177362205 | M36: 0.69741975 | N36: =O199 -> 97.14251966 | O36: =P199 -> 2.599751911 | P36: 0.1264557408 | Q36: 0.1312726843 | R36: =T199 -> 98.45710477 | S36: =U199 -> 1.410713942 | T36: 0.07345095588 | U36: 0.05873033603 | V36: =Y199 -> 99.79892347 | W36: =Z199 -> 0.1944630401 | X36: 0.002941254719 | Y36: 0.003672231509
E37: =C200 -> 2020 | F37: =E200 -> 83.11151596 | G37: 12.23701726 | H37: 1.482025362 | I37: 3.169441414 | J37: =J200 -> 94.95418785 | K37: 3.876181794 | L37: 0.7727364715 | M37: 0.3968938862 | N37: =O200 -> 96.93190895 | O37: 2.594115496 | P37: 0.4244986231 | Q37: 0.04947693314 | R37: =T200 -> 98.40495044 | S37: 1.409966664 | T37: 0.162867397 | U37: 0.02221549804 | V37: =Y200 -> 99.33142122 | W37: 0.1935520893 | X37: 0.4566655308 | Y37: 0.01836115754
B39: RURAL | D39: Estimate | E39: =C299 -> 2000 | F39: =E299 -> 54.39220839 | G39: =F299 -> 5.855266436 | H39: 12.64154086 | I39: 27.11098431 | J39: =J299 -> 64.25524828 | K39: =K299 -> 6.378983355 | L39: 4.586814573 | M39: 24.7789538 | N39: =O299 -> 73.78650858 | O39: =P299 -> 5.822817909 | P39: 5.312552754 | Q39: 15.07812076 | R39: =T299 -> 86.52879806 | S39: =U299 -> 3.200148868 | T39: 2.903911598 | U39: 7.367141475 | V39: =Y299 -> 95.8623368 | W39: =Z299 -> 1.060045686 | X39: 0.4136699403 | Y39: 2.663947576
E40: =C300 -> 2020 | F40: =E300 -> 75.15453439 | G40: 8.090309913 | H40: 8.237181585 | I40: 8.517974111 | J40: =J300 -> 85.33575206 | K40: 8.471764667 | L40: 3.301124242 | M40: 2.891359027 | N40: =O300 -> 87.91353683 | O40: 6.93764384 | P40: 4.10295338 | Q40: 1.045865949 | R40: =T300 -> 95.56564639 | S40: 3.534364304 | T40: 0.8999893087 | U40: 0 | V40: =Y300 -> 98.50455743 | W40: 1.089263361 | X40: 0.4061792069 | Y40: 0
A97: NATIONAL | D97: Poorest | I97: Poor | N97: Middle | S97: Rich | X97: Richest
D98: Improved | E98: Basic | F98: Limited | G98: Unimproved | H98: Open defecation | I98: Improved | J98: Basic | K98: Limited | L98: Unimproved | M98: Open defecation | N98: Improved | O98: Basic | P98: Limited | Q98: Unimproved | R98: Open defecation | S98: Improved | T98: Basic | U98: Limited | V98: Unimproved | W98: Open defecation | X98: Improved | Y98: Basic | Z98: Limited | AA98: Unimproved | AB98: Open defecation
A99: Forecast period: | C99: 2000 | D99: =IF((D101+H101)>100,D101*100/(D101+H101),D101) -> 76.00431945 | E99: =D99*AVERAGEIF(E105:E116,">0")/100 -> 66.8292419 | F99: =D99*(100-AVERAGEIF(E105:E116,">0"))/100 -> 9.175077556 | G99: =100-(E99+F99+H99) -> 5.688287439 | H99: =IF((D101+H101)>100,H101*100/(D101+H101),H101) -> 18.30739311 | I99: =IF((I101+M101)>100,I101*100/(I101+M101),I101) -> 96.06133186 | J99: =I99*AVERAGEIF(J105:J116,">0")/100 -> 89.66742101 | K99: =I99*(100-AVERAGEIF(J105:J116,">0"))/100 -> 6.393910849 | L99: =100-(J99+K99+M99) -> 1.077236603 | M99: =IF((I101+M101)>100,M101*100/(I101+M101),M101) -> 2.861431536 | N99: =IF((N101+R101)>100,N101*100/(N101+R101),N101) -> 99.158942 | O99: =N99*AVERAGEIF(O105:O116,">0")/100 -> 96.41558264 | P99: =N99*(100-AVERAGEIF(O105:O116,">0"))/100 -> 2.743359358 | Q99: =100-(O99+P99+R99) -> 0.2671623635 | R99: =IF((N101+R101)>100,R101*100/(N101+R101),R101) -> 0.5738956359 | S99: =IF((S101+W101)>100,S101*100/(S101+W101),S101) -> 99.59753537 | T99: =S99*AVERAGEIF(T105:T116,">0")/100 -> 98.01436251 | U99: =S99*(100-AVERAGEIF(T105:T116,">0"))/100 -> 1.583172857 | V99: =100-(T99+U99+W99) -> 0.1293185745 | W99: =IF((S101+W101)>100,W101*100/(S101+W101),W101) -> 0.2731460591 | X99: =IF((X101+AB101)>100,X101*100/(X101+AB101),X101) -> 99.89241416 | Y99: =X99*AVERAGEIF(Y105:Y116,">0")/100 -> 99.57171551 | Z99: =X99*(100-AVERAGEIF(Y105:Y116,">0"))/100 -> 0.3206986552 | AA99: =100-(Y99+Z99+AB99) -> 0.04468790232 | AB99: =IF((X101+AB101)>100,AB101*100/(X101+AB101),AB101) -> 0.06289793657
C100: 2020 | D100: =IF((D102+H102)>100,D102*100/(D102+H102),D102) -> 91.51988443 | E100: =D100*AVERAGEIF(E105:E116,">0")/100 -> 80.47180133 | F100: =D100*(100-AVERAGEIF(E105:E116,">0"))/100 -> 11.0480831 | G100: =100-(E100+F100+H100) -> 4.014949085 | H100: =IF((D102+H102)>100,H102*100/(D102+H102),H102) -> 4.465166483 | I100: =IF((I102+M102)>100,I102*100/(I102+M102),I102) -> 97.50874312 | J100: =I100*AVERAGEIF(J105:J116,">0")/100 -> 91.01849154 | K100: =I100*(100-AVERAGEIF(J105:J116,">0"))/100 -> 6.490251576 | L100: =100-(J100+K100+M100) -> 1.393611315 | M100: =IF((I102+M102)>100,M102*100/(I102+M102),M102) -> 1.09764557 | N100: =IF((N102+R102)>100,N102*100/(N102+R102),N102) -> 99.50613451 | O100: =N100*AVERAGEIF(O105:O116,">0")/100 -> 96.75316962 | P100: =N100*(100-AVERAGEIF(O105:O116,">0"))/100 -> 2.752964884 | Q100: =100-(O100+P100+R100) -> 0.4541956406 | R100: =IF((N102+R102)>100,R102*100/(N102+R102),R102) -> 0.03966985299 | S100: =IF((S102+W102)>100,S102*100/(S102+W102),S102) -> 99.66110583 | T100: =S100*AVERAGEIF(T105:T116,">0")/100 -> 98.07692248 | U100: =S100*(100-AVERAGEIF(T105:T116,">0"))/100 -> 1.584183354 | V100: =100-(T100+U100+W100) -> 0.3388941681 | W100: =IF((S102+W102)>100,W102*100/(S102+W102),W102) -> 0 | X100: =IF((X102+AB102)>100,X102*100/(X102+AB102),X102) -> 99.59997817 | Y100: =X100*AVERAGEIF(Y105:Y116,">0")/100 -> 99.28021836 | Z100: =X100*(100-AVERAGEIF(Y105:Y116,">0"))/100 -> 0.3197598068 | AA100: =100-(Y100+Z100+AB100) -> 0.4000218336 | AB100: =IF((X102+AB102)>100,AB102*100/(X102+AB102),AB102) -> 0
A101: Regression period: | C101: =MinRegYear(C99,C105:C116) -> 2001 | D101: =IF(MAX(C105:C116)-MIN(C105:C116)<5,AVERAGEIF(C105:C116,">0",D105:D116), IF(FORECAST($C101,D$105:D$116,$C$105:$C$116)<0,0, IF(FORECAST($C101,D$105:D$116,$C$105:$C$116)>100,100, FORECAST($C101,D$105:D$116,$C$105:$C$116)))) -> 76.00431945 | H101: =IF(MAX(C105:C116)-MIN(C105:C116)<5,AVERAGEIF(C105:C116,">0",H105:H116), IF(FORECAST($C101,H$105:H$116,$C$105:$C$116)<0,0, IF(FORECAST($C101,H$105:H$116,$C$105:$C$116)>100,100, FORECAST($C101,H$105:H$116,$C$105:$C$116)))) -> 18.30739311 | I101: =IF(MAX(C105:C116)-MIN(C105:C116)<5,AVERAGEIF(C105:C116,">0",I105:I116), IF(FORECAST($C101,I$105:I$116,$C$105:$C$116)<0,0, IF(FORECAST($C101,I$105:I$116,$C$105:$C$116)>100,100, FORECAST($C101,I$105:I$116,$C$105:$C$116)))) -> 96.06133186 | M101: =IF(MAX(C105:C116)-MIN(C105:C116)<5,AVERAGEIF(C105:C116,">0",M105:M116), IF(FORECAST($C101,M$105:M$116,$C$105:$C$116)<0,0, IF(FORECAST($C101,M$105:M$116,$C$105:$C$116)>100,100, FORECAST($C101,M$105:M$116,$C$105:$C$116)))) -> 2.861431536 | N101: =IF(MAX(C105:C116)-MIN(C105:C116)<5,AVERAGEIF(C105:C116,">0",N105:N116), IF(FORECAST($C101,N$105:N$116,$C$105:$C$116)<0,0, IF(FORECAST($C101,N$105:N$116,$C$105:$C$116)>100,100, FORECAST($C101,N$105:N$116,$C$105:$C$116)))) -> 99.158942 | R101: =IF(MAX(C105:C116)-MIN(C105:C116)<5,AVERAGEIF(C105:C116,">0",R105:R116), IF(FORECAST($C101,R$105:R$116,$C$105:$C$116)<0,0, IF(FORECAST($C101,R$105:R$116,$C$105:$C$116)>100,100, FORECAST($C101,R$105:R$116,$C$105:$C$116)))) -> 0.5738956359 | S101: =IF(MAX(C105:C116)-MIN(C105:C116)<5,AVERAGEIF(C105:C116,">0",S105:S116), IF(FORECAST($C101,S$105:S$116,$C$105:$C$116)<0,0, IF(FORECAST($C101,S$105:S$116,$C$105:$C$116)>100,100, FORECAST($C101,S$105:S$116,$C$105:$C$116)))) -> 99.59753537 | W101: =IF(MAX(C105:C116)-MIN(C105:C116)<5,AVERAGEIF(C105:C116,">0",W105:W116), IF(FORECAST($C101,W$105:W$116,$C$105:$C$116)<0,0, IF(FORECAST($C101,W$105:W$116,$C$105:$C$116)>100,100, FORECAST($C101,W$105:W$116,$C$105:$C$116)))) -> 0.2731460591 | X101: =IF(MAX(C105:C116)-MIN(C105:C116)<5,AVERAGEIF(C105:C116,">0",X105:X116), IF(FORECAST($C101,X$105:X$116,$C$105:$C$116)<0,0, IF(FORECAST($C101,X$105:X$116,$C$105:$C$116)>100,100, FORECAST($C101,X$105:X$116,$C$105:$C$116)))) -> 99.89241416 | AB101: =IF(MAX(C105:C116)-MIN(C105:C116)<5,AVERAGEIF(C105:C116,">0",AB105:AB116), IF(FORECAST($C101,AB$105:AB$116,$C$105:$C$116)<0,0, IF(FORECAST($C101,AB$105:AB$116,$C$105:$C$116)>100,100, FORECAST($C101,AB$105:AB$116,$C$105:$C$116)))) -> 0.06289793657
C102: =MaxRegYear(C100,C105:C116) -> 2017 | D102: =IF(MAX(C105:C116)-MIN(C105:C116)<5,AVERAGEIF(C105:C116,">0",D105:D116), IF(FORECAST($C102,D$105:D$116,$C$105:$C$116)<0,0, IF(FORECAST($C102,D$105:D$116,$C$105:$C$116)>100,100, FORECAST($C102,D$105:D$116,$C$105:$C$116)))) -> 91.51988443 | H102: =IF(MAX(C105:C116)-MIN(C105:C116)<5,AVERAGEIF(C105:C116,">0",H105:H116), IF(FORECAST($C102,H$105:H$116,$C$105:$C$116)<0,0, IF(FORECAST($C102,H$105:H$116,$C$105:$C$116)>100,100, FORECAST($C102,H$105:H$116,$C$105:$C$116)))) -> 4.465166483 | I102: =IF(MAX(C105:C116)-MIN(C105:C116)<5,AVERAGEIF(C105:C116,">0",I105:I116), IF(FORECAST($C102,I$105:I$116,$C$105:$C$116)<0,0, IF(FORECAST($C102,I$105:I$116,$C$105:$C$116)>100,100, FORECAST($C102,I$105:I$116,$C$105:$C$116)))) -> 97.50874312 | M102: =IF(MAX(C105:C116)-MIN(C105:C116)<5,AVERAGEIF(C105:C116,">0",M105:M116), IF(FORECAST($C102,M$105:M$116,$C$105:$C$116)<0,0, IF(FORECAST($C102,M$105:M$116,$C$105:$C$116)>100,100, FORECAST($C102,M$105:M$116,$C$105:$C$116)))) -> 1.09764557 | N102: =IF(MAX(C105:C116)-MIN(C105:C116)<5,AVERAGEIF(C105:C116,">0",N105:N116), IF(FORECAST($C102,N$105:N$116,$C$105:$C$116)<0,0, IF(FORECAST($C102,N$105:N$116,$C$105:$C$116)>100,100, FORECAST($C102,N$105:N$116,$C$105:$C$116)))) -> 99.50613451 | R102: =IF(MAX(C105:C116)-MIN(C105:C116)<5,AVERAGEIF(C105:C116,">0",R105:R116), IF(FORECAST($C102,R$105:R$116,$C$105:$C$116)<0,0, IF(FORECAST($C102,R$105:R$116,$C$105:$C$116)>100,100, FORECAST($C102,R$105:R$116,$C$105:$C$116)))) -> 0.03966985299 | S102: =IF(MAX(C105:C116)-MIN(C105:C116)<5,AVERAGEIF(C105:C116,">0",S105:S116), IF(FORECAST($C102,S$105:S$116,$C$105:$C$116)<0,0, IF(FORECAST($C102,S$105:S$116,$C$105:$C$116)>100,100, FORECAST($C102,S$105:S$116,$C$105:$C$116)))) -> 99.66110583 | W102: =IF(MAX(C105:C116)-MIN(C105:C116)<5,AVERAGEIF(C105:C116,">0",W105:W116), IF(FORECAST($C102,W$105:W$116,$C$105:$C$116)<0,0, IF(FORECAST($C102,W$105:W$116,$C$105:$C$116)>100,100, FORECAST($C102,W$105:W$116,$C$105:$C$116)))) -> 0 | X102: =IF(MAX(C105:C116)-MIN(C105:C116)<5,AVERAGEIF(C105:C116,">0",X105:X116), IF(FORECAST($C102,X$105:X$116,$C$105:$C$116)<0,0, IF(FORECAST($C102,X$105:X$116,$C$105:$C$116)>100,100, FORECAST($C102,X$105:X$116,$C$105:$C$116)))) -> 99.59997817 | AB102: =IF(MAX(C105:C116)-MIN(C105:C116)<5,AVERAGEIF(C105:C116,">0",AB105:AB116), IF(FORECAST($C102,AB$105:AB$116,$C$105:$C$116)<0,0, IF(FORECAST($C102,AB$105:AB$116,$C$105:$C$116)>100,100, FORECAST($C102,AB$105:AB$116,$C$105:$C$116)))) -> 0
B104: Survey | C104: Year | D104: Improved | E104: Not shared | H104: Open defecation | I104: Improved | J104: Not shared | M104: Open defecation | N104: Improved | O104: Not shared | R104: Open defecation | S104: Improved | T104: Not shared | W104: Open defecation | X104: Improved | Y104: Not shared | AB104: Open defecation
B105: WHS03 | C105: 2003 | D105: =IF(ISERROR(INDIRECT(CONCATENATE($B105,"!C122"))),"",INDIRECT(CONCATENATE($B105,"!C122"))) -> 78.68766497 | E105: =IF(ISERROR(INDIRECT(CONCATENATE($B105,"!C129"))),"",INDIRECT(CONCATENATE($B105,"!C129"))) -> N/A | H105: =IF(ISERROR(INDIRECT(CONCATENATE($B105,"!C127"))),"",INDIRECT(CONCATENATE($B105,"!C127"))) -> 15.7140457 | I105: =IF(ISERROR(INDIRECT(CONCATENATE($B105,"!D122"))),"",INDIRECT(CONCATENATE($B105,"!D122"))) -> 96.45722705 | J105: =IF(ISERROR(INDIRECT(CONCATENATE($B105,"!D129"))),"",INDIRECT(CONCATENATE($B105,"!D129"))) -> N/A | M105: =IF(ISERROR(INDIRECT(CONCATENATE($B105,"!D127"))),"",INDIRECT(CONCATENATE($B105,"!D127"))) -> 2.3161601 | N105: =IF(ISERROR(INDIRECT(CONCATENATE($B105,"!E122"))),"",INDIRECT(CONCATENATE($B105,"!E122"))) -> 99.30177548 | O105: =IF(ISERROR(INDIRECT(CONCATENATE($B105,"!E129"))),"",INDIRECT(CONCATENATE($B105,"!E129"))) -> N/A | R105: =IF(ISERROR(INDIRECT(CONCATENATE($B105,"!E127"))),"",INDIRECT(CONCATENATE($B105,"!E127"))) -> 0.4743385866 | S105: =IF(ISERROR(INDIRECT(CONCATENATE($B105,"!F122"))),"",INDIRECT(CONCATENATE($B105,"!F122"))) -> 99.71229039 | T105: =IF(ISERROR(INDIRECT(CONCATENATE($B105,"!F129"))),"",INDIRECT(CONCATENATE($B105,"!F129"))) -> N/A | W105: =IF(ISERROR(INDIRECT(CONCATENATE($B105,"!F127"))),"",INDIRECT(CONCATENATE($B105,"!F127"))) -> 0.2305564831 | X105: =IF(ISERROR(INDIRECT(CONCATENATE($B105,"!G122"))),"",INDIRECT(CONCATENATE($B105,"!G122"))) -> 99.87845051 | Y105: =IF(ISERROR(INDIRECT(CONCATENATE($B105,"!G129"))),"",INDIRECT(CONCATENATE($B105,"!G129"))) -> N/A | AB105: =IF(ISERROR(INDIRECT(CONCATENATE($B105,"!G2127"))),"",INDIRECT(CONCATENATE($B105,"!G127"))) -> 0.05263916889
B106: ENG12 | C106: 2012 | D106: 83.6956708 | E106: N/A | H106: 12.24313863 | I106: 96.19655197 | J106: N/A | M106: 2.948021447 | N106: 98.99989919 | O106: N/A | R106: 0.337730716 | S106: 99.2140052 | T106: N/A | W106: 0.09823320216 | X106: 99.60100102 | Y106: N/A | AB106: 0.02764412767
B107: MICS15 | C107: 2015 | D107: 91.81213849 | E107: 87.92821563 | H107: 3.606237567 | I107: 97.97272305 | J107: 93.34392859 | M107: 0.3437242435 | N107: 99.76103869 | O107: 97.23337169 | R107: 0.008111596436 | S107: 99.97358567 | T107: 98.41042968 | W107: 0 | X107: 99.70430521 | Y107: 99.67895595 | AB107: 0
B118: =CONCATENATE("National use of sanitation facilities, ",C99,"–",C100) -> National use of sanitation facilities, 2000–2020 | S118: Data points used for regression
A197: URBAN | D197: Poorest | I197: Poor | N197: Middle | S197: Rich | X197: Richest
D198: Improved | E198: Basic | F198: Limited | G198: Unimproved | H198: Open defecation | I198: Improved | J198: Basic | K198: Limited | L198: Unimproved | M198: Open defecation | N198: Improved | O198: Basic | P198: Limited | Q198: Unimproved | R198: Open defecation | S198: Improved | T198: Basic | U198: Limited | V198: Unimproved | W198: Open defecation | X198: Improved | Y198: Basic | Z198: Limited | AA198: Unimproved | AB198: Open defecation
A199: Forecast period: | C199: 2000 | D199: =IF((D201+H201)>100,D201*100/(D201+H201),D201) -> 93.88565306 | E199: =D199*AVERAGEIF(E205:E216,">0")/100 -> 81.83638163 | F199: =D199*(100-AVERAGEIF(E205:E216,">0"))/100 -> 12.04927143 | G199: =100-(E199+F199+H199) -> 1.104483944 | H199: =IF((D201+H201)>100,H201*100/(D201+H201),H201) -> 5.009862994 | I199: =IF((I201+M201)>100,I201*100/(I201+M201),I201) -> 99.18484403 | J199: =I199*AVERAGEIF(J205:J216,">0")/100 -> 95.29475955 | K199: =I199*(100-AVERAGEIF(J205:J216,">0"))/100 -> 3.890084475 | L199: =100-(J199+K199+M199) -> 0.1177362205 | M199: =IF((I201+M201)>100,M201*100/(I201+M201),M201) -> 0.69741975 | N199: =IF((N201+R201)>100,N201*100/(N201+R201),N201) -> 99.74227157 | O199: =N199*AVERAGEIF(O205:O216,">0")/100 -> 97.14251966 | P199: =N199*(100-AVERAGEIF(O205:O216,">0"))/100 -> 2.599751911 | Q199: =100-(O199+P199+R199) -> 0.1264557408 | R199: =IF((N201+R201)>100,R201*100/(N201+R201),R201) -> 0.1312726843 | S199: =IF((S201+W201)>100,S201*100/(S201+W201),S201) -> 99.86781871 | T199: =S199*AVERAGEIF(T205:T216,">0")/100 -> 98.45710477 | U199: =S199*(100-AVERAGEIF(T205:T216,">0"))/100 -> 1.410713942 | V199: =100-(T199+U199+W199) -> 0.07345095588 | W199: =IF((S201+W201)>100,W201*100/(S201+W201),W201) -> 0.05873033603 | X199: =IF((X201+AB201)>100,X201*100/(X201+AB201),X201) -> 99.99338651 | Y199: =X199*AVERAGEIF(Y205:Y216,">0")/100 -> 99.79892347 | Z199: =X199*(100-AVERAGEIF(Y205:Y216,">0"))/100 -> 0.1944630401 | AA199: =100-(Y199+Z199+AB199) -> 0.002941254719 | AB199: =IF((X201+AB201)>100,AB201*100/(X201+AB201),AB201) -> 0.003672231509
C200: 2020 | D200: =IF((D202+H202)>100,D202*100/(D202+H202),D202) -> 95.34853322 | E200: =D200*AVERAGEIF(E205:E216,">0")/100 -> 83.11151596 | F200: =D200*(100-AVERAGEIF(E205:E216,">0"))/100 -> 12.23701726 | G200: =100-(E200+F200+H200) -> 1.482025362 | H200: =IF((D202+H202)>100,H202*100/(D202+H202),H202) -> 3.169441414 | I200: =IF((I202+M202)>100,I202*100/(I202+M202),I202) -> 98.83036964 | J200: =I200*AVERAGEIF(J205:J216,">0")/100 -> 94.95418785 | K200: =I200*(100-AVERAGEIF(J205:J216,">0"))/100 -> 3.876181794 | L200: =100-(J200+K200+M200) -> 0.7727364715 | M200: =IF((I202+M202)>100,M202*100/(I202+M202),M202) -> 0.3968938862 | N200: =IF((N202+R202)>100,N202*100/(N202+R202),N202) -> 99.52602444 | O200: =N200*AVERAGEIF(O205:O216,">0")/100 -> 96.93190895 | P200: =N200*(100-AVERAGEIF(O205:O216,">0"))/100 -> 2.594115496 | Q200: =100-(O200+P200+R200) -> 0.4244986231 | R200: =IF((N202+R202)>100,R202*100/(N202+R202),R202) -> 0.04947693314 | S200: =IF((S202+W202)>100,S202*100/(S202+W202),S202) -> 99.8149171 | T200: =S200*AVERAGEIF(T205:T216,">0")/100 -> 98.40495044 | U200: =S200*(100-AVERAGEIF(T205:T216,">0"))/100 -> 1.409966664 | V200: =100-(T200+U200+W200) -> 0.162867397 | W200: =IF((S202+W202)>100,W202*100/(S202+W202),W202) -> 0.02221549804 | X200: =IF((X202+AB202)>100,X202*100/(X202+AB202),X202) -> 99.52497331 | Y200: =X200*AVERAGEIF(Y205:Y216,">0")/100 -> 99.33142122 | Z200: =X200*(100-AVERAGEIF(Y205:Y216,">0"))/100 -> 0.1935520893 | AA200: =100-(Y200+Z200+AB200) -> 0.4566655308 | AB200: =IF((X202+AB202)>100,AB202*100/(X202+AB202),AB202) -> 0.01836115754
A201: Regression period: | C201: =MinRegYear(C199,C205:C216) -> 2001 | D201: =IF(MAX(C205:C216)-MIN(C205:C216)<5,AVERAGEIF(C205:C216,">0",D205:D216), IF(FORECAST($C201,D$205:D$216,$C$205:$C$216)<0,0, IF(FORECAST($C201,D$205:D$216,$C$205:$C$216)>100,100, FORECAST($C201,D$205:D$216,$C$205:$C$216)))) -> 93.88565306 | H201: =IF(MAX(C205:C216)-MIN(C205:C216)<5,AVERAGEIF(C205:C216,">0",H205:H216), IF(FORECAST($C201,H$205:H$216,$C$205:$C$216)<0,0, IF(FORECAST($C201,H$205:H$216,$C$205:$C$216)>100,100, FORECAST($C201,H$205:H$216,$C$205:$C$216)))) -> 5.009862994 | I201: =IF(MAX(C205:C216)-MIN(C205:C216)<5,AVERAGEIF(C205:C216,">0",I205:I216), IF(FORECAST($C201,I$205:I$216,$C$205:$C$216)<0,0, IF(FORECAST($C201,I$205:I$216,$C$205:$C$216)>100,100, FORECAST($C201,I$205:I$216,$C$205:$C$216)))) -> 99.18484403 | M201: =IF(MAX(C205:C216)-MIN(C205:C216)<5,AVERAGEIF(C205:C216,">0",M205:M216), IF(FORECAST($C201,M$205:M$216,$C$205:$C$216)<0,0, IF(FORECAST($C201,M$205:M$216,$C$205:$C$216)>100,100, FORECAST($C201,M$205:M$216,$C$205:$C$216)))) -> 0.69741975 | N201: =IF(MAX(C205:C216)-MIN(C205:C216)<5,AVERAGEIF(C205:C216,">0",N205:N216), IF(FORECAST($C201,N$205:N$216,$C$205:$C$216)<0,0, IF(FORECAST($C201,N$205:N$216,$C$205:$C$216)>100,100, FORECAST($C201,N$205:N$216,$C$205:$C$216)))) -> 99.74227157 | R201: =IF(MAX(C205:C216)-MIN(C205:C216)<5,AVERAGEIF(C205:C216,">0",R205:R216), IF(FORECAST($C201,R$205:R$216,$C$205:$C$216)<0,0, IF(FORECAST($C201,R$205:R$216,$C$205:$C$216)>100,100, FORECAST($C201,R$205:R$216,$C$205:$C$216)))) -> 0.1312726843 | S201: =IF(MAX(C205:C216)-MIN(C205:C216)<5,AVERAGEIF(C205:C216,">0",S205:S216), IF(FORECAST($C201,S$205:S$216,$C$205:$C$216)<0,0, IF(FORECAST($C201,S$205:S$216,$C$205:$C$216)>100,100, FORECAST($C201,S$205:S$216,$C$205:$C$216)))) -> 99.86781871 | W201: =IF(MAX(C205:C216)-MIN(C205:C216)<5,AVERAGEIF(C205:C216,">0",W205:W216), IF(FORECAST($C201,W$205:W$216,$C$205:$C$216)<0,0, IF(FORECAST($C201,W$205:W$216,$C$205:$C$216)>100,100, FORECAST($C201,W$205:W$216,$C$205:$C$216)))) -> 0.05873033603 | X201: =IF(MAX(C205:C216)-MIN(C205:C216)<5,AVERAGEIF(C205:C216,">0",X205:X216), IF(FORECAST($C201,X$205:X$216,$C$205:$C$216)<0,0, IF(FORECAST($C201,X$205:X$216,$C$205:$C$216)>100,100, FORECAST($C201,X$205:X$216,$C$205:$C$216)))) -> 99.99338651 | AB201: =IF(MAX(C205:C216)-MIN(C205:C216)<5,AVERAGEIF(C205:C216,">0",AB205:AB216), IF(FORECAST($C201,AB$205:AB$216,$C$205:$C$216)<0,0, IF(FORECAST($C201,AB$205:AB$216,$C$205:$C$216)>100,100, FORECAST($C201,AB$205:AB$216,$C$205:$C$216)))) -> 0.003672231509
C202: =MaxRegYear(C200,C205:C216) -> 2017 | D202: =IF(MAX(C205:C216)-MIN(C205:C216)<5,AVERAGEIF(C205:C216,">0",D205:D216), IF(FORECAST($C202,D$205:D$216,$C$205:$C$216)<0,0, IF(FORECAST($C202,D$205:D$216,$C$205:$C$216)>100,100, FORECAST($C202,D$205:D$216,$C$205:$C$216)))) -> 95.34853322 | H202: =IF(MAX(C205:C216)-MIN(C205:C216)<5,AVERAGEIF(C205:C216,">0",H205:H216), IF(FORECAST($C202,H$205:H$216,$C$205:$C$216)<0,0, IF(FORECAST($C202,H$205:H$216,$C$205:$C$216)>100,100, FORECAST($C202,H$205:H$216,$C$205:$C$216)))) -> 3.169441414 | I202: =IF(MAX(C205:C216)-MIN(C205:C216)<5,AVERAGEIF(C205:C216,">0",I205:I216), IF(FORECAST($C202,I$205:I$216,$C$205:$C$216)<0,0, IF(FORECAST($C202,I$205:I$216,$C$205:$C$216)>100,100, FORECAST($C202,I$205:I$216,$C$205:$C$216)))) -> 98.83036964 | M202: =IF(MAX(C205:C216)-MIN(C205:C216)<5,AVERAGEIF(C205:C216,">0",M205:M216), IF(FORECAST($C202,M$205:M$216,$C$205:$C$216)<0,0, IF(FORECAST($C202,M$205:M$216,$C$205:$C$216)>100,100, FORECAST($C202,M$205:M$216,$C$205:$C$216)))) -> 0.3968938862 | N202: =IF(MAX(C205:C216)-MIN(C205:C216)<5,AVERAGEIF(C205:C216,">0",N205:N216), IF(FORECAST($C202,N$205:N$216,$C$205:$C$216)<0,0, IF(FORECAST($C202,N$205:N$216,$C$205:$C$216)>100,100, FORECAST($C202,N$205:N$216,$C$205:$C$216)))) -> 99.52602444 | R202: =IF(MAX(C205:C216)-MIN(C205:C216)<5,AVERAGEIF(C205:C216,">0",R205:R216), IF(FORECAST($C202,R$205:R$216,$C$205:$C$216)<0,0, IF(FORECAST($C202,R$205:R$216,$C$205:$C$216)>100,100, FORECAST($C202,R$205:R$216,$C$205:$C$216)))) -> 0.04947693314 | S202: =IF(MAX(C205:C216)-MIN(C205:C216)<5,AVERAGEIF(C205:C216,">0",S205:S216), IF(FORECAST($C202,S$205:S$216,$C$205:$C$216)<0,0, IF(FORECAST($C202,S$205:S$216,$C$205:$C$216)>100,100, FORECAST($C202,S$205:S$216,$C$205:$C$216)))) -> 99.8149171 | W202: =IF(MAX(C205:C216)-MIN(C205:C216)<5,AVERAGEIF(C205:C216,">0",W205:W216), IF(FORECAST($C202,W$205:W$216,$C$205:$C$216)<0,0, IF(FORECAST($C202,W$205:W$216,$C$205:$C$216)>100,100, FORECAST($C202,W$205:W$216,$C$205:$C$216)))) -> 0.02221549804 | X202: =IF(MAX(C205:C216)-MIN(C205:C216)<5,AVERAGEIF(C205:C216,">0",X205:X216), IF(FORECAST($C202,X$205:X$216,$C$205:$C$216)<0,0, IF(FORECAST($C202,X$205:X$216,$C$205:$C$216)>100,100, FORECAST($C202,X$205:X$216,$C$205:$C$216)))) -> 99.52497331 | AB202: =IF(MAX(C205:C216)-MIN(C205:C216)<5,AVERAGEIF(C205:C216,">0",AB205:AB216), IF(FORECAST($C202,AB$205:AB$216,$C$205:$C$216)<0,0, IF(FORECAST($C202,AB$205:AB$216,$C$205:$C$216)>100,100, FORECAST($C202,AB$205:AB$216,$C$205:$C$216)))) -> 0.01836115754
B204: Survey | C204: Year | D204: Improved | E204: Not shared | H204: Open defecation | I204: Improved | J204: Not shared | M204: Open defecation | N204: Improved | O204: Not shared | R204: Open defecation | S204: Improved | T204: Not shared | W204: Open defecation | X204: Improved | Y204: Not shared | AB204: Open defecation
B205: WHS03 | C205: 2003 | D205: =IF(ISERROR(INDIRECT(CONCATENATE($B205,"!H122"))),"",INDIRECT(CONCATENATE($B205,"!H122"))) -> 94.65919043 | E205: =IF(ISERROR(INDIRECT(CONCATENATE($B205,"!H129"))),"",INDIRECT(CONCATENATE($B205,"!H129"))) -> N/A | H205: =IF(ISERROR(INDIRECT(CONCATENATE($B205,"!H127"))),"",INDIRECT(CONCATENATE($B205,"!H127"))) -> 3.999131486 | I205: =IF(ISERROR(INDIRECT(CONCATENATE($B205,"!I122"))),"",INDIRECT(CONCATENATE($B205,"!I122"))) -> 99.19360493 | J205: =IF(ISERROR(INDIRECT(CONCATENATE($B205,"!I129"))),"",INDIRECT(CONCATENATE($B205,"!I129"))) -> N/A | M205: =IF(ISERROR(INDIRECT(CONCATENATE($B205,"!I127"))),"",INDIRECT(CONCATENATE($B205,"!I127"))) -> 0.5458985612 | N205: =IF(ISERROR(INDIRECT(CONCATENATE($B205,"!J122"))),"",INDIRECT(CONCATENATE($B205,"!J122"))) -> 99.86422224 | O205: =IF(ISERROR(INDIRECT(CONCATENATE($B205,"!J129"))),"",INDIRECT(CONCATENATE($B205,"!J129"))) -> N/A | R205: =IF(ISERROR(INDIRECT(CONCATENATE($B205,"!J127"))),"",INDIRECT(CONCATENATE($B205,"!J127"))) -> 0.1011477481 | S205: =IF(ISERROR(INDIRECT(CONCATENATE($B205,"!K122"))),"",INDIRECT(CONCATENATE($B205,"!K122"))) -> 99.9100219 | T205: =IF(ISERROR(INDIRECT(CONCATENATE($B205,"!K129"))),"",INDIRECT(CONCATENATE($B205,"!K129"))) -> N/A | W205: =IF(ISERROR(INDIRECT(CONCATENATE($B205,"!K127"))),"",INDIRECT(CONCATENATE($B205,"!K127"))) -> 0.04523936368 | X205: =IF(ISERROR(INDIRECT(CONCATENATE($B205,"!L122"))),"",INDIRECT(CONCATENATE($B205,"!L122"))) -> 99.96220409 | Y205: =IF(ISERROR(INDIRECT(CONCATENATE($B205,"!L129"))),"",INDIRECT(CONCATENATE($B205,"!L129"))) -> N/A | AB205: =IF(ISERROR(INDIRECT(CONCATENATE($B205,"!L2127"))),"",INDIRECT(CONCATENATE($B205,"!L127"))) -> 0
B206: ENG12 | C206: 2012 | D206: 92.52867377 | E206: N/A | H206: 6.867288401 | I206: 98.72886209 | J206: N/A | M206: 0.9466300421 | N206: 98.99767545 | O206: N/A | R206: 0.1546399748 | S206: 99.63618529 | T206: N/A | W206: 0.0693328553 | X206: 99.56187552 | Y206: N/A | AB206: 0.03580425721
B207: MICS15 | C207: 2015 | D207: 96.93770525 | E207: 87.16601415 | H207: 1.057457679 | I207: 99.03388954 | J207: 96.07794466 | M207: 0.09259325157 | N207: 100 | O207: 97.39353048 | R207: 0 | S207: 99.96797748 | T207: 98.58741889 | W207: 0 | X207: 99.66563265 | Y207: 99.8055241 | AB207: 0
B218: =CONCATENATE("Urban use of sanitation facilities, ",C199,"–",C200) -> Urban use of sanitation facilities, 2000–2020 | S218: Data points used for regression
A297: RURAL | D297: Poorest | I297: Poor | N297: Middle | S297: Rich | X297: Richest
D298: Improved | E298: Basic | F298: Limited | G298: Unimproved | H298: Open defecation | I298: Improved | J298: Basic | K298: Limited | L298: Unimproved | M298: Open defecation | N298: Improved | O298: Basic | P298: Limited | Q298: Unimproved | R298: Open defecation | S298: Improved | T298: Basic | U298: Limited | V298: Unimproved | W298: Open defecation | X298: Improved | Y298: Basic | Z298: Limited | AA298: Unimproved | AB298: Open defecation
A299: Forecast period: | C299: 2000 | D299: =IF((D301+H301)>100,D301*100/(D301+H301),D301) -> 60.24747483 | E299: =D299*AVERAGEIF(E305:E316,">0")/100 -> 54.39220839 | F299: =D299*(100-AVERAGEIF(E305:E316,">0"))/100 -> 5.855266436 | G299: =100-(E299+F299+H299) -> 12.64154086 | H299: =IF((D301+H301)>100,H301*100/(D301+H301),H301) -> 27.11098431 | I299: =IF((I301+M301)>100,I301*100/(I301+M301),I301) -> 70.63423163 | J299: =I299*AVERAGEIF(J305:J316,">0")/100 -> 64.25524828 | K299: =I299*(100-AVERAGEIF(J305:J316,">0"))/100 -> 6.378983355 | L299: =100-(J299+K299+M299) -> 4.586814573 | M299: =IF((I301+M301)>100,M301*100/(I301+M301),M301) -> 24.7789538 | N299: =IF((N301+R301)>100,N301*100/(N301+R301),N301) -> 79.60932649 | O299: =N299*AVERAGEIF(O305:O316,">0")/100 -> 73.78650858 | P299: =N299*(100-AVERAGEIF(O305:O316,">0"))/100 -> 5.822817909 | Q299: =100-(O299+P299+R299) -> 5.312552754 | R299: =IF((N301+R301)>100,R301*100/(N301+R301),R301) -> 15.07812076 | S299: =IF((S301+W301)>100,S301*100/(S301+W301),S301) -> 89.72894693 | T299: =S299*AVERAGEIF(T305:T316,">0")/100 -> 86.52879806 | U299: =S299*(100-AVERAGEIF(T305:T316,">0"))/100 -> 3.200148868 | V299: =100-(T299+U299+W299) -> 2.903911598 | W299: =IF((S301+W301)>100,W301*100/(S301+W301),W301) -> 7.367141475 | X299: =IF((X301+AB301)>100,X301*100/(X301+AB301),X301) -> 96.92238248 | Y299: =X299*AVERAGEIF(Y305:Y316,">0")/100 -> 95.8623368 | Z299: =X299*(100-AVERAGEIF(Y305:Y316,">0"))/100 -> 1.060045686 | AA299: =100-(Y299+Z299+AB299) -> 0.4136699403 | AB299: =IF((X301+AB301)>100,AB301*100/(X301+AB301),AB301) -> 2.663947576
C300: 2020 | D300: =IF((D302+H302)>100,D302*100/(D302+H302),D302) -> 83.2448443 | E300: =D300*AVERAGEIF(E305:E316,">0")/100 -> 75.15453439 | F300: =D300*(100-AVERAGEIF(E305:E316,">0"))/100 -> 8.090309913 | G300: =100-(E300+F300+H300) -> 8.237181585 | H300: =IF((D302+H302)>100,H302*100/(D302+H302),H302) -> 8.517974111 | I300: =IF((I302+M302)>100,I302*100/(I302+M302),I302) -> 93.80751673 | J300: =I300*AVERAGEIF(J305:J316,">0")/100 -> 85.33575206 | K300: =I300*(100-AVERAGEIF(J305:J316,">0"))/100 -> 8.471764667 | L300: =100-(J300+K300+M300) -> 3.301124242 | M300: =IF((I302+M302)>100,M302*100/(I302+M302),M302) -> 2.891359027 | N300: =IF((N302+R302)>100,N302*100/(N302+R302),N302) -> 94.85118067 | O300: =N300*AVERAGEIF(O305:O316,">0")/100 -> 87.91353683 | P300: =N300*(100-AVERAGEIF(O305:O316,">0"))/100 -> 6.93764384 | Q300: =100-(O300+P300+R300) -> 4.10295338 | R300: =IF((N302+R302)>100,R302*100/(N302+R302),R302) -> 1.045865949 | S300: =IF((S302+W302)>100,S302*100/(S302+W302),S302) -> 99.10001069 | T300: =S300*AVERAGEIF(T305:T316,">0")/100 -> 95.56564639 | U300: =S300*(100-AVERAGEIF(T305:T316,">0"))/100 -> 3.534364304 | V300: =100-(T300+U300+W300) -> 0.8999893087 | W300: =IF((S302+W302)>100,W302*100/(S302+W302),W302) -> 0 | X300: =IF((X302+AB302)>100,X302*100/(X302+AB302),X302) -> 99.59382079 | Y300: =X300*AVERAGEIF(Y305:Y316,">0")/100 -> 98.50455743 | Z300: =X300*(100-AVERAGEIF(Y305:Y316,">0"))/100 -> 1.089263361 | AA300: =100-(Y300+Z300+AB300) -> 0.4061792069 | AB300: =IF((X302+AB302)>100,AB302*100/(X302+AB302),AB302) -> 0
A301: Regression period: | C301: =MinRegYear(C299,C305:C316) -> 2001 | D301: =IF(MAX(C305:C316)-MIN(C305:C316)<5,AVERAGEIF(C305:C316,">0",D305:D316), IF(FORECAST($C301,D$305:D$316,$C$305:$C$316)<0,0, IF(FORECAST($C301,D$305:D$316,$C$305:$C$316)>100,100, FORECAST($C301,D$305:D$316,$C$305:$C$316)))) -> 60.24747483 | H301: =IF(MAX(C305:C316)-MIN(C305:C316)<5,AVERAGEIF(C305:C316,">0",H305:H316), IF(FORECAST($C301,H$305:H$316,$C$305:$C$316)<0,0, IF(FORECAST($C301,H$305:H$316,$C$305:$C$316)>100,100, FORECAST($C301,H$305:H$316,$C$305:$C$316)))) -> 27.11098431 | I301: =IF(MAX(C305:C316)-MIN(C305:C316)<5,AVERAGEIF(C305:C316,">0",I305:I316), IF(FORECAST($C301,I$305:I$316,$C$305:$C$316)<0,0, IF(FORECAST($C301,I$305:I$316,$C$305:$C$316)>100,100, FORECAST($C301,I$305:I$316,$C$305:$C$316)))) -> 70.63423163 | M301: =IF(MAX(C305:C316)-MIN(C305:C316)<5,AVERAGEIF(C305:C316,">0",M305:M316), IF(FORECAST($C301,M$305:M$316,$C$305:$C$316)<0,0, IF(FORECAST($C301,M$305:M$316,$C$305:$C$316)>100,100, FORECAST($C301,M$305:M$316,$C$305:$C$316)))) -> 24.7789538 | N301: =IF(MAX(C305:C316)-MIN(C305:C316)<5,AVERAGEIF(C305:C316,">0",N305:N316), IF(FORECAST($C301,N$305:N$316,$C$305:$C$316)<0,0, IF(FORECAST($C301,N$305:N$316,$C$305:$C$316)>100,100, FORECAST($C301,N$305:N$316,$C$305:$C$316)))) -> 79.60932649 | R301: =IF(MAX(C305:C316)-MIN(C305:C316)<5,AVERAGEIF(C305:C316,">0",R305:R316), IF(FORECAST($C301,R$305:R$316,$C$305:$C$316)<0,0, IF(FORECAST($C301,R$305:R$316,$C$305:$C$316)>100,100, FORECAST($C301,R$305:R$316,$C$305:$C$316)))) -> 15.07812076 | S301: =IF(MAX(C305:C316)-MIN(C305:C316)<5,AVERAGEIF(C305:C316,">0",S305:S316), IF(FORECAST($C301,S$305:S$316,$C$305:$C$316)<0,0, IF(FORECAST($C301,S$305:S$316,$C$305:$C$316)>100,100, FORECAST($C301,S$305:S$316,$C$305:$C$316)))) -> 89.72894693 | W301: =IF(MAX(C305:C316)-MIN(C305:C316)<5,AVERAGEIF(C305:C316,">0",W305:W316), IF(FORECAST($C301,W$305:W$316,$C$305:$C$316)<0,0, IF(FORECAST($C301,W$305:W$316,$C$305:$C$316)>100,100, FORECAST($C301,W$305:W$316,$C$305:$C$316)))) -> 7.367141475 | X301: =IF(MAX(C305:C316)-MIN(C305:C316)<5,AVERAGEIF(C305:C316,">0",X305:X316), IF(FORECAST($C301,X$305:X$316,$C$305:$C$316)<0,0, IF(FORECAST($C301,X$305:X$316,$C$305:$C$316)>100,100, FORECAST($C301,X$305:X$316,$C$305:$C$316)))) -> 96.92238248 | AB301: =IF(MAX(C305:C316)-MIN(C305:C316)<5,AVERAGEIF(C305:C316,">0",AB305:AB316), IF(FORECAST($C301,AB$305:AB$316,$C$305:$C$316)<0,0, IF(FORECAST($C301,AB$305:AB$316,$C$305:$C$316)>100,100, FORECAST($C301,AB$305:AB$316,$C$305:$C$316)))) -> 2.663947576
C302: =MaxRegYear(C300,C305:C316) -> 2017 | D302: =IF(MAX(C305:C316)-MIN(C305:C316)<5,AVERAGEIF(C305:C316,">0",D305:D316), IF(FORECAST($C302,D$305:D$316,$C$305:$C$316)<0,0, IF(FORECAST($C302,D$305:D$316,$C$305:$C$316)>100,100, FORECAST($C302,D$305:D$316,$C$305:$C$316)))) -> 83.2448443 | H302: =IF(MAX(C305:C316)-MIN(C305:C316)<5,AVERAGEIF(C305:C316,">0",H305:H316), IF(FORECAST($C302,H$305:H$316,$C$305:$C$316)<0,0, IF(FORECAST($C302,H$305:H$316,$C$305:$C$316)>100,100, FORECAST($C302,H$305:H$316,$C$305:$C$316)))) -> 8.517974111 | I302: =IF(MAX(C305:C316)-MIN(C305:C316)<5,AVERAGEIF(C305:C316,">0",I305:I316), IF(FORECAST($C302,I$305:I$316,$C$305:$C$316)<0,0, IF(FORECAST($C302,I$305:I$316,$C$305:$C$316)>100,100, FORECAST($C302,I$305:I$316,$C$305:$C$316)))) -> 93.80751673 | M302: =IF(MAX(C305:C316)-MIN(C305:C316)<5,AVERAGEIF(C305:C316,">0",M305:M316), IF(FORECAST($C302,M$305:M$316,$C$305:$C$316)<0,0, IF(FORECAST($C302,M$305:M$316,$C$305:$C$316)>100,100, FORECAST($C302,M$305:M$316,$C$305:$C$316)))) -> 2.891359027 | N302: =IF(MAX(C305:C316)-MIN(C305:C316)<5,AVERAGEIF(C305:C316,">0",N305:N316), IF(FORECAST($C302,N$305:N$316,$C$305:$C$316)<0,0, IF(FORECAST($C302,N$305:N$316,$C$305:$C$316)>100,100, FORECAST($C302,N$305:N$316,$C$305:$C$316)))) -> 94.85118067 | R302: =IF(MAX(C305:C316)-MIN(C305:C316)<5,AVERAGEIF(C305:C316,">0",R305:R316), IF(FORECAST($C302,R$305:R$316,$C$305:$C$316)<0,0, IF(FORECAST($C302,R$305:R$316,$C$305:$C$316)>100,100, FORECAST($C302,R$305:R$316,$C$305:$C$316)))) -> 1.045865949 | S302: =IF(MAX(C305:C316)-MIN(C305:C316)<5,AVERAGEIF(C305:C316,">0",S305:S316), IF(FORECAST($C302,S$305:S$316,$C$305:$C$316)<0,0, IF(FORECAST($C302,S$305:S$316,$C$305:$C$316)>100,100, FORECAST($C302,S$305:S$316,$C$305:$C$316)))) -> 99.10001069 | W302: =IF(MAX(C305:C316)-MIN(C305:C316)<5,AVERAGEIF(C305:C316,">0",W305:W316), IF(FORECAST($C302,W$305:W$316,$C$305:$C$316)<0,0, IF(FORECAST($C302,W$305:W$316,$C$305:$C$316)>100,100, FORECAST($C302,W$305:W$316,$C$305:$C$316)))) -> 0 | X302: =IF(MAX(C305:C316)-MIN(C305:C316)<5,AVERAGEIF(C305:C316,">0",X305:X316), IF(FORECAST($C302,X$305:X$316,$C$305:$C$316)<0,0, IF(FORECAST($C302,X$305:X$316,$C$305:$C$316)>100,100, FORECAST($C302,X$305:X$316,$C$305:$C$316)))) -> 99.59382079 | AB302: =IF(MAX(C305:C316)-MIN(C305:C316)<5,AVERAGEIF(C305:C316,">0",AB305:AB316), IF(FORECAST($C302,AB$305:AB$316,$C$305:$C$316)<0,0, IF(FORECAST($C302,AB$305:AB$316,$C$305:$C$316)>100,100, FORECAST($C302,AB$305:AB$316,$C$305:$C$316)))) -> 0
B304: Survey | C304: Year | D304: Improved | E304: Not shared | H304: Open defecation | I304: Improved | J304: Not shared | M304: Open defecation | N304: Improved | O304: Not shared | R304: Open defecation | S304: Improved | T304: Not shared | W304: Open defecation | X304: Improved | Y304: Not shared | AB304: Open defecation
B305: WHS03 | C305: 2003 | D305: =IF(ISERROR(INDIRECT(CONCATENATE($B305,"!M122"))),"",INDIRECT(CONCATENATE($B305,"!M122"))) -> 64.32237999 | E305: =IF(ISERROR(INDIRECT(CONCATENATE($B305,"!M129"))),"",INDIRECT(CONCATENATE($B305,"!M129"))) -> N/A | H305: =IF(ISERROR(INDIRECT(CONCATENATE($B305,"!M127"))),"",INDIRECT(CONCATENATE($B305,"!M127"))) -> 23.89348468 | I305: =IF(ISERROR(INDIRECT(CONCATENATE($B305,"!N122"))),"",INDIRECT(CONCATENATE($B305,"!N122"))) -> 74.40718008 | J305: =IF(ISERROR(INDIRECT(CONCATENATE($B305,"!N129"))),"",INDIRECT(CONCATENATE($B305,"!N129"))) -> N/A | M305: =IF(ISERROR(INDIRECT(CONCATENATE($B305,"!N127"))),"",INDIRECT(CONCATENATE($B305,"!N127"))) -> 21.13031612 | N305: =IF(ISERROR(INDIRECT(CONCATENATE($B305,"!O122"))),"",INDIRECT(CONCATENATE($B305,"!O122"))) -> 81.67759516 | O305: =IF(ISERROR(INDIRECT(CONCATENATE($B305,"!O129"))),"",INDIRECT(CONCATENATE($B305,"!O129"))) -> N/A | R305: =IF(ISERROR(INDIRECT(CONCATENATE($B305,"!O127"))),"",INDIRECT(CONCATENATE($B305,"!O127"))) -> 12.86675651 | S305: =IF(ISERROR(INDIRECT(CONCATENATE($B305,"!P122"))),"",INDIRECT(CONCATENATE($B305,"!P122"))) -> 90.76747195 | T305: =IF(ISERROR(INDIRECT(CONCATENATE($B305,"!P129"))),"",INDIRECT(CONCATENATE($B305,"!P129"))) -> N/A | W305: =IF(ISERROR(INDIRECT(CONCATENATE($B305,"!P127"))),"",INDIRECT(CONCATENATE($B305,"!P127"))) -> 6.430179735 | X305: =IF(ISERROR(INDIRECT(CONCATENATE($B305,"!Q122"))),"",INDIRECT(CONCATENATE($B305,"!Q122"))) -> 97.36945577 | Y305: =IF(ISERROR(INDIRECT(CONCATENATE($B305,"!Q129"))),"",INDIRECT(CONCATENATE($B305,"!Q129"))) -> N/A | AB305: =IF(ISERROR(INDIRECT(CONCATENATE($B305,"!Q2127"))),"",INDIRECT(CONCATENATE($B305,"!Q127"))) -> 2.326574886
B306: ENG12 | C306: 2012 | D306: 71.25723043 | E306: N/A | H306: 17.9017832 | I306: 83.06071391 | J306: N/A | M306: 13.38198571 | N306: 89.43595364 | O306: N/A | R306: 7.260275183 | S306: 96.70298507 | T306: N/A | W306: 2.081662199 | X306: 98.30642235 | Y306: N/A | AB306: 0.1732526522
B307: MICS15 | C307: 2015 | D307: 83.97087505 | E307: 90.28130813 | H307: 8.161980332 | I307: 93.53971952 | J307: 90.96899165 | M307: 2.889243382 | N307: 93.4350596 | O307: 92.68575911 | R307: 1.427900596 | S307: 97.53005387 | T307: 96.43353792 | W307: 0.75275047 | X307: 99.59932149 | Y307: 98.90629423 | AB307: 0.03490921792
B318: =CONCATENATE("Rural use of sanitation facilities, ",C299,"–",C300) -> Rural use of sanitation facilities, 2000–2020 | S318: Data points used for regression

Sheet Hygiene
B4: Access to hygiene facilities by wealth quintile (%)
B5: =IF(ISERROR(INDIRECT(CONCATENATE($E$32,"!A2"))),"",INDIRECT(CONCATENATE($E$32,"!A2"))) -> Mexico
B7: =CONCATENATE("National ",IF(ISERROR(INDIRECT(CONCATENATE($E$32,"!A2"))),"",INDIRECT(CONCATENATE($E$32,"!A210")))) -> National Access to hygiene facilities | K7: =CONCATENATE("Urban ",IF(ISERROR(INDIRECT(CONCATENATE($E$32,"!A2"))),"",INDIRECT(CONCATENATE($E$32,"!A210")))) -> Urban Access to hygiene facilities | S7: =CONCATENATE("Rural ",IF(ISERROR(INDIRECT(CONCATENATE($E$32,"!A2"))),"",INDIRECT(CONCATENATE($E$32,"!A210")))) -> Rural Access to hygiene facilities
E32: =INDEX(B88:B100,A88) -> MICS15 | G32: =IF(ISERROR(INDIRECT(CONCATENATE($E$32,"!A2"))),"",INDIRECT(CONCATENATE($E$32,"!A2"))) -> Mexico | K32: Poorest | N32: Poor | Q32: Middle | T32: Rich | W32: Richest
K33: Basic | L33: Limited | M33: No facility | N33: Basic | O33: Limited | P33: No facility | Q33: Basic | R33: Limited | S33: No facility | T33: Basic | U33: Limited | V33: No facility | W33: Basic | X33: Limited | Y33: No facility
B34: >>> Select Survey : | G34: NATIONAL | J34: =IF(ISERROR(INDIRECT(CONCATENATE(#REF!,"!A2"))),"",INDIRECT(CONCATENATE(#REF!,"!A210"))) ->  | K34: =IF(ISERROR(INDIRECT(CONCATENATE($E$32,"!C222"))),"",INDIRECT(CONCATENATE($E$32,"!C222"))) -> 79.60352238 | L34: =IF(ISERROR(INDIRECT(CONCATENATE($E$32,"!C223"))),"",INDIRECT(CONCATENATE($E$32,"!C223"))) -> 14.99105578 | M34: =IF(ISERROR(INDIRECT(CONCATENATE($E$32,"!C224"))),"",INDIRECT(CONCATENATE($E$32,"!C224"))) -> 5.405421835 | N34: =IF(ISERROR(INDIRECT(CONCATENATE($E$32,"!D222"))),"",INDIRECT(CONCATENATE($E$32,"!D222"))) -> 85.58858832 | O34: =IF(ISERROR(INDIRECT(CONCATENATE($E$32,"!D223"))),"",INDIRECT(CONCATENATE($E$32,"!D223"))) -> 9.876027475 | P34: =IF(ISERROR(INDIRECT(CONCATENATE($E$32,"!D224"))),"",INDIRECT(CONCATENATE($E$32,"!D224"))) -> 4.535384208 | Q34: =IF(ISERROR(INDIRECT(CONCATENATE($E$32,"!E222"))),"",INDIRECT(CONCATENATE($E$32,"!E222"))) -> 91.0177743 | R34: =IF(ISERROR(INDIRECT(CONCATENATE($E$32,"!E223"))),"",INDIRECT(CONCATENATE($E$32,"!E223"))) -> 5.742137382 | S34: =IF(ISERROR(INDIRECT(CONCATENATE($E$32,"!E224"))),"",INDIRECT(CONCATENATE($E$32,"!E224"))) -> 3.240088323 | T34: =IF(ISERROR(INDIRECT(CONCATENATE($E$32,"!F222"))),"",INDIRECT(CONCATENATE($E$32,"!F222"))) -> 95.49443771 | U34: =IF(ISERROR(INDIRECT(CONCATENATE($E$32,"!F223"))),"",INDIRECT(CONCATENATE($E$32,"!F223"))) -> 3.37979596 | V34: =IF(ISERROR(INDIRECT(CONCATENATE($E$32,"!F224"))),"",INDIRECT(CONCATENATE($E$32,"!F224"))) -> 1.125766332 | W34: =IF(ISERROR(INDIRECT(CONCATENATE($E$32,"!G222"))),"",INDIRECT(CONCATENATE($E$32,"!G222"))) -> 96.51473073 | X34: =IF(ISERROR(INDIRECT(CONCATENATE($E$32,"!G223"))),"",INDIRECT(CONCATENATE($E$32,"!G223"))) -> 2.709128664 | Y34: =IF(ISERROR(INDIRECT(CONCATENATE($E$32,"!G224"))),"",INDIRECT(CONCATENATE($E$32,"!G224"))) -> 0.7761406099
G37: URBAN | J37: =IF(ISERROR(INDIRECT(CONCATENATE(#REF!,"!A2"))),"",INDIRECT(CONCATENATE(#REF!,"!A210"))) ->  | K37: =IF(ISERROR(INDIRECT(CONCATENATE($E$32,"!H222"))),"",INDIRECT(CONCATENATE($E$32,"!H222"))) -> 83.18914821 | L37: =IF(ISERROR(INDIRECT(CONCATENATE($E$32,"!H223"))),"",INDIRECT(CONCATENATE($E$32,"!H223"))) -> 13.17798421 | M37: =IF(ISERROR(INDIRECT(CONCATENATE($E$32,"!H224"))),"",INDIRECT(CONCATENATE($E$32,"!H224"))) -> 3.632867588 | N37: =IF(ISERROR(INDIRECT(CONCATENATE($E$32,"!I222"))),"",INDIRECT(CONCATENATE($E$32,"!I222"))) -> 87.44891356 | O37: =IF(ISERROR(INDIRECT(CONCATENATE($E$32,"!I223"))),"",INDIRECT(CONCATENATE($E$32,"!I223"))) -> 8.408161529 | P37: =IF(ISERROR(INDIRECT(CONCATENATE($E$32,"!I224"))),"",INDIRECT(CONCATENATE($E$32,"!I224"))) -> 4.142924912 | Q37: =IF(ISERROR(INDIRECT(CONCATENATE($E$32,"!J222"))),"",INDIRECT(CONCATENATE($E$32,"!J222"))) -> 94.14477307 | R37: =IF(ISERROR(INDIRECT(CONCATENATE($E$32,"!J223"))),"",INDIRECT(CONCATENATE($E$32,"!J223"))) -> 4.307278584 | S37: =IF(ISERROR(INDIRECT(CONCATENATE($E$32,"!J224"))),"",INDIRECT(CONCATENATE($E$32,"!J224"))) -> 1.547948345 | T37: =IF(ISERROR(INDIRECT(CONCATENATE($E$32,"!K222"))),"",INDIRECT(CONCATENATE($E$32,"!K222"))) -> 96.59531496 | U37: =IF(ISERROR(INDIRECT(CONCATENATE($E$32,"!K223"))),"",INDIRECT(CONCATENATE($E$32,"!K223"))) -> 2.238616043 | V37: =IF(ISERROR(INDIRECT(CONCATENATE($E$32,"!K224"))),"",INDIRECT(CONCATENATE($E$32,"!K224"))) -> 1.166069001 | W37: =IF(ISERROR(INDIRECT(CONCATENATE($E$32,"!L222"))),"",INDIRECT(CONCATENATE($E$32,"!L222"))) -> 96.13198251 | X37: =IF(ISERROR(INDIRECT(CONCATENATE($E$32,"!L223"))),"",INDIRECT(CONCATENATE($E$32,"!L223"))) -> 2.970620316 | Y37: =IF(ISERROR(INDIRECT(CONCATENATE($E$32,"!L224"))),"",INDIRECT(CONCATENATE($E$32,"!L224"))) -> 0.8973971738
G40: RURAL | J40: =IF(ISERROR(INDIRECT(CONCATENATE(#REF!,"!A2"))),"",INDIRECT(CONCATENATE(#REF!,"!A210"))) ->  | K40: =IF(ISERROR(INDIRECT(CONCATENATE($E$32,"!M222"))),"",INDIRECT(CONCATENATE($E$32,"!M222"))) -> 74.62499595 | L40: =IF(ISERROR(INDIRECT(CONCATENATE($E$32,"!M223"))),"",INDIRECT(CONCATENATE($E$32,"!M223"))) -> 19.59160682 | M40: =IF(ISERROR(INDIRECT(CONCATENATE($E$32,"!M224"))),"",INDIRECT(CONCATENATE($E$32,"!M224"))) -> 5.783397234 | N40: =IF(ISERROR(INDIRECT(CONCATENATE($E$32,"!N222"))),"",INDIRECT(CONCATENATE($E$32,"!N222"))) -> 84.55709244 | O40: =IF(ISERROR(INDIRECT(CONCATENATE($E$32,"!N223"))),"",INDIRECT(CONCATENATE($E$32,"!N223"))) -> 10.32854663 | P40: =IF(ISERROR(INDIRECT(CONCATENATE($E$32,"!N224"))),"",INDIRECT(CONCATENATE($E$32,"!N224"))) -> 5.114360937 | Q40: =IF(ISERROR(INDIRECT(CONCATENATE($E$32,"!O222"))),"",INDIRECT(CONCATENATE($E$32,"!O222"))) -> 81.89164042 | R40: =IF(ISERROR(INDIRECT(CONCATENATE($E$32,"!O223"))),"",INDIRECT(CONCATENATE($E$32,"!O223"))) -> 10.66228604 | S40: =IF(ISERROR(INDIRECT(CONCATENATE($E$32,"!O224"))),"",INDIRECT(CONCATENATE($E$32,"!O224"))) -> 7.446073534 | T40: =IF(ISERROR(INDIRECT(CONCATENATE($E$32,"!P222"))),"",INDIRECT(CONCATENATE($E$32,"!P222"))) -> 85.44108173 | U40: =IF(ISERROR(INDIRECT(CONCATENATE($E$32,"!P223"))),"",INDIRECT(CONCATENATE($E$32,"!P223"))) -> 8.532615002 | V40: =IF(ISERROR(INDIRECT(CONCATENATE($E$32,"!P224"))),"",INDIRECT(CONCATENATE($E$32,"!P224"))) -> 6.026303269 | W40: =IF(ISERROR(INDIRECT(CONCATENATE($E$32,"!Q222"))),"",INDIRECT(CONCATENATE($E$32,"!Q222"))) -> 91.114265 | X40: =IF(ISERROR(INDIRECT(CONCATENATE($E$32,"!Q223"))),"",INDIRECT(CONCATENATE($E$32,"!Q223"))) -> 5.958363338 | Y40: =IF(ISERROR(INDIRECT(CONCATENATE($E$32,"!Q224"))),"",INDIRECT(CONCATENATE($E$32,"!Q224"))) -> 2.927371664
A88: 3 | B88: WHS03
B89: ENG12
B90: MICS15
B91: Template

Sheet WHS03
A2: =A1026 -> Mexico
A3: =A1034 -> 2003
A4: Use of drinking water sources
A5: by wealth quintile and sub-national region
A6: Notes:
A7: WHO/UNICEF JMP customised wealth index excludes water,
A8: sanitation and hygiene assets.
A9: Survey used for analysis: | B9: =A1025 -> WHS03
A10: =B1028 -> 
A11: Time to improved source based on: | B11: MICS15
A14: Use of drinking water sources | C14: NATIONAL wealth index quintile | H14: URBAN wealth index quintile | M14: RURAL wealth index quintile | BA14: Raw numbers of respondents: | BB14: Use of drinking water sources | BC14: NATIONAL wealth index quintile | BH14: URBAN wealth index quintile | BM14: RURAL wealth index quintile
A15: Weighted percentage (used in graphs) | C15: Poorest | D15: Poor | E15: Middle | F15: Rich | G15: Richest | H15: Poorest | I15: Poor | J15: Middle | K15: Rich | L15: Richest | M15: Poorest | N15: Poor | O15: Middle | P15: Rich | Q15: Richest | BA15: Water data, raw numbers (weighted) | BC15: Poorest | BD15: Poor | BE15: Middle | BF15: Rich | BG15: Richest | BH15: Poorest | BI15: Poor | BJ15: Middle | BK15: Rich | BL15: Richest | BM15: Poorest | BN15: Poor | BO15: Middle | BP15: Rich | BQ15: Richest
A16: Water | B16: Improved | C16: =C58+C59+C60+C61+C63+C65 -> 86.43952576 | D16: 98.73929127 | E16: 99.65798337 | F16: 99.7819708 | G16: 99.94398735 | H16: 98.4896095 | I16: 99.62934273 | J16: 99.71094176 | K16: 99.86707405 | L16: 99.99151215 | M16: 72.97618794 | N16: 80.91883944 | O16: 89.74059656 | P16: 97.00824301 | Q16: 99.350198 | BA16: Water | BB16: Improved | BC16: N/A | BD16: N/A | BE16: N/A | BF16: N/A | BG16: N/A | BH16: N/A | BI16: N/A | BJ16: N/A | BK16: N/A | BL16: N/A | BM16: N/A | BN16: N/A | BO16: N/A | BP16: N/A | BQ16: N/A
B17: Not Improved | C17: =100-C16 -> 13.56047424 | D17: =100-D16 -> 1.260708726 | E17: 0.3420166302 | F17: 0.2180292047 | G17: 0.05601265143 | H17: 1.5103905 | I17: 0.370657268 | J17: 0.2890582389 | K17: 0.1329259507 | L17: 0.00848784965 | M17: 27.02381206 | N17: 19.08116056 | O17: 10.25940344 | P17: 2.991756994 | Q17: 0.6498020032 | BB17: Not Improved | BC17: N/A | BD17: N/A | BE17: N/A | BF17: N/A | BG17: N/A | BH17: N/A | BI17: N/A | BJ17: N/A | BK17: N/A | BL17: N/A | BM17: N/A | BN17: N/A | BO17: N/A | BP17: N/A | BQ17: N/A
A18: Water ladder | B18: Basic | C18: =C16*MICS15!C23/100 -> 84.98333795 | D18: =D16*MICS15!D23/100 -> 98.61951098 | E18: =E16*MICS15!E23/100 -> 99.54315005 | F18: =F16*MICS15!F23/100 -> 99.7819708 | G18: =G16*MICS15!G23/100 -> 99.94398735 | H18: =H16*MICS15!H23/100 -> 98.3643756 | I18: =I16*MICS15!I23/100 -> 99.56055935 | J18: =J16*MICS15!J23/100 -> 99.64408026 | K18: =K16*MICS15!K23/100 -> 99.86707405 | L18: =L16*MICS15!L23/100 -> 99.99151215 | M18: =M16*MICS15!M23/100 -> 69.30677797 | N18: =N16*MICS15!N23/100 -> 80.30020362 | O18: =O16*MICS15!O23/100 -> 88.46053401 | P18: =P16*MICS15!P23/100 -> 96.51177019 | Q18: =Q16*MICS15!Q23/100 -> 99.30340949 | BA18: Water ladder | BB18: Basic | BC18: N/A | BD18: N/A | BE18: N/A | BF18: N/A | BG18: N/A | BH18: N/A | BI18: N/A | BJ18: N/A | BK18: N/A | BL18: N/A | BM18: N/A | BN18: N/A | BO18: N/A | BP18: N/A | BQ18: N/A
B19: Limited | C19: =C16*MICS15!C22/100 -> 1.456187812 | D19: =D16*MICS15!D22/100 -> 0.119780294 | E19: =E16*MICS15!E22/100 -> 0.1148333193 | F19: =F16*MICS15!F22/100 -> 0 | G19: =G16*MICS15!G22/100 -> 0 | H19: =H16*MICS15!H22/100 -> 0.1252339025 | I19: =I16*MICS15!I22/100 -> 0.06878338321 | J19: =J16*MICS15!J22/100 -> 0.06686150336 | K19: =K16*MICS15!K22/100 -> 0 | L19: =L16*MICS15!L22/100 -> 0 | M19: =M16*MICS15!M22/100 -> 3.669409971 | N19: =N16*MICS15!N22/100 -> 0.6186358184 | O19: =O16*MICS15!O22/100 -> 1.280062558 | P19: =P16*MICS15!P22/100 -> 0.4964728116 | Q19: =Q16*MICS15!Q22/100 -> 0.04678850992 | BB19: Limited | BC19: N/A | BD19: N/A | BE19: N/A | BF19: N/A | BG19: N/A | BH19: N/A | BI19: N/A | BJ19: N/A | BK19: N/A | BL19: N/A | BM19: N/A | BN19: N/A | BO19: N/A | BP19: N/A | BQ19: N/A
B20: Unimproved | C20: =100-(C18+C19+C21) -> 3.708487744 | D20: =100-(D18+D19+D21) -> 0.5973511933 | E20: 0.2704248542 | F20: 0.2138591157 | G20: 0.03482915766 | H20: 1.065870729 | I20: 0.2677941898 | J20: 0.2837402791 | K20: 0.1329259507 | L20: 0 | M20: 8.484850123 | N20: 3.767213074 | O20: 1.882303908 | P20: 0.7731158949 | Q20: 0.3664138065 | BB20: Unimproved | BC20: N/A | BD20: N/A | BE20: N/A | BF20: N/A | BG20: N/A | BH20: N/A | BI20: N/A | BJ20: N/A | BK20: N/A | BL20: N/A | BM20: N/A | BN20: N/A | BO20: N/A | BP20: N/A | BQ20: N/A
B21: Surface water | C21: =C64 -> 9.851986497 | D21: 0.663357533 | E21: 0.07159177605 | F21: 0.004170089043 | G21: 0.02118349377 | H21: 0.4445197714 | I21: 0.1028630782 | J21: 0.005317959769 | K21: 0 | L21: 0.00848784965 | M21: 18.53896194 | N21: 15.31394749 | O21: 8.377099528 | P21: 2.2186411 | Q21: 0.2833881967 | BB21: Surface water | BC21: N/A | BD21: N/A | BE21: N/A | BF21: N/A | BG21: N/A | BH21: N/A | BI21: N/A | BJ21: N/A | BK21: N/A | BL21: N/A | BM21: N/A | BN21: N/A | BO21: N/A | BP21: N/A | BQ21: N/A
A22: Improved water point at more than 30 minutes | B22: Yes | C22: N/A | D22: N/A | E22: N/A | F22: N/A | G22: N/A | H22: N/A | I22: N/A | J22: N/A | K22: N/A | L22: N/A | M22: N/A | N22: N/A | O22: N/A | P22: N/A | Q22: N/A | BA22: Improved water point at more than 30 minutes | BB22: Yes | BC22: N/A | BD22: N/A | BE22: N/A | BF22: N/A | BG22: N/A | BH22: N/A | BI22: N/A | BJ22: N/A | BK22: N/A | BL22: N/A | BM22: N/A | BN22: N/A | BO22: N/A | BP22: N/A | BQ22: N/A
B23: No | C23: N/A | D23: N/A | E23: N/A | F23: N/A | G23: N/A | H23: N/A | I23: N/A | J23: N/A | K23: N/A | L23: N/A | M23: N/A | N23: N/A | O23: N/A | P23: N/A | Q23: N/A | BB23: No | BC23: N/A | BD23: N/A | BE23: N/A | BF23: N/A | BG23: N/A | BH23: N/A | BI23: N/A | BJ23: N/A | BK23: N/A | BL23: N/A | BM23: N/A | BN23: N/A | BO23: N/A | BP23: N/A | BQ23: N/A
A24: Manually calculated ratios | B24: Improved wells
B25: Improved springs
B26: Other
C27: NATIONAL wealth index quintile | H27: URBAN wealth index quintile | M27: RURAL wealth index quintile | BA27: Raw numbers of respondents: | BB27: Use of drinking water sources | BC27: NATIONAL wealth index quintile | BH27: URBAN wealth index quintile | BM27: RURAL wealth index quintile
A28: Percentage based on weighted population | C28: Poorest | D28: Poor | E28: Middle | F28: Rich | G28: Richest | H28: Poorest | I28: Poor | J28: Middle | K28: Rich | L28: Richest | M28: Poorest | N28: Poor | O28: Middle | P28: Rich | Q28: Richest | BA28: Water data, raw numbers (weighted) | BC28: Poorest | BD28: Poor | BE28: Middle | BF28: Rich | BG28: Richest | BH28: Poorest | BI28: Poor | BJ28: Middle | BK28: Rich | BL28: Richest | BM28: Poorest | BN28: Poor | BO28: Middle | BP28: Rich | BQ28: Richest
A29: Piped water | B29: Yes | C29: 70.37203309 | D29: 93.07701158 | E29: 96.35917989 | F29: 97.92644521 | G29: 98.94561235 | H29: 90.5801501 | I29: 96.23004639 | J29: 97.59388602 | K29: 98.72326044 | L29: 99.63853831 | M29: 51.56270678 | N29: 62.16769688 | O29: 75.61706759 | P29: 87.40417851 | Q29: 91.33053081 | BA29: Piped water | BB29: Yes | BC29: N/A | BD29: N/A | BE29: N/A | BF29: N/A | BG29: N/A | BH29: N/A | BI29: N/A | BJ29: N/A | BK29: N/A | BL29: N/A | BM29: N/A | BN29: N/A | BO29: N/A | BP29: N/A | BQ29: N/A
B30: No | C30: 29.62796691 | D30: 6.922988417 | E30: 3.640820109 | F30: 2.073554792 | G30: 1.054387647 | H30: 9.419849898 | I30: 3.769953611 | J30: 2.406113983 | K30: 1.27673956 | L30: 0.3614616852 | M30: 48.43729322 | N30: 37.83230312 | O30: 24.38293241 | P30: 12.59582149 | Q30: 8.669469188 | BB30: No | BC30: N/A | BD30: N/A | BE30: N/A | BF30: N/A | BG30: N/A | BH30: N/A | BI30: N/A | BJ30: N/A | BK30: N/A | BL30: N/A | BM30: N/A | BN30: N/A | BO30: N/A | BP30: N/A | BQ30: N/A
A31: Piped water on premises | B31: Yes | C31: 68.63808924 | D31: 92.22222538 | E31: 95.50210229 | F31: 96.62541527 | G31: 97.31804574 | H31: 89.21252183 | I31: 95.51011308 | J31: 96.79403311 | K31: 97.10486873 | L31: 97.84472583 | M31: 49.11268736 | N31: 60.06248846 | O31: 74.6566442 | P31: 86.76253306 | Q31: 90.82987025 | BA31: Piped water on premises | BB31: Yes | BC31: N/A | BD31: N/A | BE31: N/A | BF31: N/A | BG31: N/A | BH31: N/A | BI31: N/A | BJ31: N/A | BK31: N/A | BL31: N/A | BM31: N/A | BN31: N/A | BO31: N/A | BP31: N/A | BQ31: N/A
B32: No | C32: 31.36191076 | D32: 7.777774615 | E32: 4.497897715 | F32: 3.374584734 | G32: 2.681954259 | H32: 10.78747817 | I32: 4.489886921 | J32: 3.205966887 | K32: 2.895131266 | L32: 2.155274167 | M32: 50.88731264 | N32: 39.93751154 | O32: 25.3433558 | P32: 13.23746694 | Q32: 9.170129754 | BB32: No | BC32: N/A | BD32: N/A | BE32: N/A | BF32: N/A | BG32: N/A | BH32: N/A | BI32: N/A | BJ32: N/A | BK32: N/A | BL32: N/A | BM32: N/A | BN32: N/A | BO32: N/A | BP32: N/A | BQ32: N/A
A33: Piped water into dwelling | B33: Yes | C33: N/A | D33: N/A | E33: N/A | F33: N/A | G33: N/A | H33: N/A | I33: N/A | J33: N/A | K33: N/A | L33: N/A | M33: N/A | N33: N/A | O33: N/A | P33: N/A | Q33: N/A | BA33: Piped water into dwelling | BB33: Yes | BC33: N/A | BD33: N/A | BE33: N/A | BF33: N/A | BG33: N/A | BH33: N/A | BI33: N/A | BJ33: N/A | BK33: N/A | BL33: N/A | BM33: N/A | BN33: N/A | BO33: N/A | BP33: N/A | BQ33: N/A
B34: No | C34: N/A | D34: N/A | E34: N/A | F34: N/A | G34: N/A | H34: N/A | I34: N/A | J34: N/A | K34: N/A | L34: N/A | M34: N/A | N34: N/A | O34: N/A | P34: N/A | Q34: N/A | BB34: No | BC34: N/A | BD34: N/A | BE34: N/A | BF34: N/A | BG34: N/A | BH34: N/A | BI34: N/A | BJ34: N/A | BK34: N/A | BL34: N/A | BM34: N/A | BN34: N/A | BO34: N/A | BP34: N/A | BQ34: N/A
A35: Water source on premises | B35: Yes | C35: N/A | D35: N/A | E35: N/A | F35: N/A | G35: N/A | H35: N/A | I35: N/A | J35: N/A | K35: N/A | L35: N/A | M35: N/A | N35: N/A | O35: N/A | P35: N/A | Q35: N/A | BA35: Water source on premises | BB35: Yes | BC35: N/A | BD35: N/A | BE35: N/A | BF35: N/A | BG35: N/A | BH35: N/A | BI35: N/A | BJ35: N/A | BK35: N/A | BL35: N/A | BM35: N/A | BN35: N/A | BO35: N/A | BP35: N/A | BQ35: N/A
B36: No | C36: N/A | D36: N/A | E36: N/A | F36: N/A | G36: N/A | H36: N/A | I36: N/A | J36: N/A | K36: N/A | L36: N/A | M36: N/A | N36: N/A | O36: N/A | P36: N/A | Q36: N/A | BB36: No | BC36: N/A | BD36: N/A | BE36: N/A | BF36: N/A | BG36: N/A | BH36: N/A | BI36: N/A | BJ36: N/A | BK36: N/A | BL36: N/A | BM36: N/A | BN36: N/A | BO36: N/A | BP36: N/A | BQ36: N/A
A37: Improved Water source on premises | B37: Yes | C37: N/A | D37: N/A | E37: N/A | F37: N/A | G37: N/A | H37: N/A | I37: N/A | J37: N/A | K37: N/A | L37: N/A | M37: N/A | N37: N/A | O37: N/A | P37: N/A | Q37: N/A | BA37: Improved water source on premises | BB37: Yes | BC37: N/A | BD37: N/A | BE37: N/A | BF37: N/A | BG37: N/A | BH37: N/A | BI37: N/A | BJ37: N/A | BK37: N/A | BL37: N/A | BM37: N/A | BN37: N/A | BO37: N/A | BP37: N/A | BQ37: N/A
B38: No | C38: N/A | D38: N/A | E38: N/A | F38: N/A | G38: N/A | H38: N/A | I38: N/A | J38: N/A | K38: N/A | L38: N/A | M38: N/A | N38: N/A | O38: N/A | P38: N/A | Q38: N/A | BB38: No | BC38: N/A | BD38: N/A | BE38: N/A | BF38: N/A | BG38: N/A | BH38: N/A | BI38: N/A | BJ38: N/A | BK38: N/A | BL38: N/A | BM38: N/A | BN38: N/A | BO38: N/A | BP38: N/A | BQ38: N/A
A39: Piped water on premises available when needed | B39: Yes | C39: N/A | D39: N/A | E39: N/A | F39: N/A | G39: N/A | H39: N/A | I39: N/A | J39: N/A | K39: N/A | L39: N/A | M39: N/A | N39: N/A | O39: N/A | P39: N/A | Q39: N/A | BA39: Piped water on premises available when needed | BB39: Yes | BC39: N/A | BD39: N/A | BE39: N/A | BF39: N/A | BG39: N/A | BH39: N/A | BI39: N/A | BJ39: N/A | BK39: N/A | BL39: N/A | BM39: N/A | BN39: N/A | BO39: N/A | BP39: N/A | BQ39: N/A
B40: No | C40: N/A | D40: N/A | E40: N/A | F40: N/A | G40: N/A | H40: N/A | I40: N/A | J40: N/A | K40: N/A | L40: N/A | M40: N/A | N40: N/A | O40: N/A | P40: N/A | Q40: N/A | BB40: No | BC40: N/A | BD40: N/A | BE40: N/A | BF40: N/A | BG40: N/A | BH40: N/A | BI40: N/A | BJ40: N/A | BK40: N/A | BL40: N/A | BM40: N/A | BN40: N/A | BO40: N/A | BP40: N/A | BQ40: N/A
A41: Water point at more than 30 minutes | B41: Yes | C41: N/A | D41: N/A | E41: N/A | F41: N/A | G41: N/A | H41: N/A | I41: N/A | J41: N/A | K41: N/A | L41: N/A | M41: N/A | N41: N/A | O41: N/A | P41: N/A | Q41: N/A | BA41: Water point at more than 30 minutes | BB41: Yes | BC41: N/A | BD41: N/A | BE41: N/A | BF41: N/A | BG41: N/A | BH41: N/A | BI41: N/A | BJ41: N/A | BK41: N/A | BL41: N/A | BM41: N/A | BN41: N/A | BO41: N/A | BP41: N/A | BQ41: N/A
B42: No | C42: N/A | D42: N/A | E42: N/A | F42: N/A | G42: N/A | H42: N/A | I42: N/A | J42: N/A | K42: N/A | L42: N/A | M42: N/A | N42: N/A | O42: N/A | P42: N/A | Q42: N/A | BB42: No | BC42: N/A | BD42: N/A | BE42: N/A | BF42: N/A | BG42: N/A | BH42: N/A | BI42: N/A | BJ42: N/A | BK42: N/A | BL42: N/A | BM42: N/A | BN42: N/A | BO42: N/A | BP42: N/A | BQ42: N/A
A43: Water source available when needed | B43: Yes | C43: N/A | D43: N/A | E43: N/A | F43: N/A | G43: N/A | H43: N/A | I43: N/A | J43: N/A | K43: N/A | L43: N/A | M43: N/A | N43: N/A | O43: N/A | P43: N/A | Q43: N/A | BA43: Water source available when needed | BB43: Yes | BC43: N/A | BD43: N/A | BE43: N/A | BF43: N/A | BG43: N/A | BH43: N/A | BI43: N/A | BJ43: N/A | BK43: N/A | BL43: N/A | BM43: N/A | BN43: N/A | BO43: N/A | BP43: N/A | BQ43: N/A
B44: No | C44: N/A | D44: N/A | E44: N/A | F44: N/A | G44: N/A | H44: N/A | I44: N/A | J44: N/A | K44: N/A | L44: N/A | M44: N/A | N44: N/A | O44: N/A | P44: N/A | Q44: N/A | BB44: No | BC44: N/A | BD44: N/A | BE44: N/A | BF44: N/A | BG44: N/A | BH44: N/A | BI44: N/A | BJ44: N/A | BK44: N/A | BL44: N/A | BM44: N/A | BN44: N/A | BO44: N/A | BP44: N/A | BQ44: N/A
A45: Improved water source available when needed | B45: Yes | C45: N/A | D45: N/A | E45: N/A | F45: N/A | G45: N/A | H45: N/A | I45: N/A | J45: N/A | K45: N/A | L45: N/A | M45: N/A | N45: N/A | O45: N/A | P45: N/A | Q45: N/A | BA45: Improved water source available when needed | BB45: Yes | BC45: N/A | BD45: N/A | BE45: N/A | BF45: N/A | BG45: N/A | BH45: N/A | BI45: N/A | BJ45: N/A | BK45: N/A | BL45: N/A | BM45: N/A | BN45: N/A | BO45: N/A | BP45: N/A | BQ45: N/A
B46: No | C46: N/A | D46: N/A | E46: N/A | F46: N/A | G46: N/A | H46: N/A | I46: N/A | J46: N/A | K46: N/A | L46: N/A | M46: N/A | N46: N/A | O46: N/A | P46: N/A | Q46: N/A | BB46: No | BC46: N/A | BD46: N/A | BE46: N/A | BF46: N/A | BG46: N/A | BH46: N/A | BI46: N/A | BJ46: N/A | BK46: N/A | BL46: N/A | BM46: N/A | BN46: N/A | BO46: N/A | BP46: N/A | BQ46: N/A
A47: Microbiological quality at point of collection | B47: Not contaminated (No E. coli in 100 mL) | C47: N/A | D47: N/A | E47: N/A | F47: N/A | G47: N/A | H47: N/A | I47: N/A | J47: N/A | K47: N/A | L47: N/A | M47: N/A | N47: N/A | O47: N/A | P47: N/A | Q47: N/A | BA47: Microbiological quality at point of collection | BB47: Not contaminated (No E. coli in 100 mL) | BC47: N/A | BD47: N/A | BE47: N/A | BF47: N/A | BG47: N/A | BH47: N/A | BI47: N/A | BJ47: N/A | BK47: N/A | BL47: N/A | BM47: N/A | BN47: N/A | BO47: N/A | BP47: N/A | BQ47: N/A
B48: Contaminated (E. coli detected in 100 mL) | C48: N/A | D48: N/A | E48: N/A | F48: N/A | G48: N/A | H48: N/A | I48: N/A | J48: N/A | K48: N/A | L48: N/A | M48: N/A | N48: N/A | O48: N/A | P48: N/A | Q48: N/A | BB48: Contaminated (E. coli detected in 100 mL) | BC48: N/A | BD48: N/A | BE48: N/A | BF48: N/A | BG48: N/A | BH48: N/A | BI48: N/A | BJ48: N/A | BK48: N/A | BL48: N/A | BM48: N/A | BN48: N/A | BO48: N/A | BP48: N/A | BQ48: N/A
B49: Highly contaminated (>100 CFU/100 mL) | C49: N/A | D49: N/A | E49: N/A | F49: N/A | G49: N/A | H49: N/A | I49: N/A | J49: N/A | K49: N/A | L49: N/A | M49: N/A | N49: N/A | O49: N/A | P49: N/A | Q49: N/A | BB49: Highly contaminated (>100 CFU/100 mL) | BC49: N/A | BD49: N/A | BE49: N/A | BF49: N/A | BG49: N/A | BH49: N/A | BI49: N/A | BJ49: N/A | BK49: N/A | BL49: N/A | BM49: N/A | BN49: N/A | BO49: N/A | BP49: N/A | BQ49: N/A
A50: Microbiological quality of improved water sources at point of collection | B50: Not contaminated (No E. coli in 100 mL) | C50: N/A | D50: N/A | E50: N/A | F50: N/A | G50: N/A | H50: N/A | I50: N/A | J50: N/A | K50: N/A | L50: N/A | M50: N/A | N50: N/A | O50: N/A | P50: N/A | Q50: N/A | BA50: Microbiological quality of improved water sources at point of collection | BB50: Not contaminated (No E. coli in 100 mL) | BC50: N/A | BD50: N/A | BE50: N/A | BF50: N/A | BG50: N/A | BH50: N/A | BI50: N/A | BJ50: N/A | BK50: N/A | BL50: N/A | BM50: N/A | BN50: N/A | BO50: N/A | BP50: N/A | BQ50: N/A
B51: Contaminated (E. coli detected in 100 mL) | C51: N/A | D51: N/A | E51: N/A | F51: N/A | G51: N/A | H51: N/A | I51: N/A | J51: N/A | K51: N/A | L51: N/A | M51: N/A | N51: N/A | O51: N/A | P51: N/A | Q51: N/A | BB51: Contaminated (E. coli detected in 100 mL) | BC51: N/A | BD51: N/A | BE51: N/A | BF51: N/A | BG51: N/A | BH51: N/A | BI51: N/A | BJ51: N/A | BK51: N/A | BL51: N/A | BM51: N/A | BN51: N/A | BO51: N/A | BP51: N/A | BQ51: N/A
B52: Highly contaminated (>100 CFU/100 mL) | C52: N/A | D52: N/A | E52: N/A | F52: N/A | G52: N/A | H52: N/A | I52: N/A | J52: N/A | K52: N/A | L52: N/A | M52: N/A | N52: N/A | O52: N/A | P52: N/A | Q52: N/A | BB52: Highly contaminated (>100 CFU/100 mL) | BC52: N/A | BD52: N/A | BE52: N/A | BF52: N/A | BG52: N/A | BH52: N/A | BI52: N/A | BJ52: N/A | BK52: N/A | BL52: N/A | BM52: N/A | BN52: N/A | BO52: N/A | BP52: N/A | BQ52: N/A
A53: Microbiological quality of piped on premises at point of collection | B53: Not contaminated (No E. coli in 100 mL) | C53: N/A | D53: N/A | E53: N/A | F53: N/A | G53: N/A | H53: N/A | I53: N/A | J53: N/A | K53: N/A | L53: N/A | M53: N/A | N53: N/A | O53: N/A | P53: N/A | Q53: N/A | BA53: Microbiological quality of piped on premises at point of collection | BB53: Not contaminated (No E. coli in 100 mL) | BC53: N/A | BD53: N/A | BE53: N/A | BF53: N/A | BG53: N/A | BH53: N/A | BI53: N/A | BJ53: N/A | BK53: N/A | BL53: N/A | BM53: N/A | BN53: N/A | BO53: N/A | BP53: N/A | BQ53: N/A
B54: Contaminated (E. coli detected in 100 mL) | C54: N/A | D54: N/A | E54: N/A | F54: N/A | G54: N/A | H54: N/A | I54: N/A | J54: N/A | K54: N/A | L54: N/A | M54: N/A | N54: N/A | O54: N/A | P54: N/A | Q54: N/A | BB54: Contaminated (E. coli detected in 100 mL) | BC54: N/A | BD54: N/A | BE54: N/A | BF54: N/A | BG54: N/A | BH54: N/A | BI54: N/A | BJ54: N/A | BK54: N/A | BL54: N/A | BM54: N/A | BN54: N/A | BO54: N/A | BP54: N/A | BQ54: N/A
B55: Highly contaminated (>100 CFU/100 mL) | C55: N/A | D55: N/A | E55: N/A | F55: N/A | G55: N/A | H55: N/A | I55: N/A | J55: N/A | K55: N/A | L55: N/A | M55: N/A | N55: N/A | O55: N/A | P55: N/A | Q55: N/A | BB55: Highly contaminated (>100 CFU/100 mL) | BC55: N/A | BD55: N/A | BE55: N/A | BF55: N/A | BG55: N/A | BH55: N/A | BI55: N/A | BJ55: N/A | BK55: N/A | BL55: N/A | BM55: N/A | BN55: N/A | BO55: N/A | BP55: N/A | BQ55: N/A
C56: NATIONAL wealth index quintile | H56: URBAN wealth index quintile | M56: RURAL wealth index quintile | BA56: Raw numbers of respondents: | BB56: Use of drinking water sources | BC56: NATIONAL wealth index quintile | BH56: URBAN wealth index quintile | BM56: RURAL wealth index quintile
A57: Percentage based on weighted population | C57: Poorest | D57: Poor | E57: Middle | F57: Rich | G57: Richest | H57: Poorest | I57: Poor | J57: Middle | K57: Rich | L57: Richest | M57: Poorest | N57: Poor | O57: Middle | P57: Rich | Q57: Richest | BA57: Water data, raw numbers (weighted) | BC57: Poorest | BD57: Poor | BE57: Middle | BF57: Rich | BG57: Richest | BH57: Poorest | BI57: Poor | BJ57: Middle | BK57: Rich | BL57: Richest | BM57: Poorest | BN57: Poor | BO57: Middle | BP57: Rich | BQ57: Richest
A58: main source of drinking water | B58: Piped water through house connection or yard | C58: 68.63808924 | D58: 92.22222538 | E58: 95.50210229 | F58: 96.62541527 | G58: 97.31804574 | H58: 89.21252183 | I58: 95.51011308 | J58: 96.79403311 | K58: 97.10486873 | L58: 97.84472583 | M58: 49.11268736 | N58: 60.06248846 | O58: 74.6566442 | P58: 86.76253306 | Q58: 90.82987025
B59: Public standpipe | C59: 1.733943847 | D59: 0.854786198 | E59: 0.8570776062 | F59: 1.301029942 | G59: 1.627566613 | H59: 1.367628273 | I59: 0.7199333099 | J59: 0.7998529039 | K59: 1.618391707 | L59: 1.793812482 | M59: 2.450019412 | N59: 2.105208421 | O59: 0.9604233956 | P59: 0.6416454489 | Q59: 0.5006605659
B60: Protected tube well or bore hole | C60: 8.71789323 | D60: 2.961299737 | E60: 1.702114627 | F60: 0.8487080544 | G60: 0.5049990653 | H60: 4.148785468 | I60: 1.763401336 | J60: 0.6798379593 | K60: 0.6129332059 | L60: 0.1338361038 | M60: 11.55082537 | N60: 10.92956778 | O60: 7.453627395 | P60: 5.281250055 | Q60: 4.674411973
B61: Protected dug well or protected spring | C61: 4.419774753 | D61: 1.461132135 | E61: 0.6840632318 | F61: 0.3223424977 | G61: 0.2594653698 | H61: 1.752351585 | I61: 0.8531682877 | J61: 0.4984166769 | K61: 0.1209196271 | L61: 0.1380976525 | M61: 6.804406893 | N61: 4.800390182 | O61: 3.899105144 | P61: 2.757485914 | Q61: 1.709494549
B62: Unprotected dug well or spring | C62: 3.708487744 | D62: 0.5973511933 | E62: 0.2704248542 | F62: 0.2138591157 | G62: 0.03482915766 | H62: 1.065870729 | I62: 0.2677941898 | J62: 0.2837402791 | K62: 0.1329259507 | L62: 0 | M62: 8.484850123 | N62: 3.767213074 | O62: 1.882303908 | P62: 0.7731158949 | Q62: 0.3664138065
B63: Rainwater (into tank or cistern ) | C63: 0.6791667675 | D63: 0.0824151171 | E63: 0.03007223652 | F63: 0.009645560255 | G63: 0.01929452682 | H63: 0.1869441767 | I63: 0.04099169721 | J63: 0.01957631515 | K63: 0.01255724487 | L63: 0.02493343972 | M63: 1.182953863 | N63: 0.8969212395 | O63: 0.3699739888 | P63: 0.1912746478 | Q63: 0
B64: Water taken directly from pond-water or stream | C64: 9.851986497 | D64: 0.663357533 | E64: 0.07159177605 | F64: 0.004170089043 | G64: 0.02118349377 | H64: 0.4445197714 | I64: 0.1028630782 | J64: 0.005317959769 | K64: 0 | L64: 0.00848784965 | M64: 18.53896194 | N64: 15.31394749 | O64: 8.377099528 | P64: 2.2186411 | Q64: 0.2833881967
B65: Tanker-truck, vendor | C65: 2.250657922 | D65: 1.157432702 | E65: 0.8825533831 | F65: 0.6748294752 | G65: 0.2146160334 | H65: 1.821378168 | I65: 0.7417350224 | J65: 0.9192247929 | K65: 0.3974035311 | L65: 0.05610663954 | M65: 1.875295031 | N65: 2.124263365 | O65: 2.400822442 | P65: 1.374053881 | Q65: 1.635760664
A108: =A1026 -> Mexico
A109: =A1034 -> 2003
A110: Use of sanitation facilities
A111: by wealth quintile and sub-national region
A112: Notes:
A113: WHO/UNICEF JMP customised wealth index excludes water,
A114: sanitation and hygiene assets.
A115: Survey used for analysis: | B115: =A1025 -> WHS03
A116: Ratio of Shared improved based on: | B116: MICS15
A117: =B1029 -> 
A120: Use of sanitation facilities | C120: NATIONAL wealth index quintile | H120: URBAN wealth index quintile | M120: RURAL wealth index quintile | BA120: Raw numbers of respondents: | BB120: Use of sanitation facilities | BC120: NATIONAL wealth index quintile | BH120: URBAN wealth index quintile | BM120: RURAL wealth index quintile
A121: Weighted percentage (used in graphs) | C121: Poorest | D121: Poor | E121: Middle | F121: Rich | G121: Richest | H121: Poorest | I121: Poor | J121: Middle | K121: Rich | L121: Richest | M121: Poorest | N121: Poor | O121: Middle | P121: Rich | Q121: Richest | BA121: Sanitation data, raw numbers (weighted) | BC121: Poorest | BD121: Poor | BE121: Middle | BF121: Rich | BG121: Richest | BH121: Poorest | BI121: Poor | BJ121: Middle | BK121: Rich | BL121: Richest | BM121: Poorest | BN121: Poor | BO121: Middle | BP121: Rich | BQ121: Richest
A122: Sanitation | B122: Improved | C122: =C153+C154+C155+(C156+C157)*MICS15!C130/100 -> 78.68766497 | D122: =D153+D154+D155+(D156+D157)*MICS15!D130/100 -> 96.45722705 | E122: =E153+E154+E155+(E156+E157)*MICS15!E130/100 -> 99.30177548 | F122: =F153+F154+F155+(F156+F157)*MICS15!F130/100 -> 99.71229039 | G122: =G153+G154+G155+(G156+G157)*MICS15!G130/100 -> 99.87845051 | H122: =H153+H154+H155+(H156+H157)*MICS15!H130/100 -> 94.65919043 | I122: =I153+I154+I155+(I156+I157)*MICS15!I130/100 -> 99.19360493 | J122: =J153+J154+J155+(J156+J157)*MICS15!J130/100 -> 99.86422224 | K122: =K153+K154+K155+(K156+K157)*MICS15!K130/100 -> 99.9100219 | L122: =L153+L154+L155+(L156+L157)*MICS15!L130/100 -> 99.96220409 | M122: =M153+M154+M155+(M156+M157)*MICS15!M130/100 -> 64.32237999 | N122: =N153+N154+N155+(N156+N157)*MICS15!N130/100 -> 74.40718008 | O122: =O153+O154+O155+(O156+O157)*MICS15!O130/100 -> 81.67759516 | P122: =P153+P154+P155+(P156+P157)*MICS15!P130/100 -> 90.76747195 | Q122: =Q153+Q154+Q155+(Q156+Q157)*MICS15!Q130/100 -> 97.36945577 | BA122: Sanitation | BB122: Improved | BC122: 3596328.121 | BD122: 4174056.544 | BE122: 4462077.143 | BF122: 4388568.673 | BG122: 4393063.954 | BH122: 3190614.955 | BI122: 3368393.538 | BJ122: 3445419.517 | BK122: 3378577.053 | BL122: 3402052.352 | BM122: 721329.1307 | BN122: 763511.9137 | BO122: 854368.9835 | BP122: 928914.7256 | BQ122: 960912.2672
B123: Not Improved | C123: =100-C122 -> 21.31233503 | D123: =100-D122 -> 3.542772951 | E123: 0.6982245221 | F123: 0.2877096111 | G123: 0.1215494903 | H123: 5.340809568 | I123: 0.8063950696 | J123: 0.1357777616 | K123: 0.08997810023 | L123: 0.03779590619 | M123: 35.67762001 | N123: 25.59281992 | O123: 18.32240484 | P123: 9.232528053 | Q123: 2.630544234 | BB123: Not Improved | BC123: 803806.6582 | BD123: 130915.4943 | BE123: 33373.96723 | BF123: 14726.33402 | BG123: 4915.871666 | BH123: 176605.9688 | BI123: 31062.85897 | BJ123: 7433.280319 | BK123: 3713.230286 | BL123: 1286.322693 | BM123: 277813.5248 | BN123: 235950.6874 | BO123: 148906.9077 | BP123: 77060.25951 | BQ123: 27905.28499
A124: Sanitation ladder | B124: Basic | C124: =C122*MICS15!C129/100 -> 69.18865973 | D124: =D122*MICS15!D129/100 -> 90.03696513 | E124: =E122*MICS15!E129/100 -> 96.55446445 | F124: =F122*MICS15!F129/100 -> 98.12729342 | G124: =G122*MICS15!G129/100 -> 99.55779668 | H124: =H122*MICS15!H129/100 -> 82.51064333 | I124: =I122*MICS15!I129/100 -> 95.30317685 | J124: =J122*MICS15!J129/100 -> 97.26129172 | K124: =K122*MICS15!K129/100 -> 98.4987118 | L124: =L122*MICS15!L129/100 -> 99.7678017 | M124: =M122*MICS15!M129/100 -> 58.07108608 | N124: =N122*MICS15!N129/100 -> 67.68746143 | O124: =O122*MICS15!O129/100 -> 75.7034991 | P124: =P122*MICS15!P129/100 -> 87.53028448 | Q124: =Q122*MICS15!Q129/100 -> 96.30452041 | BA124: Sanitation ladder | BB124: Basic | BC124: 112367.4681 | BD124: 31205.44967 | BE124: 12050.30798 | BF124: 4574.251915 | BG124: 2600.811638 | BH124: 41946.37667 | BI124: 12505.27541 | BJ124: 3940.79747 | BK124: 2183.103683 | BL124: 1286.322693 | BM124: 39083.52744 | BN124: 24761.08028 | BO124: 19817.84166 | BP124: 12374.25988 | BQ124: 4899.704147
B125: Limited | C125: =C122*MICS15!C128/100 -> 9.499005241 | D125: =D122*MICS15!D128/100 -> 6.420261916 | E125: =E122*MICS15!E128/100 -> 2.747311029 | F125: =F122*MICS15!F128/100 -> 1.584996968 | G125: =G122*MICS15!G128/100 -> 0.3206538257 | H125: =H122*MICS15!H128/100 -> 12.14854711 | I125: =I122*MICS15!I128/100 -> 3.890428083 | J125: =J122*MICS15!J128/100 -> 2.602930518 | K125: =K122*MICS15!K128/100 -> 1.411310096 | L125: =L122*MICS15!L128/100 -> 0.1944023978 | M125: =M122*MICS15!M128/100 -> 6.251293913 | N125: =N122*MICS15!N128/100 -> 6.719718645 | O125: =O122*MICS15!O128/100 -> 5.974096062 | P125: =P122*MICS15!P128/100 -> 3.237187469 | Q125: =Q122*MICS15!Q128/100 -> 1.064935352 | BB125: Limited | BC125: 691439.19 | BD125: 99710.04465 | BE125: 21323.65926 | BF125: 10152.08211 | BG125: 2315.060028 | BH125: 134659.5922 | BI125: 18557.58356 | BJ125: 3492.482849 | BK125: 1530.126602 | BL125: 0 | BM125: 238729.9973 | BN125: 211189.6071 | BO125: 129089.066 | BP125: 64685.99963 | BQ125: 23005.58084
B126: Unimproved | C126: =100-(C124+C125+C127) -> 5.598289332 | D126: =100-(D124+D125+D127) -> 1.226612851 | E126: 0.2238859355 | F126: 0.05715312803 | G126: 0.06891032144 | H126: 1.341678082 | I126: 0.2604965084 | J126: 0.03463001347 | K126: 0.04473873655 | L126: 0.03779590619 | M126: 11.78413533 | N126: 4.462503804 | O126: 5.455648333 | P126: 2.802348318 | Q126: 0.3039693481 | BB126: Unimproved | BC126: 1053155.869 | BD126: 3024090.376 | BE126: 3846491.609 | BF126: 3986892.278 | BG126: 4126116.355 | BH126: 2189689.008 | BI126: 2911642.856 | BJ126: 3145701.951 | BK126: 3169813.971 | BL126: 3287370.754 | BM126: 40416.60936 | BN126: 83373.65437 | BO126: 240648.7603 | BP126: 413174.6999 | BQ126: 554914.2229
B127: Open defecation | C127: =C159 -> 15.7140457 | D127: =D159 -> 2.3161601 | E127: 0.4743385866 | F127: 0.2305564831 | G127: 0.05263916889 | H127: 3.999131486 | I127: 0.5458985612 | J127: 0.1011477481 | K127: 0.04523936368 | L127: 0 | M127: 23.89348468 | N127: 21.13031612 | O127: 12.86675651 | P127: 6.430179735 | Q127: 2.326574886 | BB127: Open defecation | BC127: 1256989.452 | BD127: 781412.6866 | BE127: 481407.6476 | BF127: 332903.381 | BG127: 227576.4563 | BH127: 667321.5763 | BI127: 359563.2075 | BJ127: 251754.23 | BK127: 173233.7344 | BL127: 104026.5867 | BM127: 255963.754 | BN127: 317412.5219 | BO127: 327361.0516 | BP127: 312082.4789 | BQ127: 311570.4819
A128: Shared among Improved Sanitation | B128: Yes | C128: N/A | D128: N/A | E128: N/A | F128: N/A | G128: N/A | H128: N/A | I128: N/A | J128: N/A | K128: N/A | L128: N/A | M128: N/A | N128: N/A | O128: N/A | P128: N/A | Q128: N/A | BA128: Shared among improved sanitation facilities | BB128: Yes | BC128: N/A | BD128: N/A | BE128: N/A | BF128: N/A | BG128: N/A | BH128: N/A | BI128: N/A | BJ128: N/A | BK128: N/A | BL128: N/A | BM128: N/A | BN128: N/A | BO128: N/A | BP128: N/A | BQ128: N/A
B129: No | C129: N/A | D129: N/A | E129: N/A | F129: N/A | G129: N/A | H129: N/A | I129: N/A | J129: N/A | K129: N/A | L129: N/A | M129: N/A | N129: N/A | O129: N/A | P129: N/A | Q129: N/A | BB129: No | BC129: N/A | BD129: N/A | BE129: N/A | BF129: N/A | BG129: N/A | BH129: N/A | BI129: N/A | BJ129: N/A | BK129: N/A | BL129: N/A | BM129: N/A | BN129: N/A | BO129: N/A | BP129: N/A | BQ129: N/A
A130: Manually calculated ratios | B130: Improved latrines
B131: Other
B132: Other
C133: NATIONAL wealth index quintile | H133: URBAN wealth index quintile | M133: RURAL wealth index quintile | BA133: Raw numbers of respondents: | BB133: Use of sanitation facilities | BC133: NATIONAL wealth index quintile | BH133: URBAN wealth index quintile | BM133: RURAL wealth index quintile
A134: Percentage based on weighted population | C134: Poorest | D134: Poor | E134: Middle | F134: Rich | G134: Richest | H134: Poorest | I134: Poor | J134: Middle | K134: Rich | L134: Richest | M134: Poorest | N134: Poor | O134: Middle | P134: Rich | Q134: Richest | BA134: Sanitation data, raw numbers (weighted) | BC134: Poorest | BD134: Poor | BE134: Middle | BF134: Rich | BG134: Richest | BH134: Poorest | BI134: Poor | BJ134: Middle | BK134: Rich | BL134: Richest | BM134: Poorest | BN134: Poor | BO134: Middle | BP134: Rich | BQ134: Richest
A135: Sanitation type | B135: Sewer connection | C135: 23.93462751 | D135: 70.24645804 | E135: 85.564085 | F135: 90.54338334 | G135: 93.81844662 | H135: 65.0295617 | I135: 85.65024864 | J135: 91.10443266 | K135: 93.71797527 | L135: 96.59252483 | M135: 4.045129005 | N135: 8.341848338 | O135: 23.98629952 | P135: 41.07206501 | Q135: 56.11896974 | BA135: Sanitation type | BB135: Sewer connection | BC135: N/A | BD135: N/A | BE135: N/A | BF135: N/A | BG135: N/A | BH135: N/A | BI135: N/A | BJ135: N/A | BK135: N/A | BL135: N/A | BM135: N/A | BN135: N/A | BO135: N/A | BP135: N/A | BQ135: N/A
B136: Septic tank connection | C136: 28.56706703 | D136: 18.15139981 | E136: 10.70877284 | F136: 7.560324267 | G136: 5.17456799 | H136: 19.81817028 | I136: 10.57707955 | J136: 7.291194986 | K136: 5.121787899 | L136: 3.05660402 | M136: 25.61833915 | N136: 31.75831908 | O136: 32.6292154 | P136: 31.02288661 | Q136: 31.50940042 | BB136: Septic tank connection | BC136: N/A | BD136: N/A | BE136: N/A | BF136: N/A | BG136: N/A | BH136: N/A | BI136: N/A | BJ136: N/A | BK136: N/A | BL136: N/A | BM136: N/A | BN136: N/A | BO136: N/A | BP136: N/A | BQ136: N/A
B137: Improved latrines | C137: 29.23053189 | D137: 8.561112075 | E137: 2.984747979 | F137: 1.561853435 | G137: 0.8952097098 | H137: 9.907409641 | I137: 2.858912215 | J137: 1.389092971 | K137: 1.050452335 | L137: 0.313075245 | M137: 42.53134074 | N137: 36.29207706 | O137: 28.54241532 | P137: 20.24479235 | Q137: 9.549543513 | BB137: Improved latrines | BC137: N/A | BD137: N/A | BE137: N/A | BF137: N/A | BG137: N/A | BH137: N/A | BI137: N/A | BJ137: N/A | BK137: N/A | BL137: N/A | BM137: N/A | BN137: N/A | BO137: N/A | BP137: N/A | BQ137: N/A
B138: Unimproved facilities | C138: 2.553727869 | D138: 0.7248699734 | E138: 0.2680555895 | F138: 0.1038824768 | G138: 0.05913650678 | H138: 1.245726895 | I138: 0.3678610329 | J138: 0.1141316384 | K138: 0.06454513068 | L138: 0.03779590619 | M138: 3.911706424 | N138: 2.477439402 | O138: 1.975313255 | P138: 1.2300763 | Q138: 0.4955114456 | BB138: Unimproved facilities | BC138: N/A | BD138: N/A | BE138: N/A | BF138: N/A | BG138: N/A | BH138: N/A | BI138: N/A | BJ138: N/A | BK138: N/A | BL138: N/A | BM138: N/A | BN138: N/A | BO138: N/A | BP138: N/A | BQ138: N/A
B139: Open defecation | C139: 15.7140457 | D139: 2.3161601 | E139: 0.4743385866 | F139: 0.2305564831 | G139: 0.05263916889 | H139: 3.999131486 | I139: 0.5458985612 | J139: 0.1011477481 | K139: 0.04523936368 | L139: 0 | M139: 23.89348468 | N139: 21.13031612 | O139: 12.86675651 | P139: 6.430179735 | Q139: 2.326574886 | BB139: Open defecation | BC139: N/A | BD139: N/A | BE139: N/A | BF139: N/A | BG139: N/A | BH139: N/A | BI139: N/A | BJ139: N/A | BK139: N/A | BL139: N/A | BM139: N/A | BN139: N/A | BO139: N/A | BP139: N/A | BQ139: N/A
A140: Septic tank emptying practices | B140: Not emptied/treated and disposed in situ | C140: N/A | D140: N/A | E140: N/A | F140: N/A | G140: N/A | H140: N/A | I140: N/A | J140: N/A | K140: N/A | L140: N/A | M140: N/A | N140: N/A | O140: N/A | P140: N/A | Q140: N/A | BA140: Septic tank emptying practices | BB140: Not emptied/treated and disposed in situ | BC140: N/A | BD140: N/A | BE140: N/A | BF140: N/A | BG140: N/A | BH140: N/A | BI140: N/A | BJ140: N/A | BK140: N/A | BL140: N/A | BM140: N/A | BN140: N/A | BO140: N/A | BP140: N/A | BQ140: N/A
B141: Emptied and buried on site | C141: N/A | D141: N/A | E141: N/A | F141: N/A | G141: N/A | H141: N/A | I141: N/A | J141: N/A | K141: N/A | L141: N/A | M141: N/A | N141: N/A | O141: N/A | P141: N/A | Q141: N/A | BB141: Emptied and buried on site | BC141: N/A | BD141: N/A | BE141: N/A | BF141: N/A | BG141: N/A | BH141: N/A | BI141: N/A | BJ141: N/A | BK141: N/A | BL141: N/A | BM141: N/A | BN141: N/A | BO141: N/A | BP141: N/A | BQ141: N/A
B142: Emptied and discharged locally | C142: N/A | D142: N/A | E142: N/A | F142: N/A | G142: N/A | H142: N/A | I142: N/A | J142: N/A | K142: N/A | L142: N/A | M142: N/A | N142: N/A | O142: N/A | P142: N/A | Q142: N/A | BB142: Emptied and discharged locally | BC142: N/A | BD142: N/A | BE142: N/A | BF142: N/A | BG142: N/A | BH142: N/A | BI142: N/A | BJ142: N/A | BK142: N/A | BL142: N/A | BM142: N/A | BN142: N/A | BO142: N/A | BP142: N/A | BQ142: N/A
B143: Emptied and removed offsite | C143: N/A | D143: N/A | E143: N/A | F143: N/A | G143: N/A | H143: N/A | I143: N/A | J143: N/A | K143: N/A | L143: N/A | M143: N/A | N143: N/A | O143: N/A | P143: N/A | Q143: N/A | BB143: Emptied and removed offsite | BC143: N/A | BD143: N/A | BE143: N/A | BF143: N/A | BG143: N/A | BH143: N/A | BI143: N/A | BJ143: N/A | BK143: N/A | BL143: N/A | BM143: N/A | BN143: N/A | BO143: N/A | BP143: N/A | BQ143: N/A
A144: Latrine emptying practices | B144: Not emptied/treated and disposed in situ | C144: N/A | D144: N/A | E144: N/A | F144: N/A | G144: N/A | H144: N/A | I144: N/A | J144: N/A | K144: N/A | L144: N/A | M144: N/A | N144: N/A | O144: N/A | P144: N/A | Q144: N/A | BA144: Latrine emptying practices | BB144: Not emptied/treated and disposed in situ | BC144: N/A | BD144: N/A | BE144: N/A | BF144: N/A | BG144: N/A | BH144: N/A | BI144: N/A | BJ144: N/A | BK144: N/A | BL144: N/A | BM144: N/A | BN144: N/A | BO144: N/A | BP144: N/A | BQ144: N/A
B145: Emptied and buried on site | C145: N/A | D145: N/A | E145: N/A | F145: N/A | G145: N/A | H145: N/A | I145: N/A | J145: N/A | K145: N/A | L145: N/A | M145: N/A | N145: N/A | O145: N/A | P145: N/A | Q145: N/A | BB145: Emptied and buried on site | BC145: N/A | BD145: N/A | BE145: N/A | BF145: N/A | BG145: N/A | BH145: N/A | BI145: N/A | BJ145: N/A | BK145: N/A | BL145: N/A | BM145: N/A | BN145: N/A | BO145: N/A | BP145: N/A | BQ145: N/A
B146: Emptied and discharged locally | C146: N/A | D146: N/A | E146: N/A | F146: N/A | G146: N/A | H146: N/A | I146: N/A | J146: N/A | K146: N/A | L146: N/A | M146: N/A | N146: N/A | O146: N/A | P146: N/A | Q146: N/A | BB146: Emptied and discharged locally | BC146: N/A | BD146: N/A | BE146: N/A | BF146: N/A | BG146: N/A | BH146: N/A | BI146: N/A | BJ146: N/A | BK146: N/A | BL146: N/A | BM146: N/A | BN146: N/A | BO146: N/A | BP146: N/A | BQ146: N/A
B147: Emptied and removed offsite | C147: N/A | D147: N/A | E147: N/A | F147: N/A | G147: N/A | H147: N/A | I147: N/A | J147: N/A | K147: N/A | L147: N/A | M147: N/A | N147: N/A | O147: N/A | P147: N/A | Q147: N/A | BB147: Emptied and removed offsite | BC147: N/A | BD147: N/A | BE147: N/A | BF147: N/A | BG147: N/A | BH147: N/A | BI147: N/A | BJ147: N/A | BK147: N/A | BL147: N/A | BM147: N/A | BN147: N/A | BO147: N/A | BP147: N/A | BQ147: N/A
A148: Shared among improved sanitation facilities | B148: Yes | C148: N/A | D148: N/A | E148: N/A | F148: N/A | G148: N/A | H148: N/A | I148: N/A | J148: N/A | K148: N/A | L148: N/A | M148: N/A | N148: N/A | O148: N/A | P148: N/A | Q148: N/A | BA148: Shared among improved sanitation facilities | BB148: Yes | BC148: N/A | BD148: N/A | BE148: N/A | BF148: N/A | BG148: N/A | BH148: N/A | BI148: N/A | BJ148: N/A | BK148: N/A | BL148: N/A | BM148: N/A | BN148: N/A | BO148: N/A | BP148: N/A | BQ148: N/A
B149: No | C149: N/A | D149: N/A | E149: N/A | F149: N/A | G149: N/A | H149: N/A | I149: N/A | J149: N/A | K149: N/A | L149: N/A | M149: N/A | N149: N/A | O149: N/A | P149: N/A | Q149: N/A | BB149: No | BC149: N/A | BD149: N/A | BE149: N/A | BF149: N/A | BG149: N/A | BH149: N/A | BI149: N/A | BJ149: N/A | BK149: N/A | BL149: N/A | BM149: N/A | BN149: N/A | BO149: N/A | BP149: N/A | BQ149: N/A
B150: DK/missing | C150: N/A | D150: N/A | E150: N/A | F150: N/A | G150: N/A | H150: N/A | I150: N/A | J150: N/A | K150: N/A | L150: N/A | M150: N/A | N150: N/A | O150: N/A | P150: N/A | Q150: N/A | BB150: DK/missing | BC150: N/A | BD150: N/A | BE150: N/A | BF150: N/A | BG150: N/A | BH150: N/A | BI150: N/A | BJ150: N/A | BK150: N/A | BL150: N/A | BM150: N/A | BN150: N/A | BO150: N/A | BP150: N/A | BQ150: N/A
A151: Shared among all sanitation facilities | B151: Yes | C151: N/A | D151: N/A | E151: N/A | F151: N/A | G151: N/A | H151: N/A | I151: N/A | J151: N/A | K151: N/A | L151: N/A | M151: N/A | N151: N/A | O151: N/A | P151: N/A | Q151: N/A | BA151: Shared among all sanitation facilities | BB151: Yes | BC151: N/A | BD151: N/A | BE151: N/A | BF151: N/A | BG151: N/A | BH151: N/A | BI151: N/A | BJ151: N/A | BK151: N/A | BL151: N/A | BM151: N/A | BN151: N/A | BO151: N/A | BP151: N/A | BQ151: N/A
B152: No | C152: N/A | D152: N/A | E152: N/A | F152: N/A | G152: N/A | H152: N/A | I152: N/A | J152: N/A | K152: N/A | L152: N/A | M152: N/A | N152: N/A | O152: N/A | P152: N/A | Q152: N/A | BB152: No | BC152: N/A | BD152: N/A | BE152: N/A | BF152: N/A | BG152: N/A | BH152: N/A | BI152: N/A | BJ152: N/A | BK152: N/A | BL152: N/A | BM152: N/A | BN152: N/A | BO152: N/A | BP152: N/A | BQ152: N/A
A153: What type of toilet facilities | B153: Flush to piped sewage system | C153: 23.93462751 | D153: 70.24645804 | E153: 85.564085 | F153: 90.54338334 | G153: 93.81844662 | H153: 65.0295617 | I153: 85.65024864 | J153: 91.10443266 | K153: 93.71797527 | L153: 96.59252483 | M153: 4.045129005 | N153: 8.341848338 | O153: 23.98629952 | P153: 41.07206501 | Q153: 56.11896974 | BA153: What type of toilet facilities | BB153: Flush to piped sewage system | BC153: 1053155.869 | BD153: 3024090.376 | BE153: 3846491.609 | BF153: 3986892.278 | BG153: 4126116.355 | BH153: 2189689.008 | BI153: 2911642.856 | BJ153: 3145701.951 | BK153: 3169813.971 | BL153: 3287370.754 | BM153: 40416.60936 | BN153: 83373.65437 | BO153: 240648.7603 | BP153: 413174.6999 | BQ153: 554914.2229
B154: Flush to septic tank | C154: 28.56706703 | D154: 18.15139981 | E154: 10.70877284 | F154: 7.560324267 | G154: 5.17456799 | H154: 19.81817028 | I154: 10.57707955 | J154: 7.291194986 | K154: 5.121787899 | L154: 3.05660402 | M154: 25.61833915 | N154: 31.75831908 | O154: 32.6292154 | P154: 31.02288661 | Q154: 31.50940042 | BB154: Flush to septic tank | BC154: 1256989.452 | BD154: 781412.6866 | BE154: 481407.6476 | BF154: 332903.381 | BG154: 227576.4563 | BH154: 667321.5763 | BI154: 359563.2075 | BJ154: 251754.23 | BK154: 173233.7344 | BL154: 104026.5867 | BM154: 255963.754 | BN154: 317412.5219 | BO154: 327361.0516 | BP154: 312082.4789 | BQ154: 311570.4819
B155: Pour flush latrine | C155: 6.634501574 | D155: 2.515585209 | E155: 0.9551111435 | F155: 0.4358313912 | G155: 0.3587665686 | H155: 2.539293869 | I155: 1.110580365 | J155: 0.4120216421 | K155: 0.2989097484 | L155: 0.1478007691 | M155: 7.415849265 | N155: 9.525114281 | O155: 8.004500736 | P155: 4.695986501 | Q155: 2.898583084 | BB155: Pour flush latrine | BC155: 291927.0112 | BD155: 108295.2399 | BE155: 42936.5545 | BF155: 19190.94189 | BG155: 15778.48131 | BH155: 85503.63447 | BI155: 37753.69525 | BJ155: 14226.50079 | BK155: 10109.99538 | BL155: 5030.160736 | BM155: 74094.91327 | BN155: 95199.95494 | BO155: 80307.22609 | BP155: 47240.44951 | BQ155: 28661.6983
B156: Covered dry latrine (with privacy) | C156: 22.59603032 | D156: 6.045526866 | E156: 2.029636836 | F156: 1.126022044 | G156: 0.5364431412 | H156: 7.368115772 | I156: 1.748331851 | J156: 0.9770713285 | K156: 0.7515425868 | L156: 0.1652744759 | M156: 35.11549148 | N156: 26.76696278 | O156: 20.53791458 | P156: 15.54880585 | Q156: 6.650960429 | BB156: Covered dry latrine (with privacy) | BC156: 994255.7887 | BD156: 260258.2411 | BE156: 91241.33167 | BF156: 49582.07243 | BG156: 23592.66113 | BH156: 248100.736 | BI156: 59433.77893 | BJ156: 33736.83469 | BK156: 25419.35189 | BL156: 5624.850159 | BM156: 350853.854 | BN156: 267525.7824 | BO156: 206051.9455 | BP156: 156417.0973 | BQ156: 65765.86411
B157: Uncovered dry latrine (without privacy) | C157: 1.686474166 | D157: 0.4517433603 | E157: 0.1329015917 | F157: 0.05085720241 | G157: 0.01561946878 | H157: 0.5542591319 | I157: 0.2043649825 | J157: 0.07950162497 | K157: 0.01980639413 | L157: 0 | M157: 3.320948743 | N157: 1.554370026 | O157: 1.158774912 | P157: 0.9901790585 | Q157: 0.3263477901 | BB157: Uncovered dry latrine (without privacy) | BC157: 74207.13633 | BD157: 19447.42535 | BE157: 5974.526077 | BF157: 2239.392654 | BG157: 686.9410858 | BH157: 18663.12946 | BI157: 6947.29847 | BJ157: 2745.074081 | BK157: 669.9097443 | BL157: 0 | BM157: 33181.01546 | BN157: 15535.34709 | BO157: 11625.70932 | BP157: 9960.953636 | BQ157: 3226.98423
B158: Bucket latrine (where fresh excreta are manually removed) | C158: 0.3023313071 | D158: 0.1736769344 | E158: 0.01552847167 | F158: 0.01177489215 | G158: 0 | H158: 0.3488121118 | I158: 0.006301739427 | J158: 0.01225286067 | K158: 0 | L158: 0 | M158: 0.2150577138 | N158: 0.3200469212 | O158: 0.2961265495 | P158: 0.07117524168 | Q158: 0.05858107623 | BB158: Bucket latrine (where fresh excreta are manually removed) | BC158: 13302.98499 | BD158: 7476.743462 | BE158: 698.074852 | BF158: 518.4832382 | BG158: 0 | BH158: 11745.27441 | BI158: 214.224884 | BJ158: 423.0732422 | BK158: 0 | BL158: 0 | BM158: 2148.733353 | BN158: 3198.749283 | BO158: 2970.966278 | BP158: 716.005127 | BQ158: 579.259964
B159: No facilities (open defecation) | C159: 15.7140457 | D159: 2.3161601 | E159: 0.4743385866 | F159: 0.2305564831 | G159: 0.05263916889 | H159: 3.999131486 | I159: 0.5458985612 | J159: 0.1011477481 | K159: 0.04523936368 | L159: 0 | M159: 23.89348468 | N159: 21.13031612 | O159: 12.86675651 | P159: 6.430179735 | Q159: 2.326574886 | BB159: No facilities (open defecation) | BC159: 691439.19 | BD159: 99710.04465 | BE159: 21323.65926 | BF159: 10152.08211 | BG159: 2315.060028 | BH159: 134659.5922 | BI159: 18557.58356 | BJ159: 3492.482849 | BK159: 1530.126602 | BL159: 0 | BM159: 238729.9973 | BN159: 211189.6071 | BO159: 129089.066 | BP159: 64685.99963 | BQ159: 23005.58084
B160: Other | C160: 0.5649223959 | D160: 0.09944967872 | E160: 0.1196255262 | F160: 0.04125038226 | G160: 0.043517038 | H160: 0.3426556515 | I160: 0.157194311 | J160: 0.0223771528 | K160: 0.04473873655 | L160: 0.03779590619 | M160: 0.3756999669 | N160: 0.6030224546 | O160: 0.5204117938 | P160: 0.1687220003 | Q160: 0.1105825793 | BB160: Other | BC160: 24857.34682 | BD160: 4281.280861 | BE160: 5377.707047 | BF160: 1816.376022 | BG160: 1913.870552 | BH160: 11537.97279 | BI160: 5343.75206 | BJ160: 772.6501465 | BK160: 1513.193939 | BL160: 1286.322693 | BM160: 3753.778625 | BN160: 6026.98391 | BO160: 5221.166061 | BP160: 1697.301117 | BQ160: 1093.459953
BB161: Total | BC161: 4400134.779 | BD161: 4304972.038 | BE161: 4495451.11 | BF161: 4403295.007 | BG161: 4397979.826 | BH161: 3367220.924 | BI161: 3399456.397 | BJ161: 3452852.797 | BK161: 3382290.283 | BL161: 3403338.674 | BM161: 999142.6555 | BN161: 999462.601 | BO161: 1003275.891 | BP161: 1005974.985 | BQ161: 988817.5522
A208: =A1026 -> Mexico
A209: =A1034 -> 2003
A210: Access to hygiene facilities
A211: by wealth quintile and sub-national region
A212: Notes:
A213: WHO/UNICEF JMP customised wealth index excludes water,
A214: sanitation and hygiene assets.
A215: Survey used for analysis: | B215: =A1025 -> WHS03
A220: Access to handwashing | C220: NATIONAL wealth index quintile | H220: URBAN wealth index quintile | M220: RURAL wealth index quintile | BA220: Raw numbers of respondents: | BB220: Access to handwashing | BC220: NATIONAL wealth index quintile | BH220: URBAN wealth index quintile | BM220: RURAL wealth index quintile
A221: Weighted percentage (used in graphs) | C221: Poorest | D221: Poor | E221: Middle | F221: Rich | G221: Richest | H221: Poorest | I221: Poor | J221: Middle | K221: Rich | L221: Richest | M221: Poorest | N221: Poor | O221: Middle | P221: Rich | Q221: Richest | BA221: Hygiene data, raw numbers (weighted) | BC221: Poorest | BD221: Poor | BE221: Middle | BF221: Rich | BG221: Richest | BH221: Poorest | BI221: Poor | BJ221: Middle | BK221: Rich | BL221: Richest | BM221: Poorest | BN221: Poor | BO221: Middle | BP221: Rich | BQ221: Richest
A222: Hygiene ladder | B222: Basic | C222: N/A | D222: N/A | E222: N/A | F222: N/A | G222: N/A | H222: N/A | I222: N/A | J222: N/A | K222: N/A | L222: N/A | M222: N/A | N222: N/A | O222: N/A | P222: N/A | Q222: N/A | BA222: Hygiene ladder | BB222: Basic | BC222: N/A | BD222: N/A | BE222: N/A | BF222: N/A | BG222: N/A | BH222: N/A | BI222: N/A | BJ222: N/A | BK222: N/A | BL222: N/A | BM222: N/A | BN222: N/A | BO222: N/A | BP222: N/A | BQ222: N/A
B223: Limited | C223: N/A | D223: N/A | E223: N/A | F223: N/A | G223: N/A | H223: N/A | I223: N/A | J223: N/A | K223: N/A | L223: N/A | M223: N/A | N223: N/A | O223: N/A | P223: N/A | Q223: N/A | BB223: Limited | BC223: N/A | BD223: N/A | BE223: N/A | BF223: N/A | BG223: N/A | BH223: N/A | BI223: N/A | BJ223: N/A | BK223: N/A | BL223: N/A | BM223: N/A | BN223: N/A | BO223: N/A | BP223: N/A | BQ223: N/A
B224: No facility | C224: N/A | D224: N/A | E224: N/A | F224: N/A | G224: N/A | H224: N/A | I224: N/A | J224: N/A | K224: N/A | L224: N/A | M224: N/A | N224: N/A | O224: N/A | P224: N/A | Q224: N/A | BB224: No facility | BC224: N/A | BD224: N/A | BE224: N/A | BF224: N/A | BG224: N/A | BH224: N/A | BI224: N/A | BJ224: N/A | BK224: N/A | BL224: N/A | BM224: N/A | BN224: N/A | BO224: N/A | BP224: N/A | BQ224: N/A
BA225: Observed handwashing place | BB225: Fixed | BC225: N/A | BD225: N/A | BE225: N/A | BF225: N/A | BG225: N/A | BH225: N/A | BI225: N/A | BJ225: N/A | BK225: N/A | BL225: N/A | BM225: N/A | BN225: N/A | BO225: N/A | BP225: N/A | BQ225: N/A
BB226: Mobile | BC226: N/A | BD226: N/A | BE226: N/A | BF226: N/A | BG226: N/A | BH226: N/A | BI226: N/A | BJ226: N/A | BK226: N/A | BL226: N/A | BM226: N/A | BN226: N/A | BO226: N/A | BP226: N/A | BQ226: N/A
BA227: Water / Soap | BB227: Water and soap | BC227: N/A | BD227: N/A | BE227: N/A | BF227: N/A | BG227: N/A | BH227: N/A | BI227: N/A | BJ227: N/A | BK227: N/A | BL227: N/A | BM227: N/A | BN227: N/A | BO227: N/A | BP227: N/A | BQ227: N/A
BB228: Water only | BC228: N/A | BD228: N/A | BE228: N/A | BF228: N/A | BG228: N/A | BH228: N/A | BI228: N/A | BJ228: N/A | BK228: N/A | BL228: N/A | BM228: N/A | BN228: N/A | BO228: N/A | BP228: N/A | BQ228: N/A
BB229: Soap only | BC229: N/A | BD229: N/A | BE229: N/A | BF229: N/A | BG229: N/A | BH229: N/A | BI229: N/A | BJ229: N/A | BK229: N/A | BL229: N/A | BM229: N/A | BN229: N/A | BO229: N/A | BP229: N/A | BQ229: N/A
BB230: Neither | BC230: N/A | BD230: N/A | BE230: N/A | BF230: N/A | BG230: N/A | BH230: N/A | BI230: N/A | BJ230: N/A | BK230: N/A | BL230: N/A | BM230: N/A | BN230: N/A | BO230: N/A | BP230: N/A | BQ230: N/A
BA259: Raw numbers of respondents: | BB259: Menstrual health and hygiene | BC259: NATIONAL wealth index quintile | BH259: URBAN wealth index quintile | BM259: RURAL wealth index quintile
BA260: MHH data, raw numbers (weighted) | BC260: Poorest | BD260: Poor | BE260: Middle | BF260: Rich | BG260: Richest | BH260: Poorest | BI260: Poor | BJ260: Middle | BK260: Rich | BL260: Richest | BM260: Poorest | BN260: Poor | BO260: Middle | BP260: Rich | BQ260: Richest
BA261: Private place to wash and change | BB261: Yes | BC261: N/A | BD261: N/A | BE261: N/A | BF261: N/A | BG261: N/A | BH261: N/A | BI261: N/A | BJ261: N/A | BK261: N/A | BL261: N/A | BM261: N/A | BN261: N/A | BO261: N/A | BP261: N/A | BQ261: N/A
BB262: No | BC262: N/A | BD262: N/A | BE262: N/A | BF262: N/A | BG262: N/A | BH262: N/A | BI262: N/A | BJ262: N/A | BK262: N/A | BL262: N/A | BM262: N/A | BN262: N/A | BO262: N/A | BP262: N/A | BQ262: N/A
BB263: DK/not sure/missing | BC263: N/A | BD263: N/A | BE263: N/A | BF263: N/A | BG263: N/A | BH263: N/A | BI263: N/A | BJ263: N/A | BK263: N/A | BL263: N/A | BM263: N/A | BN263: N/A | BO263: N/A | BP263: N/A | BQ263: N/A
BA264: Use of menstrual materials | BB264: Materials reusable | BC264: N/A | BD264: N/A | BE264: N/A | BF264: N/A | BG264: N/A | BH264: N/A | BI264: N/A | BJ264: N/A | BK264: N/A | BL264: N/A | BM264: N/A | BN264: N/A | BO264: N/A | BP264: N/A | BQ264: N/A
BB265: Materials not reusable | BC265: N/A | BD265: N/A | BE265: N/A | BF265: N/A | BG265: N/A | BH265: N/A | BI265: N/A | BJ265: N/A | BK265: N/A | BL265: N/A | BM265: N/A | BN265: N/A | BO265: N/A | BP265: N/A | BQ265: N/A
BB266: No materials used | BC266: N/A | BD266: N/A | BE266: N/A | BF266: N/A | BG266: N/A | BH266: N/A | BI266: N/A | BJ266: N/A | BK266: N/A | BL266: N/A | BM266: N/A | BN266: N/A | BO266: N/A | BP266: N/A | BQ266: N/A
BB267: DK/not sure/missing | BC267: N/A | BD267: N/A | BE267: N/A | BF267: N/A | BG267: N/A | BH267: N/A | BI267: N/A | BJ267: N/A | BK267: N/A | BL267: N/A | BM267: N/A | BN267: N/A | BO267: N/A | BP267: N/A | BQ267: N/A
BA268: Use of menstrual materials with private place to wash and change | BB268: Materials reusable | BC268: N/A | BD268: N/A | BE268: N/A | BF268: N/A | BG268: N/A | BH268: N/A | BI268: N/A | BJ268: N/A | BK268: N/A | BL268: N/A | BM268: N/A | BN268: N/A | BO268: N/A | BP268: N/A | BQ268: N/A
BB269: Materials not reusable | BC269: N/A | BD269: N/A | BE269: N/A | BF269: N/A | BG269: N/A | BH269: N/A | BI269: N/A | BJ269: N/A | BK269: N/A | BL269: N/A | BM269: N/A | BN269: N/A | BO269: N/A | BP269: N/A | BQ269: N/A
BB270: No materials used | BC270: N/A | BD270: N/A | BE270: N/A | BF270: N/A | BG270: N/A | BH270: N/A | BI270: N/A | BJ270: N/A | BK270: N/A | BL270: N/A | BM270: N/A | BN270: N/A | BO270: N/A | BP270: N/A | BQ270: N/A
BA271: Awareness of menstruation before menarche | BB271: Yes | BC271: N/A | BD271: N/A | BE271: N/A | BF271: N/A | BG271: N/A | BH271: N/A | BI271: N/A | BJ271: N/A | BK271: N/A | BL271: N/A | BM271: N/A | BN271: N/A | BO271: N/A | BP271: N/A | BQ271: N/A
BB272: No | BC272: N/A | BD272: N/A | BE272: N/A | BF272: N/A | BG272: N/A | BH272: N/A | BI272: N/A | BJ272: N/A | BK272: N/A | BL272: N/A | BM272: N/A | BN272: N/A | BO272: N/A | BP272: N/A | BQ272: N/A
BB273: DK/not sure/missing | BC273: N/A | BD273: N/A | BE273: N/A | BF273: N/A | BG273: N/A | BH273: N/A | BI273: N/A | BJ273: N/A | BK273: N/A | BL273: N/A | BM273: N/A | BN273: N/A | BO273: N/A | BP273: N/A | BQ273: N/A
BA274: Participation in (all) activities during menstruation | BB274: Yes | BC274: N/A | BD274: N/A | BE274: N/A | BF274: N/A | BG274: N/A | BH274: N/A | BI274: N/A | BJ274: N/A | BK274: N/A | BL274: N/A | BM274: N/A | BN274: N/A | BO274: N/A | BP274: N/A | BQ274: N/A
BB275: No | BC275: N/A | BD275: N/A | BE275: N/A | BF275: N/A | BG275: N/A | BH275: N/A | BI275: N/A | BJ275: N/A | BK275: N/A | BL275: N/A | BM275: N/A | BN275: N/A | BO275: N/A | BP275: N/A | BQ275: N/A
BB276: DK/not sure/missing/no such activity | BC276: N/A | BD276: N/A | BE276: N/A | BF276: N/A | BG276: N/A | BH276: N/A | BI276: N/A | BJ276: N/A | BK276: N/A | BL276: N/A | BM276: N/A | BN276: N/A | BO276: N/A | BP276: N/A | BQ276: N/A
BA277: Participation in specific activities during menstruation | BB277: Did not go to school (amongst those usually attending school) | BC277: N/A | BD277: N/A | BE277: N/A | BF277: N/A | BG277: N/A | BH277: N/A | BI277: N/A | BJ277: N/A | BK277: N/A | BL277: N/A | BM277: N/A | BN277: N/A | BO277: N/A | BP277: N/A | BQ277: N/A
BB278: Did not go to work (amongst those who usually work) | BC278: N/A | BD278: N/A | BE278: N/A | BF278: N/A | BG278: N/A | BH278: N/A | BI278: N/A | BJ278: N/A | BK278: N/A | BL278: N/A | BM278: N/A | BN278: N/A | BO278: N/A | BP278: N/A | BQ278: N/A
BB279: Did not participate in social activities | BC279: N/A | BD279: N/A | BE279: N/A | BF279: N/A | BG279: N/A | BH279: N/A | BI279: N/A | BJ279: N/A | BK279: N/A | BL279: N/A | BM279: N/A | BN279: N/A | BO279: N/A | BP279: N/A | BQ279: N/A
BB280: Did not cook food | BC280: N/A | BD280: N/A | BE280: N/A | BF280: N/A | BG280: N/A | BH280: N/A | BI280: N/A | BJ280: N/A | BK280: N/A | BL280: N/A | BM280: N/A | BN280: N/A | BO280: N/A | BP280: N/A | BQ280: N/A
BB281: Did not eat with others | BC281: N/A | BD281: N/A | BE281: N/A | BF281: N/A | BG281: N/A | BH281: N/A | BI281: N/A | BJ281: N/A | BK281: N/A | BL281: N/A | BM281: N/A | BN281: N/A | BO281: N/A | BP281: N/A | BQ281: N/A
BB282: Did not bathe in regular place | BC282: N/A | BD282: N/A | BE282: N/A | BF282: N/A | BG282: N/A | BH282: N/A | BI282: N/A | BJ282: N/A | BK282: N/A | BL282: N/A | BM282: N/A | BN282: N/A | BO282: N/A | BP282: N/A | BQ282: N/A
BB283: Did not participate in other activities | BC283: N/A | BD283: N/A | BE283: N/A | BF283: N/A | BG283: N/A | BH283: N/A | BI283: N/A | BJ283: N/A | BK283: N/A | BL283: N/A | BM283: N/A | BN283: N/A | BO283: N/A | BP283: N/A | BQ283: N/A
BB284: DK/not sure/missing/no such activity | BC284: N/A | BD284: N/A | BE284: N/A | BF284: N/A | BG284: N/A | BH284: N/A | BI284: N/A | BJ284: N/A | BK284: N/A | BL284: N/A | BM284: N/A | BN284: N/A | BO284: N/A | BP284: N/A | BQ284: N/A
BA339: Raw numbers of respondents: | BB339: Basic water, sanitation and hygiene | BC339: NATIONAL wealth index quintile | BH339: URBAN wealth index quintile | BM339: RURAL wealth index quintile
BA340: WatSan data, raw numbers (weighted) | BC340: Poorest | BD340: Poor | BE340: Middle | BF340: Rich | BG340: Richest | BH340: Poorest | BI340: Poor | BJ340: Middle | BK340: Rich | BL340: Richest | BM340: Poorest | BN340: Poor | BO340: Middle | BP340: Rich | BQ340: Richest
BA341: Use of Basic Water Sanitation and Hygiene | BB341: Yes | BC341: N/A | BD341: N/A | BE341: N/A | BF341: N/A | BG341: N/A | BH341: N/A | BI341: N/A | BJ341: N/A | BK341: N/A | BL341: N/A | BM341: N/A | BN341: N/A | BO341: N/A | BP341: N/A | BQ341: N/A
BB342: No | BC342: N/A | BD342: N/A | BE342: N/A | BF342: N/A | BG342: N/A | BH342: N/A | BI342: N/A | BJ342: N/A | BK342: N/A | BL342: N/A | BM342: N/A | BN342: N/A | BO342: N/A | BP342: N/A | BQ342: N/A
BA343: Use of Basic Water and Sanitation | BB343: Yes | BC343: N/A | BD343: N/A | BE343: N/A | BF343: N/A | BG343: N/A | BH343: N/A | BI343: N/A | BJ343: N/A | BK343: N/A | BL343: N/A | BM343: N/A | BN343: N/A | BO343: N/A | BP343: N/A | BQ343: N/A
BB344: No | BC344: N/A | BD344: N/A | BE344: N/A | BF344: N/A | BG344: N/A | BH344: N/A | BI344: N/A | BJ344: N/A | BK344: N/A | BL344: N/A | BM344: N/A | BN344: N/A | BO344: N/A | BP344: N/A | BQ344: N/A
BA345: Use of Basic Water and Hygiene | BB345: Yes | BC345: N/A | BD345: N/A | BE345: N/A | BF345: N/A | BG345: N/A | BH345: N/A | BI345: N/A | BJ345: N/A | BK345: N/A | BL345: N/A | BM345: N/A | BN345: N/A | BO345: N/A | BP345: N/A | BQ345: N/A
BB346: No | BC346: N/A | BD346: N/A | BE346: N/A | BF346: N/A | BG346: N/A | BH346: N/A | BI346: N/A | BJ346: N/A | BK346: N/A | BL346: N/A | BM346: N/A | BN346: N/A | BO346: N/A | BP346: N/A | BQ346: N/A
BA347: Use of Basic Sanitation and Hygiene | BB347: Yes | BC347: N/A | BD347: N/A | BE347: N/A | BF347: N/A | BG347: N/A | BH347: N/A | BI347: N/A | BJ347: N/A | BK347: N/A | BL347: N/A | BM347: N/A | BN347: N/A | BO347: N/A | BP347: N/A | BQ347: N/A
BB348: No | BC348: N/A | BD348: N/A | BE348: N/A | BF348: N/A | BG348: N/A | BH348: N/A | BI348: N/A | BJ348: N/A | BK348: N/A | BL348: N/A | BM348: N/A | BN348: N/A | BO348: N/A | BP348: N/A | BQ348: N/A
BA349: Use of Basic Water | BB349: Yes | BC349: N/A | BD349: N/A | BE349: N/A | BF349: N/A | BG349: N/A | BH349: N/A | BI349: N/A | BJ349: N/A | BK349: N/A | BL349: N/A | BM349: N/A | BN349: N/A | BO349: N/A | BP349: N/A | BQ349: N/A
BB350: No | BC350: N/A | BD350: N/A | BE350: N/A | BF350: N/A | BG350: N/A | BH350: N/A | BI350: N/A | BJ350: N/A | BK350: N/A | BL350: N/A | BM350: N/A | BN350: N/A | BO350: N/A | BP350: N/A | BQ350: N/A
BA351: Use of Basic Sanitation | BB351: Yes | BC351: N/A | BD351: N/A | BE351: N/A | BF351: N/A | BG351: N/A | BH351: N/A | BI351: N/A | BJ351: N/A | BK351: N/A | BL351: N/A | BM351: N/A | BN351: N/A | BO351: N/A | BP351: N/A | BQ351: N/A
BB352: No | BC352: N/A | BD352: N/A | BE352: N/A | BF352: N/A | BG352: N/A | BH352: N/A | BI352: N/A | BJ352: N/A | BK352: N/A | BL352: N/A | BM352: N/A | BN352: N/A | BO352: N/A | BP352: N/A | BQ352: N/A
BA353: Access to Basic Hygiene | BB353: Yes | BC353: N/A | BD353: N/A | BE353: N/A | BF353: N/A | BG353: N/A | BH353: N/A | BI353: N/A | BJ353: N/A | BK353: N/A | BL353: N/A | BM353: N/A | BN353: N/A | BO353: N/A | BP353: N/A | BQ353: N/A
BB354: No | BC354: N/A | BD354: N/A | BE354: N/A | BF354: N/A | BG354: N/A | BH354: N/A | BI354: N/A | BJ354: N/A | BK354: N/A | BL354: N/A | BM354: N/A | BN354: N/A | BO354: N/A | BP354: N/A | BQ354: N/A
C399: INITIAL (national) Wealth Index | H399: URBAN Wealth Index | M399: RURAL Wealth Index
C400: Component Matrix | H400: Component Matrix | M400: Component Matrix
E401: Component | J401: Component | O401: Component
B402: Note: The INITIAL (national) Wealth Index is based on the first component of the Principal Component Analysis (PCA) which has been obtained at national level. The final national-level (NATIONAL) Wealth Index is based on the URBAN and RURAL specific wealth indexes. Regression procedures are used to establish the relationships between the two sets of scores (urban and rural) and the initial (national) wealth factors. This allows best use of the available information for each area and a better precision of the FINAL (NATIONAL) Wealth Index. For dependency reasons, all WASH variables (contained in the generic MICS and DHS scripts) have been excluded from the sets of asset variables used in the PCAs. The PCA can extracts as many components as there are asset variables in the input. Only the first of the components is used to represent the Wealth Index. The scores represent the weights of the asset variables on the Wealth Index (correlations between the variables and the component). The communalities are the proportion of each variable's variance that can be explained by the component. Proportion of explained variance is the part of the model's total variance that is explained by the component. For more information on the procedure used: The DHS Wealth Index, DHS Comparative Reports No. 6, Shea Oscar Rutstein, Kiersten Johnson, ORC Macro International Inc., 2004. The DHS Wealth Index: Approaches for Rural and Urban Areas, Shea O. Rutstein, ORC Macro International Inc., 2008. MICS Methodological Paper No. 4, Review of options for reporting water, sanitation and hygiene coverage by wealth quintile, UNICEF, 2016. | E402: 1 | J402: 1 | O402: 1
C403: Uses gaz fuel | E403: -0.8104744213 | H403: Uses wood fuel | J403: 0.7041961663 | M403: Uses gaz fuel | O403: -0.8079660785
C404: Uses wood fuel | E404: 0.7867496908 | H404: Uses gaz fuel | J404: -0.7037196153 | M404: Uses wood fuel | O404: 0.7659396673
C405: Uses open fire without chimney | E405: 0.6840417693 | H405: Uses open fire without chimney | J405: 0.6369002174 | M405: Has hard floor | O405: -0.6684210932
C406: Has hard floor | E406: -0.6688541319 | H406: Has hard floor | J406: -0.5746238744 | M406: Has hearth floor | O406: 0.6684210932
C407: Has hearth floor | E407: 0.6688541319 | H407: Has hearth floor | J407: 0.5746238744 | M407: Has Vacuum cleaner | O407: 0.6444540312
C408: Has Vacuum cleaner | E408: 0.6443397082 | H408: Has Vacuum cleaner | J408: 0.5690105538 | M408: Uses open fire without chimney | O408: 0.6346944305
C409: Has Clothes washing machine | E409: 0.5688134126 | H409: Permanent Income question 1 | J409: 0.5170548222 | M409: Has Clothes washing machine | O409: 0.569190142
C410: Has Cellular phone | E410: 0.5605113612 | H410: Has Clothes washing machine | J410: 0.5114050056 | M410: Has Cellular phone | O410: 0.5678657567
C411: Has cement, brick, stone or wood wall | E411: -0.4807953063 | H411: Uses separate room as kitchen | J411: -0.5101617595 | M411: Permanent Income question 1 | O411: 0.5452301573
C412: Has Refrigerator | E412: 0.4701796215 | H412: Has Refrigerator | J412: 0.4697595519 | M412: Has DVD | O412: 0.4819287728
C413: Uses separate room as kitchen | E413: -0.4684385098 | H413: Has Bicycle | J413: 0.4200498258 | M413: Uses separate room as kitchen | O413: -0.4522495886
C414: Has DVD | E414: 0.4569239575 | H414: Has Cellular phone | J414: 0.405199308 | M414: Has cement, brick, stone or wood wall | O414: -0.444634243
C415: Has Bicycle | E415: 0.3981320867 | H415: Has cement, brick, stone or wood wall | J415: -0.3980410196 | M415: Has Bicycle | O415: 0.4253951534
C416: Has Telephone | E416: 0.3505997804 | H416: Kooks outdoor | J416: 0.3582195321 | M416: Has Refrigerator | O416: 0.3712402749
C417: Has Video | E417: 0.3367997821 | H417: Has DVD | J417: 0.343811181 | M417: Has Video | O417: 0.3664972274
C418: Kooks outdoor | E418: 0.3286524832 | H418: Has Telephone | J418: 0.3387806775 | M418: Has Stereo | O418: 0.3002969042
C419: Has mud brick wall | E419: 0.3262505724 | H419: Has Computer | J419: 0.3369707469 | M419: Has mud brick wall | O419: 0.2917787649
C420: Uses open fire with chimney | E420: 0.3259551423 | H420: Uses living or sleeping room as kitchen | J420: 0.2764423082 | M420: Has Telephone | O420: 0.2813110612
C421: Has Computer | E421: 0.3085394954 | H421: Has thatch wall | J421: 0.2748944423 | M421: Kooks outdoor | O421: 0.2808549218
C422: Has thatch wall | E422: 0.3061617803 | H422: Uses open fire with chimney | J422: 0.2584006912 | M422: Has thatch wall | O422: 0.2791281962
C423: Uses separate building as kitchen | E423: 0.2565991276 | H423: Uses separate building as kitchen | J423: 0.2257358439 | M423: Uses open fire with chimney | O423: 0.2538578839
... 193 more rows

Sheet ENG12
A2: =A1026 -> Mexico
A3: =A1034 -> 2012
A4: Use of drinking water sources
A5: by wealth quintile and sub-national region
A6: Notes:
A7: WHO/UNICEF JMP customised wealth index excludes water,
A8: sanitation and hygiene assets.
A9: Survey used for analysis: | B9: =A1025 -> ENG12
A10: =B1028 -> 
A11: =B1027 -> Time to improved source based on: | B11: MICS15
A14: Use of drinking water sources | C14: NATIONAL wealth index quintile | H14: URBAN wealth index quintile | M14: RURAL wealth index quintile | BA14: Raw numbers of respondents: | BB14: Use of drinking water sources | BC14: NATIONAL wealth index quintile | BH14: URBAN wealth index quintile | BM14: RURAL wealth index quintile
A15: Weighted percentage (used in graphs) | C15: Poorest | D15: Poor | E15: Middle | F15: Rich | G15: Richest | H15: Poorest | I15: Poor | J15: Middle | K15: Rich | L15: Richest | M15: Poorest | N15: Poor | O15: Middle | P15: Rich | Q15: Richest | BA15: Water data, raw numbers (weighted) | BC15: Poorest | BD15: Poor | BE15: Middle | BF15: Rich | BG15: Richest | BH15: Poorest | BI15: Poor | BJ15: Middle | BK15: Rich | BL15: Richest | BM15: Poorest | BN15: Poor | BO15: Middle | BP15: Rich | BQ15: Richest
A16: Water | B16: Improved | C16: =C58+C59+C60+C61+C62+C63*MICS15!C24/100 -> 95.25960691 | D16: =D58+D59+D60+D61+D62+D63*MICS15!D24/100 -> 98.8899203 | E16: =E58+E59+E60+E61+E62+E63*MICS15!E24/100 -> 99.87545367 | F16: =F58+F59+F60+F61+F62+F63*MICS15!F24/100 -> 99.9741768 | G16: =G58+G59+G60+G61+G62+G63*MICS15!G24/100 -> 99.76393 | H16: =H58+H59+H60+H61+H62+H63*MICS15!H24/100 -> 98.4125954 | I16: =I58+I59+I60+I61+I62+I63*MICS15!I24/100 -> 99.42632574 | J16: =J58+J59+J60+J61+J62+J63*MICS15!J24/100 -> 100 | K16: =K58+K59+K60+K61+K62+K63*MICS15!K24/100 -> 100 | L16: =L58+L59+L60+L61+L62+L63*MICS15!L24/100 -> 99.67860349 | M16: =M58+M59+M60+M61+M62+M63*MICS15!M24/100 -> 89.60091797 | N16: =N58+N59+N60+N61+N62+N63*MICS15!N24/100 -> 94.46265109 | O16: =O58+O59+O60+O61+O62+O63*MICS15!O24/100 -> 98.07812744 | P16: =P58+P59+P60+P61+P62+P63*MICS15!P24/100 -> 99.3075781 | Q16: =Q58+Q59+Q60+Q61+Q62+Q63*MICS15!Q24/100 -> 99.51525367 | BA16: Water | BB16: Improved | BC16: N/A | BD16: N/A | BE16: N/A | BF16: N/A | BG16: N/A | BH16: N/A | BI16: N/A | BJ16: N/A | BK16: N/A | BL16: N/A | BM16: N/A | BN16: N/A | BO16: N/A | BP16: N/A | BQ16: N/A
B17: Not Improved | C17: =100-C16 -> 4.74039309 | D17: =100-D16 -> 1.110079695 | E17: 0.1245463261 | F17: 0.02582320427 | G17: 0.2360700035 | H17: 1.587404597 | I17: 0.5736742625 | J17: -4.547473509e-13 | K17: 0 | L17: 0.3213965133 | M17: 10.39908203 | N17: 5.537348914 | O17: 1.921872563 | P17: 0.6924218965 | Q17: 0.4847463266 | BB17: Not Improved | BC17: N/A | BD17: N/A | BE17: N/A | BF17: N/A | BG17: N/A | BH17: N/A | BI17: N/A | BJ17: N/A | BK17: N/A | BL17: N/A | BM17: N/A | BN17: N/A | BO17: N/A | BP17: N/A | BQ17: N/A
A18: Water ladder | B18: Basic | C18: =C16*MICS15!C23/100 -> 93.6548332 | D18: =D16*MICS15!D23/100 -> 98.76995728 | E18: =E16*MICS15!E23/100 -> 99.76036977 | F18: =F16*MICS15!F23/100 -> 99.9741768 | G18: =G16*MICS15!G23/100 -> 99.76393 | H18: =H16*MICS15!H23/100 -> 98.28745943 | I18: =I16*MICS15!I23/100 -> 99.35768252 | J18: =J16*MICS15!J23/100 -> 99.93294467 | K18: =K16*MICS15!K23/100 -> 100 | L18: =L16*MICS15!L23/100 -> 99.67860349 | M18: =M16*MICS15!M23/100 -> 85.09557847 | N18: =N16*MICS15!N23/100 -> 93.74047094 | O18: =O16*MICS15!O23/100 -> 96.67913809 | P18: =P16*MICS15!P23/100 -> 98.79933766 | Q18: =Q16*MICS15!Q23/100 -> 99.46838743 | BA18: Water ladder | BB18: Basic | BC18: N/A | BD18: N/A | BE18: N/A | BF18: N/A | BG18: N/A | BH18: N/A | BI18: N/A | BJ18: N/A | BK18: N/A | BL18: N/A | BM18: N/A | BN18: N/A | BO18: N/A | BP18: N/A | BQ18: N/A
B19: Limited | C19: =C16*MICS15!C22/100 -> 1.604773711 | D19: =D16*MICS15!D22/100 -> 0.1199630216 | E19: =E16*MICS15!E22/100 -> 0.1150839047 | F19: =F16*MICS15!F22/100 -> 0 | G19: =G16*MICS15!G22/100 -> 0 | H19: =H16*MICS15!H22/100 -> 0.1251359757 | I19: =I16*MICS15!I22/100 -> 0.06864322174 | J19: =J16*MICS15!J22/100 -> 0.06705533233 | K19: =K16*MICS15!K22/100 -> 0 | L19: =L16*MICS15!L22/100 -> 0 | M19: =M16*MICS15!M22/100 -> 4.505339497 | N19: =N16*MICS15!N22/100 -> 0.7221801483 | O19: =O16*MICS15!O22/100 -> 1.398989348 | P19: =P16*MICS15!P22/100 -> 0.5082404442 | Q19: =Q16*MICS15!Q22/100 -> 0.04686624211 | BB19: Limited | BC19: N/A | BD19: N/A | BE19: N/A | BF19: N/A | BG19: N/A | BH19: N/A | BI19: N/A | BJ19: N/A | BK19: N/A | BL19: N/A | BM19: N/A | BN19: N/A | BO19: N/A | BP19: N/A | BQ19: N/A
B20: Unimproved | C20: =100-(C18+C19+C21) -> 4.406836672 | D20: =100-(D18+D19+D21) -> 1.048405385 | E20: 0.050070832 | F20: -0.1624920912 | G20: 0.2360700035 | H20: 1.457613318 | I20: 0.5224822195 | J20: -0.02389058866 | K20: 0 | L20: 0.3213965133 | M20: 9.359003615 | N20: 5.280748966 | O20: 1.921872563 | P20: 0.5397976475 | Q20: -0.2504380418 | BB20: Unimproved | BC20: N/A | BD20: N/A | BE20: N/A | BF20: N/A | BG20: N/A | BH20: N/A | BI20: N/A | BJ20: N/A | BK20: N/A | BL20: N/A | BM20: N/A | BN20: N/A | BO20: N/A | BP20: N/A | BQ20: N/A
B21: Surface water | C21: =MICS15!C21 -> 0.3335564189 | D21: =MICS15!D21 -> 0.06167430971 | E21: =MICS15!E21 -> 0.07447549411 | F21: =MICS15!F21 -> 0.1883152954 | G21: =MICS15!G21 -> 0 | H21: =MICS15!H21 -> 0.1297912782 | I21: =MICS15!I21 -> 0.05119204301 | J21: =MICS15!J21 -> 0.02389058866 | K21: =MICS15!K21 -> 0 | L21: =MICS15!L21 -> 0 | M21: =MICS15!M21 -> 1.040078415 | N21: =MICS15!N21 -> 0.2565999475 | O21: =MICS15!O21 -> 0 | P21: =MICS15!P21 -> 0.1526242491 | Q21: =MICS15!Q21 -> 0.7351843684 | BB21: Surface water | BC21: N/A | BD21: N/A | BE21: N/A | BF21: N/A | BG21: N/A | BH21: N/A | BI21: N/A | BJ21: N/A | BK21: N/A | BL21: N/A | BM21: N/A | BN21: N/A | BO21: N/A | BP21: N/A | BQ21: N/A
A22: Improved water point at more than 30 minutes | B22: Yes | C22: N/A | D22: N/A | E22: N/A | F22: N/A | G22: N/A | H22: N/A | I22: N/A | J22: N/A | K22: N/A | L22: N/A | M22: N/A | N22: N/A | O22: N/A | P22: N/A | Q22: N/A | BA22: Improved water point at more than 30 minutes | BB22: Yes | BC22: N/A | BD22: N/A | BE22: N/A | BF22: N/A | BG22: N/A | BH22: N/A | BI22: N/A | BJ22: N/A | BK22: N/A | BL22: N/A | BM22: N/A | BN22: N/A | BO22: N/A | BP22: N/A | BQ22: N/A
B23: No | C23: N/A | D23: N/A | E23: N/A | F23: N/A | G23: N/A | H23: N/A | I23: N/A | J23: N/A | K23: N/A | L23: N/A | M23: N/A | N23: N/A | O23: N/A | P23: N/A | Q23: N/A | BB23: No | BC23: N/A | BD23: N/A | BE23: N/A | BF23: N/A | BG23: N/A | BH23: N/A | BI23: N/A | BJ23: N/A | BK23: N/A | BL23: N/A | BM23: N/A | BN23: N/A | BO23: N/A | BP23: N/A | BQ23: N/A
A24: Manually calculated ratios | B24: Improved wells
B25: Improved springs
B26: Other
C27: NATIONAL wealth index quintile | H27: URBAN wealth index quintile | M27: RURAL wealth index quintile | BA27: Raw numbers of respondents: | BB27: Use of drinking water sources | BC27: NATIONAL wealth index quintile | BH27: URBAN wealth index quintile | BM27: RURAL wealth index quintile
A28: Percentage based on weighted population | C28: Poorest | D28: Poor | E28: Middle | F28: Rich | G28: Richest | H28: Poorest | I28: Poor | J28: Middle | K28: Rich | L28: Richest | M28: Poorest | N28: Poor | O28: Middle | P28: Rich | Q28: Richest | BA28: Water data, raw numbers (weighted) | BC28: Poorest | BD28: Poor | BE28: Middle | BF28: Rich | BG28: Richest | BH28: Poorest | BI28: Poor | BJ28: Middle | BK28: Rich | BL28: Richest | BM28: Poorest | BN28: Poor | BO28: Middle | BP28: Rich | BQ28: Richest
A29: Piped water | B29: Yes | C29: 78.03867963 | D29: 91.19680949 | E29: 95.9058584 | F29: 97.32477336 | G29: 98.33705072 | H29: 89.32392215 | I29: 95.54194556 | J29: 98.76827837 | K29: 97.71895855 | L29: 99.07462194 | M29: 65.73359079 | N29: 74.25186595 | O29: 82.64007127 | P29: 85.77784923 | Q29: 87.26517213 | BA29: Piped water | BB29: Yes | BC29: N/A | BD29: N/A | BE29: N/A | BF29: N/A | BG29: N/A | BH29: N/A | BI29: N/A | BJ29: N/A | BK29: N/A | BL29: N/A | BM29: N/A | BN29: N/A | BO29: N/A | BP29: N/A | BQ29: N/A
B30: No | C30: 21.96132037 | D30: 8.803190509 | E30: 4.094141599 | F30: 2.675226643 | G30: 1.662949283 | H30: 10.67607785 | I30: 4.45805444 | J30: 1.231721631 | K30: 2.281041452 | L30: 0.9253780575 | M30: 34.26640921 | N30: 25.74813405 | O30: 17.35992873 | P30: 14.22215077 | Q30: 12.73482787 | BB30: No | BC30: N/A | BD30: N/A | BE30: N/A | BF30: N/A | BG30: N/A | BH30: N/A | BI30: N/A | BJ30: N/A | BK30: N/A | BL30: N/A | BM30: N/A | BN30: N/A | BO30: N/A | BP30: N/A | BQ30: N/A
A31: Piped water on premises | B31: Yes | C31: 73.54439812 | D31: 89.54209644 | E31: 95.33651063 | F31: 97.26196607 | G31: 97.91030492 | H31: 85.17411986 | I31: 94.92613301 | J31: 98.3588349 | K31: 97.69003777 | L31: 98.72762248 | M31: 61.15405799 | N31: 70.57950535 | O31: 79.73933479 | P31: 85.15433248 | Q31: 86.34263688 | BA31: Piped water on premises | BB31: Yes | BC31: N/A | BD31: N/A | BE31: N/A | BF31: N/A | BG31: N/A | BH31: N/A | BI31: N/A | BJ31: N/A | BK31: N/A | BL31: N/A | BM31: N/A | BN31: N/A | BO31: N/A | BP31: N/A | BQ31: N/A
B32: No | C32: 26.45560188 | D32: 10.45790356 | E32: 4.663489367 | F32: 2.738033926 | G32: 2.089695082 | H32: 14.82588014 | I32: 5.073866991 | J32: 1.641165099 | K32: 2.309962232 | L32: 1.272377522 | M32: 38.84594201 | N32: 29.42049465 | O32: 20.26066521 | P32: 14.84566752 | Q32: 13.65736312 | BB32: No | BC32: N/A | BD32: N/A | BE32: N/A | BF32: N/A | BG32: N/A | BH32: N/A | BI32: N/A | BJ32: N/A | BK32: N/A | BL32: N/A | BM32: N/A | BN32: N/A | BO32: N/A | BP32: N/A | BQ32: N/A
A33: Piped water into dwelling | B33: Yes | C33: N/A | D33: N/A | E33: N/A | F33: N/A | G33: N/A | H33: N/A | I33: N/A | J33: N/A | K33: N/A | L33: N/A | M33: N/A | N33: N/A | O33: N/A | P33: N/A | Q33: N/A | BA33: Piped water into dwelling | BB33: Yes | BC33: N/A | BD33: N/A | BE33: N/A | BF33: N/A | BG33: N/A | BH33: N/A | BI33: N/A | BJ33: N/A | BK33: N/A | BL33: N/A | BM33: N/A | BN33: N/A | BO33: N/A | BP33: N/A | BQ33: N/A
B34: No | C34: N/A | D34: N/A | E34: N/A | F34: N/A | G34: N/A | H34: N/A | I34: N/A | J34: N/A | K34: N/A | L34: N/A | M34: N/A | N34: N/A | O34: N/A | P34: N/A | Q34: N/A | BB34: No | BC34: N/A | BD34: N/A | BE34: N/A | BF34: N/A | BG34: N/A | BH34: N/A | BI34: N/A | BJ34: N/A | BK34: N/A | BL34: N/A | BM34: N/A | BN34: N/A | BO34: N/A | BP34: N/A | BQ34: N/A
A35: Water source on premises | B35: Yes | C35: N/A | D35: N/A | E35: N/A | F35: N/A | G35: N/A | H35: N/A | I35: N/A | J35: N/A | K35: N/A | L35: N/A | M35: N/A | N35: N/A | O35: N/A | P35: N/A | Q35: N/A | BA35: Water source on premises | BB35: Yes | BC35: N/A | BD35: N/A | BE35: N/A | BF35: N/A | BG35: N/A | BH35: N/A | BI35: N/A | BJ35: N/A | BK35: N/A | BL35: N/A | BM35: N/A | BN35: N/A | BO35: N/A | BP35: N/A | BQ35: N/A
B36: No | C36: N/A | D36: N/A | E36: N/A | F36: N/A | G36: N/A | H36: N/A | I36: N/A | J36: N/A | K36: N/A | L36: N/A | M36: N/A | N36: N/A | O36: N/A | P36: N/A | Q36: N/A | BB36: No | BC36: N/A | BD36: N/A | BE36: N/A | BF36: N/A | BG36: N/A | BH36: N/A | BI36: N/A | BJ36: N/A | BK36: N/A | BL36: N/A | BM36: N/A | BN36: N/A | BO36: N/A | BP36: N/A | BQ36: N/A
A37: Improved Water source on premises | B37: Yes | C37: N/A | D37: N/A | E37: N/A | F37: N/A | G37: N/A | H37: N/A | I37: N/A | J37: N/A | K37: N/A | L37: N/A | M37: N/A | N37: N/A | O37: N/A | P37: N/A | Q37: N/A | BA37: Improved water source on premises | BB37: Yes | BC37: N/A | BD37: N/A | BE37: N/A | BF37: N/A | BG37: N/A | BH37: N/A | BI37: N/A | BJ37: N/A | BK37: N/A | BL37: N/A | BM37: N/A | BN37: N/A | BO37: N/A | BP37: N/A | BQ37: N/A
B38: No | C38: N/A | D38: N/A | E38: N/A | F38: N/A | G38: N/A | H38: N/A | I38: N/A | J38: N/A | K38: N/A | L38: N/A | M38: N/A | N38: N/A | O38: N/A | P38: N/A | Q38: N/A | BB38: No | BC38: N/A | BD38: N/A | BE38: N/A | BF38: N/A | BG38: N/A | BH38: N/A | BI38: N/A | BJ38: N/A | BK38: N/A | BL38: N/A | BM38: N/A | BN38: N/A | BO38: N/A | BP38: N/A | BQ38: N/A
A39: Piped water on premises available when needed | B39: Yes | C39: N/A | D39: N/A | E39: N/A | F39: N/A | G39: N/A | H39: N/A | I39: N/A | J39: N/A | K39: N/A | L39: N/A | M39: N/A | N39: N/A | O39: N/A | P39: N/A | Q39: N/A | BA39: Piped water on premises available when needed | BB39: Yes | BC39: N/A | BD39: N/A | BE39: N/A | BF39: N/A | BG39: N/A | BH39: N/A | BI39: N/A | BJ39: N/A | BK39: N/A | BL39: N/A | BM39: N/A | BN39: N/A | BO39: N/A | BP39: N/A | BQ39: N/A
B40: No | C40: N/A | D40: N/A | E40: N/A | F40: N/A | G40: N/A | H40: N/A | I40: N/A | J40: N/A | K40: N/A | L40: N/A | M40: N/A | N40: N/A | O40: N/A | P40: N/A | Q40: N/A | BB40: No | BC40: N/A | BD40: N/A | BE40: N/A | BF40: N/A | BG40: N/A | BH40: N/A | BI40: N/A | BJ40: N/A | BK40: N/A | BL40: N/A | BM40: N/A | BN40: N/A | BO40: N/A | BP40: N/A | BQ40: N/A
A41: Water point at more than 30 minutes | B41: Yes | C41: N/A | D41: N/A | E41: N/A | F41: N/A | G41: N/A | H41: N/A | I41: N/A | J41: N/A | K41: N/A | L41: N/A | M41: N/A | N41: N/A | O41: N/A | P41: N/A | Q41: N/A | BA41: Water point at more than 30 minutes | BB41: Yes | BC41: N/A | BD41: N/A | BE41: N/A | BF41: N/A | BG41: N/A | BH41: N/A | BI41: N/A | BJ41: N/A | BK41: N/A | BL41: N/A | BM41: N/A | BN41: N/A | BO41: N/A | BP41: N/A | BQ41: N/A
B42: No | C42: N/A | D42: N/A | E42: N/A | F42: N/A | G42: N/A | H42: N/A | I42: N/A | J42: N/A | K42: N/A | L42: N/A | M42: N/A | N42: N/A | O42: N/A | P42: N/A | Q42: N/A | BB42: No | BC42: N/A | BD42: N/A | BE42: N/A | BF42: N/A | BG42: N/A | BH42: N/A | BI42: N/A | BJ42: N/A | BK42: N/A | BL42: N/A | BM42: N/A | BN42: N/A | BO42: N/A | BP42: N/A | BQ42: N/A
A43: Water source available when needed | B43: Yes | C43: N/A | D43: N/A | E43: N/A | F43: N/A | G43: N/A | H43: N/A | I43: N/A | J43: N/A | K43: N/A | L43: N/A | M43: N/A | N43: N/A | O43: N/A | P43: N/A | Q43: N/A | BA43: Water source available when needed | BB43: Yes | BC43: N/A | BD43: N/A | BE43: N/A | BF43: N/A | BG43: N/A | BH43: N/A | BI43: N/A | BJ43: N/A | BK43: N/A | BL43: N/A | BM43: N/A | BN43: N/A | BO43: N/A | BP43: N/A | BQ43: N/A
B44: No | C44: N/A | D44: N/A | E44: N/A | F44: N/A | G44: N/A | H44: N/A | I44: N/A | J44: N/A | K44: N/A | L44: N/A | M44: N/A | N44: N/A | O44: N/A | P44: N/A | Q44: N/A | BB44: No | BC44: N/A | BD44: N/A | BE44: N/A | BF44: N/A | BG44: N/A | BH44: N/A | BI44: N/A | BJ44: N/A | BK44: N/A | BL44: N/A | BM44: N/A | BN44: N/A | BO44: N/A | BP44: N/A | BQ44: N/A
A45: Improved water source available when needed | B45: Yes | C45: N/A | D45: N/A | E45: N/A | F45: N/A | G45: N/A | H45: N/A | I45: N/A | J45: N/A | K45: N/A | L45: N/A | M45: N/A | N45: N/A | O45: N/A | P45: N/A | Q45: N/A | BA45: Improved water source available when needed | BB45: Yes | BC45: N/A | BD45: N/A | BE45: N/A | BF45: N/A | BG45: N/A | BH45: N/A | BI45: N/A | BJ45: N/A | BK45: N/A | BL45: N/A | BM45: N/A | BN45: N/A | BO45: N/A | BP45: N/A | BQ45: N/A
B46: No | C46: N/A | D46: N/A | E46: N/A | F46: N/A | G46: N/A | H46: N/A | I46: N/A | J46: N/A | K46: N/A | L46: N/A | M46: N/A | N46: N/A | O46: N/A | P46: N/A | Q46: N/A | BB46: No | BC46: N/A | BD46: N/A | BE46: N/A | BF46: N/A | BG46: N/A | BH46: N/A | BI46: N/A | BJ46: N/A | BK46: N/A | BL46: N/A | BM46: N/A | BN46: N/A | BO46: N/A | BP46: N/A | BQ46: N/A
A47: Microbiological quality at point of collection | B47: Not contaminated (No E. coli in 100 mL) | C47: N/A | D47: N/A | E47: N/A | F47: N/A | G47: N/A | H47: N/A | I47: N/A | J47: N/A | K47: N/A | L47: N/A | M47: N/A | N47: N/A | O47: N/A | P47: N/A | Q47: N/A | BA47: Microbiological quality at point of collection | BB47: Not contaminated (No E. coli in 100 mL) | BC47: N/A | BD47: N/A | BE47: N/A | BF47: N/A | BG47: N/A | BH47: N/A | BI47: N/A | BJ47: N/A | BK47: N/A | BL47: N/A | BM47: N/A | BN47: N/A | BO47: N/A | BP47: N/A | BQ47: N/A
B48: Contaminated (E. coli detected in 100 mL) | C48: N/A | D48: N/A | E48: N/A | F48: N/A | G48: N/A | H48: N/A | I48: N/A | J48: N/A | K48: N/A | L48: N/A | M48: N/A | N48: N/A | O48: N/A | P48: N/A | Q48: N/A | BB48: Contaminated (E. coli detected in 100 mL) | BC48: N/A | BD48: N/A | BE48: N/A | BF48: N/A | BG48: N/A | BH48: N/A | BI48: N/A | BJ48: N/A | BK48: N/A | BL48: N/A | BM48: N/A | BN48: N/A | BO48: N/A | BP48: N/A | BQ48: N/A
B49: Highly contaminated (>100 CFU/100 mL) | C49: N/A | D49: N/A | E49: N/A | F49: N/A | G49: N/A | H49: N/A | I49: N/A | J49: N/A | K49: N/A | L49: N/A | M49: N/A | N49: N/A | O49: N/A | P49: N/A | Q49: N/A | BB49: Highly contaminated (>100 CFU/100 mL) | BC49: N/A | BD49: N/A | BE49: N/A | BF49: N/A | BG49: N/A | BH49: N/A | BI49: N/A | BJ49: N/A | BK49: N/A | BL49: N/A | BM49: N/A | BN49: N/A | BO49: N/A | BP49: N/A | BQ49: N/A
A50: Microbiological quality of improved water sources at point of collection | B50: Not contaminated (No E. coli in 100 mL) | C50: N/A | D50: N/A | E50: N/A | F50: N/A | G50: N/A | H50: N/A | I50: N/A | J50: N/A | K50: N/A | L50: N/A | M50: N/A | N50: N/A | O50: N/A | P50: N/A | Q50: N/A | BA50: Microbiological quality of improved water sources at point of collection | BB50: Not contaminated (No E. coli in 100 mL) | BC50: N/A | BD50: N/A | BE50: N/A | BF50: N/A | BG50: N/A | BH50: N/A | BI50: N/A | BJ50: N/A | BK50: N/A | BL50: N/A | BM50: N/A | BN50: N/A | BO50: N/A | BP50: N/A | BQ50: N/A
B51: Contaminated (E. coli detected in 100 mL) | C51: N/A | D51: N/A | E51: N/A | F51: N/A | G51: N/A | H51: N/A | I51: N/A | J51: N/A | K51: N/A | L51: N/A | M51: N/A | N51: N/A | O51: N/A | P51: N/A | Q51: N/A | BB51: Contaminated (E. coli detected in 100 mL) | BC51: N/A | BD51: N/A | BE51: N/A | BF51: N/A | BG51: N/A | BH51: N/A | BI51: N/A | BJ51: N/A | BK51: N/A | BL51: N/A | BM51: N/A | BN51: N/A | BO51: N/A | BP51: N/A | BQ51: N/A
B52: Highly contaminated (>100 CFU/100 mL) | C52: N/A | D52: N/A | E52: N/A | F52: N/A | G52: N/A | H52: N/A | I52: N/A | J52: N/A | K52: N/A | L52: N/A | M52: N/A | N52: N/A | O52: N/A | P52: N/A | Q52: N/A | BB52: Highly contaminated (>100 CFU/100 mL) | BC52: N/A | BD52: N/A | BE52: N/A | BF52: N/A | BG52: N/A | BH52: N/A | BI52: N/A | BJ52: N/A | BK52: N/A | BL52: N/A | BM52: N/A | BN52: N/A | BO52: N/A | BP52: N/A | BQ52: N/A
A53: Microbiological quality of piped on premises at point of collection | B53: Not contaminated (No E. coli in 100 mL) | C53: N/A | D53: N/A | E53: N/A | F53: N/A | G53: N/A | H53: N/A | I53: N/A | J53: N/A | K53: N/A | L53: N/A | M53: N/A | N53: N/A | O53: N/A | P53: N/A | Q53: N/A | BA53: Microbiological quality of piped on premises at point of collection | BB53: Not contaminated (No E. coli in 100 mL) | BC53: N/A | BD53: N/A | BE53: N/A | BF53: N/A | BG53: N/A | BH53: N/A | BI53: N/A | BJ53: N/A | BK53: N/A | BL53: N/A | BM53: N/A | BN53: N/A | BO53: N/A | BP53: N/A | BQ53: N/A
B54: Contaminated (E. coli detected in 100 mL) | C54: N/A | D54: N/A | E54: N/A | F54: N/A | G54: N/A | H54: N/A | I54: N/A | J54: N/A | K54: N/A | L54: N/A | M54: N/A | N54: N/A | O54: N/A | P54: N/A | Q54: N/A | BB54: Contaminated (E. coli detected in 100 mL) | BC54: N/A | BD54: N/A | BE54: N/A | BF54: N/A | BG54: N/A | BH54: N/A | BI54: N/A | BJ54: N/A | BK54: N/A | BL54: N/A | BM54: N/A | BN54: N/A | BO54: N/A | BP54: N/A | BQ54: N/A
B55: Highly contaminated (>100 CFU/100 mL) | C55: N/A | D55: N/A | E55: N/A | F55: N/A | G55: N/A | H55: N/A | I55: N/A | J55: N/A | K55: N/A | L55: N/A | M55: N/A | N55: N/A | O55: N/A | P55: N/A | Q55: N/A | BB55: Highly contaminated (>100 CFU/100 mL) | BC55: N/A | BD55: N/A | BE55: N/A | BF55: N/A | BG55: N/A | BH55: N/A | BI55: N/A | BJ55: N/A | BK55: N/A | BL55: N/A | BM55: N/A | BN55: N/A | BO55: N/A | BP55: N/A | BQ55: N/A
C56: NATIONAL wealth index quintile | H56: URBAN wealth index quintile | M56: RURAL wealth index quintile | BA56: Raw numbers of respondents: | BB56: Use of drinking water sources | BC56: NATIONAL wealth index quintile | BH56: URBAN wealth index quintile | BM56: RURAL wealth index quintile
A57: Percentage based on weighted population | C57: Poorest | D57: Poor | E57: Middle | F57: Rich | G57: Richest | H57: Poorest | I57: Poor | J57: Middle | K57: Rich | L57: Richest | M57: Poorest | N57: Poor | O57: Middle | P57: Rich | Q57: Richest | BA57: Water data, raw numbers (weighted) | BC57: Poorest | BD57: Poor | BE57: Middle | BF57: Rich | BG57: Richest | BH57: Poorest | BI57: Poor | BJ57: Middle | BK57: Rich | BL57: Richest | BM57: Poorest | BN57: Poor | BO57: Middle | BP57: Rich | BQ57: Richest
A58: Disponibilidad de agua | B58: Agua entubada dentro de la vivienda | C58: 17.91006652 | D58: 47.88806782 | E58: 80.51870205 | F58: 93.92901911 | G58: 97.12381345 | H58: 35.85551987 | I58: 69.834534 | J58: 90.70331668 | K58: 96.0618235 | L58: 98.39188765 | M58: 6.689761234 | N58: 11.00723702 | O58: 22.9342551 | P58: 45.05900541 | Q58: 74.27070561
B59: Agua entubada fuera de la vivienda, pero dentro del terreno | C59: 55.6343316 | D59: 41.65402862 | E59: 14.81780859 | F59: 3.332946967 | G59: 0.7864914672 | H59: 49.31859999 | I59: 25.091599 | J59: 7.655518219 | K59: 1.62821427 | L59: 0.3357348307 | M59: 54.46429675 | N59: 59.57226833 | O59: 56.80507969 | P59: 40.09532708 | Q59: 12.07193128
B60: Agua entubada de llave pública (o hidrante) | C60: 0.8483068382 | D60: 0.2990535873 | E60: 0.1988450851 | F60: 0.02182912629 | G60: 0.01777947144 | H60: 0.5176338818 | I60: 0.04847928617 | J60: 0.2301364825 | K60: 0 | L60: 0.02302770325 | M60: 1.37833053 | N60: 0.8949715119 | O60: 0.7346585362 | P60: 0.1389632811 | Q60: 0.1174058466
B61: Agua entubada que acarrean de otra vivienda | C61: 3.645974669 | D61: 1.355659466 | E61: 0.3705026831 | F61: 0.04097815653 | G61: 0.4089663268 | H61: 3.6321684 | I61: 0.5673332652 | J61: 0.1793069854 | K61: 0.0289207805 | L61: 0.3239717615 | M61: 3.201202271 | N61: 2.777389087 | O61: 2.166077945 | P61: 0.4845534626 | Q61: 0.8051294025
B62: Agua de pipa | C62: 2.772962146 | D62: 2.512922553 | E62: 0.6543326997 | F62: 0.9266389428 | G62: 0.6978207362 | H62: 3.51020928 | I62: 1.810130503 | J62: 0.6238524378 | K62: 0.95772878 | L62: 0.6039815442 | M62: 0.5683293218 | N62: 1.354873857 | O62: 2.708817412 | P62: 2.003810278 | Q62: 1.128416042
B63: Agua de un pozo, río, lago, arroyo u otra | C63: 19.18835823 | D63: 6.290267956 | E63: 3.439808899 | F63: 1.7485877 | G63: 0.9651285471 | H63: 7.165868575 | I63: 2.647923937 | J63: 0.6078691933 | K63: 1.323312672 | L63: 0.3213965133 | M63: 33.69807989 | N63: 24.3932602 | O63: 14.65111131 | P63: 12.2183405 | Q63: 11.60641183
A108: =A1026 -> Mexico
A109: =A1034 -> 2012
A110: Use of sanitation facilities
A111: by wealth quintile and sub-national region
A112: Notes:
A113: WHO/UNICEF JMP customised wealth index excludes water,
A114: sanitation and hygiene assets.
A115: Survey used for analysis: | B115: =A1025 -> ENG12
A116: =B1030 -> Ratio of Improved latrines based on: | B116: MICS15
A117: =B1029 -> Ratio of Shared improved based on: | B117: MICS15
A120: Use of sanitation facilities | C120: NATIONAL wealth index quintile | H120: URBAN wealth index quintile | M120: RURAL wealth index quintile | BB120: Use of sanitation facilities | BC120: NATIONAL wealth index quintile | BH120: URBAN wealth index quintile | BM120: RURAL wealth index quintile
A121: Weighted percentage (used in graphs) | C121: Poorest | D121: Poor | E121: Middle | F121: Rich | G121: Richest | H121: Poorest | I121: Poor | J121: Middle | K121: Rich | L121: Richest | M121: Poorest | N121: Poor | O121: Middle | P121: Rich | Q121: Richest | BC121: Poorest | BD121: Poor | BE121: Middle | BF121: Rich | BG121: Richest | BH121: Poorest | BI121: Poor | BJ121: Middle | BK121: Rich | BL121: Richest | BM121: Poorest | BN121: Poor | BO121: Middle | BP121: Rich | BQ121: Richest
A122: Sanitation | B122: Improved | C122: =C153+C154+C155+C156*MICS15!C130/100 -> 83.6956708 | D122: =D153+D154+D155+D156*MICS15!D130/100 -> 96.19655197 | E122: =E153+E154+E155+E156*MICS15!E130/100 -> 98.99989919 | F122: =F153+F154+F155+F156*MICS15!F130/100 -> 99.2140052 | G122: =G153+G154+G155+G156*MICS15!G130/100 -> 99.60100102 | H122: =H153+H154+H155+H156*MICS15!H130/100 -> 92.52867377 | I122: =I153+I154+I155+I156*MICS15!I130/100 -> 98.72886209 | J122: =J153+J154+J155+J156*MICS15!J130/100 -> 98.99767545 | K122: =K153+K154+K155+K156*MICS15!K130/100 -> 99.63618529 | L122: =L153+L154+L155+L156*MICS15!L130/100 -> 99.56187552 | M122: =M153+M154+M155+M156*MICS15!M130/100 -> 71.25723043 | N122: =N153+N154+N155+N156*MICS15!N130/100 -> 83.06071391 | O122: =O153+O154+O155+O156*MICS15!O130/100 -> 89.43595364 | P122: =P153+P154+P155+P156*MICS15!P130/100 -> 96.70298507 | Q122: =Q153+Q154+Q155+Q156*MICS15!Q130/100 -> 98.30642235 | BB122: Improved | BC122: N/A | BD122: N/A | BE122: N/A | BF122: N/A | BG122: N/A | BH122: N/A | BI122: N/A | BJ122: N/A | BK122: N/A | BL122: N/A | BM122: N/A | BN122: N/A | BO122: N/A | BP122: N/A | BQ122: N/A
B123: Not Improved | C123: =100-C122 -> 16.3043292 | D123: =100-D122 -> 3.803448028 | E123: 1.000100808 | F123: 0.785994796 | G123: 0.3989989769 | H123: 7.471326227 | I123: 1.271137909 | J123: 1.002324547 | K123: 0.3638147123 | L123: 0.4381244838 | M123: 28.74276957 | N123: 16.93928609 | O123: 10.56404636 | P123: 3.297014934 | Q123: 1.693577653 | BB123: Not Improved | BC123: N/A | BD123: N/A | BE123: N/A | BF123: N/A | BG123: N/A | BH123: N/A | BI123: N/A | BJ123: N/A | BK123: N/A | BL123: N/A | BM123: N/A | BN123: N/A | BO123: N/A | BP123: N/A | BQ123: N/A
A124: Sanitation ladder | B124: Basic | C124: =C122*MICS15!C129/100 -> 73.59210989 | D124: =D122*MICS15!D129/100 -> 89.79364078 | E124: =E122*MICS15!E129/100 -> 96.26093996 | F124: =F122*MICS15!F129/100 -> 97.63692883 | G124: =G122*MICS15!G129/100 -> 99.28123793 | H124: =H122*MICS15!H129/100 -> 80.65355687 | I124: =I122*MICS15!I129/100 -> 94.85666148 | J124: =J122*MICS15!J129/100 -> 96.41733121 | K124: =K122*MICS15!K129/100 -> 98.22874336 | L124: =L122*MICS15!L129/100 -> 99.36825166 | M124: =M122*MICS15!M129/100 -> 64.33195977 | N124: =N122*MICS15!N129/100 -> 75.5594939 | O124: =O122*MICS15!O129/100 -> 82.89439255 | P124: =P122*MICS15!P129/100 -> 93.25410977 | Q124: =Q122*MICS15!Q129/100 -> 97.23123934 | BB124: Basic | BC124: N/A | BD124: N/A | BE124: N/A | BF124: N/A | BG124: N/A | BH124: N/A | BI124: N/A | BJ124: N/A | BK124: N/A | BL124: N/A | BM124: N/A | BN124: N/A | BO124: N/A | BP124: N/A | BQ124: N/A
B125: Limited | C125: =C122*MICS15!C128/100 -> 10.10356091 | D125: =D122*MICS15!D128/100 -> 6.402911197 | E125: =E122*MICS15!E128/100 -> 2.738959234 | F125: =F122*MICS15!F128/100 -> 1.577076375 | G125: =G122*MICS15!G128/100 -> 0.3197630906 | H125: =H122*MICS15!H128/100 -> 11.8751169 | I125: =I122*MICS15!I128/100 -> 3.872200611 | J125: =J122*MICS15!J128/100 -> 2.58034424 | K125: =K122*MICS15!K128/100 -> 1.407441932 | L125: =L122*MICS15!L128/100 -> 0.1936238552 | M125: =M122*MICS15!M128/100 -> 6.925270658 | N125: =N122*MICS15!N128/100 -> 7.501220007 | O125: =O122*MICS15!O128/100 -> 6.54156109 | P125: =P122*MICS15!P128/100 -> 3.448875294 | Q125: =Q122*MICS15!Q128/100 -> 1.07518301 | BB125: Limited | BC125: N/A | BD125: N/A | BE125: N/A | BF125: N/A | BG125: N/A | BH125: N/A | BI125: N/A | BJ125: N/A | BK125: N/A | BL125: N/A | BM125: N/A | BN125: N/A | BO125: N/A | BP125: N/A | BQ125: N/A
B126: Unimproved | C126: =100-(C124+C125+C127) -> 4.061190575 | D126: =100-(D124+D125+D127) -> 0.8554265804 | E126: 0.6623700918 | F126: 0.6877615938 | G126: 0.3713548492 | H126: 0.6040378266 | I126: 0.3245078669 | J126: 0.8476845727 | K126: 0.294481857 | L126: 0.4023202266 | M126: 10.84098637 | N126: 3.557300379 | O126: 3.303771179 | P126: 1.215352735 | Q126: 1.520325001 | BB126: Unimproved | BC126: N/A | BD126: N/A | BE126: N/A | BF126: N/A | BG126: N/A | BH126: N/A | BI126: N/A | BJ126: N/A | BK126: N/A | BL126: N/A | BM126: N/A | BN126: N/A | BO126: N/A | BP126: N/A | BQ126: N/A
B127: Open defecation | C127: =C157 -> 12.24313863 | D127: =D157 -> 2.948021447 | E127: 0.337730716 | F127: 0.09823320216 | G127: 0.02764412767 | H127: 6.867288401 | I127: 0.9466300421 | J127: 0.1546399748 | K127: 0.0693328553 | L127: 0.03580425721 | M127: 17.9017832 | N127: 13.38198571 | O127: 7.260275183 | P127: 2.081662199 | Q127: 0.1732526522 | BB127: Open defecation | BC127: N/A | BD127: N/A | BE127: N/A | BF127: N/A | BG127: N/A | BH127: N/A | BI127: N/A | BJ127: N/A | BK127: N/A | BL127: N/A | BM127: N/A | BN127: N/A | BO127: N/A | BP127: N/A | BQ127: N/A
A128: Shared among Improved Sanitation | B128: Yes | C128: N/A | D128: N/A | E128: N/A | F128: N/A | G128: N/A | H128: N/A | I128: N/A | J128: N/A | K128: N/A | L128: N/A | M128: N/A | N128: N/A | O128: N/A | P128: N/A | Q128: N/A | BB128: Yes | BC128: N/A | BD128: N/A | BE128: N/A | BF128: N/A | BG128: N/A | BH128: N/A | BI128: N/A | BJ128: N/A | BK128: N/A | BL128: N/A | BM128: N/A | BN128: N/A | BO128: N/A | BP128: N/A | BQ128: N/A
B129: No | C129: N/A | D129: N/A | E129: N/A | F129: N/A | G129: N/A | H129: N/A | I129: N/A | J129: N/A | K129: N/A | L129: N/A | M129: N/A | N129: N/A | O129: N/A | P129: N/A | Q129: N/A | BB129: No | BC129: N/A | BD129: N/A | BE129: N/A | BF129: N/A | BG129: N/A | BH129: N/A | BI129: N/A | BJ129: N/A | BK129: N/A | BL129: N/A | BM129: N/A | BN129: N/A | BO129: N/A | BP129: N/A | BQ129: N/A
A130: Manually calculated ratios | B130: Improved latrines
B131: Other
B132: Other
C133: NATIONAL wealth index quintile | H133: URBAN wealth index quintile | M133: RURAL wealth index quintile | BB133: Use of sanitation facilities | BC133: NATIONAL wealth index quintile | BH133: URBAN wealth index quintile | BM133: RURAL wealth index quintile
A134: Percentage based on weighted population | C134: Poorest | D134: Poor | E134: Middle | F134: Rich | G134: Richest | H134: Poorest | I134: Poor | J134: Middle | K134: Rich | L134: Richest | M134: Poorest | N134: Poor | O134: Middle | P134: Rich | Q134: Richest | BC134: Poorest | BD134: Poor | BE134: Middle | BF134: Rich | BG134: Richest | BH134: Poorest | BI134: Poor | BJ134: Middle | BK134: Rich | BL134: Richest | BM134: Poorest | BN134: Poor | BO134: Middle | BP134: Rich | BQ134: Richest
A135: Sanitation type | B135: Sewer connection | C135: 32.55946966 | D135: 70.07613333 | E135: 85.00209514 | F135: 91.1303032 | G135: 95.30523179 | H135: 70.46202375 | I135: 87.56231731 | J135: 91.69566768 | K135: 94.10751096 | L135: 96.2454432 | M135: 4.791572297 | N135: 9.817733323 | O135: 27.17107756 | P135: 47.06102535 | Q135: 66.25804774 | BB135: Sewer connection | BC135: N/A | BD135: N/A | BE135: N/A | BF135: N/A | BG135: N/A | BH135: N/A | BI135: N/A | BJ135: N/A | BK135: N/A | BL135: N/A | BM135: N/A | BN135: N/A | BO135: N/A | BP135: N/A | BQ135: N/A
B136: Septic tank connection | C136: 32.66643933 | D136: 21.60525345 | E136: 12.96612836 | F136: 7.992089108 | G136: 4.199269135 | H136: 15.02472411 | I136: 9.526163057 | J136: 7.076146456 | K136: 5.417500655 | L136: 3.273799502 | M136: 39.26601713 | N136: 46.42709195 | O136: 47.85719836 | P136: 44.85682666 | Q136: 30.8160492 | BB136: Septic tank connection | BC136: N/A | BD136: N/A | BE136: N/A | BF136: N/A | BG136: N/A | BH136: N/A | BI136: N/A | BJ136: N/A | BK136: N/A | BL136: N/A | BM136: N/A | BN136: N/A | BO136: N/A | BP136: N/A | BQ136: N/A
B137: Improved latrines | C137: N/A | D137: N/A | E137: N/A | F137: N/A | G137: N/A | H137: N/A | I137: N/A | J137: N/A | K137: N/A | L137: N/A | M137: N/A | N137: N/A | O137: N/A | P137: N/A | Q137: N/A | BB137: Improved latrines | BC137: N/A | BD137: N/A | BE137: N/A | BF137: N/A | BG137: N/A | BH137: N/A | BI137: N/A | BJ137: N/A | BK137: N/A | BL137: N/A | BM137: N/A | BN137: N/A | BO137: N/A | BP137: N/A | BQ137: N/A
B138: Unimproved facilities | C138: N/A | D138: N/A | E138: N/A | F138: N/A | G138: N/A | H138: N/A | I138: N/A | J138: N/A | K138: N/A | L138: N/A | M138: N/A | N138: N/A | O138: N/A | P138: N/A | Q138: N/A | BB138: Unimproved facilities | BC138: N/A | BD138: N/A | BE138: N/A | BF138: N/A | BG138: N/A | BH138: N/A | BI138: N/A | BJ138: N/A | BK138: N/A | BL138: N/A | BM138: N/A | BN138: N/A | BO138: N/A | BP138: N/A | BQ138: N/A
B139: Open defecation | C139: 12.24313863 | D139: 2.948021447 | E139: 0.337730716 | F139: 0.09823320216 | G139: 0.02764412767 | H139: 6.867288401 | I139: 0.9466300421 | J139: 0.1546399748 | K139: 0.0693328553 | L139: 0.03580425721 | M139: 17.9017832 | N139: 13.38198571 | O139: 7.260275183 | P139: 2.081662199 | Q139: 0.1732526522 | BB139: Open defecation | BC139: N/A | BD139: N/A | BE139: N/A | BF139: N/A | BG139: N/A | BH139: N/A | BI139: N/A | BJ139: N/A | BK139: N/A | BL139: N/A | BM139: N/A | BN139: N/A | BO139: N/A | BP139: N/A | BQ139: N/A
A140: Septic tank emptying practices | B140: Not emptied/treated and disposed in situ | C140: N/A | D140: N/A | E140: N/A | F140: N/A | G140: N/A | H140: N/A | I140: N/A | J140: N/A | K140: N/A | L140: N/A | M140: N/A | N140: N/A | O140: N/A | P140: N/A | Q140: N/A | BB140: Not emptied/treated and disposed in situ | BC140: N/A | BD140: N/A | BE140: N/A | BF140: N/A | BG140: N/A | BH140: N/A | BI140: N/A | BJ140: N/A | BK140: N/A | BL140: N/A | BM140: N/A | BN140: N/A | BO140: N/A | BP140: N/A | BQ140: N/A
B141: Emptied and buried on site | C141: N/A | D141: N/A | E141: N/A | F141: N/A | G141: N/A | H141: N/A | I141: N/A | J141: N/A | K141: N/A | L141: N/A | M141: N/A | N141: N/A | O141: N/A | P141: N/A | Q141: N/A | BB141: Emptied and buried on site | BC141: N/A | BD141: N/A | BE141: N/A | BF141: N/A | BG141: N/A | BH141: N/A | BI141: N/A | BJ141: N/A | BK141: N/A | BL141: N/A | BM141: N/A | BN141: N/A | BO141: N/A | BP141: N/A | BQ141: N/A
B142: Emptied and discharged locally | C142: N/A | D142: N/A | E142: N/A | F142: N/A | G142: N/A | H142: N/A | I142: N/A | J142: N/A | K142: N/A | L142: N/A | M142: N/A | N142: N/A | O142: N/A | P142: N/A | Q142: N/A | BB142: Emptied and discharged locally | BC142: N/A | BD142: N/A | BE142: N/A | BF142: N/A | BG142: N/A | BH142: N/A | BI142: N/A | BJ142: N/A | BK142: N/A | BL142: N/A | BM142: N/A | BN142: N/A | BO142: N/A | BP142: N/A | BQ142: N/A
B143: Emptied and removed offsite | C143: N/A | D143: N/A | E143: N/A | F143: N/A | G143: N/A | H143: N/A | I143: N/A | J143: N/A | K143: N/A | L143: N/A | M143: N/A | N143: N/A | O143: N/A | P143: N/A | Q143: N/A | BB143: Emptied and removed offsite | BC143: N/A | BD143: N/A | BE143: N/A | BF143: N/A | BG143: N/A | BH143: N/A | BI143: N/A | BJ143: N/A | BK143: N/A | BL143: N/A | BM143: N/A | BN143: N/A | BO143: N/A | BP143: N/A | BQ143: N/A
A144: Latrine emptying practices | B144: Not emptied/treated and disposed in situ | C144: N/A | D144: N/A | E144: N/A | F144: N/A | G144: N/A | H144: N/A | I144: N/A | J144: N/A | K144: N/A | L144: N/A | M144: N/A | N144: N/A | O144: N/A | P144: N/A | Q144: N/A | BB144: Not emptied/treated and disposed in situ | BC144: N/A | BD144: N/A | BE144: N/A | BF144: N/A | BG144: N/A | BH144: N/A | BI144: N/A | BJ144: N/A | BK144: N/A | BL144: N/A | BM144: N/A | BN144: N/A | BO144: N/A | BP144: N/A | BQ144: N/A
B145: Emptied and buried on site | C145: N/A | D145: N/A | E145: N/A | F145: N/A | G145: N/A | H145: N/A | I145: N/A | J145: N/A | K145: N/A | L145: N/A | M145: N/A | N145: N/A | O145: N/A | P145: N/A | Q145: N/A | BB145: Emptied and buried on site | BC145: N/A | BD145: N/A | BE145: N/A | BF145: N/A | BG145: N/A | BH145: N/A | BI145: N/A | BJ145: N/A | BK145: N/A | BL145: N/A | BM145: N/A | BN145: N/A | BO145: N/A | BP145: N/A | BQ145: N/A
B146: Emptied and discharged locally | C146: N/A | D146: N/A | E146: N/A | F146: N/A | G146: N/A | H146: N/A | I146: N/A | J146: N/A | K146: N/A | L146: N/A | M146: N/A | N146: N/A | O146: N/A | P146: N/A | Q146: N/A | BB146: Emptied and discharged locally | BC146: N/A | BD146: N/A | BE146: N/A | BF146: N/A | BG146: N/A | BH146: N/A | BI146: N/A | BJ146: N/A | BK146: N/A | BL146: N/A | BM146: N/A | BN146: N/A | BO146: N/A | BP146: N/A | BQ146: N/A
B147: Emptied and removed offsite | C147: N/A | D147: N/A | E147: N/A | F147: N/A | G147: N/A | H147: N/A | I147: N/A | J147: N/A | K147: N/A | L147: N/A | M147: N/A | N147: N/A | O147: N/A | P147: N/A | Q147: N/A | BB147: Emptied and removed offsite | BC147: N/A | BD147: N/A | BE147: N/A | BF147: N/A | BG147: N/A | BH147: N/A | BI147: N/A | BJ147: N/A | BK147: N/A | BL147: N/A | BM147: N/A | BN147: N/A | BO147: N/A | BP147: N/A | BQ147: N/A
A148: Shared among improved sanitation facilities | B148: Yes | C148: N/A | D148: N/A | E148: N/A | F148: N/A | G148: N/A | H148: N/A | I148: N/A | J148: N/A | K148: N/A | L148: N/A | M148: N/A | N148: N/A | O148: N/A | P148: N/A | Q148: N/A | BB148: Yes | BC148: N/A | BD148: N/A | BE148: N/A | BF148: N/A | BG148: N/A | BH148: N/A | BI148: N/A | BJ148: N/A | BK148: N/A | BL148: N/A | BM148: N/A | BN148: N/A | BO148: N/A | BP148: N/A | BQ148: N/A
B149: No | C149: N/A | D149: N/A | E149: N/A | F149: N/A | G149: N/A | H149: N/A | I149: N/A | J149: N/A | K149: N/A | L149: N/A | M149: N/A | N149: N/A | O149: N/A | P149: N/A | Q149: N/A | BB149: No | BC149: N/A | BD149: N/A | BE149: N/A | BF149: N/A | BG149: N/A | BH149: N/A | BI149: N/A | BJ149: N/A | BK149: N/A | BL149: N/A | BM149: N/A | BN149: N/A | BO149: N/A | BP149: N/A | BQ149: N/A
B150: DK/missing | C150: N/A | D150: N/A | E150: N/A | F150: N/A | G150: N/A | H150: N/A | I150: N/A | J150: N/A | K150: N/A | L150: N/A | M150: N/A | N150: N/A | O150: N/A | P150: N/A | Q150: N/A | BB150: DK/missing | BC150: N/A | BD150: N/A | BE150: N/A | BF150: N/A | BG150: N/A | BH150: N/A | BI150: N/A | BJ150: N/A | BK150: N/A | BL150: N/A | BM150: N/A | BN150: N/A | BO150: N/A | BP150: N/A | BQ150: N/A
A151: Shared among all sanitation facilities | B151: Yes | C151: 16.30732771 | D151: 11.85132835 | E151: 5.605612253 | F151: 2.54413499 | G151: 1.639268886 | H151: 17.41130945 | I151: 8.521846762 | J151: 4.423397158 | K151: 2.030673387 | L151: 1.330960523 | M151: 14.77284935 | N151: 12.96392548 | O151: 13.44681682 | P151: 7.661454039 | Q151: 2.694428534 | BB151: Yes | BC151: N/A | BD151: N/A | BE151: N/A | BF151: N/A | BG151: N/A | BH151: N/A | BI151: N/A | BJ151: N/A | BK151: N/A | BL151: N/A | BM151: N/A | BN151: N/A | BO151: N/A | BP151: N/A | BQ151: N/A
B152: No | C152: 83.69267229 | D152: 88.14867165 | E152: 94.39438775 | F152: 97.45586501 | G152: 98.36073111 | H152: 82.58869055 | I152: 91.47815324 | J152: 95.57660284 | K152: 97.96932661 | L152: 98.66903948 | M152: 85.22715065 | N152: 87.03607452 | O152: 86.55318318 | P152: 92.33854596 | Q152: 97.30557147 | BB152: No | BC152: N/A | BD152: N/A | BE152: N/A | BF152: N/A | BG152: N/A | BH152: N/A | BI152: N/A | BJ152: N/A | BK152: N/A | BL152: N/A | BM152: N/A | BN152: N/A | BO152: N/A | BP152: N/A | BQ152: N/A
A153: sanit | B153: Sewage | C153: 32.55946966 | D153: 70.07613333 | E153: 85.00209514 | F153: 91.1303032 | G153: 95.30523179 | H153: 70.46202375 | I153: 87.56231731 | J153: 91.69566768 | K153: 94.10751096 | L153: 96.2454432 | M153: 4.791572297 | N153: 9.817733323 | O153: 27.17107756 | P153: 47.06102535 | Q153: 66.25804774 | BB153: Yes | BC153: N/A | BD153: N/A | BE153: N/A | BF153: N/A | BG153: N/A | BH153: N/A | BI153: N/A | BJ153: N/A | BK153: N/A | BL153: N/A | BM153: N/A | BN153: N/A | BO153: N/A | BP153: N/A | BQ153: N/A
B154: Septic tank | C154: 32.66643933 | D154: 21.60525345 | E154: 12.96612836 | F154: 7.992089108 | G154: 4.199269135 | H154: 15.02472411 | I154: 9.526163057 | J154: 7.076146456 | K154: 5.417500655 | L154: 3.273799502 | M154: 39.26601713 | N154: 46.42709195 | O154: 47.85719836 | P154: 44.85682666 | Q154: 30.8160492 | BB154: No | BC154: N/A | BD154: N/A | BE154: N/A | BF154: N/A | BG154: N/A | BH154: N/A | BI154: N/A | BJ154: N/A | BK154: N/A | BL154: N/A | BM154: N/A | BN154: N/A | BO154: N/A | BP154: N/A | BQ154: N/A
B155: Pour Flush | C155: 1.894857253 | D155: 0.9900251528 | E155: 0.3609018213 | F155: 0.008838342239 | G155: 0.01118593008 | H155: 1.69653868 | I155: 0.3034596546 | J155: 0.1415865285 | K155: 0 | L155: 0.01448784793 | M155: 1.007169156 | N155: 2.267230437 | O155: 2.604589632 | P155: 0.7307338642 | Q155: 0.3342674409
B156: Dry latrine | C156: 20.58567554 | D156: 4.131435754 | E156: 0.6994742684 | F156: 0.08306590698 | G156: 0.08942757713 | H156: 5.823322777 | I156: 1.406805298 | J156: 0.08427478349 | K156: 0.111173668 | L156: 0.02814497063 | M156: 36.95419249 | N156: 28.05478048 | O156: 15.01314633 | P156: 4.797730814 | Q156: 0.9157508142
B157: No facility | C157: 12.24313863 | D157: 2.948021447 | E157: 0.337730716 | F157: 0.09823320216 | G157: 0.02764412767 | H157: 6.867288401 | I157: 0.9466300421 | J157: 0.1546399748 | K157: 0.0693328553 | L157: 0.03580425721 | M157: 17.9017832 | N157: 13.38198571 | O157: 7.260275183 | P157: 2.081662199 | Q157: 0.1732526522
B158: missing | C158: 0.05041959079 | D158: 0.2491308596 | E158: 0.6336696968 | F158: 0.6874702437 | G158: 0.3672414393 | H158: 0.1261022827 | I158: 0.2546246388 | J158: 0.8476845727 | K158: 0.294481857 | L158: 0.4023202266 | M158: 0.07926572191 | N158: 0.05117810108 | O158: 0.0937129287 | P158: 0.4720211119 | Q158: 1.502632157
A162: Mexico ENG12 Weighted population | C162: COMPOSITE wealth index quintile | H162: URBAN wealth index quintile | M162: RURAL wealth index quintile
C163: Poorest | D163: Poor | E163: Middle | F163: Rich | G163: Richest | H163: Poorest | I163: Poor | J163: Middle | K163: Rich | L163: Richest | M163: Poorest | N163: Poor | O163: Middle | P163: Rich | Q163: Richest
A164: sanit | B164: Sewage | C164: 76213.8 | D164: 164021.41 | E164: 198940.17 | F164: 213536.49 | G164: 222885.79 | H164: 126700.83 | I164: 157535.02 | J164: 164938.38 | K164: 168621.01 | L164: 173785.7 | M164: 2596.91 | N164: 5325.33 | O164: 14755.02 | P164: 25497.56 | Q164: 35841.9
B165: Septic tank | C165: 76464.19 | D165: 50569.63 | E165: 30346.12 | F165: 18727.06 | G165: 9820.63 | H165: 27016.61 | I165: 17138.7 | J165: 12728.28 | K165: 9707.03 | L165: 5911.34 | M165: 21281.18 | N165: 25182.96 | O165: 25988.44 | P165: 24303.33 | Q165: 16669.76
B166: Pour Flush | C166: 4435.4 | D166: 2317.27 | E166: 844.66 | F166: 20.71 | G166: 26.16 | H166: 3050.62 | I166: 545.96 | J166: 254.68 | K166: 0 | L166: 26.16 | M166: 545.86 | N166: 1229.79 | O166: 1414.4 | P166: 395.91 | Q166: 180.82
B167: Dry latrine | C167: 48186.06 | D167: 9670.11 | E167: 1637.06 | F167: 194.64 | G167: 209.14 | H167: 10471.17 | I167: 2531.01 | J167: 151.59 | K167: 199.2 | L167: 50.82 | M167: 20028.23 | N167: 15217.46 | O167: 8152.76 | P167: 2599.4 | Q167: 495.37
B168: No facility | C168: 28658.21 | D168: 6900.19 | E168: 790.43 | F168: 230.18 | G168: 64.65 | H168: 12348.37 | I168: 1703.1 | J168: 278.16 | K168: 124.23 | L168: 64.65 | M168: 9702.31 | N168: 7258.65 | O168: 3942.63 | P168: 1127.84 | Q168: 93.72
B169: missing | C169: 118.02 | D169: 583.12 | E169: 1483.05 | F169: 1610.88 | G169: 858.85 | H169: 226.75 | I169: 458.1 | J169: 1524.78 | K169: 527.65 | L169: 726.45 | M169: 42.96 | N169: 27.76 | O169: 50.89 | P169: 255.74 | Q169: 812.84
B170: Total | C170: 234075.68 | D170: 234061.73 | E170: 234041.49 | F170: 234319.96 | G170: 233865.22 | H170: 179814.35 | I170: 179911.89 | J170: 179875.87 | K170: 179179.12 | L170: 180565.12 | M170: 54197.45 | N170: 54241.95 | O170: 54304.14 | P170: 54179.78 | Q170: 54094.41
A208: =A1026 -> Mexico
A209: =A1034 -> 2012
A210: Access to hygiene facilities
A211: by wealth quintile and sub-national region
A212: Notes:
A213: WHO/UNICEF JMP customised wealth index excludes water,
A214: sanitation and hygiene assets.
A215: Survey used for analysis: | B215: =A1025 -> ENG12
A220: Access to handwashing | C220: NATIONAL wealth index quintile | H220: URBAN wealth index quintile | M220: RURAL wealth index quintile | BA220: Raw numbers of respondents: | BB220: Access to handwashing | BC220: NATIONAL wealth index quintile | BH220: URBAN wealth index quintile | BM220: RURAL wealth index quintile
A221: Weighted percentage (used in graphs) | C221: Poorest | D221: Poor | E221: Middle | F221: Rich | G221: Richest | H221: Poorest | I221: Poor | J221: Middle | K221: Rich | L221: Richest | M221: Poorest | N221: Poor | O221: Middle | P221: Rich | Q221: Richest | BA221: Hygiene data, raw numbers (weighted) | BC221: Poorest | BD221: Poor | BE221: Middle | BF221: Rich | BG221: Richest | BH221: Poorest | BI221: Poor | BJ221: Middle | BK221: Rich | BL221: Richest | BM221: Poorest | BN221: Poor | BO221: Middle | BP221: Rich | BQ221: Richest
A222: Hygiene ladder | B222: Basic | C222: N/A | D222: N/A | E222: N/A | F222: N/A | G222: N/A | H222: N/A | I222: N/A | J222: N/A | K222: N/A | L222: N/A | M222: N/A | N222: N/A | O222: N/A | P222: N/A | Q222: N/A | BA222: Hygiene ladder | BB222: Basic | BC222: N/A | BD222: N/A | BE222: N/A | BF222: N/A | BG222: N/A | BH222: N/A | BI222: N/A | BJ222: N/A | BK222: N/A | BL222: N/A | BM222: N/A | BN222: N/A | BO222: N/A | BP222: N/A | BQ222: N/A
B223: Limited | C223: N/A | D223: N/A | E223: N/A | F223: N/A | G223: N/A | H223: N/A | I223: N/A | J223: N/A | K223: N/A | L223: N/A | M223: N/A | N223: N/A | O223: N/A | P223: N/A | Q223: N/A | BB223: Limited | BC223: N/A | BD223: N/A | BE223: N/A | BF223: N/A | BG223: N/A | BH223: N/A | BI223: N/A | BJ223: N/A | BK223: N/A | BL223: N/A | BM223: N/A | BN223: N/A | BO223: N/A | BP223: N/A | BQ223: N/A
B224: No facility | C224: N/A | D224: N/A | E224: N/A | F224: N/A | G224: N/A | H224: N/A | I224: N/A | J224: N/A | K224: N/A | L224: N/A | M224: N/A | N224: N/A | O224: N/A | P224: N/A | Q224: N/A | BB224: No facility | BC224: N/A | BD224: N/A | BE224: N/A | BF224: N/A | BG224: N/A | BH224: N/A | BI224: N/A | BJ224: N/A | BK224: N/A | BL224: N/A | BM224: N/A | BN224: N/A | BO224: N/A | BP224: N/A | BQ224: N/A
BA225: Observed handwashing place | BB225: Fixed | BC225: N/A | BD225: N/A | BE225: N/A | BF225: N/A | BG225: N/A | BH225: N/A | BI225: N/A | BJ225: N/A | BK225: N/A | BL225: N/A | BM225: N/A | BN225: N/A | BO225: N/A | BP225: N/A | BQ225: N/A
BB226: Mobile | BC226: N/A | BD226: N/A | BE226: N/A | BF226: N/A | BG226: N/A | BH226: N/A | BI226: N/A | BJ226: N/A | BK226: N/A | BL226: N/A | BM226: N/A | BN226: N/A | BO226: N/A | BP226: N/A | BQ226: N/A
BA227: Water / Soap | BB227: Water and soap | BC227: N/A | BD227: N/A | BE227: N/A | BF227: N/A | BG227: N/A | BH227: N/A | BI227: N/A | BJ227: N/A | BK227: N/A | BL227: N/A | BM227: N/A | BN227: N/A | BO227: N/A | BP227: N/A | BQ227: N/A
BB228: Water only | BC228: N/A | BD228: N/A | BE228: N/A | BF228: N/A | BG228: N/A | BH228: N/A | BI228: N/A | BJ228: N/A | BK228: N/A | BL228: N/A | BM228: N/A | BN228: N/A | BO228: N/A | BP228: N/A | BQ228: N/A
BB229: Soap only | BC229: N/A | BD229: N/A | BE229: N/A | BF229: N/A | BG229: N/A | BH229: N/A | BI229: N/A | BJ229: N/A | BK229: N/A | BL229: N/A | BM229: N/A | BN229: N/A | BO229: N/A | BP229: N/A | BQ229: N/A
BB230: Neither | BC230: N/A | BD230: N/A | BE230: N/A | BF230: N/A | BG230: N/A | BH230: N/A | BI230: N/A | BJ230: N/A | BK230: N/A | BL230: N/A | BM230: N/A | BN230: N/A | BO230: N/A | BP230: N/A | BQ230: N/A
BA259: Raw numbers of respondents: | BB259: Menstrual health and hygiene | BC259: NATIONAL wealth index quintile | BH259: URBAN wealth index quintile | BM259: RURAL wealth index quintile
BA260: MHH data, raw numbers (weighted) | BC260: Poorest | BD260: Poor | BE260: Middle | BF260: Rich | BG260: Richest | BH260: Poorest | BI260: Poor | BJ260: Middle | BK260: Rich | BL260: Richest | BM260: Poorest | BN260: Poor | BO260: Middle | BP260: Rich | BQ260: Richest
BA261: Private place to wash and change | BB261: Yes | BC261: N/A | BD261: N/A | BE261: N/A | BF261: N/A | BG261: N/A | BH261: N/A | BI261: N/A | BJ261: N/A | BK261: N/A | BL261: N/A | BM261: N/A | BN261: N/A | BO261: N/A | BP261: N/A | BQ261: N/A
BB262: No | BC262: N/A | BD262: N/A | BE262: N/A | BF262: N/A | BG262: N/A | BH262: N/A | BI262: N/A | BJ262: N/A | BK262: N/A | BL262: N/A | BM262: N/A | BN262: N/A | BO262: N/A | BP262: N/A | BQ262: N/A
BB263: DK/not sure/missing | BC263: N/A | BD263: N/A | BE263: N/A | BF263: N/A | BG263: N/A | BH263: N/A | BI263: N/A | BJ263: N/A | BK263: N/A | BL263: N/A | BM263: N/A | BN263: N/A | BO263: N/A | BP263: N/A | BQ263: N/A
BA264: Use of menstrual materials | BB264: Materials reusable | BC264: N/A | BD264: N/A | BE264: N/A | BF264: N/A | BG264: N/A | BH264: N/A | BI264: N/A | BJ264: N/A | BK264: N/A | BL264: N/A | BM264: N/A | BN264: N/A | BO264: N/A | BP264: N/A | BQ264: N/A
BB265: Materials not reusable | BC265: N/A | BD265: N/A | BE265: N/A | BF265: N/A | BG265: N/A | BH265: N/A | BI265: N/A | BJ265: N/A | BK265: N/A | BL265: N/A | BM265: N/A | BN265: N/A | BO265: N/A | BP265: N/A | BQ265: N/A
BB266: No materials used | BC266: N/A | BD266: N/A | BE266: N/A | BF266: N/A | BG266: N/A | BH266: N/A | BI266: N/A | BJ266: N/A | BK266: N/A | BL266: N/A | BM266: N/A | BN266: N/A | BO266: N/A | BP266: N/A | BQ266: N/A
BB267: DK/not sure/missing | BC267: N/A | BD267: N/A | BE267: N/A | BF267: N/A | BG267: N/A | BH267: N/A | BI267: N/A | BJ267: N/A | BK267: N/A | BL267: N/A | BM267: N/A | BN267: N/A | BO267: N/A | BP267: N/A | BQ267: N/A
BA268: Use of menstrual materials with private place to wash and change | BB268: Materials reusable | BC268: N/A | BD268: N/A | BE268: N/A | BF268: N/A | BG268: N/A | BH268: N/A | BI268: N/A | BJ268: N/A | BK268: N/A | BL268: N/A | BM268: N/A | BN268: N/A | BO268: N/A | BP268: N/A | BQ268: N/A
BB269: Materials not reusable | BC269: N/A | BD269: N/A | BE269: N/A | BF269: N/A | BG269: N/A | BH269: N/A | BI269: N/A | BJ269: N/A | BK269: N/A | BL269: N/A | BM269: N/A | BN269: N/A | BO269: N/A | BP269: N/A | BQ269: N/A
BB270: No materials used | BC270: N/A | BD270: N/A | BE270: N/A | BF270: N/A | BG270: N/A | BH270: N/A | BI270: N/A | BJ270: N/A | BK270: N/A | BL270: N/A | BM270: N/A | BN270: N/A | BO270: N/A | BP270: N/A | BQ270: N/A
BA271: Awareness of menstruation before menarche | BB271: Yes | BC271: N/A | BD271: N/A | BE271: N/A | BF271: N/A | BG271: N/A | BH271: N/A | BI271: N/A | BJ271: N/A | BK271: N/A | BL271: N/A | BM271: N/A | BN271: N/A | BO271: N/A | BP271: N/A | BQ271: N/A
BB272: No | BC272: N/A | BD272: N/A | BE272: N/A | BF272: N/A | BG272: N/A | BH272: N/A | BI272: N/A | BJ272: N/A | BK272: N/A | BL272: N/A | BM272: N/A | BN272: N/A | BO272: N/A | BP272: N/A | BQ272: N/A
BB273: DK/not sure/missing | BC273: N/A | BD273: N/A | BE273: N/A | BF273: N/A | BG273: N/A | BH273: N/A | BI273: N/A | BJ273: N/A | BK273: N/A | BL273: N/A | BM273: N/A | BN273: N/A | BO273: N/A | BP273: N/A | BQ273: N/A
BA274: Participation in (all) activities during menstruation | BB274: Yes | BC274: N/A | BD274: N/A | BE274: N/A | BF274: N/A | BG274: N/A | BH274: N/A | BI274: N/A | BJ274: N/A | BK274: N/A | BL274: N/A | BM274: N/A | BN274: N/A | BO274: N/A | BP274: N/A | BQ274: N/A
BB275: No | BC275: N/A | BD275: N/A | BE275: N/A | BF275: N/A | BG275: N/A | BH275: N/A | BI275: N/A | BJ275: N/A | BK275: N/A | BL275: N/A | BM275: N/A | BN275: N/A | BO275: N/A | BP275: N/A | BQ275: N/A
BB276: DK/not sure/missing/no such activity | BC276: N/A | BD276: N/A | BE276: N/A | BF276: N/A | BG276: N/A | BH276: N/A | BI276: N/A | BJ276: N/A | BK276: N/A | BL276: N/A | BM276: N/A | BN276: N/A | BO276: N/A | BP276: N/A | BQ276: N/A
BA277: Participation in specific activities during menstruation | BB277: Did not go to school (amongst those usually attending school) | BC277: N/A | BD277: N/A | BE277: N/A | BF277: N/A | BG277: N/A | BH277: N/A | BI277: N/A | BJ277: N/A | BK277: N/A | BL277: N/A | BM277: N/A | BN277: N/A | BO277: N/A | BP277: N/A | BQ277: N/A
BB278: Did not go to work (amongst those who usually work) | BC278: N/A | BD278: N/A | BE278: N/A | BF278: N/A | BG278: N/A | BH278: N/A | BI278: N/A | BJ278: N/A | BK278: N/A | BL278: N/A | BM278: N/A | BN278: N/A | BO278: N/A | BP278: N/A | BQ278: N/A
BB279: Did not participate in social activities | BC279: N/A | BD279: N/A | BE279: N/A | BF279: N/A | BG279: N/A | BH279: N/A | BI279: N/A | BJ279: N/A | BK279: N/A | BL279: N/A | BM279: N/A | BN279: N/A | BO279: N/A | BP279: N/A | BQ279: N/A
BB280: Did not cook food | BC280: N/A | BD280: N/A | BE280: N/A | BF280: N/A | BG280: N/A | BH280: N/A | BI280: N/A | BJ280: N/A | BK280: N/A | BL280: N/A | BM280: N/A | BN280: N/A | BO280: N/A | BP280: N/A | BQ280: N/A
BB281: Did not eat with others | BC281: N/A | BD281: N/A | BE281: N/A | BF281: N/A | BG281: N/A | BH281: N/A | BI281: N/A | BJ281: N/A | BK281: N/A | BL281: N/A | BM281: N/A | BN281: N/A | BO281: N/A | BP281: N/A | BQ281: N/A
BB282: Did not bathe in regular place | BC282: N/A | BD282: N/A | BE282: N/A | BF282: N/A | BG282: N/A | BH282: N/A | BI282: N/A | BJ282: N/A | BK282: N/A | BL282: N/A | BM282: N/A | BN282: N/A | BO282: N/A | BP282: N/A | BQ282: N/A
BB283: Did not participate in other activities | BC283: N/A | BD283: N/A | BE283: N/A | BF283: N/A | BG283: N/A | BH283: N/A | BI283: N/A | BJ283: N/A | BK283: N/A | BL283: N/A | BM283: N/A | BN283: N/A | BO283: N/A | BP283: N/A | BQ283: N/A
BB284: DK/not sure/missing/no such activity | BC284: N/A | BD284: N/A | BE284: N/A | BF284: N/A | BG284: N/A | BH284: N/A | BI284: N/A | BJ284: N/A | BK284: N/A | BL284: N/A | BM284: N/A | BN284: N/A | BO284: N/A | BP284: N/A | BQ284: N/A
BA339: Raw numbers of respondents: | BB339: Basic water, sanitation and hygiene | BC339: NATIONAL wealth index quintile | BH339: URBAN wealth index quintile | BM339: RURAL wealth index quintile
BA340: WatSan data, raw numbers (weighted) | BC340: Poorest | BD340: Poor | BE340: Middle | BF340: Rich | BG340: Richest | BH340: Poorest | BI340: Poor | BJ340: Middle | BK340: Rich | BL340: Richest | BM340: Poorest | BN340: Poor | BO340: Middle | BP340: Rich | BQ340: Richest
BA341: Use of Basic Water Sanitation and Hygiene | BB341: Yes | BC341: N/A | BD341: N/A | BE341: N/A | BF341: N/A | BG341: N/A | BH341: N/A | BI341: N/A | BJ341: N/A | BK341: N/A | BL341: N/A | BM341: N/A | BN341: N/A | BO341: N/A | BP341: N/A | BQ341: N/A
BB342: No | BC342: N/A | BD342: N/A | BE342: N/A | BF342: N/A | BG342: N/A | BH342: N/A | BI342: N/A | BJ342: N/A | BK342: N/A | BL342: N/A | BM342: N/A | BN342: N/A | BO342: N/A | BP342: N/A | BQ342: N/A
BA343: Use of Basic Water and Sanitation | BB343: Yes | BC343: N/A | BD343: N/A | BE343: N/A | BF343: N/A | BG343: N/A | BH343: N/A | BI343: N/A | BJ343: N/A | BK343: N/A | BL343: N/A | BM343: N/A | BN343: N/A | BO343: N/A | BP343: N/A | BQ343: N/A
BB344: No | BC344: N/A | BD344: N/A | BE344: N/A | BF344: N/A | BG344: N/A | BH344: N/A | BI344: N/A | BJ344: N/A | BK344: N/A | BL344: N/A | BM344: N/A | BN344: N/A | BO344: N/A | BP344: N/A | BQ344: N/A
BA345: Use of Basic Water and Hygiene | BB345: Yes | BC345: N/A | BD345: N/A | BE345: N/A | BF345: N/A | BG345: N/A | BH345: N/A | BI345: N/A | BJ345: N/A | BK345: N/A | BL345: N/A | BM345: N/A | BN345: N/A | BO345: N/A | BP345: N/A | BQ345: N/A
BB346: No | BC346: N/A | BD346: N/A | BE346: N/A | BF346: N/A | BG346: N/A | BH346: N/A | BI346: N/A | BJ346: N/A | BK346: N/A | BL346: N/A | BM346: N/A | BN346: N/A | BO346: N/A | BP346: N/A | BQ346: N/A
BA347: Use of Basic Sanitation and Hygiene | BB347: Yes | BC347: N/A | BD347: N/A | BE347: N/A | BF347: N/A | BG347: N/A | BH347: N/A | BI347: N/A | BJ347: N/A | BK347: N/A | BL347: N/A | BM347: N/A | BN347: N/A | BO347: N/A | BP347: N/A | BQ347: N/A
BB348: No | BC348: N/A | BD348: N/A | BE348: N/A | BF348: N/A | BG348: N/A | BH348: N/A | BI348: N/A | BJ348: N/A | BK348: N/A | BL348: N/A | BM348: N/A | BN348: N/A | BO348: N/A | BP348: N/A | BQ348: N/A
BA349: Use of Basic Water | BB349: Yes | BC349: N/A | BD349: N/A | BE349: N/A | BF349: N/A | BG349: N/A | BH349: N/A | BI349: N/A | BJ349: N/A | BK349: N/A | BL349: N/A | BM349: N/A | BN349: N/A | BO349: N/A | BP349: N/A | BQ349: N/A
BB350: No | BC350: N/A | BD350: N/A | BE350: N/A | BF350: N/A | BG350: N/A | BH350: N/A | BI350: N/A | BJ350: N/A | BK350: N/A | BL350: N/A | BM350: N/A | BN350: N/A | BO350: N/A | BP350: N/A | BQ350: N/A
BA351: Use of Basic Sanitation | BB351: Yes | BC351: N/A | BD351: N/A | BE351: N/A | BF351: N/A | BG351: N/A | BH351: N/A | BI351: N/A | BJ351: N/A | BK351: N/A | BL351: N/A | BM351: N/A | BN351: N/A | BO351: N/A | BP351: N/A | BQ351: N/A
BB352: No | BC352: N/A | BD352: N/A | BE352: N/A | BF352: N/A | BG352: N/A | BH352: N/A | BI352: N/A | BJ352: N/A | BK352: N/A | BL352: N/A | BM352: N/A | BN352: N/A | BO352: N/A | BP352: N/A | BQ352: N/A
BA353: Access to Basic Hygiene | BB353: Yes | BC353: N/A | BD353: N/A | BE353: N/A | BF353: N/A | BG353: N/A | BH353: N/A | BI353: N/A | BJ353: N/A | BK353: N/A | BL353: N/A | BM353: N/A | BN353: N/A | BO353: N/A | BP353: N/A | BQ353: N/A
BB354: No | BC354: N/A | BD354: N/A | BE354: N/A | BF354: N/A | BG354: N/A | BH354: N/A | BI354: N/A | BJ354: N/A | BK354: N/A | BL354: N/A | BM354: N/A | BN354: N/A | BO354: N/A | BP354: N/A | BQ354: N/A
C399: INITIAL (national) Wealth Index | H399: URBAN Wealth Index | M399: RURAL Wealth Index
C400: Component Matrix | H400: Component Matrix | M400: Component Matrix
E401: Component | J401: Component | O401: Component
B402: Note: The INITIAL (national) Wealth Index is based on the first component of the Principal Component Analysis (PCA) which has been obtained at national level. The final national-level (NATIONAL) Wealth Index is based on the URBAN and RURAL specific wealth indexes. Regression procedures are used to establish the relationships between the two sets of scores (urban and rural) and the initial (national) wealth factors. This allows best use of the available information for each area and a better precision of the FINAL (NATIONAL) Wealth Index. For dependency reasons, all WASH variables (contained in the generic MICS and DHS scripts) have been excluded from the sets of asset variables used in the PCAs. The PCA can extracts as many components as there are asset variables in the input. Only the first of the components is used to represent the Wealth Index. The scores represent the weights of the asset variables on the Wealth Index (correlations between the variables and the component). The communalities are the proportion of each variable's variance that can be explained by the component. Proportion of explained variance is the part of the model's total variance that is explained by the component. For more information on the procedure used: The DHS Wealth Index, DHS Comparative Reports No. 6, Shea Oscar Rutstein, Kiersten Johnson, ORC Macro International Inc., 2004. The DHS Wealth Index: Approaches for Rural and Urban Areas, Shea O. Rutstein, ORC Macro International Inc., 2008. MICS Methodological Paper No. 4, Review of options for reporting water, sanitation and hygiene coverage by wealth quintile, UNICEF, 2016. | E402: 1 | J402: 1 | O402: 1
C403: Dispone de regadera | E403: 0.7326310704 | H403: roof3 | J403: -0.7204815956 | M403: Dispone de regadera | O403: 0.7319861009
C404: roof3 | E404: -0.7181421597 | H404: Dispone de regadera | J404: 0.7124944299 | M404: Dispone de tinaco | O404: 0.6827425758
C405: wall9 | E405: -0.692741823 | H405: Dispone de fregadero | J405: 0.6769253297 | M405: fuel1 | O405: 0.6741009154
C406: Dispone de fregadero | E406: 0.6860022893 | H406: wall9 | J406: -0.6592864285 | M406: fuel3 | O406: -0.6686872255
C407: roof2 | E407: 0.624785145 | H407: roof2 | J407: 0.64568127 | M407: wall9 | O407: -0.6416864506
C408: Dispone de calentador de agua | E408: 0.624324518 | H408: Dispone de calentador de agua | J408: 0.6297934535 | M408: Dispone de fregadero | O408: 0.6140308422
C409: Dispone de tinaco | E409: 0.6053241773 | H409: Dispone de tinaco | J409: 0.5945901705 | M409: Dispone de calentador de agua | O409: 0.6108796304
C410: fuel1 | E410: 0.5598098572 | H410: floor8 | J410: -0.4552080056 | M410: roof3 | O410: -0.5996410337
C411: floor8 | E411: -0.5431540387 | H411: Dispone de bomba de agua | J411: 0.4511421415 | M411: floor8 | O411: -0.5171366718
C412: wall3 | E412: 0.4768293704 | H412: wall3 | J412: 0.4475898421 | M412: wall3 | O412: 0.433574576
C413: Dispone de bomba de agua | E413: 0.4484453212 | H413: Number of members per sleeping room | J413: 0.433885492 | M413: Dispone de bomba de agua | O413: 0.4199989976
C414: Dispone de cisterna | E414: 0.4296530263 | H414: Dispone de cisterna | J414: 0.4199308648 | M414: floor6 | O414: 0.3969101107
C415: Number of members per sleeping room | E415: 0.4181091124 | H415: fuel1 | J415: 0.4110049384 | M415: Dispone de cisterna | O415: 0.3860210602
C416: fuel3 | E416: -0.4034196125 | H416: Dispone de tanque de gas estacionario | J416: 0.3776619517 | M416: roof2 | O416: 0.3718853937
C417: Dispone de tanque de gas estacionario | E417: 0.3701794434 | H417: Tiene cocina | J417: 0.3756247219 | M417: Number of members per sleeping room | O417: 0.3494515818
C418: Dispone de medidor de luz | E418: 0.3450095216 | H418: Utiliza cocina de dormitorio | J418: -0.3050702537 | M418: Dispone de medidor de luz | O418: 0.3350456764
C419: floor6 | E419: 0.3444893511 | H419: floor6 | J419: 0.3030831255 | M419: Dispone de tanque de gas estacionario | O419: 0.326477303
... 200 more rows

Sheet MICS15
A2: =A1026 -> Mexico
A3: =A1034 -> 2015
A4: Use of drinking water sources
A5: by wealth quintile and sub-national region
A6: Notes:
A7: WHO/UNICEF JMP customised wealth index excludes water,
A8: sanitation and hygiene assets.
A9: Survey used for analysis: | B9: =A1025 -> MICS15
A10: =B1028 -> 
A11: =B1027 -> 
A14: Use of drinking water sources | C14: NATIONAL wealth index quintile | H14: URBAN wealth index quintile | M14: RURAL wealth index quintile | R14: SUB-REGIONS: | BA14: Raw numbers of respondents: | BB14: Use of drinking water sources | BC14: NATIONAL wealth index quintile | BH14: URBAN wealth index quintile | BM14: RURAL wealth index quintile | BR14: SUB-REGIONS:
A15: Weighted percentage (used in graphs) | C15: Poorest | D15: Poor | E15: Middle | F15: Rich | G15: Richest | H15: Poorest | I15: Poor | J15: Middle | K15: Rich | L15: Richest | M15: Poorest | N15: Poor | O15: Middle | P15: Rich | Q15: Richest | R15: Centro | S15: DF-Edo México | T15: Noreste | U15: Noroeste | V15: Sur | BA15: Water data, raw numbers (weighted) | BC15: Poorest | BD15: Poor | BE15: Middle | BF15: Rich | BG15: Richest | BH15: Poorest | BI15: Poor | BJ15: Middle | BK15: Rich | BL15: Richest | BM15: Poorest | BN15: Poor | BO15: Middle | BP15: Rich | BQ15: Richest | BR15: Centro | BS15: DF-Edo México | BT15: Noreste | BU15: Noroeste | BV15: Sur
A16: Water | B16: Improved | C16: 95.67257219 | D16: 99.45542184 | E16: 99.88834232 | F16: 99.76450724 | G16: 99.80450337 | H16: 99.00982593 | I16: 99.74956071 | J16: 99.97612033 | K16: 99.94753088 | L16: 99.74533574 | M16: 89.57267816 | N16: 95.21233658 | O16: 98.23198325 | P16: 99.70257797 | Q16: 99.13063026 | R16: 99.11238386 | S16: 99.23169173 | T16: 99.40449664 | U16: 99.9715793 | V16: 96.93388061 | BA16: Water | BB16: Improved | BC16: N/A | BD16: N/A | BE16: N/A | BF16: N/A | BG16: N/A | BH16: N/A | BI16: N/A | BJ16: N/A | BK16: N/A | BL16: N/A | BM16: N/A | BN16: N/A | BO16: N/A | BP16: N/A | BQ16: N/A | BR16: N/A | BS16: N/A | BT16: N/A | BU16: N/A | BV16: N/A
B17: Not Improved | C17: 4.32742781 | D17: 0.5445781599 | E17: 0.1116576757 | F17: 0.2354927572 | G17: 0.1954966324 | H17: 0.9901740716 | I17: 0.2504392929 | J17: 0.02387966737 | K17: 0.05246911706 | L17: 0.2546642623 | M17: 10.42732184 | N17: 4.787663425 | O17: 1.768016746 | P17: 0.2974220331 | Q17: 0.8693697413 | R17: 0.8876161442 | S17: 0.7683082705 | T17: 0.5955033595 | U17: 0.02842069637 | V17: 3.066119387 | BB17: Not Improved | BC17: N/A | BD17: N/A | BE17: N/A | BF17: N/A | BG17: N/A | BH17: N/A | BI17: N/A | BJ17: N/A | BK17: N/A | BL17: N/A | BM17: N/A | BN17: N/A | BO17: N/A | BP17: N/A | BQ17: N/A | BR17: N/A | BS17: N/A | BT17: N/A | BU17: N/A | BV17: N/A
A18: Water ladder | B18: Basic | C18: 93.99220017 | D18: 99.33171605 | E18: 99.77285224 | F18: 99.7642591 | G18: 99.8041799 | H18: 98.87795932 | I18: 99.67853552 | J18: 99.9090701 | K18: 99.94740405 | L18: 99.74533574 | M18: 84.69482287 | N18: 94.41170287 | O18: 96.82818936 | P18: 99.19132652 | Q18: 99.07919407 | R18: 98.73164492 | S18: 98.86045561 | T18: 99.36884035 | U18: 99.96422813 | V18: 95.8751289 | BA18: Water ladder | BB18: Basic | BC18: N/A | BD18: N/A | BE18: N/A | BF18: N/A | BG18: N/A | BH18: N/A | BI18: N/A | BJ18: N/A | BK18: N/A | BL18: N/A | BM18: N/A | BN18: N/A | BO18: N/A | BP18: N/A | BQ18: N/A | BR18: N/A | BS18: N/A | BT18: N/A | BU18: N/A | BV18: N/A
B19: Limited | C19: 1.610554487 | D19: 0.1206453169 | E19: 0.1150983045 | F19: 0 | G19: 0 | H19: 0.1258877784 | I19: 0.06886488939 | J19: 0.06703931241 | K19: 0 | L19: 0 | M19: 4.484121707 | N19: 0.7273513446 | O19: 1.401146185 | P19: 0.510256901 | Q19: 0.04668286696 | R19: 0.3731662767 | S19: 0.3662688245 | T19: 0.03532310428 | U19: 0.007096009487 | V19: 1.045194823 | BB19: Limited | BC19: N/A | BD19: N/A | BE19: N/A | BF19: N/A | BG19: N/A | BH19: N/A | BI19: N/A | BJ19: N/A | BK19: N/A | BL19: N/A | BM19: N/A | BN19: N/A | BO19: N/A | BP19: N/A | BQ19: N/A | BR19: N/A | BS19: N/A | BT19: N/A | BU19: N/A | BV19: N/A
B20: Unimproved | C20: 4.063688928 | D20: 0.4859643215 | E20: 0.03757395797 | F20: 0.04742560164 | G20: 0.1958200977 | H20: 0.8663616185 | I20: 0.2014075498 | J20: 0 | K20: 0.0525959462 | L20: 0.2546642623 | M20: 9.780977009 | N20: 4.604345836 | O20: 1.770664456 | P20: 0.1457923294 | Q20: 0.1389386976 | R20: 0.7242516437 | S20: 0.7114755025 | T20: 0.4071361521 | U20: 0.01013715641 | V20: 2.858445279 | BB20: Unimproved | BC20: N/A | BD20: N/A | BE20: N/A | BF20: N/A | BG20: N/A | BH20: N/A | BI20: N/A | BJ20: N/A | BK20: N/A | BL20: N/A | BM20: N/A | BN20: N/A | BO20: N/A | BP20: N/A | BQ20: N/A | BR20: N/A | BS20: N/A | BT20: N/A | BU20: N/A | BV20: N/A
B21: Surface water | C21: 0.3335564189 | D21: 0.06167430971 | E21: 0.07447549411 | F21: 0.1883152954 | G21: 0 | H21: 0.1297912782 | I21: 0.05119204301 | J21: 0.02389058866 | K21: 0 | L21: 0 | M21: 1.040078415 | N21: 0.2565999475 | O21: 0 | P21: 0.1526242491 | Q21: 0.7351843684 | R21: 0.170937164 | S21: 0.06180006036 | T21: 0.1887003967 | U21: 0.01853870475 | V21: 0.2212310006 | BB21: Surface water | BC21: N/A | BD21: N/A | BE21: N/A | BF21: N/A | BG21: N/A | BH21: N/A | BI21: N/A | BJ21: N/A | BK21: N/A | BL21: N/A | BM21: N/A | BN21: N/A | BO21: N/A | BP21: N/A | BQ21: N/A | BR21: N/A | BS21: N/A | BT21: N/A | BU21: N/A | BV21: N/A
A22: Improved water point at more than 30 minutes | B22: Yes | C22: 1.684631884 | D22: 0.1213096555 | E22: 0.1152274162 | F22: 0 | G22: 0 | H22: 0.1271544309 | I22: 0.06903928233 | J22: 0.06705533233 | K22: 0 | L22: 0 | M22: 5.028229173 | N22: 0.7645139534 | O22: 1.426402996 | P22: 0.5117841497 | Q22: 0.04709453112 | R22: 0.3765369937 | S22: 0.3691231637 | T22: 0.03553483381 | U22: 0.007098044913 | V22: 1.078406244 | BA22: Improved water point at more than 30 minutes | BB22: Yes | BC22: N/A | BD22: N/A | BE22: N/A | BF22: N/A | BG22: N/A | BH22: N/A | BI22: N/A | BJ22: N/A | BK22: N/A | BL22: N/A | BM22: N/A | BN22: N/A | BO22: N/A | BP22: N/A | BQ22: N/A | BR22: N/A | BS22: N/A | BT22: N/A | BU22: N/A | BV22: N/A
B23: No | C23: 98.31536812 | D23: 99.87869034 | E23: 99.88477258 | F23: 100 | G23: 100 | H23: 99.87284557 | I23: 99.93096072 | J23: 99.93294467 | K23: 100 | L23: 100 | M23: 94.97177083 | N23: 99.23548605 | O23: 98.573597 | P23: 99.48821585 | Q23: 99.95290547 | R23: 99.62346301 | S23: 99.63087684 | T23: 99.96446517 | U23: 99.99290196 | V23: 98.92159376 | BB23: No | BC23: N/A | BD23: N/A | BE23: N/A | BF23: N/A | BG23: N/A | BH23: N/A | BI23: N/A | BJ23: N/A | BK23: N/A | BL23: N/A | BM23: N/A | BN23: N/A | BO23: N/A | BP23: N/A | BQ23: N/A | BR23: N/A | BS23: N/A | BT23: N/A | BU23: N/A | BV23: N/A
A24: Manually calculated ratios | B24: Improved wells | C24: =(C62+C63+C65)/(C62+C63+C64+C65+C66)*100 -> 75.29547325 | D24: 82.35242596 | E24: 96.37926612 | F24: 98.52319651 | G24: 75.5400455 | H24: 77.8477015 | I24: 78.33494178 | J24: 100 | K24: 100 | L24: 0 | M24: 69.14043155 | N24: 77.29967676 | O24: 86.88241102 | P24: 94.3329301 | Q24: 95.82346091 | R24: 80.57553516 | S24: 73.73339685 | T24: 85.56173907 | U24: 95.59182456 | V24: 75.83671104
B25: Improved springs
B26: Other
C27: NATIONAL wealth index quintile | H27: URBAN wealth index quintile | M27: RURAL wealth index quintile | R27: SUB-REGIONS: | BA27: Raw numbers of respondents: | BB27: Use of drinking water sources | BC27: NATIONAL wealth index quintile | BH27: URBAN wealth index quintile | BM27: RURAL wealth index quintile | BR27: SUB-REGIONS:
A28: Percentage based on weighted population | C28: Poorest | D28: Poor | E28: Middle | F28: Rich | G28: Richest | H28: Poorest | I28: Poor | J28: Middle | K28: Rich | L28: Richest | M28: Poorest | N28: Poor | O28: Middle | P28: Rich | Q28: Richest | R28: Centro | S28: DF-Edo México | T28: Noreste | U28: Noroeste | V28: Sur | BA28: Water data, raw numbers (weighted) | BC28: Poorest | BD28: Poor | BE28: Middle | BF28: Rich | BG28: Richest | BH28: Poorest | BI28: Poor | BJ28: Middle | BK28: Rich | BL28: Richest | BM28: Poorest | BN28: Poor | BO28: Middle | BP28: Rich | BQ28: Richest | BR28: Centro | BS28: DF-Edo México | BT28: Noreste | BU28: Noroeste | BV28: Sur
A29: Piped water | B29: Yes | C29: 77.38689711 | D29: 93.52027907 | E29: 97.03809677 | F29: 98.62982893 | G29: 98.9379185 | H29: 93.3281657 | I29: 96.55270866 | J29: 98.47588915 | K29: 99.39039009 | L29: 98.86459045 | M29: 58.70930082 | N29: 71.8371504 | O29: 80.68791415 | P29: 91.33228015 | Q29: 93.12222002 | R29: 92.69931556 | S29: 97.42253175 | T29: 95.97485555 | U29: 98.3642873 | V29: 80.88664037 | BA29: Piped water | BB29: Yes | BC29: N/A | BD29: N/A | BE29: N/A | BF29: N/A | BG29: N/A | BH29: N/A | BI29: N/A | BJ29: N/A | BK29: N/A | BL29: N/A | BM29: N/A | BN29: N/A | BO29: N/A | BP29: N/A | BQ29: N/A | BR29: N/A | BS29: N/A | BT29: N/A | BU29: N/A | BV29: N/A
B30: No | C30: 22.61310289 | D30: 6.479720932 | E30: 2.961903228 | F30: 1.370171066 | G30: 1.062081496 | H30: 6.671834304 | I30: 3.447291343 | J30: 1.524110851 | K30: 0.609609915 | L30: 1.135409553 | M30: 41.29069918 | N30: 28.1628496 | O30: 19.31208585 | P30: 8.667719849 | Q30: 6.877779984 | R30: 7.300684443 | S30: 2.577468246 | T30: 4.02514445 | U30: 1.635712702 | V30: 19.11335963 | BB30: No | BC30: N/A | BD30: N/A | BE30: N/A | BF30: N/A | BG30: N/A | BH30: N/A | BI30: N/A | BJ30: N/A | BK30: N/A | BL30: N/A | BM30: N/A | BN30: N/A | BO30: N/A | BP30: N/A | BQ30: N/A | BR30: N/A | BS30: N/A | BT30: N/A | BU30: N/A | BV30: N/A
A31: Piped water on premises | B31: Yes | C31: 74.25069363 | D31: 91.62782488 | E31: 95.59213493 | F31: 96.14254827 | G31: 96.15809398 | H31: 91.40459015 | I31: 94.37339388 | J31: 97.6545186 | K31: 96.35012175 | L31: 95.72901527 | M31: 53.43954204 | N31: 68.80715128 | O31: 78.54692887 | P31: 89.89119399 | Q31: 91.11283128 | R31: 91.29216582 | S31: 95.73424577 | T31: 91.71015356 | U31: 95.05980662 | V31: 80.05841665 | BA31: Piped water on premises | BB31: Yes | BC31: N/A | BD31: N/A | BE31: N/A | BF31: N/A | BG31: N/A | BH31: N/A | BI31: N/A | BJ31: N/A | BK31: N/A | BL31: N/A | BM31: N/A | BN31: N/A | BO31: N/A | BP31: N/A | BQ31: N/A | BR31: N/A | BS31: N/A | BT31: N/A | BU31: N/A | BV31: N/A
B32: No | C32: 25.74930637 | D32: 8.372175119 | E32: 4.407865074 | F32: 3.85745173 | G32: 3.841906019 | H32: 8.595409846 | I32: 5.626606122 | J32: 2.345481396 | K32: 3.649878253 | L32: 4.270984732 | M32: 46.56045796 | N32: 31.19284872 | O32: 21.45307113 | P32: 10.10880601 | Q32: 8.887168721 | R32: 8.707834178 | S32: 4.265754229 | T32: 8.289846436 | U32: 4.940193378 | V32: 19.94158335 | BB32: No | BC32: N/A | BD32: N/A | BE32: N/A | BF32: N/A | BG32: N/A | BH32: N/A | BI32: N/A | BJ32: N/A | BK32: N/A | BL32: N/A | BM32: N/A | BN32: N/A | BO32: N/A | BP32: N/A | BQ32: N/A | BR32: N/A | BS32: N/A | BT32: N/A | BU32: N/A | BV32: N/A
A33: Piped water into dwelling | B33: Yes | C33: N/A | D33: N/A | E33: N/A | F33: N/A | G33: N/A | H33: N/A | I33: N/A | J33: N/A | K33: N/A | L33: N/A | M33: N/A | N33: N/A | O33: N/A | P33: N/A | Q33: N/A | R33: N/A | S33: N/A | T33: N/A | U33: N/A | V33: N/A | BA33: Piped water into dwelling | BB33: Yes | BC33: N/A | BD33: N/A | BE33: N/A | BF33: N/A | BG33: N/A | BH33: N/A | BI33: N/A | BJ33: N/A | BK33: N/A | BL33: N/A | BM33: N/A | BN33: N/A | BO33: N/A | BP33: N/A | BQ33: N/A | BR33: N/A | BS33: N/A | BT33: N/A | BU33: N/A | BV33: N/A
B34: No | C34: N/A | D34: N/A | E34: N/A | F34: N/A | G34: N/A | H34: N/A | I34: N/A | J34: N/A | K34: N/A | L34: N/A | M34: N/A | N34: N/A | O34: N/A | P34: N/A | Q34: N/A | R34: N/A | S34: N/A | T34: N/A | U34: N/A | V34: N/A | BB34: No | BC34: N/A | BD34: N/A | BE34: N/A | BF34: N/A | BG34: N/A | BH34: N/A | BI34: N/A | BJ34: N/A | BK34: N/A | BL34: N/A | BM34: N/A | BN34: N/A | BO34: N/A | BP34: N/A | BQ34: N/A | BR34: N/A | BS34: N/A | BT34: N/A | BU34: N/A | BV34: N/A
A35: Water source on premises | B35: Yes | C35: 86.98618854 | D35: 97.2518568 | E35: 98.98107165 | F35: 99.37610799 | G35: 99.79415647 | H35: 96.89829939 | I35: 98.19043334 | J35: 99.79332061 | K35: 99.64159777 | L35: 100 | M35: 73.49051318 | N35: 84.70946108 | O35: 91.03608943 | P35: 96.25851524 | Q35: 96.7118971 | R35: 94.90238786 | S35: 97.51150174 | T35: 97.93847376 | U35: 98.92248368 | V35: 92.70630283 | BA35: Water source on premises | BB35: Yes | BC35: N/A | BD35: N/A | BE35: N/A | BF35: N/A | BG35: N/A | BH35: N/A | BI35: N/A | BJ35: N/A | BK35: N/A | BL35: N/A | BM35: N/A | BN35: N/A | BO35: N/A | BP35: N/A | BQ35: N/A | BR35: N/A | BS35: N/A | BT35: N/A | BU35: N/A | BV35: N/A
B36: No | C36: 13.01381146 | D36: 2.7481432 | E36: 1.018928349 | F36: 0.6238920086 | G36: 0.2058435275 | H36: 3.101700608 | I36: 1.809566665 | J36: 0.2066793935 | K36: 0.3584022262 | L36: 0 | M36: 26.50948682 | N36: 15.29053892 | O36: 8.963910574 | P36: 3.741484759 | Q36: 3.288102904 | R36: 5.097612142 | S36: 2.488498257 | T36: 2.06152624 | U36: 1.077516316 | V36: 7.293697169 | BB36: No | BC36: N/A | BD36: N/A | BE36: N/A | BF36: N/A | BG36: N/A | BH36: N/A | BI36: N/A | BJ36: N/A | BK36: N/A | BL36: N/A | BM36: N/A | BN36: N/A | BO36: N/A | BP36: N/A | BQ36: N/A | BR36: N/A | BS36: N/A | BT36: N/A | BU36: N/A | BV36: N/A
A37: Improved Water source on premises | B37: Yes | C37: 89.13049549 | D37: 97.45250885 | E37: 99.09171516 | F37: 99.59224173 | G37: 99.79375327 | H37: 97.39929823 | I37: 98.30343977 | J37: 99.79327124 | K37: 99.69390629 | L37: 100 | M37: 78.49143023 | N37: 86.2257505 | O37: 91.71736324 | P37: 96.45380579 | Q37: 97.56005469 | R37: 95.41103123 | S37: 97.92693936 | T37: 98.30060624 | U37: 98.93222717 | V37: 94.29406017 | BA37: Improved water source on premises | BB37: Yes | BC37: N/A | BD37: N/A | BE37: N/A | BF37: N/A | BG37: N/A | BH37: N/A | BI37: N/A | BJ37: N/A | BK37: N/A | BL37: N/A | BM37: N/A | BN37: N/A | BO37: N/A | BP37: N/A | BQ37: N/A | BR37: N/A | BS37: N/A | BT37: N/A | BU37: N/A | BV37: N/A
B38: No | C38: 10.86950451 | D38: 2.547491146 | E38: 0.9082848433 | F38: 0.4077582685 | G38: 0.2062467329 | H38: 2.60070177 | I38: 1.696560234 | J38: 0.2067287596 | K38: 0.3060937138 | L38: 0 | M38: 21.50856977 | N38: 13.7742495 | O38: 8.282636755 | P38: 3.546194211 | Q38: 2.439945309 | R38: 4.588968766 | S38: 2.073060636 | T38: 1.699393756 | U38: 1.067772831 | V38: 5.705939827 | BB38: No | BC38: N/A | BD38: N/A | BE38: N/A | BF38: N/A | BG38: N/A | BH38: N/A | BI38: N/A | BJ38: N/A | BK38: N/A | BL38: N/A | BM38: N/A | BN38: N/A | BO38: N/A | BP38: N/A | BQ38: N/A | BR38: N/A | BS38: N/A | BT38: N/A | BU38: N/A | BV38: N/A
A39: Piped water on premises available when needed | B39: Yes | C39: N/A | D39: N/A | E39: N/A | F39: N/A | G39: N/A | H39: N/A | I39: N/A | J39: N/A | K39: N/A | L39: N/A | M39: N/A | N39: N/A | O39: N/A | P39: N/A | Q39: N/A | R39: N/A | S39: N/A | T39: N/A | U39: N/A | V39: N/A | BA39: Piped water on premises available when needed | BB39: Yes | BC39: N/A | BD39: N/A | BE39: N/A | BF39: N/A | BG39: N/A | BH39: N/A | BI39: N/A | BJ39: N/A | BK39: N/A | BL39: N/A | BM39: N/A | BN39: N/A | BO39: N/A | BP39: N/A | BQ39: N/A | BR39: N/A | BS39: N/A | BT39: N/A | BU39: N/A | BV39: N/A
B40: No | C40: N/A | D40: N/A | E40: N/A | F40: N/A | G40: N/A | H40: N/A | I40: N/A | J40: N/A | K40: N/A | L40: N/A | M40: N/A | N40: N/A | O40: N/A | P40: N/A | Q40: N/A | R40: N/A | S40: N/A | T40: N/A | U40: N/A | V40: N/A | BB40: No | BC40: N/A | BD40: N/A | BE40: N/A | BF40: N/A | BG40: N/A | BH40: N/A | BI40: N/A | BJ40: N/A | BK40: N/A | BL40: N/A | BM40: N/A | BN40: N/A | BO40: N/A | BP40: N/A | BQ40: N/A | BR40: N/A | BS40: N/A | BT40: N/A | BU40: N/A | BV40: N/A
A41: Water point at more than 30 minutes | B41: Yes | C41: 2.297795161 | D41: 0.1206453169 | E41: 0.1226130961 | F41: 0 | G41: 0 | H41: 0.1258877784 | I41: 0.06886488939 | J41: 0.06703931241 | K41: 0 | L41: 0 | M41: 6.713328711 | N41: 1.510539797 | O41: 1.401146185 | P41: 0.510256901 | Q41: 0.07912449657 | R41: 0.4497069255 | S41: 0.3985285457 | T41: 0.043072428 | U41: 0.007096009487 | V41: 1.602737212 | BA41: Water point at more than 30 minutes | BB41: Yes | BC41: N/A | BD41: N/A | BE41: N/A | BF41: N/A | BG41: N/A | BH41: N/A | BI41: N/A | BJ41: N/A | BK41: N/A | BL41: N/A | BM41: N/A | BN41: N/A | BO41: N/A | BP41: N/A | BQ41: N/A | BR41: N/A | BS41: N/A | BT41: N/A | BU41: N/A | BV41: N/A
B42: No | C42: 97.70220484 | D42: 99.87935468 | E42: 99.8773869 | F42: 100 | G42: 100 | H42: 99.87411222 | I42: 99.93113511 | J42: 99.93296069 | K42: 100 | L42: 100 | M42: 93.28667129 | N42: 98.4894602 | O42: 98.59885381 | P42: 99.4897431 | Q42: 99.9208755 | R42: 99.55029307 | S42: 99.60147145 | T42: 99.95692757 | U42: 99.99290399 | V42: 98.39726279 | BB42: No | BC42: N/A | BD42: N/A | BE42: N/A | BF42: N/A | BG42: N/A | BH42: N/A | BI42: N/A | BJ42: N/A | BK42: N/A | BL42: N/A | BM42: N/A | BN42: N/A | BO42: N/A | BP42: N/A | BQ42: N/A | BR42: N/A | BS42: N/A | BT42: N/A | BU42: N/A | BV42: N/A
A43: Water source available when needed | B43: Yes | C43: 67.95740128 | D43: 71.3069024 | E43: 89.02756207 | F43: 64.12512878 | G43: 89.089136 | H43: 50.14613141 | I43: 72.39400172 | J43: 95.13601328 | K43: 60.40452306 | L43: 88.41666934 | M43: 68.91187495 | N43: 77.96095391 | O43: 87.09783913 | P43: 80.71838886 | Q43: 85.9051151 | R43: 72.60922357 | S43: 87.25095308 | T43: 65.47855042 | U43: 82.2112579 | V43: 81.2199872 | BA43: Water source available when needed | BB43: Yes | BC43: N/A | BD43: N/A | BE43: N/A | BF43: N/A | BG43: N/A | BH43: N/A | BI43: N/A | BJ43: N/A | BK43: N/A | BL43: N/A | BM43: N/A | BN43: N/A | BO43: N/A | BP43: N/A | BQ43: N/A | BR43: N/A | BS43: N/A | BT43: N/A | BU43: N/A | BV43: N/A
B44: No | C44: 32.04259872 | D44: 28.6930976 | E44: 10.97243793 | F44: 35.87487122 | G44: 10.910864 | H44: 49.85386859 | I44: 27.60599828 | J44: 4.863986722 | K44: 39.59547694 | L44: 11.58333066 | M44: 31.08812505 | N44: 22.03904609 | O44: 12.90216087 | P44: 19.28161114 | Q44: 14.0948849 | R44: 27.39077643 | S44: 12.74904692 | T44: 34.52144958 | U44: 17.7887421 | V44: 18.7800128 | BB44: No | BC44: N/A | BD44: N/A | BE44: N/A | BF44: N/A | BG44: N/A | BH44: N/A | BI44: N/A | BJ44: N/A | BK44: N/A | BL44: N/A | BM44: N/A | BN44: N/A | BO44: N/A | BP44: N/A | BQ44: N/A | BR44: N/A | BS44: N/A | BT44: N/A | BU44: N/A | BV44: N/A
A45: Improved water source available when needed | B45: Yes | C45: 67.95740128 | D45: 71.3069024 | E45: 89.02756207 | F45: 64.12512878 | G45: 89.089136 | H45: 50.14613141 | I45: 72.39400172 | J45: 95.13601328 | K45: 60.40452306 | L45: 88.41666934 | M45: 68.91187495 | N45: 77.96095391 | O45: 87.09783913 | P45: 80.71838886 | Q45: 85.9051151 | R45: 72.60922357 | S45: 87.25095308 | T45: 65.47855042 | U45: 82.2112579 | V45: 81.2199872 | BA45: Improved water source available when needed | BB45: Yes | BC45: N/A | BD45: N/A | BE45: N/A | BF45: N/A | BG45: N/A | BH45: N/A | BI45: N/A | BJ45: N/A | BK45: N/A | BL45: N/A | BM45: N/A | BN45: N/A | BO45: N/A | BP45: N/A | BQ45: N/A | BR45: N/A | BS45: N/A | BT45: N/A | BU45: N/A | BV45: N/A
B46: No | C46: 32.04259872 | D46: 28.6930976 | E46: 10.97243793 | F46: 35.87487122 | G46: 10.910864 | H46: 49.85386859 | I46: 27.60599828 | J46: 4.863986722 | K46: 39.59547694 | L46: 11.58333066 | M46: 31.08812505 | N46: 22.03904609 | O46: 12.90216087 | P46: 19.28161114 | Q46: 14.0948849 | R46: 27.39077643 | S46: 12.74904692 | T46: 34.52144958 | U46: 17.7887421 | V46: 18.7800128 | BB46: No | BC46: N/A | BD46: N/A | BE46: N/A | BF46: N/A | BG46: N/A | BH46: N/A | BI46: N/A | BJ46: N/A | BK46: N/A | BL46: N/A | BM46: N/A | BN46: N/A | BO46: N/A | BP46: N/A | BQ46: N/A | BR46: N/A | BS46: N/A | BT46: N/A | BU46: N/A | BV46: N/A
A47: Microbiological quality at point of collection | B47: Not contaminated (No E. coli in 100 mL) | C47: N/A | D47: N/A | E47: N/A | F47: N/A | G47: N/A | H47: N/A | I47: N/A | J47: N/A | K47: N/A | L47: N/A | M47: N/A | N47: N/A | O47: N/A | P47: N/A | Q47: N/A | R47: N/A | S47: N/A | T47: N/A | U47: N/A | V47: N/A | BA47: Microbiological quality at point of collection | BB47: Not contaminated (No E. coli in 100 mL) | BC47: N/A | BD47: N/A | BE47: N/A | BF47: N/A | BG47: N/A | BH47: N/A | BI47: N/A | BJ47: N/A | BK47: N/A | BL47: N/A | BM47: N/A | BN47: N/A | BO47: N/A | BP47: N/A | BQ47: N/A | BR47: N/A | BS47: N/A | BT47: N/A | BU47: N/A | BV47: N/A
B48: Contaminated (E. coli detected in 100 mL) | C48: N/A | D48: N/A | E48: N/A | F48: N/A | G48: N/A | H48: N/A | I48: N/A | J48: N/A | K48: N/A | L48: N/A | M48: N/A | N48: N/A | O48: N/A | P48: N/A | Q48: N/A | R48: N/A | S48: N/A | T48: N/A | U48: N/A | V48: N/A | BB48: Contaminated (E. coli detected in 100 mL) | BC48: N/A | BD48: N/A | BE48: N/A | BF48: N/A | BG48: N/A | BH48: N/A | BI48: N/A | BJ48: N/A | BK48: N/A | BL48: N/A | BM48: N/A | BN48: N/A | BO48: N/A | BP48: N/A | BQ48: N/A | BR48: N/A | BS48: N/A | BT48: N/A | BU48: N/A | BV48: N/A
B49: Highly contaminated (>100 CFU/100 mL) | C49: N/A | D49: N/A | E49: N/A | F49: N/A | G49: N/A | H49: N/A | I49: N/A | J49: N/A | K49: N/A | L49: N/A | M49: N/A | N49: N/A | O49: N/A | P49: N/A | Q49: N/A | R49: N/A | S49: N/A | T49: N/A | U49: N/A | V49: N/A | BB49: Highly contaminated (>100 CFU/100 mL) | BC49: N/A | BD49: N/A | BE49: N/A | BF49: N/A | BG49: N/A | BH49: N/A | BI49: N/A | BJ49: N/A | BK49: N/A | BL49: N/A | BM49: N/A | BN49: N/A | BO49: N/A | BP49: N/A | BQ49: N/A | BR49: N/A | BS49: N/A | BT49: N/A | BU49: N/A | BV49: N/A
A50: Microbiological quality of improved water sources at point of collection | B50: Not contaminated (No E. coli in 100 mL) | C50: N/A | D50: N/A | E50: N/A | F50: N/A | G50: N/A | H50: N/A | I50: N/A | J50: N/A | K50: N/A | L50: N/A | M50: N/A | N50: N/A | O50: N/A | P50: N/A | Q50: N/A | R50: N/A | S50: N/A | T50: N/A | U50: N/A | V50: N/A | BA50: Microbiological quality of improved water sources at point of collection | BB50: Not contaminated (No E. coli in 100 mL) | BC50: N/A | BD50: N/A | BE50: N/A | BF50: N/A | BG50: N/A | BH50: N/A | BI50: N/A | BJ50: N/A | BK50: N/A | BL50: N/A | BM50: N/A | BN50: N/A | BO50: N/A | BP50: N/A | BQ50: N/A | BR50: N/A | BS50: N/A | BT50: N/A | BU50: N/A | BV50: N/A
B51: Contaminated (E. coli detected in 100 mL) | C51: N/A | D51: N/A | E51: N/A | F51: N/A | G51: N/A | H51: N/A | I51: N/A | J51: N/A | K51: N/A | L51: N/A | M51: N/A | N51: N/A | O51: N/A | P51: N/A | Q51: N/A | R51: N/A | S51: N/A | T51: N/A | U51: N/A | V51: N/A | BB51: Contaminated (E. coli detected in 100 mL) | BC51: N/A | BD51: N/A | BE51: N/A | BF51: N/A | BG51: N/A | BH51: N/A | BI51: N/A | BJ51: N/A | BK51: N/A | BL51: N/A | BM51: N/A | BN51: N/A | BO51: N/A | BP51: N/A | BQ51: N/A | BR51: N/A | BS51: N/A | BT51: N/A | BU51: N/A | BV51: N/A
B52: Highly contaminated (>100 CFU/100 mL) | C52: N/A | D52: N/A | E52: N/A | F52: N/A | G52: N/A | H52: N/A | I52: N/A | J52: N/A | K52: N/A | L52: N/A | M52: N/A | N52: N/A | O52: N/A | P52: N/A | Q52: N/A | R52: N/A | S52: N/A | T52: N/A | U52: N/A | V52: N/A | BB52: Highly contaminated (>100 CFU/100 mL) | BC52: N/A | BD52: N/A | BE52: N/A | BF52: N/A | BG52: N/A | BH52: N/A | BI52: N/A | BJ52: N/A | BK52: N/A | BL52: N/A | BM52: N/A | BN52: N/A | BO52: N/A | BP52: N/A | BQ52: N/A | BR52: N/A | BS52: N/A | BT52: N/A | BU52: N/A | BV52: N/A
A53: Microbiological quality of piped on premises at point of collection | B53: Not contaminated (No E. coli in 100 mL) | C53: N/A | D53: N/A | E53: N/A | F53: N/A | G53: N/A | H53: N/A | I53: N/A | J53: N/A | K53: N/A | L53: N/A | M53: N/A | N53: N/A | O53: N/A | P53: N/A | Q53: N/A | R53: N/A | S53: N/A | T53: N/A | U53: N/A | V53: N/A | BA53: Microbiological quality of piped on premises at point of collection | BB53: Not contaminated (No E. coli in 100 mL) | BC53: N/A | BD53: N/A | BE53: N/A | BF53: N/A | BG53: N/A | BH53: N/A | BI53: N/A | BJ53: N/A | BK53: N/A | BL53: N/A | BM53: N/A | BN53: N/A | BO53: N/A | BP53: N/A | BQ53: N/A | BR53: N/A | BS53: N/A | BT53: N/A | BU53: N/A | BV53: N/A
B54: Contaminated (E. coli detected in 100 mL) | C54: N/A | D54: N/A | E54: N/A | F54: N/A | G54: N/A | H54: N/A | I54: N/A | J54: N/A | K54: N/A | L54: N/A | M54: N/A | N54: N/A | O54: N/A | P54: N/A | Q54: N/A | R54: N/A | S54: N/A | T54: N/A | U54: N/A | V54: N/A | BB54: Contaminated (E. coli detected in 100 mL) | BC54: N/A | BD54: N/A | BE54: N/A | BF54: N/A | BG54: N/A | BH54: N/A | BI54: N/A | BJ54: N/A | BK54: N/A | BL54: N/A | BM54: N/A | BN54: N/A | BO54: N/A | BP54: N/A | BQ54: N/A | BR54: N/A | BS54: N/A | BT54: N/A | BU54: N/A | BV54: N/A
B55: Highly contaminated (>100 CFU/100 mL) | C55: N/A | D55: N/A | E55: N/A | F55: N/A | G55: N/A | H55: N/A | I55: N/A | J55: N/A | K55: N/A | L55: N/A | M55: N/A | N55: N/A | O55: N/A | P55: N/A | Q55: N/A | R55: N/A | S55: N/A | T55: N/A | U55: N/A | V55: N/A | BB55: Highly contaminated (>100 CFU/100 mL) | BC55: N/A | BD55: N/A | BE55: N/A | BF55: N/A | BG55: N/A | BH55: N/A | BI55: N/A | BJ55: N/A | BK55: N/A | BL55: N/A | BM55: N/A | BN55: N/A | BO55: N/A | BP55: N/A | BQ55: N/A | BR55: N/A | BS55: N/A | BT55: N/A | BU55: N/A | BV55: N/A
C56: NATIONAL wealth index quintile | H56: URBAN wealth index quintile | M56: RURAL wealth index quintile | R56: SUB-REGIONS: | BA56: Raw numbers of respondents: | BB56: Use of drinking water sources | BC56: NATIONAL wealth index quintile | BH56: URBAN wealth index quintile | BM56: RURAL wealth index quintile | BR56: SUB-REGIONS:
A57: Percentage based on weighted population | C57: Poorest | D57: Poor | E57: Middle | F57: Rich | G57: Richest | H57: Poorest | I57: Poor | J57: Middle | K57: Rich | L57: Richest | M57: Poorest | N57: Poor | O57: Middle | P57: Rich | Q57: Richest | R57: Centro | S57: DF-Edo México | T57: Noreste | U57: Noroeste | V57: Sur | BA57: Water data, raw numbers (weighted) | BC57: Poorest | BD57: Poor | BE57: Middle | BF57: Rich | BG57: Richest | BH57: Poorest | BI57: Poor | BJ57: Middle | BK57: Rich | BL57: Richest | BM57: Poorest | BN57: Poor | BO57: Middle | BP57: Rich | BQ57: Richest | BR57: Centro | BS57: DF-Edo México | BT57: Noreste | BU57: Noroeste | BV57: Sur
A58: Principal fuente de agua potable | B58: Tubería dentro de la vivienda | C58: 16.2850315 | D58: 16.99800003 | E58: 16.80217902 | F58: 13.52274827 | G58: 9.042152582 | H58: 14.99115568 | I58: 16.71608816 | J58: 14.92476695 | K58: 11.77177547 | L58: 9.870644414 | M58: 12.59204023 | N58: 18.23636524 | O58: 19.89529809 | P58: 19.68328815 | Q58: 16.68166098 | R58: 11.89165848 | S58: 20.35447211 | T58: 23.01328839 | U58: 10.01615125 | V58: 5.892759298
B59: Tubería dentro del terreno, patio o lote | C59: 19.21994469 | D59: 5.401241765 | E59: 3.145376446 | F59: 1.847387802 | G59: 0.4641138555 | H59: 7.570798315 | I59: 3.420982452 | J59: 1.612460292 | K59: 1.211399514 | L59: 0.2623272169 | M59: 28.09667562 | N59: 26.0712642 | O59: 14.88824274 | P59: 7.986508608 | Q59: 5.945251856 | R59: 13.61854271 | S59: 4.45724866 | T59: 2.875186114 | U59: 3.029441988 | V59: 8.175908046
B60: Tubería del vecino | C60: 0.6631910333 | D60: 0.01228997072 | E60: 0 | F60: 0 | G60: 0 | H60: 0.1797189391 | I60: 0 | J60: 0 | K60: 0 | L60: 0 | M60: 2.161746847 | N60: 0.110164451 | O60: 0.0528965888 | P60: 0 | Q60: 0 | R60: 0.3278523265 | S60: 0.113515812 | T60: 0 | U60: 0.2283771012 | V60: 0.06725256782
B61: Llave/grifo público | C61: 1.486865792 | D61: 1.164069582 | E61: 0.8438689379 | F61: 1.893412573 | G61: 1.144884648 | H61: 1.043314123 | I61: 1.19370528 | J61: 0.3103544064 | K61: 2.409859869 | L61: 1.347563502 | M61: 1.458824445 | N61: 1.652433493 | O61: 1.991453293 | P61: 1.326383953 | Q61: 0.8683450976 | R61: 0.6165305944 | S61: 0.3309323029 | T61: 2.7121393 | U61: 2.317118607 | V61: 0.409643883
B62: Pozo con tubería | C62: 1.722577341 | D62: 0.346728906 | E62: 0.2560608848 | F62: 0.1763921682 | G62: 0.109604841 | H62: 0.2405952145 | I62: 0.07924885692 | J62: 0 | K62: 0.100137141 | L62: 0 | M62: 3.304211244 | N62: 2.198910072 | O62: 2.271637028 | P62: 0.5462464109 | Q62: 1.54085851 | R62: 0.5580102115 | S62: 0.1568918621 | T62: 0.6919987621 | U62: 0.1529030091 | V62: 1.054214688
B63: Pozo protegido | C63: 7.780028568 | D63: 1.575637615 | E63: 0.6823428265 | F63: 0.02860610647 | G63: 0 | H63: 1.722641379 | I63: 0.5700940394 | J63: 0.6220729359 | K63: 0.01337424476 | L63: 0 | M63: 12.87820005 | N63: 10.3077775 | O63: 8.269588321 | P63: 1.592240152 | Q63: 0.6228180699 | R63: 1.29266683 | S63: 0.8654058701 | T63: 0.805631283 | U63: 0.02879479052 | V63: 6.886225857
B64: Pozo no protegido | C64: 2.653654509 | D64: 0.3670386545 | E64: 0.03744258216 | F64: 0.007110205765 | G64: 0 | H64: 0.3972613027 | I64: 0.1331840092 | J64: 0 | K64: 0 | L64: 0 | M64: 5.993236793 | N64: 4.049583794 | O64: 1.129791333 | P64: 0.1453064412 | Q64: 0.1381831739 | R64: 0.2196874585 | S64: 0.3018883072 | T64: 0.3269518146 | U64: 0.00401878141 | V64: 2.104033189
B65: Manantial protegido | C65: 2.453062601 | D65: 0.3327132738 | E65: 0.05826953585 | F65: 0.2693506839 | G65: 0 | H65: 0.9808011297 | I65: 0.07266381324 | J65: 0 | K65: 0.06479449712 | L65: 0 | M65: 4.448510464 | N65: 2.812936683 | O65: 1.168972151 | P65: 0.2802558566 | Q65: 1.006697187 | R65: 0.8577853854 | S65: 0.448696153 | T65: 0.8678295352 | U65: 0.03617161878 | V65: 0.9375147481
B66: Manantial no protegido | C66: 1.269013345 | D66: 0.1162098618 | E66: 0 | F66: 0 | G66: 0.03549017484 | H66: 0.4404924289 | I66: 0.06650104889 | J66: 0 | K66: 0 | L66: 0.04623138048 | M66: 3.21499821 | N66: 0.4492761903 | O66: 0.6382254133 | P66: 0 | Q66: 0 | R66: 0.4332456322 | S66: 0.2221349206 | T66: 0.07221167836 | U66: 0.006028172116 | V66: 0.724683882
B67: Recogen agua de lluvia | C67: 1.850646816 | D67: 0.1175165105 | E67: 0.0793084648 | F67: 0 | G67: 0 | H67: 0 | I67: 0 | J67: 0 | K67: 0 | L67: 0 | M67: 6.904131635 | N67: 0.9111705851 | O67: 0.6108089839 | P67: 0.07953846459 | Q67: 0.3417105265 | R67: 0.8296871237 | S67: 0 | T67: 0.3866212591 | U67: 0 | V67: 0.94368419
B68: Carro-tanque / camión cisterna | C68: 0.1355591479 | D68: 0.04684538464 | E68: 0 | F68: 0 | G68: 0.04065856843 | H68: 0.01984947558 | I68: 0 | J68: 0 | K68: 0 | L68: 0 | M68: 0.3857682887 | N68: 0.06218665597 | O68: 0.1372805712 | P68: 0.1361735551 | Q68: 0.1753002942 | R68: 0 | S68: 0.02887418709 | T68: 0.06678368625 | U68: 0.01522875151 | V68: 0.09882744713
B69: Carreta con tanque / tambor pequeño | C69: 0 | D69: 0 | E69: 0 | F69: 0 | G69: 0.03733768917 | H69: 0 | I69: 0 | J69: 0 | K69: 0 | L69: 0.04863805044 | M69: 0 | N69: 0 | O69: 0 | P69: 0 | Q69: 0 | R69: 0 | S69: 0.03410081551 | T69: 0 | U69: 0 | V69: 0
B70: Agua de superficie (río, arroyo, represa, lago, estanque, canal, canal de irrigación) | C70: 0.328260356 | D70: 0.06132964364 | E70: 0.07421509357 | F70: 0.1881170756 | G70: 0 | H70: 0.129012282 | I70: 0.05075423485 | J70: 0.02387966737 | K70: 0 | L70: 0 | M70: 1.00223425 | N70: 0.2527315132 | O70: 0 | P70: 0.1521155919 | Q70: 0.7311865675 | R70: 0.1694911566 | S70: 0.06140307514 | T70: 0.1885948762 | U70: 0.01837374285 | V70: 0.2202571304
B71: Agua embotellada/envasada | C71: 44.07566471 | D71: 73.4603788 | E71: 78.02093621 | F71: 82.02660964 | G71: 88.96575118 | H71: 72.26095167 | I71: 77.69677811 | J71: 82.50646575 | K71: 84.37619015 | L71: 88.21616255 | M71: 17.34256934 | N71: 32.84912769 | O71: 48.94580549 | P71: 68.07194281 | Q71: 71.94798773 | R71: 69.1196502 | S71: 72.44155396 | T71: 67.98501831 | U71: 84.14739218 | V71: 72.46784989
B72: Otra | C72: 0.07649959955 | D72: 0 | E72: 0 | F72: 0 | G72: 0.1600064576 | H72: 0.0234080581 | I72: 0 | J72: 0 | K72: 0 | L72: 0.2084328818 | M72: 0.2168525828 | N72: 0.03607192704 | O72: 0 | P72: 0 | Q72: 0 | R72: 0.06519189696 | S72: 0.1461352004 | T72: 0.007744990331 | U72: 0 | V72: 0.01714518615
B73: NR | C73: 0 | D73: 0 | E73: 0 | F73: 0.0402654759 | G73: 0 | H73: 0 | I73: 0 | J73: 0 | K73: 0.05246911706 | L73: 0 | M73: 0 | N73: 0 | O73: 0 | P73: 0 | Q73: 0 | R73: 0 | S73: 0.03674676706 | T73: 0 | U73: 0 | V73: 0
A108: =A1026 -> Mexico
A109: =A1034 -> 2015
A110: Use of sanitation facilities
A111: by wealth quintile and sub-national region
A112: Notes:
A113: WHO/UNICEF JMP customised wealth index excludes water,
A114: sanitation and hygiene assets.
A115: Survey used for analysis: | B115: =A1025 -> MICS15
A116: =B1030 -> 
A117: =B1029 -> 
A120: Use of sanitation facilities | C120: NATIONAL wealth index quintile | H120: URBAN wealth index quintile | M120: RURAL wealth index quintile | R120: SUB-REGIONS: | BA120: Raw numbers of respondents: | BB120: Use of sanitation facilities | BC120: NATIONAL wealth index quintile | BH120: URBAN wealth index quintile | BM120: RURAL wealth index quintile | BR120: SUB-REGIONS:
A121: Weighted percentage (used in graphs) | C121: Poorest | D121: Poor | E121: Middle | F121: Rich | G121: Richest | H121: Poorest | I121: Poor | J121: Middle | K121: Rich | L121: Richest | M121: Poorest | N121: Poor | O121: Middle | P121: Rich | Q121: Richest | R121: Centro | S121: DF-Edo México | T121: Noreste | U121: Noroeste | V121: Sur | BA121: Sanitation data, raw numbers (weighted) | BC121: Poorest | BD121: Poor | BE121: Middle | BF121: Rich | BG121: Richest | BH121: Poorest | BI121: Poor | BJ121: Middle | BK121: Rich | BL121: Richest | BM121: Poorest | BN121: Poor | BO121: Middle | BP121: Rich | BQ121: Richest | BR121: Centro | BS121: DF-Edo México | BT121: Noreste | BU121: Noroeste | BV121: Sur
A122: Sanitation | B122: Improved | C122: 91.81213849 | D122: 97.97272305 | E122: 99.76103869 | F122: 99.97358567 | G122: 99.70430521 | H122: 96.93770525 | I122: 99.03388954 | J122: 100 | K122: 99.96797748 | L122: 99.66563265 | M122: 83.97087505 | N122: 93.53971952 | O122: 93.4350596 | P122: 97.53005387 | Q122: 99.59932149 | R122: 96.37602273 | S122: 98.53833634 | T122: 98.41487605 | U122: 99.21423463 | V122: 96.29864142 | BA122: Sanitation | BB122: Improved | BC122: 7413.330375 | BD122: 7916.592245 | BE122: 8054.402514 | BF122: 8070.832869 | BG122: 8055.231495 | BH122: 6012.185617 | BI122: 6124.302632 | BJ122: 6220.048102 | BK122: 6193.3136 | BL122: 6181.314199 | BM122: 1566.439973 | BN122: 1762.928403 | BO122: 1754.147653 | BP122: 1829.372893 | BQ122: 1866.336426 | BR122: 5980.32875 | BS122: 8716.698226 | BT122: 8638.68872 | BU122: 8020.443225 | BV122: 8154.230577
B123: Not Improved | C123: 8.187861506 | D123: 2.027276947 | E123: 0.2389613147 | F123: 0.02641433326 | G123: 0.2956947906 | H123: 3.062294746 | I123: 0.9661104614 | J123: 0 | K123: 0.03202251847 | L123: 0.3343673472 | M123: 16.02912495 | N123: 6.460280484 | O123: 6.564940401 | P123: 2.46994613 | Q123: 0.4006785148 | R123: 3.623977271 | S123: 1.461663657 | T123: 1.585123947 | U123: 0.7857653681 | V123: 3.701358576 | BB123: Not Improved | BC123: 661.1252434 | BD123: 163.8121761 | BE123: 19.29300896 | BF123: 2.132419956 | BG123: 23.88954003 | BH123: 189.9269678 | BI123: 59.74472848 | BJ123: 0 | BK123: 1.983890283 | BL123: 20.73763619 | BM123: 299.0163201 | BN123: 121.7558916 | BO123: 123.2500396 | BP123: 46.32882193 | BQ123: 7.508092388 | BR123: 224.8751801 | BS123: 129.2987225 | BT123: 139.1394564 | BU123: 63.52099118 | BV123: 313.4180382
A124: Sanitation ladder | B124: Basic | C124: 80.72598638 | D124: 91.45158864 | E124: 97.0007512 | F124: 98.38442713 | G124: 99.383926 | H124: 84.49622308 | I124: 95.14891793 | J124: 97.39353048 | K124: 98.55583591 | L124: 99.47138734 | M124: 75.8056543 | N124: 85.08783575 | O124: 86.60099427 | P124: 94.05168148 | Q124: 98.50999796 | R124: 91.17184501 | S124: 90.88214273 | T124: 95.59507865 | U124: 97.35612001 | V124: 91.55487185 | BA124: Sanitation ladder | BB124: Basic | BC124: 6515.660083 | BD124: 7389.658211 | BE124: 7822.443478 | BF124: 7940.06892 | BG124: 8021.605881 | BH124: 5239.548232 | BI124: 5878.938853 | BJ124: 6054.021727 | BK124: 6103.351191 | BL124: 6161.518401 | BM124: 1413.696385 | BN124: 1602.463518 | BO124: 1625.845068 | BP124: 1764.129003 | BQ124: 1845.924197 | BR124: 5651.327632 | BS124: 8037.689377 | BT124: 8386.005326 | BU124: 7865.549638 | BV124: 7748.864601
B125: Limited | C125: 11.08298052 | D125: 6.521134412 | E125: 2.760009443 | F125: 1.58915031 | G125: 0.3200938264 | H125: 12.44089617 | I125: 3.884130987 | J125: 2.606469524 | K125: 1.412128582 | L125: 0.19382482 | M125: 8.160402315 | N125: 8.447152607 | O125: 6.834065334 | P125: 3.478372389 | Q125: 1.089323522 | R125: 5.200284442 | S125: 7.655876797 | T125: 2.818820848 | U125: 1.857646664 | V125: 4.742011652 | BB125: Limited | BC125: 894.5438388 | BD125: 526.9340333 | BE125: 222.5757801 | BF125: 128.2516284 | BG125: 25.83583305 | BH125: 771.4507601 | BI125: 239.9876853 | BJ125: 162.0192127 | BK125: 87.45008943 | BL125: 12.00601728 | BM125: 152.1829916 | BN125: 159.0856527 | BO125: 128.3025849 | BP125: 65.24389056 | BQ125: 20.41222911 | BR125: 322.3419594 | BS125: 677.0918659 | BT125: 247.2789079 | BU125: 150.0821113 | BV125: 401.346269
B126: Unimproved | C126: 4.584795531 | D126: 1.683552704 | E126: 0.2311277624 | F126: 0.026422556 | G126: 0.2959801707 | H126: 2.005423075 | I126: 0.8743578274 | J126: 0 | K126: 0.03203550952 | L126: 0.3347878409 | M126: 7.871963051 | N126: 3.575768265 | O126: 5.137039805 | P126: 1.71719566 | Q126: 0.3657692969 | R126: 2.184667117 | S126: 0.892562354 | T126: 0.9854654924 | U126: 0.3253786375 | V126: 2.6425909 | BB126: Unimproved | BC126: 370.0539388 | BD126: 136.0378671 | BE126: 18.6388645 | BF126: 2.132419956 | BG126: 23.88954003 | BH126: 124.3548001 | BI126: 54.02369585 | BJ126: 0 | BK126: 1.983890283 | BL126: 20.73763619 | BM126: 146.8039002 | BN126: 67.34262476 | BO126: 96.44266675 | BP126: 32.20946845 | BQ126: 6.853947922 | BR126: 135.4175693 | BS126: 78.93892832 | BT126: 86.44920832 | BU126: 26.28783711 | BV126: 223.6590873
B127: Open defecation | C127: 3.606237567 | D127: 0.3437242435 | E127: 0.008111596436 | F127: 0 | G127: 0 | H127: 1.057457679 | I127: 0.09259325157 | J127: 0 | K127: 0 | L127: 0 | M127: 8.161980332 | N127: 2.889243382 | O127: 1.427900596 | P127: 0.75275047 | Q127: 0.03490921792 | R127: 1.443203429 | S127: 0.5694181235 | T127: 0.6006350124 | U127: 0.460854687 | V127: 1.060525595 | BB127: Open defecation | BC127: 291.0713045 | BD127: 27.77430896 | BE127: 0.6541444665 | BF127: 0 | BG127: 0 | BH127: 65.57216774 | BI127: 5.72103263 | BJ127: 0 | BK127: 0 | BL127: 0 | BM127: 152.2124199 | BN127: 54.41326687 | BO127: 26.80737283 | BP127: 14.11935348 | BQ127: 0.6541444665 | BR127: 89.45761072 | BS127: 50.35979418 | BT127: 52.69024812 | BU127: 37.23315407 | BV127: 89.75895086
A128: Shared among Improved Sanitation | B128: Yes | C128: 12.07178437 | D128: 6.656071414 | E128: 2.766628306 | F128: 1.589570315 | G128: 0.3210440531 | H128: 12.83398585 | I128: 3.922055344 | J128: 2.606469524 | K128: 1.41258111 | L128: 0.1944759017 | M128: 9.718691867 | N128: 9.031008348 | O128: 7.314240889 | P128: 3.566462081 | Q128: 1.093705766 | R128: 5.396046006 | S128: 7.769464856 | T128: 2.864250744 | U128: 1.872367844 | V128: 4.924366687 | BA128: Shared among improved sanitation facilities | BB128: Yes | BC128: N/A | BD128: N/A | BE128: N/A | BF128: N/A | BG128: N/A | BH128: N/A | BI128: N/A | BJ128: N/A | BK128: N/A | BL128: N/A | BM128: N/A | BN128: N/A | BO128: N/A | BP128: N/A | BQ128: N/A | BR128: N/A | BS128: N/A | BT128: N/A | BU128: N/A | BV128: N/A
B129: No | C129: 87.92821563 | D129: 93.34392859 | E129: 97.23337169 | F129: 98.41042968 | G129: 99.67895595 | H129: 87.16601415 | I129: 96.07794466 | J129: 97.39353048 | K129: 98.58741889 | L129: 99.8055241 | M129: 90.28130813 | N129: 90.96899165 | O129: 92.68575911 | P129: 96.43353792 | Q129: 98.90629423 | R129: 94.60395399 | S129: 92.23053514 | T129: 97.13574926 | U129: 98.12763216 | V129: 95.07563331 | BB129: No | BC129: N/A | BD129: N/A | BE129: N/A | BF129: N/A | BG129: N/A | BH129: N/A | BI129: N/A | BJ129: N/A | BK129: N/A | BL129: N/A | BM129: N/A | BN129: N/A | BO129: N/A | BP129: N/A | BQ129: N/A | BR129: N/A | BS129: N/A | BT129: N/A | BU129: N/A | BV129: N/A
A130: Manually calculated ratios | B130: Improved latrines | C130: =(C158+C159)/(C158+C159+C160)*100 -> 80.51668998 | D130: =(D158+D159)/(D158+D159+D160)*100 -> 85.32481789 | E130: 95.89686192 | F130: 99.64925428 | G130: 95.40028921 | H130: 91.7927348 | I130: 95.03248756 | J130: 100 | K130: 100 | L130: 100 | M130: 70.87821457 | N130: 87.50258523 | O130: 78.61835101 | P130: 84.50660007 | Q130: 98.06794127 | R130: 88.66304036 | S130: 76.75231586 | T130: 81.95917452 | U130: 94.82715108 | V130: 82.71326142
B131: Other
B132: Other
C133: NATIONAL wealth index quintile | H133: URBAN wealth index quintile | M133: RURAL wealth index quintile | R133: SUB-REGIONS: | BA133: Raw numbers of respondents: | BB133: Use of sanitation facilities | BC133: NATIONAL wealth index quintile | BH133: URBAN wealth index quintile | BM133: RURAL wealth index quintile | BR133: SUB-REGIONS:
A134: Percentage based on weighted population | C134: Poorest | D134: Poor | E134: Middle | F134: Rich | G134: Richest | H134: Poorest | I134: Poor | J134: Middle | K134: Rich | L134: Richest | M134: Poorest | N134: Poor | O134: Middle | P134: Rich | Q134: Richest | R134: Centro | S134: DF-Edo México | T134: Noreste | U134: Noroeste | V134: Sur | BA134: Sanitation data, raw numbers (weighted) | BC134: Poorest | BD134: Poor | BE134: Middle | BF134: Rich | BG134: Richest | BH134: Poorest | BI134: Poor | BJ134: Middle | BK134: Rich | BL134: Richest | BM134: Poorest | BN134: Poor | BO134: Middle | BP134: Rich | BQ134: Richest | BR134: Centro | BS134: DF-Edo México | BT134: Noreste | BU134: Noroeste | BV134: Sur
A135: Sanitation type | B135: Sewer connection | C135: 38.87966748 | D135: 74.67185614 | E135: 87.47628764 | F135: 92.08556235 | G135: 97.3925863 | H135: 79.11343143 | I135: 87.85263689 | J135: 94.22774941 | K135: 96.93856077 | L135: 98.35358673 | M135: 8.383119836 | N135: 24.2684145 | O135: 28.18004905 | P135: 48.6305666 | Q135: 62.81523531 | R135: 76.3735649 | S135: 93.02690575 | T135: 82.54386485 | U135: 82.80588692 | V135: 54.68258796 | BA135: Sanitation type | BB135: Sewer connection | BC135: N/A | BD135: N/A | BE135: N/A | BF135: N/A | BG135: N/A | BH135: N/A | BI135: N/A | BJ135: N/A | BK135: N/A | BL135: N/A | BM135: N/A | BN135: N/A | BO135: N/A | BP135: N/A | BQ135: N/A | BR135: N/A | BS135: N/A | BT135: N/A | BU135: N/A | BV135: N/A
B136: Septic tank connection | C136: 21.50155196 | D136: 15.2628947 | E136: 7.892745284 | F136: 5.237954017 | G136: 1.974013473 | H136: 10.00297091 | I136: 7.374356768 | J136: 3.745663477 | K136: 2.27559118 | L136: 1.065643799 | M136: 19.86534725 | N136: 32.00099975 | O136: 32.52761653 | P136: 33.42960179 | Q136: 24.60833887 | R136: 7.17661907 | S136: 2.647355925 | T136: 7.660073858 | U136: 10.07641552 | V136: 23.88553814 | BB136: Septic tank connection | BC136: N/A | BD136: N/A | BE136: N/A | BF136: N/A | BG136: N/A | BH136: N/A | BI136: N/A | BJ136: N/A | BK136: N/A | BL136: N/A | BM136: N/A | BN136: N/A | BO136: N/A | BP136: N/A | BQ136: N/A | BR136: N/A | BS136: N/A | BT136: N/A | BU136: N/A | BV136: N/A
B137: Improved latrines | C137: 31.43091905 | D137: 8.037972207 | E137: 4.392005759 | F137: 2.650069301 | G137: 0.3377054326 | H137: 7.821302912 | I137: 3.806895878 | J137: 2.026587113 | K137: 0.7538255353 | L137: 0.2464021268 | M137: 55.72240796 | N137: 37.27030527 | O137: 32.72739401 | P137: 15.46988548 | Q137: 12.17574731 | R137: 12.82583876 | S137: 2.864074672 | T137: 8.210937346 | U137: 6.331932189 | V137: 17.73051532 | BB137: Improved latrines | BC137: N/A | BD137: N/A | BE137: N/A | BF137: N/A | BG137: N/A | BH137: N/A | BI137: N/A | BJ137: N/A | BK137: N/A | BL137: N/A | BM137: N/A | BN137: N/A | BO137: N/A | BP137: N/A | BQ137: N/A | BR137: N/A | BS137: N/A | BT137: N/A | BU137: N/A | BV137: N/A
B138: Unimproved facilities | C138: 4.583020284 | D138: 1.683552704 | E138: 0.2308591455 | F138: 0.02641433326 | G138: 0.2956947906 | H138: 2.005039386 | I138: 0.8735977056 | J138: 0 | K138: 0.03202251847 | L138: 0.3343673472 | M138: 7.86959741 | N138: 3.57315148 | O138: 5.137039805 | P138: 1.71719566 | Q138: 0.3657692969 | R138: 2.182322626 | S138: 0.8923689301 | T138: 0.9848587439 | U138: 0.3251849761 | V138: 2.641336426 | BB138: Unimproved facilities | BC138: N/A | BD138: N/A | BE138: N/A | BF138: N/A | BG138: N/A | BH138: N/A | BI138: N/A | BJ138: N/A | BK138: N/A | BL138: N/A | BM138: N/A | BN138: N/A | BO138: N/A | BP138: N/A | BQ138: N/A | BR138: N/A | BS138: N/A | BT138: N/A | BU138: N/A | BV138: N/A
B139: Open defecation | C139: 3.604841221 | D139: 0.3437242435 | E139: 0.008102169132 | F139: 0 | G139: 0 | H139: 1.05725536 | I139: 0.09251275575 | J139: 0 | K139: 0 | L139: 0 | M139: 8.159527537 | N139: 2.887129003 | O139: 1.427900596 | P139: 0.75275047 | Q139: 0.03490921792 | R139: 1.441654645 | S139: 0.569294727 | T139: 0.600265203 | U139: 0.460580392 | V139: 1.06002215 | BB139: Open defecation | BC139: N/A | BD139: N/A | BE139: N/A | BF139: N/A | BG139: N/A | BH139: N/A | BI139: N/A | BJ139: N/A | BK139: N/A | BL139: N/A | BM139: N/A | BN139: N/A | BO139: N/A | BP139: N/A | BQ139: N/A | BR139: N/A | BS139: N/A | BT139: N/A | BU139: N/A | BV139: N/A
A140: Septic tank emptying practices | B140: Not emptied/treated and disposed in situ | C140: N/A | D140: N/A | E140: N/A | F140: N/A | G140: N/A | H140: N/A | I140: N/A | J140: N/A | K140: N/A | L140: N/A | M140: N/A | N140: N/A | O140: N/A | P140: N/A | Q140: N/A | R140: N/A | S140: N/A | T140: N/A | U140: N/A | V140: N/A | BA140: Septic tank emptying practices | BB140: Not emptied/treated and disposed in situ | BC140: N/A | BD140: N/A | BE140: N/A | BF140: N/A | BG140: N/A | BH140: N/A | BI140: N/A | BJ140: N/A | BK140: N/A | BL140: N/A | BM140: N/A | BN140: N/A | BO140: N/A | BP140: N/A | BQ140: N/A | BR140: N/A | BS140: N/A | BT140: N/A | BU140: N/A | BV140: N/A
B141: Emptied and buried on site | C141: N/A | D141: N/A | E141: N/A | F141: N/A | G141: N/A | H141: N/A | I141: N/A | J141: N/A | K141: N/A | L141: N/A | M141: N/A | N141: N/A | O141: N/A | P141: N/A | Q141: N/A | R141: N/A | S141: N/A | T141: N/A | U141: N/A | V141: N/A | BB141: Emptied and buried on site | BC141: N/A | BD141: N/A | BE141: N/A | BF141: N/A | BG141: N/A | BH141: N/A | BI141: N/A | BJ141: N/A | BK141: N/A | BL141: N/A | BM141: N/A | BN141: N/A | BO141: N/A | BP141: N/A | BQ141: N/A | BR141: N/A | BS141: N/A | BT141: N/A | BU141: N/A | BV141: N/A
B142: Emptied and discharged locally | C142: N/A | D142: N/A | E142: N/A | F142: N/A | G142: N/A | H142: N/A | I142: N/A | J142: N/A | K142: N/A | L142: N/A | M142: N/A | N142: N/A | O142: N/A | P142: N/A | Q142: N/A | R142: N/A | S142: N/A | T142: N/A | U142: N/A | V142: N/A | BB142: Emptied and discharged locally | BC142: N/A | BD142: N/A | BE142: N/A | BF142: N/A | BG142: N/A | BH142: N/A | BI142: N/A | BJ142: N/A | BK142: N/A | BL142: N/A | BM142: N/A | BN142: N/A | BO142: N/A | BP142: N/A | BQ142: N/A | BR142: N/A | BS142: N/A | BT142: N/A | BU142: N/A | BV142: N/A
B143: Emptied and removed offsite | C143: N/A | D143: N/A | E143: N/A | F143: N/A | G143: N/A | H143: N/A | I143: N/A | J143: N/A | K143: N/A | L143: N/A | M143: N/A | N143: N/A | O143: N/A | P143: N/A | Q143: N/A | R143: N/A | S143: N/A | T143: N/A | U143: N/A | V143: N/A | BB143: Emptied and removed offsite | BC143: N/A | BD143: N/A | BE143: N/A | BF143: N/A | BG143: N/A | BH143: N/A | BI143: N/A | BJ143: N/A | BK143: N/A | BL143: N/A | BM143: N/A | BN143: N/A | BO143: N/A | BP143: N/A | BQ143: N/A | BR143: N/A | BS143: N/A | BT143: N/A | BU143: N/A | BV143: N/A
A144: Latrine emptying practices | B144: Not emptied/treated and disposed in situ | C144: N/A | D144: N/A | E144: N/A | F144: N/A | G144: N/A | H144: N/A | I144: N/A | J144: N/A | K144: N/A | L144: N/A | M144: N/A | N144: N/A | O144: N/A | P144: N/A | Q144: N/A | R144: N/A | S144: N/A | T144: N/A | U144: N/A | V144: N/A | BA144: Latrine emptying practices | BB144: Not emptied/treated and disposed in situ | BC144: N/A | BD144: N/A | BE144: N/A | BF144: N/A | BG144: N/A | BH144: N/A | BI144: N/A | BJ144: N/A | BK144: N/A | BL144: N/A | BM144: N/A | BN144: N/A | BO144: N/A | BP144: N/A | BQ144: N/A | BR144: N/A | BS144: N/A | BT144: N/A | BU144: N/A | BV144: N/A
B145: Emptied and buried on site | C145: N/A | D145: N/A | E145: N/A | F145: N/A | G145: N/A | H145: N/A | I145: N/A | J145: N/A | K145: N/A | L145: N/A | M145: N/A | N145: N/A | O145: N/A | P145: N/A | Q145: N/A | R145: N/A | S145: N/A | T145: N/A | U145: N/A | V145: N/A | BB145: Emptied and buried on site | BC145: N/A | BD145: N/A | BE145: N/A | BF145: N/A | BG145: N/A | BH145: N/A | BI145: N/A | BJ145: N/A | BK145: N/A | BL145: N/A | BM145: N/A | BN145: N/A | BO145: N/A | BP145: N/A | BQ145: N/A | BR145: N/A | BS145: N/A | BT145: N/A | BU145: N/A | BV145: N/A
B146: Emptied and discharged locally | C146: N/A | D146: N/A | E146: N/A | F146: N/A | G146: N/A | H146: N/A | I146: N/A | J146: N/A | K146: N/A | L146: N/A | M146: N/A | N146: N/A | O146: N/A | P146: N/A | Q146: N/A | R146: N/A | S146: N/A | T146: N/A | U146: N/A | V146: N/A | BB146: Emptied and discharged locally | BC146: N/A | BD146: N/A | BE146: N/A | BF146: N/A | BG146: N/A | BH146: N/A | BI146: N/A | BJ146: N/A | BK146: N/A | BL146: N/A | BM146: N/A | BN146: N/A | BO146: N/A | BP146: N/A | BQ146: N/A | BR146: N/A | BS146: N/A | BT146: N/A | BU146: N/A | BV146: N/A
B147: Emptied and removed offsite | C147: N/A | D147: N/A | E147: N/A | F147: N/A | G147: N/A | H147: N/A | I147: N/A | J147: N/A | K147: N/A | L147: N/A | M147: N/A | N147: N/A | O147: N/A | P147: N/A | Q147: N/A | R147: N/A | S147: N/A | T147: N/A | U147: N/A | V147: N/A | BB147: Emptied and removed offsite | BC147: N/A | BD147: N/A | BE147: N/A | BF147: N/A | BG147: N/A | BH147: N/A | BI147: N/A | BJ147: N/A | BK147: N/A | BL147: N/A | BM147: N/A | BN147: N/A | BO147: N/A | BP147: N/A | BQ147: N/A | BR147: N/A | BS147: N/A | BT147: N/A | BU147: N/A | BV147: N/A
A148: Shared among improved sanitation facilities | B148: Yes | C148: 11.07868915 | D148: 6.521134412 | E148: 2.756801757 | F148: 1.588655764 | G148: 0.3197851962 | H148: 12.4385159 | I148: 3.880754323 | J148: 2.60479035 | K148: 1.411555935 | L148: 0.1935813759 | M148: 8.157949994 | N148: 8.440970892 | O148: 6.834065334 | P148: 3.478372389 | Q148: 1.089323522 | R148: 5.19470372 | S148: 7.65421772 | T148: 2.817085307 | U148: 1.856541016 | V148: 4.739760555 | BA148: Shared among improved sanitation facilities | BB148: Yes | BC148: N/A | BD148: N/A | BE148: N/A | BF148: N/A | BG148: N/A | BH148: N/A | BI148: N/A | BJ148: N/A | BK148: N/A | BL148: N/A | BM148: N/A | BN148: N/A | BO148: N/A | BP148: N/A | BQ148: N/A | BR148: N/A | BS148: N/A | BT148: N/A | BU148: N/A | BV148: N/A
B149: No | C149: 80.69472904 | D149: 91.45158864 | E149: 96.88801684 | F149: 98.35380974 | G149: 99.28810134 | H149: 84.48005676 | I149: 95.06620035 | J149: 97.33078631 | K149: 98.5158695 | L149: 99.34645122 | M149: 75.78287359 | N149: 85.02556757 | O149: 86.60099427 | P149: 94.05168148 | Q149: 98.50999796 | R149: 91.0740033 | S149: 90.86244799 | T149: 95.536221 | U149: 97.29817486 | V149: 91.51140952 | BB149: No | BC149: N/A | BD149: N/A | BE149: N/A | BF149: N/A | BG149: N/A | BH149: N/A | BI149: N/A | BJ149: N/A | BK149: N/A | BL149: N/A | BM149: N/A | BN149: N/A | BO149: N/A | BP149: N/A | BQ149: N/A | BR149: N/A | BS149: N/A | BT149: N/A | BU149: N/A | BV149: N/A
B150: DK/missing | C150: 8.226581809 | D150: 2.027276947 | E150: 0.3551814 | F150: 0.05753449392 | G150: 0.3921134589 | H150: 3.081427337 | I150: 1.053045325 | J150: 0.06442333901 | K150: 0.07257456252 | L150: 0.4599674085 | M150: 16.05917642 | N150: 6.533461536 | O150: 6.564940401 | P150: 2.46994613 | Q150: 0.4006785148 | R150: 3.73129298 | S150: 1.483334285 | T150: 1.64669369 | U150: 0.8452841263 | V150: 3.748829926 | BB150: DK/missing | BC150: N/A | BD150: N/A | BE150: N/A | BF150: N/A | BG150: N/A | BH150: N/A | BI150: N/A | BJ150: N/A | BK150: N/A | BL150: N/A | BM150: N/A | BN150: N/A | BO150: N/A | BP150: N/A | BQ150: N/A | BR150: N/A | BS150: N/A | BT150: N/A | BU150: N/A | BV150: N/A
A151: Shared among all sanitation facilities | B151: Yes | C151: 12.0366163 | D151: 6.543626443 | E151: 2.832578705 | F151: 1.588655764 | G151: 0.3197851962 | H151: 12.87207201 | I151: 3.88434784 | J151: 2.60479035 | K151: 1.411555935 | L151: 0.1935813759 | M151: 9.305798508 | N151: 9.079661833 | O151: 7.447402596 | P151: 3.832404244 | Q151: 1.089703929 | R151: 5.434537304 | S151: 7.871741951 | T151: 2.97888703 | U151: 1.907374526 | V151: 4.875060331 | BA151: Shared among all sanitation facilities | BB151: Yes | BC151: N/A | BD151: N/A | BE151: N/A | BF151: N/A | BG151: N/A | BH151: N/A | BI151: N/A | BJ151: N/A | BK151: N/A | BL151: N/A | BM151: N/A | BN151: N/A | BO151: N/A | BP151: N/A | BQ151: N/A | BR151: N/A | BS151: N/A | BT151: N/A | BU151: N/A | BV151: N/A
B152: No | C152: 87.91135906 | D152: 93.45637356 | E152: 97.05119179 | F152: 98.38022408 | G152: 99.58379614 | H152: 87.10859095 | I152: 96.0286368 | J152: 97.33078631 | K152: 98.54789202 | L152: 99.68081856 | M152: 90.60761601 | N152: 90.84498147 | O152: 92.5525974 | P152: 96.16759576 | Q152: 98.91029607 | R152: 94.44148793 | S152: 92.10646334 | T152: 96.95917141 | U152: 98.03283132 | V152: 95.07695972 | BB152: No | BC152: N/A | BD152: N/A | BE152: N/A | BF152: N/A | BG152: N/A | BH152: N/A | BI152: N/A | BJ152: N/A | BK152: N/A | BL152: N/A | BM152: N/A | BN152: N/A | BO152: N/A | BP152: N/A | BQ152: N/A | BR152: N/A | BS152: N/A | BT152: N/A | BU152: N/A | BV152: N/A
A153: Tipo de instalación sanitaria | B153: Excusado conectado al alcantarillado | C153: 38.87966748 | D153: 74.67185614 | E153: 87.47628764 | F153: 92.08556235 | G153: 97.3925863 | H153: 79.11343143 | I153: 87.85263689 | J153: 94.22774941 | K153: 96.93856077 | L153: 98.35358673 | M153: 8.383119836 | N153: 24.2684145 | O153: 28.18004905 | P153: 48.6305666 | Q153: 62.81523531 | R153: 76.3735649 | S153: 93.02690575 | T153: 82.54386485 | U153: 82.80588692 | V153: 54.68258796 | BA153: Tipo de instalación sanitaria | BB153: Excusado conectado al alcantarillado | BC153: 3139.321496 | BD153: 6033.787965 | BE153: 7062.569119 | BF153: 7434.035484 | BG153: 7868.464927 | BH153: 4906.704087 | BI153: 5432.848673 | BJ153: 5861.011339 | BK153: 6005.632222 | BL153: 6099.94043 | BM153: 156.3834366 | BN153: 457.3829966 | BO153: 529.0515906 | BP153: 912.1643719 | BQ153: 1177.059844 | BR153: 4739.135451 | BS153: 8229.157243 | BT153: 7245.558627 | BU153: 6693.998267 | BV153: 4630.329402
B154: Excusado conectado a tanque séptico | C154: 21.50155196 | D154: 15.2628947 | E154: 7.892745284 | F154: 5.237954017 | G154: 1.974013473 | H154: 10.00297091 | I154: 7.374356768 | J154: 3.745663477 | K154: 2.27559118 | L154: 1.065643799 | M154: 19.86534725 | N154: 32.00099975 | O154: 32.52761653 | P154: 33.42960179 | Q154: 24.60833887 | R154: 7.17661907 | S154: 2.647355925 | T154: 7.660073858 | U154: 10.07641552 | V154: 23.88553814 | BB154: Excusado conectado a tanque séptico | BC154: 1736.133271 | BD154: 1233.303618 | BE154: 637.2362227 | BF154: 422.8582096 | BG154: 159.4829377 | BH154: 620.395518 | BI154: 456.0337151 | BJ154: 232.98207 | BK154: 140.9796432 | BL154: 66.09178077 | BM154: 370.5793706 | BN154: 603.1178162 | BO154: 610.6727221 | BP154: 627.0396141 | BQ154: 461.122009 | BR154: 445.3238486 | BS154: 234.1850243 | BT154: 672.3881215 | BU154: 814.5738249 | BV154: 2022.54344
B155: Letrina (pozo negro, hoyo) | C155: 18.49133316 | D155: 3.439659523 | E155: 1.569495485 | F155: 0.2871100939 | G155: 0.01308742102 | H155: 3.978017498 | I155: 1.490029688 | J155: 0.2781549678 | K155: 0.0522337605 | L155: 0 | M155: 37.20181074 | N155: 18.75675237 | O155: 16.22518935 | P155: 8.798494158 | Q155: 2.424332708 | R155: 7.408549131 | S155: 1.103308741 | T155: 5.17818925 | U155: 2.852582807 | V155: 8.02485183 | BB155: Letrina (pozo negro, hoyo) | BC155: 1493.074489 | BD155: 277.9384001 | BE155: 126.7162867 | BF155: 23.17829822 | BG155: 1.057348585 | BH155: 246.7211239 | BI155: 92.14414158 | BJ155: 17.3013728 | BK155: 3.236036854 | BL155: 0 | BM155: 693.9835197 | BN155: 353.5055661 | BO155: 304.6113303 | BP155: 165.0335058 | BQ155: 45.42822556 | BR155: 459.7155818 | BS155: 97.59865754 | BT155: 454.5325551 | BU155: 230.6017733 | BV155: 679.5162548
B156: Descarga a otra parte | C156: 1.04673959 | D156: 0.7270981259 | E156: 0.1223886536 | F156: 0.01918177599 | G156: 0.2812376046 | H156: 1.144927141 | I156: 0.5942401234 | J156: 0 | K156: 0.03202251847 | L156: 0.3343673472 | M156: 0.5321600686 | N156: 0.50807921 | O156: 0.7808208874 | P156: 0.5047224475 | Q156: 0.176853184 | R156: 1.421984518 | S156: 0.4911068422 | T156: 0.02734582182 | U156: 0.105743818 | V156: 0.4108973937 | BB156: Descarga a otra parte | BC156: 84.51852367 | BD156: 58.75246911 | BE156: 9.881287249 | BF156: 1.548538117 | BG156: 22.72152647 | BH156: 71.0096703 | BI156: 36.74809066 | BJ156: 0 | BK156: 1.983890283 | BL156: 20.73763619 | BM156: 9.92721349 | BN156: 9.575689072 | BO156: 14.65911332 | BP156: 9.467087605 | BQ156: 3.313953695 | BR156: 88.23703922 | BS156: 43.44329628 | BT156: 2.400369253 | BU156: 8.548292405 | BV156: 34.79334747
B157: Descarga a sitio desconocido / no estáseguro dónde / NS dónde | C157: 0.4062683321 | D157: 0.1370223493 | E157: 0.2496995487 | F157: 0.3081403142 | G157: 0.02476878507 | H157: 0.04985613843 | I157: 0 | J157: 0.306585097 | K157: 0.4015313331 | L157: 0.0322651306 | M157: 1.454742957 | N157: 0.157948292 | O157: 0.5683058865 | P157: 0.05812442185 | Q157: 0 | R157: 0.0187738792 | S157: 0.5194089655 | T157: 0 | U157: 0.3241388136 | V157: 0.2078255077 | BB157: Descarga a sitio desconocido / no estáseguro dónde / NS dónde | BC157: 32.80395617 | BD157: 11.07195997 | BE157: 20.15998128 | BF157: 24.8760606 | BG157: 2.001100125 | BH157: 3.092133836 | BI157: 0 | BJ157: 19.06974051 | BK157: 24.8760606 | BL157: 2.001100125 | BM157: 27.13759405 | BN157: 2.976826653 | BO157: 10.6693616 | BP157: 1.090240777 | BQ157: 0 | BR157: 1.16495749 | BS157: 45.94690123 | BT157: 0 | BU157: 26.2032657 | BV157: 17.59793372
B158: Letrina de fosa mejorada con ventilación | C158: 1.282969403 | D158: 0.5931951783 | E158: 0.09316419975 | F158: 0.142524571 | G158: 0.00912720604 | H158: 0.8435325441 | I158: 0.02845930572 | J158: 0.1197738223 | K158: 0 | L158: 0 | M158: 0.9045139501 | N158: 0.6976563427 | O158: 1.816904876 | P158: 1.776195386 | Q158: 0.6572136326 | R158: 0.2874649298 | S158: 0.03378754789 | T158: 0.1005167559 | U158: 0.7609556081 | V158: 0.9462522756 | BB158: Letrina de fosa mejorada con ventilación | BC158: 103.5927951 | BD158: 47.93256941 | BE158: 7.521793825 | BF158: 11.50595914 | BG158: 0.7373980231 | BH158: 52.31683807 | BI158: 1.759936944 | BJ158: 7.449989359 | BK158: 0 | BL158: 0 | BM158: 16.87331241 | BN158: 13.14861952 | BO158: 34.11053022 | BP158: 33.31612732 | BQ158: 12.31516163 | BR158: 17.83778512 | BS158: 2.988845455 | BT158: 8.823188123 | BU158: 61.51537905 | BV158: 80.12531771
B159: Letrina de fosa con losa | C159: 10.94608753 | D159: 3.868095157 | E159: 2.441963693 | F159: 1.912294322 | G159: 0.2907220205 | H159: 2.809802307 | I159: 2.288406885 | J159: 1.322073226 | K159: 0.3000604417 | L159: 0.2141369962 | M159: 15.78445035 | N159: 17.18848727 | O159: 14.1169939 | P159: 4.83707151 | Q159: 8.931839732 | R159: 4.988774952 | S159: 1.207569418 | T159: 2.842762867 | U159: 2.394254961 | V159: 8.407874851 | BB159: Letrina de fosa con losa | BC159: 883.8369797 | BD159: 312.5577321 | BE159: 197.1567133 | BF159: 154.3788568 | BG159: 23.48778391 | BH159: 174.2671025 | BI159: 141.5161655 | BJ159: 82.23359058 | BK159: 18.58963701 | BL159: 13.2808875 | BM159: 294.4520224 | BN159: 323.94872 | BO159: 265.0321178 | BP159: 90.72903329 | BQ159: 167.3687893 | BR159: 309.5636594 | BS159: 106.8215539 | BT159: 249.53284 | BU159: 193.5507143 | BV159: 711.9492984
B160: Letrina de fosa sin losa/Foso abierto | C160: 2.95916918 | D160: 0.76730604 | E160: 0.1084704919 | F160: 0.007232557273 | G160: 0.01445718597 | H160: 0.3266477251 | I160: 0.1211066016 | J160: 0 | K160: 0 | L160: 0 | M160: 6.857007336 | N160: 2.554559442 | O160: 4.333505173 | P160: 1.212473213 | Q160: 0.1889161129 | R160: 0.6746499821 | S160: 0.3759974448 | T160: 0.6478737047 | U160: 0.1721176626 | V160: 1.954974904 | BB160: Letrina de fosa sin losa/Foso abierto | BC160: 238.9368021 | BD160: 62.00143118 | BE160: 8.757577249 | BF160: 0.5838818381 | BG160: 1.168013553 | BH160: 20.25905966 | BI160: 7.489289601 | BJ160: 0 | BK160: 0 | BL160: 0 | BM160: 127.9144749 | BN160: 48.14538059 | BO160: 81.35712611 | BP160: 22.74238085 | BQ160: 3.539994227 | BR160: 41.8634072 | BS160: 33.26072249 | BT160: 56.8692406 | BU160: 13.91393026 | BV160: 165.5404054
B161: Excusado de compostaje | C161: 0.3042606234 | D161: 0 | E161: 0.03768283225 | F161: 0 | G161: 0 | H161: 0.1400944241 | I161: 0 | J161: 0 | K161: 0 | L161: 0 | M161: 0.3768899659 | N161: 0.4694609879 | O161: 0 | P161: 0 | Q161: 0.162361237 | R161: 0.1222758696 | S161: 0 | T161: 0.08946847268 | U161: 0 | V161: 0.1437108556 | BB161: Excusado de compostaje | BC161: 24.567389 | BD161: 0 | BE161: 3.042397141 | BF161: 0 | BG161: 0 | BH161: 8.688813909 | BI161: 0 | BJ161: 0 | BK161: 0 | BL161: 0 | BM161: 7.030717587 | BN161: 8.847857507 | BO161: 0 | BP161: 0 | BQ161: 3.042397141 | BR161: 7.587467068 | BS161: 0 | BT161: 7.853388804 | BU161: 0 | BV161: 12.16893027
B162: Excusado colgante, Letrina colgante | C162: 0.06635820317 | D162: 0 | E162: 0 | F162: 0 | G162: 0 | H162: 0 | I162: 0 | J162: 0 | K162: 0 | L162: 0 | M162: 0.264366223 | N162: 0 | O162: 0.02271374478 | P162: 0 | Q162: 0 | R162: 0 | S162: 0 | T162: 0 | U162: 0.005274977831 | V162: 0.05824091868 | BB162: Excusado colgante, Letrina colgante | BC162: 5.358063664 | BD162: 0 | BE162: 0 | BF162: 0 | BG162: 0 | BH162: 0 | BI162: 0 | BJ162: 0 | BK162: 0 | BL162: 0 | BM162: 4.931636344 | BN162: 0 | BO162: 0.4264273203 | BP162: 0 | BQ162: 0 | BR162: 0 | BS162: 0 | BT162: 0 | BU162: 0.4264273203 | BV162: 4.931636344
B163: No hay instalación sanitaria, va al monte, campo | C163: 3.604841221 | D163: 0.3437242435 | E163: 0.008102169132 | F163: 0 | G163: 0 | H163: 1.05725536 | I163: 0.09251275575 | J163: 0 | K163: 0 | L163: 0 | M163: 8.159527537 | N163: 2.887129003 | O163: 1.427900596 | P163: 0.75275047 | Q163: 0.03490921792 | R163: 1.441654645 | S163: 0.569294727 | T163: 0.600265203 | U163: 0.460580392 | V163: 1.06002215 | BB163: No hay instalación sanitaria, va al monte, campo | BC163: 291.0713045 | BD163: 27.77430896 | BE163: 0.6541444665 | BF163: 0 | BG163: 0 | BH163: 65.57216774 | BI163: 5.72103263 | BJ163: 0 | BK163: 0 | BL163: 0 | BM163: 152.2124199 | BN163: 54.41326687 | BO163: 26.80737283 | BP163: 14.11935348 | BQ163: 0.6541444665 | BR163: 89.45761072 | BS163: 50.35979418 | BT163: 52.69024812 | BU163: 37.23315407 | BV163: 89.75895086
B164: Otro | C164: 0.5107533108 | D164: 0.1891485377 | E164: 0 | F164: 0 | G164: 0 | H164: 0.5334645194 | I164: 0.1582509806 | J164: 0 | K164: 0 | L164: 0 | M164: 0.2160637823 | N164: 0.5105128286 | O164: 0 | P164: 0 | Q164: 0 | R164: 0.08568812509 | S164: 0.02526464312 | T164: 0.3096392174 | U164: 0.0420485177 | V164: 0.2172232101 | BB164: Otro | BC164: 41.2405494 | BD164: 15.2839668 | BE164: 0 | BF164: 0 | BG164: 0 | BH164: 33.08607009 | BI164: 9.786315589 | BJ164: 0 | BK164: 0 | BL164: 0 | BM164: 4.030575425 | BN164: 9.621555099 | BO164: 0 | BP164: 0 | BQ164: 0 | BR164: 5.317122906 | BS164: 2.23490956 | BT164: 27.17959847 | BU164: 3.399187124 | BV164: 18.39369814
BB165: Total | BC165: 8074.455618 | BD165: 8080.404421 | BE165: 8073.695523 | BF165: 8072.965289 | BG165: 8079.121035 | BH165: 6202.112585 | BI165: 6184.04736 | BJ165: 6220.048102 | BK165: 6195.29749 | BL165: 6202.051835 | BM165: 1865.456293 | BN165: 1884.684294 | BO165: 1877.397692 | BP165: 1875.701715 | BQ165: 1873.844519 | BR165: 6205.20393 | BS165: 8845.996948 | BT165: 8777.828177 | BU165: 8083.964216 | BV165: 8467.648615
A208: =A1026 -> Mexico
A209: =A1034 -> 2015
A210: Access to hygiene facilities
A211: by wealth quintile and sub-national region
A212: Notes:
A213: WHO/UNICEF JMP customised wealth index excludes water,
A214: sanitation and hygiene assets.
A215: Survey used for analysis: | B215: =A1025 -> MICS15
A220: Access to handwashing | C220: NATIONAL wealth index quintile | H220: URBAN wealth index quintile | M220: RURAL wealth index quintile | R220: SUB-REGIONS: | BA220: Raw numbers of respondents: | BB220: Access to handwashing | BC220: NATIONAL wealth index quintile | BH220: URBAN wealth index quintile | BM220: RURAL wealth index quintile | BR220: SUB-REGIONS:
A221: Weighted percentage (used in graphs) | C221: Poorest | D221: Poor | E221: Middle | F221: Rich | G221: Richest | H221: Poorest | I221: Poor | J221: Middle | K221: Rich | L221: Richest | M221: Poorest | N221: Poor | O221: Middle | P221: Rich | Q221: Richest | R221: Centro | S221: DF-Edo México | T221: Noreste | U221: Noroeste | V221: Sur | BA221: Hygiene data, raw numbers (weighted) | BC221: Poorest | BD221: Poor | BE221: Middle | BF221: Rich | BG221: Richest | BH221: Poorest | BI221: Poor | BJ221: Middle | BK221: Rich | BL221: Richest | BM221: Poorest | BN221: Poor | BO221: Middle | BP221: Rich | BQ221: Richest | BR221: Centro | BS221: DF-Edo México | BT221: Noreste | BU221: Noroeste | BV221: Sur
A222: Hygiene ladder | B222: Basic | C222: 79.60352238 | D222: 85.58858832 | E222: 91.0177743 | F222: 95.49443771 | G222: 96.51473073 | H222: 83.18914821 | I222: 87.44891356 | J222: 94.14477307 | K222: 96.59531496 | L222: 96.13198251 | M222: 74.62499595 | N222: 84.55709244 | O222: 81.89164042 | P222: 85.44108173 | Q222: 91.114265 | R222: 87.60077979 | S222: 88.67566382 | T222: 92.35296277 | U222: 92.17631745 | V222: 86.24124503 | BA222: Hygiene ladder | BB222: Basic | BC222: 6196.05129 | BD222: 6727.020305 | BE222: 6946.538689 | BF222: 7187.598737 | BG222: 7101.672304 | BH222: 5004.05675 | BI222: 5165.470994 | BJ222: 5520.598775 | BK222: 5489.038428 | BL222: 5414.806174 | BM222: 1354.330357 | BN222: 1514.722093 | BO222: 1498.392265 | BP222: 1561.399736 | BQ222: 1636.065753 | BR222: 5246.253071 | BS222: 6676.171574 | BT222: 7982.969086 | BU222: 7081.962335 | BV222: 7171.52526
B223: Limited | C223: 14.99105578 | D223: 9.876027475 | E223: 5.742137382 | F223: 3.37979596 | G223: 2.709128664 | H223: 13.17798421 | I223: 8.408161529 | J223: 4.307278584 | K223: 2.238616043 | L223: 2.970620316 | M223: 19.59160682 | N223: 10.32854663 | O223: 10.66228604 | P223: 8.532615002 | Q223: 5.958363338 | R223: 6.281638105 | S223: 6.74825611 | T223: 5.420892199 | U223: 6.905631261 | V223: 11.44407709 | BB223: Limited | BC223: 1166.849754 | BD223: 776.2277502 | BE223: 438.2438462 | BF223: 254.3877713 | BG223: 199.341011 | BH223: 792.6921028 | BI223: 496.6569935 | BJ223: 252.5764957 | BK223: 127.2095804 | BL223: 167.3255124 | BM223: 355.5579134 | BN223: 185.0214727 | BO223: 195.0905715 | BP223: 155.9299408 | BQ223: 106.9895499 | BR223: 376.1960028 | BS223: 508.0595247 | BT223: 468.5806881 | BU223: 530.5638351 | BV223: 951.6500823
B224: No facility | C224: 5.405421835 | D224: 4.535384208 | E224: 3.240088323 | F224: 1.125766332 | G224: 0.7761406099 | H224: 3.632867588 | I224: 4.142924912 | J224: 1.547948345 | K224: 1.166069001 | L224: 0.8973971738 | M224: 5.783397234 | N224: 5.114360937 | O224: 7.446073534 | P224: 6.026303269 | Q224: 2.927371664 | R224: 6.117582109 | S224: 4.57608007 | T224: 2.226145033 | U224: 0.9180512846 | V224: 2.314677875 | BB224: No facility | BC224: 420.7385544 | BD224: 356.468336 | BE224: 247.2857534 | BF224: 84.73327728 | BG224: 57.10937835 | BH224: 218.527007 | BI224: 244.7161159 | BJ224: 90.77085702 | BK224: 66.26198751 | BL224: 50.54750387 | BM224: 104.9598776 | BN224: 91.6166259 | BO224: 136.2427096 | BP224: 110.1281508 | BQ224: 52.56446426 | BR224: 366.3709844 | BS224: 344.521759 | BT224: 192.4274701 | BU224: 70.5344366 | BV224: 192.4806494
A225: Lugar usado conmayor frecuencia para el lavado de las manos | B225: Lugar observado | C225: 91.18758455 | D225: 92.85733318 | E225: 91.46719138 | F225: 92.18405186 | G225: 90.36890625 | H225: 93.46410234 | I225: 91.56023002 | J225: 92.81560488 | K225: 90.65340312 | L225: 90.00459582 | M225: 91.66059135 | N225: 90.1871773 | O225: 90.20373485 | P225: 91.55665121 | Q225: 93.02027384 | R225: 90.60861072 | S225: 81.21448764 | T225: 96.28292562 | U225: 94.1682319 | V225: 95.93188985 | BA225: Observed handwashing place | BB225: Fixed | BC225: N/A | BD225: N/A | BE225: N/A | BF225: N/A | BG225: N/A | BH225: N/A | BI225: N/A | BJ225: N/A | BK225: N/A | BL225: N/A | BM225: N/A | BN225: N/A | BO225: N/A | BP225: N/A | BQ225: N/A | BR225: N/A | BS225: N/A | BT225: N/A | BU225: N/A | BV225: N/A
B226: No está en la vivienda/patio/lote | C226: 5.022308137 | D226: 4.317209593 | E226: 2.992595547 | F226: 1.049592984 | G226: 0.7068761329 | H226: 3.462967663 | I226: 3.797255525 | J226: 1.40464912 | K226: 1.069552957 | L226: 0.8150125992 | M226: 5.392097519 | N226: 4.484815949 | O226: 7.256997822 | P226: 5.871304053 | Q226: 2.805166796 | R226: 5.904253729 | S226: 3.728346456 | T226: 2.144123264 | U226: 0.8304518518 | V226: 2.200214823 | BB226: Mobile | BC226: N/A | BD226: N/A | BE226: N/A | BF226: N/A | BG226: N/A | BH226: N/A | BI226: N/A | BJ226: N/A | BK226: N/A | BL226: N/A | BM226: N/A | BN226: N/A | BO226: N/A | BP226: N/A | BQ226: N/A | BR226: N/A | BS226: N/A | BT226: N/A | BU226: N/A | BV226: N/A
B227: No obtuvo permiso para ver el lugar | C227: 3.60167959 | D227: 2.731150792 | E227: 5.46995156 | F227: 6.766355155 | G227: 8.924217613 | H227: 3.01246909 | I227: 4.482553911 | J227: 5.725067865 | K227: 8.277043927 | L227: 9.180391582 | M227: 2.712909759 | N227: 4.951710086 | O227: 2.539267326 | P227: 2.572044734 | Q227: 4.174559361 | R227: 3.48713555 | S227: 14.89084948 | T227: 1.524875286 | U227: 4.959245228 | V227: 1.79498029 | BA227: Water / Soap | BB227: Water and soap | BC227: N/A | BD227: N/A | BE227: N/A | BF227: N/A | BG227: N/A | BH227: N/A | BI227: N/A | BJ227: N/A | BK227: N/A | BL227: N/A | BM227: N/A | BN227: N/A | BO227: N/A | BP227: N/A | BQ227: N/A | BR227: N/A | BS227: N/A | BT227: N/A | BU227: N/A | BV227: N/A
B228: Otra razón | C228: 0.1884277238 | D228: 0.09430643323 | E228: 0.07026151333 | F228: 0 | G228: 0 | H228: 0.06046091121 | I228: 0.1599605439 | J228: 0.05467813124 | K228: 0 | L228: 0 | M228: 0.234401367 | N228: 0.3762966622 | O228: 0 | P228: 0 | Q228: 0 | R228: 0 | S228: 0.1663164184 | T228: 0.04807583358 | U228: 0.0420710183 | V228: 0.07291503984 | BB228: Water only | BC228: N/A | BD228: N/A | BE228: N/A | BF228: N/A | BG228: N/A | BH228: N/A | BI228: N/A | BJ228: N/A | BK228: N/A | BL228: N/A | BM228: N/A | BN228: N/A | BO228: N/A | BP228: N/A | BQ228: N/A | BR228: N/A | BS228: N/A | BT228: N/A | BU228: N/A | BV228: N/A
BB229: Soap only | BC229: N/A | BD229: N/A | BE229: N/A | BF229: N/A | BG229: N/A | BH229: N/A | BI229: N/A | BJ229: N/A | BK229: N/A | BL229: N/A | BM229: N/A | BN229: N/A | BO229: N/A | BP229: N/A | BQ229: N/A | BR229: N/A | BS229: N/A | BT229: N/A | BU229: N/A | BV229: N/A
BB230: Neither | BC230: N/A | BD230: N/A | BE230: N/A | BF230: N/A | BG230: N/A | BH230: N/A | BI230: N/A | BJ230: N/A | BK230: N/A | BL230: N/A | BM230: N/A | BN230: N/A | BO230: N/A | BP230: N/A | BQ230: N/A | BR230: N/A | BS230: N/A | BT230: N/A | BU230: N/A | BV230: N/A
BA231: Lugar usado conmayor frecuencia para el lavado de las manos | BB231: Lugar observado | BC231: 7362.901044 | BD231: 7503.248055 | BE231: 7384.782536 | BF231: 7441.986508 | BG231: 7301.013315 | BH231: 5796.748853 | BI231: 5662.127988 | BJ231: 5773.17527 | BK231: 5616.248008 | BL231: 5582.131686 | BM231: 1709.88827 | BN231: 1699.743566 | BO231: 1693.482836 | BP231: 1717.329677 | BQ231: 1743.055303 | BR231: 5622.449074 | BS231: 7184.231098 | BT231: 8451.549774 | BU231: 7612.52617 | BV231: 8123.175342
BB232: No está en la vivienda/patio/lote | BC232: 405.5240415 | BD232: 348.8479948 | BE232: 241.6130527 | BF232: 84.73327728 | BG232: 57.10937835 | BH232: 214.7771533 | BI232: 234.8240801 | BJ232: 87.36985095 | BK232: 66.26198751 | BL232: 50.54750387 | BM232: 100.5872225 | BN232: 84.52462181 | BO232: 136.2427096 | BP232: 110.1281508 | BQ232: 52.56446426 | BR232: 366.3709844 | BS232: 329.8094137 | BT232: 188.207456 | BU232: 67.13343053 | BV232: 186.30646
BB233: No obtuvo permiso para ver el lugar | BC233: 290.81602 | BD233: 220.6880293 | BE233: 441.6272342 | BF233: 546.245503 | BG233: 720.9983424 | BH233: 186.8367245 | BI233: 277.2032568 | BJ233: 356.1019751 | BK233: 512.7874947 | BL233: 569.3726446 | BM233: 50.60814584 | BN233: 93.32410229 | BO233: 47.67214618 | BP233: 48.24388718 | BQ233: 78.22475176 | BR233: 216.3838722 | BS233: 1317.244091 | BT233: 133.8509325 | BU233: 400.9036096 | BV233: 151.9926237
BB234: Otra razón | BC234: 15.21451293 | BD234: 7.6203412 | BE234: 5.672700656 | BF234: 0 | BG234: 0 | BH234: 3.749853783 | BI234: 9.892035791 | BJ234: 3.401006065 | BK234: 0 | BL234: 0 | BM234: 4.372655053 | BN234: 7.092004092 | BO234: 0 | BP234: 0 | BQ234: 0 | BR234: 0 | BS234: 14.71234529 | BT234: 4.220014066 | BU234: 3.401006065 | BV234: 6.174189362
BB235: Total | BC235: 8074.455618 | BD235: 8080.404421 | BE235: 8073.695523 | BF235: 8072.965289 | BG235: 8079.121035 | BH235: 6202.112585 | BI235: 6184.04736 | BJ235: 6220.048102 | BK235: 6195.29749 | BL235: 6202.051835 | BM235: 1865.456293 | BN235: 1884.684294 | BO235: 1877.397692 | BP235: 1875.701715 | BQ235: 1873.844519 | BR235: 6205.20393 | BS235: 8845.996948 | BT235: 8777.828177 | BU235: 8083.964216 | BV235: 8467.648615
BA259: Raw numbers of respondents: | BB259: Menstrual health and hygiene | BC259: NATIONAL wealth index quintile | BH259: URBAN wealth index quintile | BM259: RURAL wealth index quintile | BR259: SUB-REGIONS:
BA260: MHH data, raw numbers (weighted) | BC260: Poorest | BD260: Poor | BE260: Middle | BF260: Rich | BG260: Richest | BH260: Poorest | BI260: Poor | BJ260: Middle | BK260: Rich | BL260: Richest | BM260: Poorest | BN260: Poor | BO260: Middle | BP260: Rich | BQ260: Richest | BR260: Centro | BS260: DF-Edo México | BT260: Noreste | BU260: Noroeste | BV260: Sur
BA261: Private place to wash and change | BB261: Yes | BC261: N/A | BD261: N/A | BE261: N/A | BF261: N/A | BG261: N/A | BH261: N/A | BI261: N/A | BJ261: N/A | BK261: N/A | BL261: N/A | BM261: N/A | BN261: N/A | BO261: N/A | BP261: N/A | BQ261: N/A | BR261: N/A | BS261: N/A | BT261: N/A | BU261: N/A | BV261: N/A
BB262: No | BC262: N/A | BD262: N/A | BE262: N/A | BF262: N/A | BG262: N/A | BH262: N/A | BI262: N/A | BJ262: N/A | BK262: N/A | BL262: N/A | BM262: N/A | BN262: N/A | BO262: N/A | BP262: N/A | BQ262: N/A | BR262: N/A | BS262: N/A | BT262: N/A | BU262: N/A | BV262: N/A
BB263: DK/not sure/missing | BC263: N/A | BD263: N/A | BE263: N/A | BF263: N/A | BG263: N/A | BH263: N/A | BI263: N/A | BJ263: N/A | BK263: N/A | BL263: N/A | BM263: N/A | BN263: N/A | BO263: N/A | BP263: N/A | BQ263: N/A | BR263: N/A | BS263: N/A | BT263: N/A | BU263: N/A | BV263: N/A
BA264: Use of menstrual materials | BB264: Materials reusable | BC264: N/A | BD264: N/A | BE264: N/A | BF264: N/A | BG264: N/A | BH264: N/A | BI264: N/A | BJ264: N/A | BK264: N/A | BL264: N/A | BM264: N/A | BN264: N/A | BO264: N/A | BP264: N/A | BQ264: N/A | BR264: N/A | BS264: N/A | BT264: N/A | BU264: N/A | BV264: N/A
BB265: Materials not reusable | BC265: N/A | BD265: N/A | BE265: N/A | BF265: N/A | BG265: N/A | BH265: N/A | BI265: N/A | BJ265: N/A | BK265: N/A | BL265: N/A | BM265: N/A | BN265: N/A | BO265: N/A | BP265: N/A | BQ265: N/A | BR265: N/A | BS265: N/A | BT265: N/A | BU265: N/A | BV265: N/A
